Workbook

Sheet Kezdő oldal
A1: Hitelközvetítő neve (cégneve) | P1: Printer | Q1: \\hqprint\HQBLACK a(z) Ne03: kimeneten
A2: Hitelközvetítő címe (székhelye) | S2: Fundamenta-Lakáskassza Pénzügyi Közvetítő Kft.
A3: Közvetítő partner neve | Q3: Automatikus | S3: H-1123 Budapest, Alkotás utca 55-61.
A4: Telefonszám, e-mail | H4: =IF(OR(B6="",B6=Q4),"",IF(OR(F6="",F7=""),"",Q19)) ->  | Q4: Manuális
A6: A személyre szóló tájékoztatóban a hitelközvetítő díjazásról milyen formában legyen tájékoztatás? | B6: Automatikus | D6: =IF(B6=Q3,Q6,Q8) -> Szerzési jutalék | Q6: Szerzési jutalék
D7: =IF(B6=Q3,Q7,Q8) -> Fenntartási jutalék | H7: =IF(OR(B6="",B6=Q4),"",IF(AND(F6="",F7=""),"",IF(OR(F6="",F7=""),Q16,CONCATENATE(Q20,Q21,Q22,Q23,Q24,Q25)))) ->  | Q7: Fenntartási jutalék
Q8: üres
A10: A hitelközvetítő díjazásról megjelenítendő tájékoztatás: | Q10: =IF(B6=Q3,F6,Q8) -> 0
A11: Szabadon kitölthető | Q11: =IF(B6=Q3,F7,Q8) -> 0
Q13: =IF(B6=Q4,A10,Q8) -> üres
Q14: =IF(B6=Q4,A11,Q8) -> üres
A15: 1. Előzetes tájékoztatás és adatkezelési nyilatkozat
A16: Ez a tájékoztató hivatott arra, hogy a hitel iránt érdeklődők figyelmét felhívja arra, hogy a jövedelem és a havi teher aránya megváltozhat a kamatlábak vagy a jövedelem változása esetén. Minden dokumentum pdf fájlként készül el, közben ki kell választani azt a mappát, ahova el kívánjuk menteni. A fájl nevének felépítése: Adós neve_dokumentum típusa_dátum.pdf | Q16: A szerzési és a fenntartási jutalék %-os mértékét is ki kell tölteni!
A19: 2. Ügyfelek adatainak rögzítése | Q19: A személyre szóló tájékoztatóban a hitelközvetítő díjazásról a következő kerül feltüntetésre:
A20: Az indikatív ajánlat, a Kockázatfeltáró nyilatkozat és a Zálogkötelezetti tájékoztató aláírási adataihoz legalább a név, anyja neve, születési dátum és az állandó lakcím kitöltése szükséges. | Q20: =TEXT(ROUND((Hiteladatok!B15+Hiteladatok!F15)*F6,0),"# ##") -> 
Q21: =IF(F7=0," Ft szerzési jutalék, ami a kölcsön folyósításakor válik esedékessé.",Q28) -> Ft szerzési jutalék, ami a kölcsön folyósításakor válik esedékessé.
A22: Az előzetes hitelképesség vizsgálathoz, a kockázati ármeghatározáshoz valamennyi adat kitöltése szükséges! | Q22: =IF(F7=0,"",7) -> 
A23: Amennyiben nincs pl. kiegészítő jövedelem, akkor nullát kell beírni, nem hagyható üresen az adatmező. | Q23: =IF(F7=0,""," év - a 109/2010. Korm.r. szerint szabályozott időszak - alatt az első esedékességet követően évente, minden év január hónapi elszámoláskori esedékességgel a Hitelező és a Közvetítő közötti Megbízási szerződés szerint és módon, összességében ") -> 
Q24: =IF(F7=0,"",TEXT(ROUND((Hiteladatok!B15+Hiteladatok!F15)*F7,0),"# ##")) -> 
Q25: =IF(F7=0,""," Ft összegben.") -> 
A26: 3. Finanszírozás összetétele
A27: Itt kell megadni a hitelcél megvalósításához szükséges források összetételét, a rendelkezésre álló megtakarításokat, az igénybe vett állami támogatásokat, valamint a különböző hiteleket.
Q28: Ft szerzési jutalék, ami a kölcsön folyósításakor válik esedékessé, továbbá fenntartási jutalék, ami előtörlesztés hiányában a kölcsön szerződésszerű teljesítése esetén naptári évenként, egyenlő részletekben kerül kifizetésre, az első esedékességtől (az első esedékesség a szerzési jutalék számfejtést követő év első munkanapja) számított legfeljebb
A29: 3. Hitelek alapvető adatainak, jellemzőinek megadása
A30: A finanszírozási összetétel alapján igényelt hitelek további paramétereienk megadása. Amennyiben az üzleti hitelnél a „Kockázati besorolás (árkategória)" mezőben a „Kalkulált” érték kerül beállításra, a kalkulátor automatikusan határozza meg az ügylet paraméterei alapján annak kockázati besorolását. Lehetőség van manuálisan beállítani az egyes kockázati kategóriákat, azonban ebben az esetben a kalkuláció eredménye nem veszi figyelembe az ügylet paramétereit.
A32: 4. Az indikatív ajánlat nyomtatása, aláíratása
A33: Az általános és a személyes tájékoztatót a fair bank szabályok értelmében külön dokumentumként kell kezelni, ezért külön kerül nyomtatásra és az ügyfeleknek külön kell aláírniuk is.
A37: 5. A kockázatfeltáró nyilatkozat nyomtatása, aláíratása
A38: A Kockázatfeltáró nyilatkozatot a fair bank szabályok értelmében külön dokumentumként kell kezelni, ezért külön kerül nyomtatásra és az ügyfeleknek külön kell aláírniuk is.
A41: 6. A Zálogkötelezetti tájékoztató nyomtatása, aláíratása
A42: A Zálogkötelezetti tájékoztató kinyomtatható, így az ügyfeleknek teljeskörű tájékoztatás nyújtható és nem kell külön felkeresni a bankfiókot ezen nyilatkozat aláírása érdekében.
A47: Lehetséges szerepkörök az ügyletben:
A48: Jövedelmével bevont adós(társ) és zálogkötelezett: Az az adós(társ), akinek a jövedelmét vizsgáljuk és a fedezeti ingatlanban tulajdonos, vagy a hitelcél ingatlanban tulajdonos lesz. Jövedelmével bevont adós(társ) és nem zálogkötelezett: Az az adós(társ), akinek a jövedelmét vizsgáljuk és a fedezeti ingatlanban nem tulajdonos, vagy a hitelcél ingatlanban nem lesz tulajdonos. Jövedelme nélküli adós(társ) és zálogkötelezett: A jövedelme miatt bevont adós(társ) házastársa vagy élettársa, akinek a jövedelmével nem számolunk, viszont a hiteltartozásait rögzíteni szükséges, és a fedezeti ingatlanban tulajdonos, vagy a hitelcél ingatlanban leendő tulajdonos. Jövedelme nélküli adós(társ) és nem zálogkötelezett: A jövedelme miatt bevont adós(társ) házastársa vagy élettársa, akinek a jövedelmével nem számolunk, viszont a hiteltartozásait rögzíteni szükséges, és a fedezeti ingatlanban nem tulajdonos, vagy a hitelcél ingatlanban nem lesz tulajdonos. Csak zálogkötelezett, nem adós(társ): Az a személy, akinek a jövedelmével és a hiteltartozásaival nem számolunk, azonban a fedezetként bevont ingatlan jelenlegi tulajdonosa.

Sheet Ügyféladatok
B1: ADÓS | C1: ADÓSTÁRS-1 | D1: ADÓSTÁRS-2 | E1: ADÓSTÁRS-3
B2: Jövedelmével bevont adós(társ) és zálogkötelezett | C2: Jövedelmével bevont adós(társ) és zálogkötelezett | D2: Nincs | E2: Nincs
A3: SZEMÉLYI ADATOK
A4: Név
A5: Születési név
A6: Anyja neve
A7: Születési dátum
A8: Családi állapot
A9: Legmagasabb iskolai végzettség
A11: CÍMEK, TELEFONSZÁMOK
A12: Állandó lakcím: irányító szám
A13: Állandó lakcím: város
A14: Állandó lakcím: utca, házszám
A15: Értesítési cím: irányító szám
A16: Értesítési cím: város
A17: Értesítési cím: utca, házszám
A18: Jogviszony a jelenlegi tartózkodási helyen
A19: Mióta él jelenlegi lakcímén
A22: BANKKAPCSOLATOK
A23: Van hitele a K&H-nál minimum 6 hónapja?
A24: Van bankszámlája a K&H-nál minimum 6 hónapja?
A25: K&H-hoz érkezik majd a bérátutalás?
A26: Hitelkártya keretösszeg
A27: Folyószámla hitelkeret összege | F27: Több szereplő közös terhét csak az egyiknél kell feltüntetni!
A28: Összes havi rendszeres törlesztés | F28: Több szereplő közös terhét csak az egyiknél kell feltüntetni!
A30: VAGYONI - PÉNZÜGYI ADATOK
A31: Belföldi alkalmazotti munkabér - bankszámlára
A32: Belföldi alkalmazotti munkabér - készpénzben
A33: Külföldi alkalmazotti munkabér - bankszámlára
A34: Külföldi alkalmazotti munkabér - készpénzben
A35: Nyugdíj
A36: Vállalkozói jövedelem
A37: Anyasági támogatások (GYES, GYED, GYÁS)
A38: Egyéb jövedelem
A40: Levonás/letiltás a jövedelemből
A41: Jövedelemmel rendelkezők száma
A42: Eltartott gyermekek száma a háztartásban | C42: 0
A44: MUNKAHELYI ADATOK
A45: Munkáltatói cégforma
A46: Gazdasági szektor
A47: Foglalkoztatás minősége
A48: Munkaviszony kezdete
A49: Van olyan jövedelemmel bevont szereplő, akinek van 150.000 Ft önállóan elfogadható jövedelme egy forrásból?
A50: adós, adóstárs? | B50: =IF(OR(B2=$E$83,B2=$E$84),0,1) -> 1 | C50: =IF(OR(C2=$E$83,C2=$E$84),0,1) -> 1 | D50: 0 | E50: 0 | F50: =SUM(B50:E50) -> 2
A51: hányadik adós, adóstárs? | B51: =IF(B50=0,0,SUM($B50:B$50)) -> 1 | C51: =IF(C50=0,0,SUM($B50:C$50)) -> 2 | D51: =IF(D50=0,0,SUM($B50:D$50)) -> 0 | E51: =IF(E50=0,0,SUM($B50:E$50)) -> 0
A52: zálogkötelezett? | B52: =IF(OR(B2=$E$79,B2=$E$81,B2=$E$83),1,0) -> 1 | C52: =IF(OR(C2=$E$79,C2=$E$81,C2=$E$83),1,0) -> 1 | D52: =IF(OR(D2=$E$79,D2=$E$81,D2=$E$83),1,0) -> 0 | E52: =IF(OR(E2=$E$79,E2=$E$81,E2=$E$83),1,0) -> 0 | F52: =SUM(B52:E52) -> 2
A53: hányadik zálogkötelezett? | B53: =IF(B52=0,0,SUM($B$52:B52)) -> 1 | C53: =IF(C52=0,0,SUM($B$52:C52)) -> 2 | D53: =IF(D52=0,0,SUM($B$52:D52)) -> 0 | E53: =IF(E52=0,0,SUM($B$52:E52)) -> 0
B54: =IF(B4="","",B4) ->  | C54: =IF(C4="","",C4) ->  | D54: =IF(D4="","",D4) ->  | E54: =IF(E4="","",E4) -> 
B55: =IF(B7="","",B7) ->  | C55: =IF(C7="","",C7) ->  | D55: =IF(D7="","",D7) ->  | E55: =IF(E7="","",E7) -> 
B56: =IF(B6="","",B6) ->  | C56: =IF(C6="","",C6) ->  | D56: =IF(D6="","",D6) ->  | E56: =IF(E6="","",E6) -> 
B57: =IF(OR(B12="",B13="",B14=""),"",CONCATENATE(Ügyféladatok!B13,", ",Ügyféladatok!B12," ",Ügyféladatok!B14)) ->  | C57: =IF(OR(C12="",C13="",C14=""),"",CONCATENATE(Ügyféladatok!C13,", ",Ügyféladatok!C12," ",Ügyféladatok!C14)) ->  | D57: =IF(OR(D12="",D13="",D14=""),"",CONCATENATE(Ügyféladatok!D13,", ",Ügyféladatok!D12," ",Ügyféladatok!D14)) ->  | E57: =IF(OR(E12="",E13="",E14=""),"",CONCATENATE(Ügyféladatok!E13,", ",Ügyféladatok!E12," ",Ügyféladatok!E14)) -> 
B58: Egyedülálló | C58: K&H Bank | D58: Adminisztráció/könyvelés | E58: Alkalmazott
B59: Házas | C59: AEGON Magyarország Hitel Zrt | D59: Államigazgatás | E59: GYES, GYED
B60: Elvált | C60: AXA Bank | D60: Bányászat | E60: Közalkalmazott
B61: Élettársi viszony | C61: Banco Popolare | D61: Befektetés - osztalék | E61: Köztisztviselő
B62: Özvegy | C62: Banco Primus S.A. | D62: Biztosítási tevékenység | E62: Külföldi alkalmazotti munkaviszony
C63: Banif Plus Bank | D63: Egészségügy | E63: Nyugdíjas
B64: Alapítvány | C64: Bank of China Hitelintézet | D64: Egyéb | E64: Rokkantnyugdíjas
B65: Állami részvénytársaság | C65: BNP Paribas Hungária Bank | D65: Élelmiszeripar | E65: Szerződéses
B66: Betéti társaság | C66: Budapest Bank | D66: Energiaszolgáltatás | E66: Ügyvéd, közjegyző, szellemi szabadfoglalkozású
B67: Egyéb | C67: CIB Bank | D67: Építőipar | E67: Vállalkozó - nem KATA
B68: Egyéb szövetkezet | C68: Citibank | D68: Erdő-, vad- és Halgazdálkodás | E68: Vállalkozó - KATA
B69: Egyéni vállakozó | C69: Cofidis | D69: Fa- és papíripar | E69: Egyéb
B70: Egyesülés | C70: Commerzbank | D70: Fegyveres testület
B71: Gazdasági munkaközösség | C71: Credigen Bank | D71: Fémipar
B72: Kamara | C72: Credit Agricole Corporate And Investment Bank | D72: Gép-, jármű- és műszergyártás
B73: Korlátolt felelősségű társaság | C73: Deutsche Bank | D73: Gyógyszergyártás
B74: Közalapítvány | C74: DRB Dél-Dunántúli Regionális Bank | D74: Informatika | E74: Jövedelmével bevont szereplő
B75: Közigazgatási szerv | C75: egyéb | D75: Infrastruktuális beruházás | E75: Jövedelme nélküli szereplő
B76: Közkereseti társaság | C76: Erste Bank | D76: Ingatlan bérbeadás | E76: Nincs
B77: Közös vállalat | C77: FHB | D77: Ingatlankereskedelem és beruházás
B78: Közp. költségvetési intézmény tul. lévő kht | C78: Gránit Bank | D78: Kiadó, nyomda
B79: Központi költségvetési intézmény | C79: Hanwha Bank | D79: Kiskereskedelem | E79: Jövedelmével bevont adós(társ) és zálogkötelezett
B80: Leányvállalat | C80: ING Bank | D80: Könnyűipar (egyéb) | E80: Jövedelmével bevont adós(társ), nem zálogkötelezett
B81: Részvénytársaság | C81: KDB Bank | D81: Kőolajfeldolgozás | E81: Jövedelme nélküli adós(társ) és zálogkötelezett
B82: Nem közp. költségvetési intézmény tul. lévő kht | C82: Kinizsi Bank | D82: Közigazgatás | E82: Jövedelme nélküli adós(társ), nem zálogkötelezett
B83: Non-profit társaság | C83: Magnet Magyar Közösségi Bank | D83: Külkereskedelem | E83: Csak zálogkötelezett, nem adós(társ)
B84: Önk. költségvetési intézmény | C84: Magyar Cetelem | D84: Marketing, hirdetés | E84: Nincs
B85: Pénzügyi szolgáltatást nem végző tak.szöv | C85: Magyar Külkereskedelmi | D85: Mezőgazdaság
B86: Pénzügyi szolgáltatást végző takarékszövetkezet | C86: Magyar Takarékszövetkezeti Bank | D86: Nagyberuházás | E86: VAGYONI - PÉNZÜGYI ADATOK
B87: Szövetkezet | C87: Mohácsi Takarék Bank | D87: Nagykereskedelem
B88: Társadalmi szervezet | C88: Oberbank AG | D88: Nehézipar (egyéb) | E88: Az ügylet nem hitelezhető, mert nincs olyan jövedelemmel bevont szereplő, akinek van 150.000 Ft önállóan elfogadható jövedelme egy forrásból.
B89: Ügyvéd, közjegyző | C89: OTP Bank | D89: Non-profit szektor (egyéb) | E89: Van olyan jövedelemmel bevont szereplő, akinek van 150.000 Ft önállóan elfogadható jövedelme egy forrásból?
B90: Egyéb | C90: Pannon Takarék Bank | D90: Oktatás - PHD ösztöndíj
B91: Nincs info | C91: Raiffeisen Bank | D91: Oktatás, képzés | F91: =IF(A49="","szines","") -> 
C92: Sopron Bank Burgenland | D92: Pénzügyi szolgáltatás | E92: Igen
B93: 8 általános vagy kevesebb | C93: Széchenyi Kereskedelmi Bank | D93: Ruha- és textilipar | E93: Nem
B94: Szakmunkás | C94: Takarékszövetkezetek | D94: Sporttevékenység
B95: Szakközép | C95: UniCredit Bank | D95: Szállítás, raktározás, posta
B96: Gimnázium | C96: Volksbank | D96: Szociális
B97: Főiskola | C97: WPB Capital, credit union | D97: Szociális - életjáradék, jogdíjak
B98: Egyetem | C98: ZUNO BANK AG | D98: Szociális - GYES, GYET, GYED, TGYÁS
B99: Tudományos fokozat | D99: Szociális-személyi járadék vakok részére
D100: Szolgáltatás - megbízásos alapon
D101: Szolgáltatás (egyéb)
B102: kevesebb, mint 1 éve | C102: Tulajdonos | D102: Szolgáltatás-jogi,ügyvéd,jogász,közjegyző
B103: 1 - 3 év | C103: Társtulajdonos | D103: Szórakozás, kultúra
B104: 4 - 10 év | C104: Bérlő | D104: Tanácsadás, audit
B105: több, mint 10 éve | C105: Albérlő | D105: Telekommunikáció
C106: Családdal él | D106: Tömegközlekedés
C107: Szolgálati lakás | D107: Tudományos kutatás
C108: Önkormányzati lakás | D108: Turizmus, vendéglátás
C109: Egyéb jogcím | D109: Vegyipar

Sheet Finanszírozás
A1: Finanszírozás összetétele | B1: ingatlan vételára vagy építés/bővítés/korszerűsítés/felújítás költsége | E1: klasszikus önerő | F1: =SUMPRODUCT(C2:C17,E2:E17) -> 0 | I1: saját forrás arány pd7-hez | J1: =C2 -> 0
B2: Készpénz, megtakarítás | C2: =C3+C4 -> 0 | E2: 1
B3: - készpénz, lakáscélú betét, LTP megtakarítás, 90 napon túl felvett babaváró
B4: - 2 évnél nem korábban vásárolt építési telek vételára
B5: állami támogatások | C5: =C6+C7+C8 -> 0
B6: - meglévő gyermek utáni CSOK | E6: 1 | F6: =IF(C5=0,0,SUMPRODUCT(C6:C8,E6:E8)/C5) -> 0
B7: - vállalt gyermek utáni CSOK | E7: 0
B8: - ÁFA-támogatás | E8: 1
B9: Munkáltatói, önkormányzati vissza nem térítendő támogatás | E9: 0
B10: Munkáltatói, önkormányzati visszatérítendő támogatás vagy hitel | E10: 1
B11: Babaváró hitel: 90 napon belül felvett | E11: =MIN(0.75,IF(C11=0,0,C12/C11)) -> 0
B12: - ebből a hitelcélra fordítandó rész
B13: Hitelfelvétel összesen | C13: =C14+C16+C17 -> 0 | F13: mind | G13: MTG
B14: Babaváró hitel | D14: =IF(AND(C11>0,C14>0),"HIBA: Babaváró hitel csak egyszer vehető fel.","") ->  | E14: =IF(C11+C12>0,0,MIN(0.75,IF(C14=0,0,C15/C14))) -> 0 | F14: =IF(C15>0,1,0) -> 0
B15: - ebből a hitelcélra fordítandó rész
B16: OTK Extra hitel | E16: 0 | F16: =IF(C16>0,1,0) -> 0 | G16: =F16 -> 0
B17: Minősített Fogyasztóbarát vagy Üzleti feltételű hitel | E17: 0 | F17: 0 | G17: =F17 -> 0
B18: Összesen | C18: =C2+C5+C9+C12+IF(C12+C11>0,0,C15)+C16+C17+C10 -> 0 | F18: =SUM(F14:F17) -> 0 | G18: =SUM(G14:G17) -> 0
C19: =IF(C1=0,"",IF(F19<0.2,"Kevés a figyelembe vehető önerő.",IF(ISERR('Új PD'!G52)=FALSE,"",IF('Új PD'!G52<>"OK","Kevés a figyelembe vehető önerő.","")))) ->  | E19: figyelembe vett önerő | F19: =F1/C1 ->  | G19: =IF(F19<0.2,"Kevés","OK") ->  | J19: =J1/C1 -> 

Sheet Hiteladatok
A1: Az igényelt hitel(ek) alapadatai | Q1: ÉB díjak öszesen | U1: ebből helyszíni szemle | Y1: ÉB | AB1: Szemle
A2: Hitelcél | F2: Fedezet becsült forgalmi értéke | M2: I | N2: Hitelcél | O2: MFL? | P2: lehet OTK? | Q2: Társasházi lakás | R2: Családi ház | S2: Telek | X2: Hitelcél | Y2: Társasházi lakás | Z2: Családi ház | AA2: Telek
A3: Fedezet típusa | F3: Fedezetre bejegyzett és fennmaradó terhek | I3: 0 | M3: N | N3: Használt lakás/ház vásárlása | O3: =IF(B17=R23,"üzleti","MFL") -> MFL | P3: Y | Q3: =kondíciók!G13 -> 30480 | R3: =kondíciók!G14 -> 34290 | X3: Használt lakás/ház vásárlása | Y3: =kondíciók!G13 -> 30480 | Z3: =kondíciók!G14 -> 34290
A4: Törlesztési dátumok hónapon belül | D4: 15 | F4: Fedezeti ingatlan irányítószáma | N4: Új lak./ház vásárlása (kulcsrakész) | O4: =IF(B17=R23,"üzleti","MFL") -> MFL | P4: Y | Q4: =kondíciók!G11 -> 31750 | R4: =kondíciók!G11 -> 31750 | X4: Új lak./ház vásárlása (kulcsrakész) | Y4: =kondíciók!G11 -> 31750 | Z4: =kondíciók!G11 -> 31750
A5: Hitelkérelem befogadásának dátuma | D5: 2021-07-31 | F5: Fedezeti ingatlan helyrajzi száma | N5: Lakásépítés | O5: üzleti | P5: Y | Q5: =kondíciók!G11+kondíciók!G12 -> 53340 | R5: =kondíciók!G11+kondíciók!G12 -> 53340 | U5: 1 | X5: Lakásépítés | Y5: =kondíciók!G11 -> 31750 | Z5: =kondíciók!G11 -> 31750 | AB5: =kondíciók!$G$12 -> 21590
A6: K&H hiteltörlesztő számla? (ingyenes számla) I/N | D6: N | F6: Folyószámla havi számlavezetési díj | I6: 383 | N6: Felújítás; Bővítés; Korszerűsítés | O6: üzleti | P6: N | Q6: =kondíciók!G11+kondíciók!G12 -> 53340 | R6: =kondíciók!G11+kondíciók!G12 -> 53340 | U6: 1 | X6: Felújítás; Bővítés; Korszerűsítés | Y6: =kondíciók!G11 -> 31750 | Z6: =kondíciók!G11 -> 31750 | AB6: =kondíciók!$G$12 -> 21590
F7: Csoportos beszedés díja | I7: 0 | N7: Közmű bevezetése | O7: üzleti | P7: N | Q7: =kondíciók!G11+kondíciók!G12 -> 53340 | R7: =kondíciók!G11+kondíciók!G12 -> 53340 | U7: 1 | X7: Közmű bevezetése | Y7: =kondíciók!G11 -> 31750 | Z7: =kondíciók!G11 -> 31750 | AB7: =kondíciók!$G$12 -> 21590
A8: Értékbecslések, helyszíni szemlék díja összesen | D8: =B34+F34 -> 0 | F8: Kockázati életbiztosítás gyakoriság szerinti díja | I8: 0 | N8: Szerkezetkész ingatlan megvásárlása | O8: üzleti | P8: N | Q8: =kondíciók!G13 -> 30480 | R8: =kondíciók!G14 -> 34290 | X8: Szerkezetkész ingatlan megvásárlása | Y8: =kondíciók!G13 -> 30480 | Z8: =kondíciók!G14 -> 34290
A9: Takarnet díjak összesen | D9: =B35+F35 -> 0 | F9: Kockázati életbiztosítás gyakorisága | N9: Egyéb ingatlan vásárlása | O9: üzleti | P9: N | Q9: =kondíciók!G13 -> 30480 | R9: =kondíciók!G14 -> 34290 | X9: Egyéb ingatlan vásárlása | Y9: =kondíciók!G13 -> 30480 | Z9: =kondíciók!G14 -> 34290
A10: Tulajdoni hányad ellenőrzés díja | D10: =F36 -> 0 | F10: Kockázati életbiztosítás díjfizetési módja | N10: Egyéb ingatlan építés | O10: üzleti | P10: N | Q10: =kondíciók!G11+kondíciók!G12 -> 53340 | R10: =kondíciók!G11+kondíciók!G12 -> 53340 | U10: 1 | X10: Egyéb ingatlan építés | Y10: =kondíciók!G11 -> 31750 | Z10: =kondíciók!G11 -> 31750 | AB10: =kondíciók!$G$12 -> 21590
A11: Szerződéskötési díj, folyósítási díj | D11: =B33+F33+I33 -> 0 | F11: Kockázati életbiztosítás egyszeri díja | I11: 0 | N11: Építési telek vásárlása | O11: üzleti | P11: N | S11: =kondíciók!G15 -> 25400 | X11: Építési telek vásárlása | AA11: =kondíciók!G15 -> 25400
A12: Földhivatali ügyintézési díj | D12: =IF(B15+F15>0,kondíciók!G10,0) -> 0 | F12: Ügyfél által a hitelközvetítőnek fizetett díj | I12: 0 | N12: Földvásárlás | O12: üzleti | P12: N | S12: =kondíciók!G15 -> 25400 | X12: Földvásárlás | AA12: =kondíciók!G15 -> 25400
N13: Belf. pénzintézet által nyújtott lakáshitel kiváltása | O13: =IF(B17=R23,"üzleti","MFL") -> MFL | P13: N | Q13: =kondíciók!G13 -> 30480 | R13: =kondíciók!G14 -> 34290 | X13: Belf. pénzintézet által nyújtott lakáshitel kiváltása | Y13: =kondíciók!G13 -> 30480 | Z13: =kondíciók!G14 -> 34290
A14: =IF(O16="MFL",IF(B15=0,N44,N43),IF(B15=0,N46,N45)) ->  | D14: =IF(F15=0,N48,N47) -> Nem kér OTK Extra lakáshitelt | H14: =IF(I15=0,N50,N49) -> Nem kér Babaváró hitelt | N14: Külf. pénzintézet által nyújtott lakáshitel kiváltása | O14: üzleti | P14: N | Q14: =kondíciók!G13 -> 30480 | R14: =kondíciók!G14 -> 34290 | X14: Külf. pénzintézet által nyújtott lakáshitel kiváltása | Y14: =kondíciók!G13 -> 30480 | Z14: =kondíciók!G14 -> 34290
A15: Hitelösszeg | B15: =Finanszírozás!C17 -> 0 | D15: Hitelösszeg | F15: =Finanszírozás!C16 -> 0 | H15: Hitelösszeg | I15: =Finanszírozás!C14 -> 0 | N15: Egyéb | O15: üzleti | P15: N | Q15: =kondíciók!G11+kondíciók!G12 -> 53340 | R15: =kondíciók!G11+kondíciók!G12 -> 53340 | U15: 1 | X15: Egyéb | Y15: =kondíciók!G11 -> 31750 | Z15: =kondíciók!G11 -> 31750 | AB15: =kondíciók!$G$12 -> 21590
A16: Futamidő (hónap) | B16: 240 | D16: Futamidő (hónap) | F16: 240 | H16: Futamidő (hónap) | I16: 240 | N16: most | O16: =VLOOKUP(B2,$N$3:$P$15,2,FALSE) ->  | P16: =VLOOKUP(B2,$N$3:$P$15,3,FALSE) ->  | Q16: =VLOOKUP($B$2,$N$3:$S$15,4,FALSE) ->  | R16: =VLOOKUP($B$2,$N$3:$S$15,5,FALSE) ->  | S16: =VLOOKUP($B$2,$N$3:$S$15,6,FALSE) ->  | T16: =V16-U16 ->  | U16: =VLOOKUP(B2,N3:U15,8,FALSE)*kondíciók!G12 ->  | V16: =HLOOKUP(D3,Q2:S16,15,FALSE) ->  | X16: most | Y16: =IF(D3=Y2,VLOOKUP(B2,X3:AA15,2,FALSE),IF(D3=Z2,VLOOKUP(B2,X3:AA15,3,FALSE),AA11)) -> 25400 | AB16: =VLOOKUP(B2,X3:AB15,5,FALSE) -> 
A17: Kamatperiódus | B17: 10 év | C17: =IF(AND(B15>0,B16<>S29,OR(B17=R26,B17=R27,B17=R28)),"Végig fix kamat esetén a futamidőnek egyeznie kell a kamatfixálás időtartamával",IF(AND(B15>0,B16>S29),"Túl hosszú futamidő",IF(AND(B15>0,B16<T29),"Túl rövid futamidő",""))) ->  | O17: Tul.lap | P17: Térkép | T17: ÉB | U17: helyszíni | V17: total | X17: alapesetben, kedvezmény nélkül | Y17: =Y16+AB16 -> 
A18: Folyósítás várható dátuma | B18: =IF(OR(B15=0,D5=""),"",$P$46) ->  | D18: Folyósítás várható dátuma | F18: =IF(OR(F15=0,D5=""),"",$P$46) ->  | H18: Folyósítás várható dátuma | I18: =IF(OR(I15=0,D5=""),"",D5+14) ->  | N18: Társasházi lakás | O18: =IF(OR(B2=N13,B2=N14),3,2) -> 2 | P18: 0 | S18: MFL | T18: =IF(B15=0,0,IF(F15>0,T16/2,T16)) -> 0 | U18: =IF(B15=0,0,IF(F15>0,U16/2,U16)) -> 0 | V18: =SUM(T18:U18) -> 0 | Y18: MFL | AA18: OTK
A19: Törlesztés kezdete | B19: =IF(OR(B15=0,D5=""),"",$R$47) ->  | D19: Törlesztés kezdete | F19: =IF(OR(F15=0,D5=""),"",$R$47) ->  | H19: Törlesztés kezdete | I19: =IF(OR(I15=0,D5=""),"",$R$55) ->  | N19: Családi ház | O19: =IF(OR(B2=N13,B2=N14),3,2) -> 2 | P19: 1 | S19: OTK | T19: =IF(F15=0,0,IF(B15>0,T16/2,T16)) -> 0 | U19: =IF(F15=0,0,IF(B15>0,U16/2,U16)) -> 0 | V19: =SUM(T19:U19) -> 0 | Y19: ÉB | Z19: szemle | AA19: ÉB | AB19: szemle
A20: Kampánykedvezmény | B20: Díjkedvezmény 100% | D20: Kampánykedvezmény | F20: Díjkedvezmény 100% | N20: Telek | O20: =IF(OR(B2=N13,B2=N14),3,2) -> 2 | P20: 1 | X20: Kampány vagy JT alapján | Y20: =IF(OR(D6=M2,B20=R31),Y16,0) -> 0 | Z20: =IF(OR(D6=M2,B20=R31),AB16,0) -> 0 | AA20: =IF(OR(D6=M2,F20=R31),Y16,0) -> 0 | AB20: =IF(OR(D6=M2,F20=R31),AB16,0) -> 0
A21: Kamatkedvezmények (I/N) | D21: Gyermekek száma | N21: most | O21: =VLOOKUP(D3,$N$18:$P$20,2,FALSE) ->  | P21: =VLOOKUP(D3,$N$18:$P$20,3,FALSE) ->  | X21: Több hitel vagy egy? | Y21: =IF(B15=0,0,IF(F15=0,1,0.5)) -> 0 | Z21: =IF(B15=0,0,IF(F15=0,1,0.5)) -> 0 | AA21: =IF(F15=0,0,IF(B15=0,1,0.5)) -> 0 | AB21: =IF(F15=0,0,IF(B15=0,1,0.5)) -> 0
A22: Átutalási (havi 150 eFt) | B22: I | D22: - Meglévő | S22: max | T22: min | U22: kamper | X22: Melyik hitelnél lehet vagy kedvezőbb? | Y22: =IF(Y21=0,"N",IF(OR(Y21=1,Y20<AA20),"Y",IF(Y20=AA20,"E","N"))) -> N | Z22: =IF(Z21=0,"N",IF(OR(Z21=1,Z20<AB20),"Y",IF(Z20=AB20,"E","N"))) -> N | AA22: =IF(AA21=0,"N",IF(OR(AA21=1,AA20<Y20),"Y",IF(AA20=Y20,"E","N"))) -> N | AB22: =IF(AB21=0,"N",IF(OR(AB21=1,AB20<Z20),"Y",IF(AB20=Z20,"E","N"))) -> N
A23: Vagyonbiztosítási | B23: I | D23: - Magzat (min 12 hetes) | R23: 1 év | S23: 360 | T23: 60 | U23: 12 | X23: kedvezőbb választása után | Y23: =IF(Y22="N",0,Y20) -> 0 | Z23: =IF(Z22="N",0,Z20) -> 0 | AA23: =IF(AA22="Y",AA20,0) -> 0 | AB23: =IF(AB22="Y",AB20,0) -> 0
A24: Törlesztési biztosítás | B24: N | D24: - Vállalt | R24: 5 év | S24: 360 | T24: 60 | U24: 60 | V24: H3K5 | X24: a kedvezőbb szétosztása után | Y24: =(Y23+AA23)*Y21 -> 0 | Z24: =(Z23+AB23)*Z21 -> 0 | AA24: =(Y23+AA23)*AA21 -> 0 | AB24: =(Z23+AB23)*AB21 -> 0
A25: Életbiztosítás | B25: N | R25: 10 év | S25: 360 | T25: 120 | U25: 120 | V25: H3K10 | X25: ÉB | Y25: =Y24+AA24 -> 0
A26: Prémium ügyfél | B26: N | C26: =IF(F15=0,"",IF(P16="N",N32,IF(AND(F22="",F23="",F24=""),"",IF(SUM(F22:F24)<2,N29,IF(F15/1000000>O30,CONCATENATE(N30,O30," MFt hitelre!"),N31))))) ->  | R26: 10 évre fix | S26: 120 | T26: 120 | U26: 120 | V26: H3K10 | X26: szemle | Y26: =Z24+AB24 -> 0
A27: Kamatkedvezmény | B27: ='Új PD'!O8 ->  | R27: 15 évre fix | S27: 180 | T27: 180 | U27: 180 | V27: H3K15 | X27: Total | Y27: =SUM(Y24:AB24) -> 0
A28: Kockázati besorolás (árkategória) | B28: Kalkulált: | R28: 20 évre fix | S28: 240 | T28: 240 | U28: 240 | V28: H3K15
N29: Nem jogosult erre a hitelre! | S29: =IF(B17="",MAX(S23:S28),VLOOKUP(B17,R23:S28,2,FALSE)) -> 360 | T29: =IF(B17="",MIN(T23:T28),VLOOKUP(B17,R23:T28,3,FALSE)) -> 120 | U29: =VLOOKUP(B17,R23:U28,4,FALSE) -> 120 | V29: =VLOOKUP(B17,R23:V28,5,FALSE) -> H3K10 | Y29: MFL | AA29: OTK
A30: =CONCATENATE("Induló kamatláb: ",IF(O68="N","",'Új PD'!C13)) ->  | B30: =IF(OR('Új PD'!G13="hamis",B28="",A42=N62,A42=N64),"",'Új PD'!D13) ->  | D30: Kamatláb támogatással | F30: =OTK!B3 -> 0.03 | H30: Kamatláb támogatással | I30: =BB!B32 -> 0 | N30: Gyerekszám alapján jogosult, de csak | O30: =IF(SUM(F22:F24)>2,15,IF(SUM(F22:F24)<2,0,10)) -> 0 | Y30: Tul. lap | Z30: térkép | AA30: Tul. lap | AB30: térkép
A31: =IF(AND(B15>=0,A42=N63,B22="I"),"A hitel kezdeti kamatlába egyedi kedvezménnyel","") ->  | D31: Kamatláb támogatás nélkül | F31: =OTK!D3 -> 0.05379 | H31: Kamatláb támogatás nélkül | I31: =BB!B33 -> 0.0438 | N31: Gyerekszám alapján jogosult a hitelre. | R31: Nem kampány | T31: hány hitel? | X31: listaár | Y31: =kondíciók!K16 -> 1000 | Z31: =kondíciók!K17 -> 3000 | AA31: =kondíciók!L16 -> 3000 | AB31: =kondíciók!L17 -> 4000
N32: Erre a hitelcélra ez a hitel nem igényelhető! | R32: Díjkedvezmény 100% | X32: Kampány vagy JT alapján | Y32: =IF(OR(D6=M2,B20=R31),O21*Y31,0) -> 0 | Z32: =IF(OR(D6=M2,B20=R31),P21*Z31,0) -> 0 | AA32: =IF(OR(D6=M2,F20=R31),O21*AA31,0) -> 0 | AB32: =IF(OR(D6=M2,F20=R31),P21*AB31,0) -> 0
A33: =IF(O16<>"MFL","Szerződéskötési díj","Folyósítási díj") ->  | B33: =IF(OR(D6=M2,B20=R31),MIN(kondíciók!K10,kondíciók!J10*Hiteladatok!B15),IF(B20=R33,0.5*MIN(kondíciók!K10,kondíciók!J10*Hiteladatok!B15),0)) -> 0 | D33: Szerződéskötési díj | F33: =IF(OR(D6=M2,F20=R31),MIN(kondíciók!K12,kondíciók!J12*Hiteladatok!F15),IF(F20=R33,0.5*MIN(kondíciók!K12,kondíciók!J12*Hiteladatok!F15),0)) -> 0 | H33: Szerződéskötési díj | I33: 0 | N33: csoportos beszedéssel | O33: kamatláb | P33: =IF(AND(B31<>"",B31>0,A42=N63),P35,P34) ->  | R33: Díjkedvezmény 50% | X33: Több hitel vagy egy? | Y33: =Y21 -> 0 | Z33: =Z21 -> 0 | AA33: 0 | AB33: 0
A34: Értékbecslési díjak | B34: =Y24+Z24 -> 0 | D34: Értékbecslési díjak | F34: =AA24+AB24 -> 0 | N34: bankkártyával | O34: hirdetmény | P34: =B30 ->  | X34: Melyik hitelnél lehet vagy kedvezőbb? | Y34: =IF(Y33=0,"N",IF(OR(Y33=1,Y32<AA32),"Y",IF(Y32=AA32,"E","N"))) -> N | Z34: =IF(Z33=0,"N",IF(OR(Z33=1,Z32<AB32),"Y",IF(Z32=AB32,"E","N"))) -> N | AA34: =IF(AA33=0,"N",IF(OR(AA33=1,AA32<Y32),"Y",IF(AA32=Y32,"E","N"))) -> N | AB34: =IF(AB33=0,"N",IF(OR(AB33=1,AB32<Z32),"Y",IF(AB32=Z32,"E","N"))) -> N
A35: Takarnet díjak | B35: =Y36+Z36 -> 0 | D35: Takarnet díjak | F35: =AA36+AB36 -> 0 | N35: csekken | O35: egyedi | P35: =B31 -> 0 | R35: Kalkulált: | X35: kedvezőbb választása után | Y35: =IF(Y34="N",0,Y32) -> 0 | Z35: =IF(Z34="N",0,Z32) -> 0 | AA35: =IF(AA34="Y",AA32,0) -> 0 | AB35: =IF(AB34="Y",AB32,0) -> 0
D36: Tulajdoni hányad ellenőrzés | F36: =IF(F15=0,0,IF(OR(D6=M2,F20=R31),kondíciók!L18,0)) -> 0 | O36: min | P36: ='Új PD'!I8 -> 0.0429 | R36: Manuális: K1 | T36: havi | U36: 12 | X36: a kedvezőbb szétosztása után | Y36: =(Y35+AA35)*Y33 -> 0 | Z36: =(Z35+AB35)*Z33 -> 0 | AA36: =(Y35+AA35)*AA33 -> 0 | AB36: =(Z35+AB35)*AB33 -> 0
A37: Kezdő részlet: | B37: =IF(B15=0,"",MFL!B10) ->  | D37: Kezdő részlet: | F37: =IF(F15=0,"",OTK!B10) ->  | H37: Kezdő részlet: | I37: =IF(I15=0,"",'BB-model'!D11) ->  | N37: Kattints a Kalkuláció indító gombra | R37: Manuális: K2 | T37: negyedéves | U37: 4 | X37: Tul. lap | Y37: =Y36+AA36 -> 0
A38: =IF(B15=0,"",IF(OR('Új PD'!O78<>0,ROUND(MFL!O6,1)<>0),N37,CONCATENATE(" THM: ",TEXT(ROUND(100*MFL!O1,1),"# ##,0"),"%"))) ->  | D38: =IF(F15=0,"",IF(OR(C26<>N31,'Új PD'!O78<>0,ROUND(OTK!T4,1)<>0),N37,CONCATENATE(" THM: ",TEXT(ROUND(100*OTK!T1,1),"# ##,0"),"%"))) ->  | H38: =IF(I15=0,"",IF(OR('Új PD'!O78<>0,ROUND(BB!AM22,1)<>0),N37,CONCATENATE(" THM: ",IF(100*BB!AL21<1,"0",""),TEXT(ROUND(100*BB!AL21,1),"# ##,0"),"%"))) ->  | N38: részlet BB minősítéshez | O38: ='BB-model'!E11 -> 0 | R38: Manuális: K3 | T38: féléves | U38: 2 | X38: térkép | Y38: =Z36+AB36 -> 0
R39: Manuális: K4 | T39: éves | U39: 1 | X39: Total | Y39: =SUM(Y36:AB36) -> 0
A40: =IF(B15+F15=0,"",IF(AND(B15+F15>0,'Új PD'!F10="kevés adat"),"",IF('Új PD'!G52<>"OK",N58,N57))) ->  | R40: Manuális: K5 | T40: most | U40: =IF(I9="",0,VLOOKUP(I9,T36:U39,2,FALSE)) -> 0
A41: =IF(B15+F15=0,N59,IF(AND(B15+F15>0,'Új PD'!F10="kevés adat"),"",IF('Új PD'!D20<>"OK",N61,N60))) -> Nincs szükség ingatlanfedezetre. | R41: Manuális: K6
A42: =IF(OR(A41=N61,A40=N58,ISERR('Új PD'!G52)=TRUE,AND(B15>0,ISERR('Új PD'!C13*100)=FALSE)),"",Hiteladatok!N66) -> 
N43: Minősített Fogyasztóbarát lakáshitel | O43: Dátumok
N44: Nem kér Minősített Fogyasztóbarát lakáshitelt | O44: Lakáshitelnél
N45: Üzleti feltételű lakáshitel | O45: igénylés | P45: =$D$5 -> 2021-07-31
N46: Nem kér Üzleti feltételű lakáshitelt | O46: folyósítás | P46: =WORKDAY(P45,Q46) -> 2021-09-03 | Q46: 25
N47: OTK Extra lakáshitel | O47: törlesztés | P47: =WORKDAY(P46,Q47) -> 2021-09-17 | Q47: 10 | R47: =DATE(Q50,Q49,Q48) -> 2021-10-15
N48: Nem kér OTK Extra lakáshitelt | O48: nap | P48: =DAY(P47) -> 17 | Q48: =D4 -> 15
C49: Előzetes tájékoztatás és adatkezelési nyilatkozat | N49: Babaváró hitel | O49: hónap | P49: =MONTH(P47) -> 9 | Q49: =IF(P48<=Q48,P49,IF(P49=12,1,P49+1)) -> 10
N50: Nem kér Babaváró hitelt | O50: év | P50: =YEAR(P47) -> 2021 | Q50: =IF(AND(P49=12,Q49=1),P50+1,P50) -> 2021
O52: Babavárónál
C53: Általános tájékoztatás a jelzáloghitelekről | O53: igénylés | P53: =$D$5 -> 2021-07-31
O54: folyósítás | P54: =WORKDAY(P53,Q54) -> 2021-08-19 | Q54: 14
O55: törlesztés | P55: =WORKDAY(P54,Q55) -> 2021-09-02 | Q55: 10 | R55: =DATE(Q58,Q57,Q56) -> 2021-09-15
O56: nap | P56: =DAY(P55) -> 2 | Q56: =D4 -> 15
C57: =IF(B15=0,"Nem kér Üzleti feltételű lakáshitelt",CONCATENATE("Személyes tájékoztatás - ",A14)) -> Nem kér Üzleti feltételű lakáshitelt | N57: Az önerőkalkuláció eredménye: megfelelő. | O57: hónap | P57: =MONTH(P55) -> 9 | Q57: =IF(P56<=Q56,P57,IF(P57=12,1,P57+1)) -> 9
N58: Az önerőkalkuláció eredménye: nem megfelelő. | O58: év | P58: =YEAR(P55) -> 2021 | Q58: =IF(AND(P57=12,Q57=1),P58+1,P58) -> 2021
N59: Nincs szükség ingatlanfedezetre.
N60: A fedezetkalkuláció eredménye: a fedezet elegendő.
C61: =IF(F15=0,D14,"Személyes tájékoztatás - OTK Extra lakáshitel") -> Nem kér OTK Extra lakáshitelt | N61: A fedezetkalkuláció eredménye: a fedezet nem elegendő!
N62: Minősítés eredménye: az ügylet hitelezhetőségének pontos megállapításához ügyfélponti előminősítés javasolt.
N63: =IF(Finanszírozás!F18=1,"Minősítés eredménye: a hitel nyújtható.","Minősítés eredménye: a hitelek nyújthatóak.") -> Minősítés eredménye: a hitelek nyújthatóak.
N64: A jövedelem nem elegendő! Javasolt futamidő hosszabbítás és/vagy hitelösszeg csökkentés és/vagy jövedelemmel rendelkező adóstárs bevonása.
C65: =IF(B15=0,"Nem kér Üzleti feltételű lakáshitelt",CONCATENATE("Kockázatfeltáró nyilatkozat - ",A14)) -> Nem kér Üzleti feltételű lakáshitelt
N66: =IF(AND(A41=N59,'Új PD'!D47="OK"),Hiteladatok!N63,IF(AND(A41=N59,'Új PD'!D47="nem OK"),N62,IF(OR(AND(B15>0,B28=""),AND(B15>0,B28=R35,ISERROR('Új PD'!C11)=TRUE),AND(B15+F15>0,'Új PD'!F10="kevés adat")),"",IF('Új PD'!D47<>"OK",Hiteladatok!N64,IF('Új PD'!D52<>"OK",Hiteladatok!N62,Hiteladatok!N63))))) -> 
N68: THM számolás indulhat? | O68: =IF(AND(A40<>N58,A41<>N61,A42=N63),"Y","N") -> 
C69: =IF(F15=0,D14,"Kockázatfeltáró nyilatkozat - OTK Extra lakáshitel") -> Nem kér OTK Extra lakáshitelt
C73: =IF(B15+F15=0,"Nem kér jelzáloghitelt","Zálogkötelezetti tájékoztató") -> Nem kér jelzáloghitelt

Sheet NGM Tájékoztató (hidden)
A7: K&H Bank Zrt.
A9: 1095 Budapest, Lechner Ödön fasor 9.
A10: Telefon: (06 1) 328 9000, (06 30) 761 9000
A11: Fax: (06 1) 328 9696
A12: www.kh.hu • bank@kh.hu
A14: Nyilatkozat hitelszerződés megkötését megelőző tájékoztatásról
A15: Kérjük, a jelölőnégyzetek kipipálásával szíveskedjen jelezni, amennyiben az adott tájékoztatás megtörtént!
A16: Alulírott kijelentem, hogy hitelfelvétel iránti érdeklődésem és annak felmérése során, miszerint az igénybe venni tervezett hitel megfelel-e az igényeimnek és a pénzügyi teljesítőképességemnek, az általam kiválasztott termékhez kapcsolódóan az következőkre kiterjedő tájékoztatást kaptam:  a vonatkozó MNB rendelet értelmében mekkora lehet a figyelembe vehető jövedelmemhez képest a törlesztőrészlet összege és ezt hogyan kell kiszámítani  ingatlanra alapított jelzálog fedezete mellett nyújtott kölcsön esetén az ingatlan forgalmi értéke arányában mekkora lehet a hitel összege  igényeim, lehetőségeim és szükségleteim felmérését követően az előnyben részesített termék legfontosabb jellemzőiről (az igényelhető hitel lehetséges összegéről, a kamatozás módjáról és a kamat módosításának lehetőségéről, a reprezentatívnak tekinthető teljes hiteldíj mutatóról, a törlesztőrészletek összegéről és a törlesztés gyakoriságáról, a hitel választható futamidejéről)  a kamat változásának a törlesztőrészletre gyakorolt hatásáról  a hitelszerződés megkötésekor felelős döntést kell hoznom, hiszen a hitelfelvétellel járó törlesztési kötelezettség hosszabb távon befolyásolja a pénzügyi helyzetemet, teljesítőképességem, a megjelenő teher milyen további kockázatokkal járhat (pl. kamat emelkedése folytán), a fizetések elmulasztása milyen következményekkel járhat (pl. késedelmi kamat, szerződés felmondása, azonnali teljes összegű visszafizetési kötelezettség)  az általam előnyben részesített termék törlesztőrészlet, illetőleg a jövedelem változásának lehetséges hatásairól az alábbi táblázat alapján:
A18: A hitel típusa: | D18: Jelzáloghitel
A19: A hitel összege: | D19: 5.000.000 forint
A20: A hitel futamideje: | D20: 240 hónap
A21: A hitel kamata: | D21: =kondíciók!D19 -> 0.0459
A22: Rendszeres jövedelem változása | D22: Kamat emelkedése
D23: 0 | G23: 0.01 | J23: 0.02 | M23: 0.03
A24: –30% változás | B24: =kondíciók!B44*0.7 -> 187883.5 | C24: forint | D24: JTM: | E24: =D26/$B24*100 -> 16.96577471 | F24: % | G24: JTM: | H24: =G26/$B24*100 -> 18.44175768 | I24: % | J24: JTM: | K24: =J26/$B24*100 -> 19.98262582 | L24: % | M24: JTM: | N24: =M26/$B24*100 -> 21.58532591 | O24: %
D25: Törlesztőrészlet: | G25: Törlesztőrészlet: | J25: Törlesztőrészlet: | M25: Törlesztőrészlet:
D26: =PMT(($D$21+D$23)/12,240,-5000000) -> 31875.89133 | F26: forint | G26: =PMT(($D$21+G$23)/12,240,-5000000) -> 34649.01978 | I26: forint | J26: =PMT(($D$21+J$23)/12,240,-5000000) -> 37544.05678 | L26: forint | M26: =PMT(($D$21+M$23)/12,240,-5000000) -> 40555.2658 | O26: forint
A27: –20% változás | B27: =kondíciók!B44*0.8 -> 214724 | C27: forint | D27: JTM: | E27: =D29/$B27*100 -> 14.84505287 | F27: % | G27: JTM: | H27: =G29/$B27*100 -> 16.13653797 | I27: % | J27: JTM: | K27: =J29/$B27*100 -> 17.48479759 | L27: % | M27: JTM: | N27: =M29/$B27*100 -> 18.88716017 | O27: %
D28: Törlesztőrészlet: | G28: Törlesztőrészlet: | J28: Törlesztőrészlet: | M28: Törlesztőrészlet:
D29: =PMT(($D$21+D$23)/12,240,-5000000) -> 31875.89133 | F29: forint | G29: =PMT(($D$21+G$23)/12,240,-5000000) -> 34649.01978 | I29: forint | J29: =PMT(($D$21+J$23)/12,240,-5000000) -> 37544.05678 | L29: forint | M29: =PMT(($D$21+M$23)/12,240,-5000000) -> 40555.2658 | O29: forint
A30: –10% változás | B30: =kondíciók!B44*0.9 -> 241564.5 | C30: forint | D30: JTM: | E30: =D32/$B30*100 -> 13.19560255 | F30: % | G30: JTM: | H30: =G32/$B30*100 -> 14.3435893 | I30: % | J30: JTM: | K30: =J32/$B30*100 -> 15.5420423 | L30: % | M30: JTM: | N30: =M32/$B30*100 -> 16.78858682 | O30: %
D31: Törlesztőrészlet: | G31: Törlesztőrészlet: | J31: Törlesztőrészlet: | M31: Törlesztőrészlet:
D32: =PMT(($D$21+D$23)/12,240,-5000000) -> 31875.89133 | F32: forint | G32: =PMT(($D$21+G$23)/12,240,-5000000) -> 34649.01978 | I32: forint | J32: =PMT(($D$21+J$23)/12,240,-5000000) -> 37544.05678 | L32: forint | M32: =PMT(($D$21+M$23)/12,240,-5000000) -> 40555.2658 | O32: forint
A33: 0% változás | B33: =kondíciók!B44 -> 268405 | C33: forint | D33: JTM: | E33: =D35/$B33*100 -> 11.8760423 | F33: % | G33: JTM: | H33: =G35/$B33*100 -> 12.90923037 | I33: % | J33: JTM: | K33: =J35/$B33*100 -> 13.98783807 | L33: % | M33: JTM: | N33: =M35/$B33*100 -> 15.10972813 | O33: %
D34: Törlesztőrészlet: | G34: Törlesztőrészlet: | J34: Törlesztőrészlet: | M34: Törlesztőrészlet:
D35: =PMT(($D$21+D$23)/12,240,-5000000) -> 31875.89133 | F35: forint | G35: =PMT(($D$21+G$23)/12,240,-5000000) -> 34649.01978 | I35: forint | J35: =PMT(($D$21+J$23)/12,240,-5000000) -> 37544.05678 | L35: forint | M35: =PMT(($D$21+M$23)/12,240,-5000000) -> 40555.2658 | O35: forint
A36: +10% változás | B36: =kondíciók!B44*1.1 -> 295245.5 | C36: forint | D36: JTM: | E36: =D38/$B36*100 -> 10.79640209 | F36: % | G36: JTM: | H36: =G38/$B36*100 -> 11.73566398 | I36: % | J36: JTM: | K36: =J38/$B36*100 -> 12.71621643 | L36: % | M36: JTM: | N36: =M38/$B36*100 -> 13.73611649 | O36: %
D37: Törlesztőrészlet: | G37: Törlesztőrészlet: | J37: Törlesztőrészlet: | M37: Törlesztőrészlet:
D38: =PMT(($D$21+D$23)/12,240,-5000000) -> 31875.89133 | F38: forint | G38: =PMT(($D$21+G$23)/12,240,-5000000) -> 34649.01978 | I38: forint | J38: =PMT(($D$21+J$23)/12,240,-5000000) -> 37544.05678 | L38: forint | M38: =PMT(($D$21+M$23)/12,240,-5000000) -> 40555.2658 | O38: forint
A39: +20% változás | B39: =kondíciók!B44*1.2 -> 322086 | C39: forint | D39: JTM: | E39: =D41/$B39*100 -> 9.896701914 | F39: % | G39: JTM: | H39: =G41/$B39*100 -> 10.75769198 | I39: % | J39: JTM: | K39: =J41/$B39*100 -> 11.65653173 | L39: % | M39: JTM: | N39: =M41/$B39*100 -> 12.59144011 | O39: %
D40: Törlesztőrészlet: | G40: Törlesztőrészlet: | J40: Törlesztőrészlet: | M40: Törlesztőrészlet:
D41: =PMT(($D$21+D$23)/12,240,-5000000) -> 31875.89133 | F41: forint | G41: =PMT(($D$21+G$23)/12,240,-5000000) -> 34649.01978 | I41: forint | J41: =PMT(($D$21+J$23)/12,240,-5000000) -> 37544.05678 | L41: forint | M41: =PMT(($D$21+M$23)/12,240,-5000000) -> 40555.2658 | O41: forint
A42: +30% változás | B42: =kondíciók!B44*1.3 -> 348926.5 | C42: forint | D42: JTM: | E42: =D44/$B42*100 -> 9.135417151 | F42: % | G42: JTM: | H42: =G44/$B42*100 -> 9.93017721 | I42: % | J42: JTM: | K42: =J44/$B42*100 -> 10.75987544 | L42: % | M42: JTM: | N42: =M44/$B42*100 -> 11.6228678 | O42: %
D43: Törlesztőrészlet: | G43: Törlesztőrészlet: | J43: Törlesztőrészlet: | M43: Törlesztőrészlet:
D44: =PMT(($D$21+D$23)/12,240,-5000000) -> 31875.89133 | F44: forint | G44: =PMT(($D$21+G$23)/12,240,-5000000) -> 34649.01978 | I44: forint | J44: =PMT(($D$21+J$23)/12,240,-5000000) -> 37544.05678 | L44: forint | M44: =PMT(($D$21+M$23)/12,240,-5000000) -> 40555.2658 | O44: forint
A46: Jelen táblázat az 56/2014. (XII. 31.) NGM rendelet (továbbiakban: Rendelet) 1. számú melléklete alapján készült.
A48: Magyarázat a táblázatban szereplő értékekhez A hitel típusa: A Rendelet szerint az igényelt hitel jellege alapján lakástakarék pénztár által nyújtott hitel, jelzáloghitel vagy az előző két csoportba nem tartozó hitel lehet. A hitel összege: A Rendelet alapján meghatározott összeg. A hitel futamideje: A Rendelet alapján meghatározott futamidő. A hitel kamata: A Rendelet alapján meghatározható reprezentatív kamat (jelen esetben: 5 éves kamatperiódushoz tartozó, K3 kategória szerint). Rendszeres jövedelem: A Rendelet alapján meghatározott, KSH szerinti átlagos havi nettó jövedelem. JTM (Jövedelemarányos Törlesztési Mutató): A 34/2014. MNB rendelet alapján meghatározott mutató százalékos értéke a Kamat emelkedése blokkban. Törlesztőrészlet: A Rendszeres jövedelem, Kamat és Jövedelemarányos Törlesztési Mutató alapján kalkulált, havonta fizetendő összeg.
A49: Hozzájárulok, hogy a jelen dokumentáció, valamint a K&H Banktól kapott további, aláírásommal ellátott dokumentumok egy példányát a tájékoztatás megtörténtének igazolása, továbbá az általam választott hitelügylet megvalósulása, az ahhoz kapcsolódó adatkezelés és –feldolgozás, valamint kapcsolattartás céljából a K&H Bank Zrt. megőrizze, a benne foglalt adatokat a létrejövő hiteljogviszony fennállása alatt, illetve a jogviszony létrejöttének meghiúsulása esetén a nyilatkozat keltétől számított 6 hónapig kezelje.
A52: Kelt: …………………………………….………………, | H52: =TODAY() -> 2021-07-09
D55: Érdeklődő: | J55: Érdeklődő:
A56: Név:
A57: Lakcím:
A58: Telefonszám:
A59: Aláírás:

Sheet feladat (hidden)
A5: Kérdések:
A7: OTK-nál az igazgatás szolgáltatási díj a THM része? Most bele van számolva, de a word szerint nem része. És kampány?

Sheet Új PD (hidden)
B1: Kamatok | C1: 1 év | D1: 5 év | E1: 10 év | F1: 10 évre fix | G1: 15 évre fix | H1: 20 évre fix | I1: most
A2: 2 | B2: K1 | C2: =kondíciók!C17 -> 0.0414 | D2: =kondíciók!D17 -> 0.0429 | E2: =kondíciók!E17 -> 0.0489 | F2: =kondíciók!F17 -> 0.0489 | G2: =kondíciók!G17 -> 0.0519 | H2: =kondíciók!H17 -> 0.0559 | I2: =HLOOKUP(Hiteladatok!$B$17,'Új PD'!$C$1:$H$7,A2,FALSE) -> 0.0489 | K2: kamatkedvezmények | O2: =SUM(O3:O7) -> -0.006
A3: 3 | B3: K2 | C3: =kondíciók!C18 -> 0.0424 | D3: =kondíciók!D18 -> 0.0439 | E3: =kondíciók!E18 -> 0.0499 | F3: =kondíciók!F18 -> 0.0499 | G3: =kondíciók!G18 -> 0.0529 | H3: =kondíciók!H18 -> 0.0569 | I3: =HLOOKUP(Hiteladatok!$B$17,'Új PD'!$C$1:$H$7,A3,FALSE) -> 0.0499 | K3: Átutalási (havi 150 eFt) | N3: =Hiteladatok!B22 -> I | O3: =IF(AND(Hiteladatok!$D$6="N",N3="I"),kondíciók!D31,0) -> -0.005
A4: 4 | B4: K3 | C4: =kondíciók!C19 -> 0.0444 | D4: =kondíciók!D19 -> 0.0459 | E4: =kondíciók!E19 -> 0.0519 | F4: =kondíciók!F19 -> 0.0519 | G4: =kondíciók!G19 -> 0.0549 | H4: =kondíciók!H19 -> 0.0589 | I4: =HLOOKUP(Hiteladatok!$B$17,'Új PD'!$C$1:$H$7,A4,FALSE) -> 0.0519 | K4: Vagyonbiztosítási | N4: =Hiteladatok!B23 -> I | O4: =IF(AND(Hiteladatok!$D$6="N",N4="I"),kondíciók!D32,0) -> -0.001
A5: 5 | B5: K4 | C5: =kondíciók!C20 -> 0.0464 | D5: =kondíciók!D20 -> 0.0479 | E5: =kondíciók!E20 -> 0.0539 | F5: =kondíciók!F20 -> 0.0539 | G5: =kondíciók!G20 -> 0.0569 | H5: =kondíciók!H20 -> 0.0609 | I5: =HLOOKUP(Hiteladatok!$B$17,'Új PD'!$C$1:$H$7,A5,FALSE) -> 0.0539 | K5: Törlesztési biztosítás | N5: =Hiteladatok!B24 -> N | O5: =IF(AND(Hiteladatok!$D$6="N",N5="I"),kondíciók!D33,0) -> 0
A6: 6 | B6: K5 | C6: =kondíciók!C21 -> 0.0494 | D6: =kondíciók!D21 -> 0.0509 | E6: =kondíciók!E21 -> 0.0569 | F6: =kondíciók!F21 -> 0.0569 | G6: =kondíciók!G21 -> 0.0599 | H6: =kondíciók!H21 -> 0.0639 | I6: =HLOOKUP(Hiteladatok!$B$17,'Új PD'!$C$1:$H$7,A6,FALSE) -> 0.0569 | K6: Életbiztosítás | N6: =Hiteladatok!B25 -> N | O6: =IF(AND(Hiteladatok!$D$6="N",N6="I",N5<>"I"),kondíciók!D34,0) -> 0
A7: 7 | B7: K6 | C7: =kondíciók!C22 -> 0.0584 | D7: =kondíciók!D22 -> 0.0551 | E7: =kondíciók!E22 -> 0.0632 | F7: =kondíciók!F22 -> 0.0632 | G7: =kondíciók!G22 -> 0.0677 | H7: =kondíciók!H22 -> 0.0688 | I7: =HLOOKUP(Hiteladatok!$B$17,'Új PD'!$C$1:$H$7,A7,FALSE) -> 0.0632 | K7: Prémium ügyfél | N7: =Hiteladatok!B26 -> N | O7: =IF(AND(Hiteladatok!$D$6="N",N7="I"),kondíciók!D35,0) -> 0
A8: 8 | B8: min | C8: =kondíciók!C23 -> 0.0354 | D8: =kondíciók!D23 -> 0.0369 | E8: =kondíciók!E23 -> 0.0429 | F8: =kondíciók!F23 -> 0.0429 | G8: =kondíciók!G23 -> 0.0459 | H8: =kondíciók!H23 -> 0.0499 | I8: =HLOOKUP(Hiteladatok!$B$17,'Új PD'!$C$1:$H$8,A8,FALSE) -> 0.0429 | K8: elért kedvezmény | O8: =D13-VLOOKUP(C13,B2:I7,8,FALSE) ->  | R8: PTI (JTM) szabályok
D9: üzleti | K9: egyedi kedvezmény | O9: =D14-D13 ->  | S9: 1 év | T9: 5 év | U9: 10 év | V9: 10 évre fix | W9: 15 évre fix | X9: 20 évre fix | Y9: most
A10: iterációhoz használt | C10: K3 | D10: =MAX(I8,VLOOKUP(C10,B2:I7,8,FALSE)+O2) -> 0.0459 | F10: =IF(ISERROR(F53)=TRUE,"Kevés adat","elég adat") -> Kevés adat | R10: 0 | S10: 0.25 | T10: 0.35 | U10: 0.5 | V10: 0.5 | W10: 0.5 | X10: 0.5 | Y10: =IF(B17=0,X10,HLOOKUP(Hiteladatok!$B$17,'Új PD'!$S$9:$X$11,2,FALSE)) -> 0.5
A11: pd alapján | C11: =F53 ->  | D11: =MAX(I8,VLOOKUP(C11,B2:I7,8,FALSE)+O2) ->  | I11: késedelmi kamat | R11: 500000 | S11: 0.3 | T11: 0.4 | U11: 0.6 | V11: 0.6 | W11: 0.6 | X11: 0.6 | Y11: =IF(B17=0,X11,HLOOKUP(Hiteladatok!$B$17,'Új PD'!$S$9:$X$11,3,FALSE)) -> 0.6
A12: kalkulált v manuális | B12: =Hiteladatok!B28 -> Kalkulált: | C12: =RIGHT(B12,2) -> : | D12: =MAX(I8,VLOOKUP(C12,B2:I7,8,FALSE)+O2) ->  | J12: MFL | K12: =D14*1.5+3% ->  | L12: =kondíciók!I1+24% -> 0.249 | M12: =ROUND(MIN(K12:L12),4) ->  | Y12: =IF(B31>=R11,Y11,Y10)+IF(P31>0,-10%,0%) -> 0.5
A13: végső kamatláb | C13: =IF(Hiteladatok!B28=Hiteladatok!R35,C11,C12) ->  | D13: =IF(Hiteladatok!B28=Hiteladatok!R35,D11,D12) ->  | F13: kiírjuk? | G13: =ISERR('Új PD'!C13*100) -> FALSE | J13: OTK | K13: =kondíciók!G5*1.5+3% -> 0.075 | L13: =L12 -> 0.249 | M13: =ROUND(MIN(K13:L13),4) -> 0.075
A14: végső kamatláb egyedivel | D14: =Hiteladatok!P33 -> 
T15: OTK-hoz
A16: forgalmi érték | B16: =Hiteladatok!I2 -> 0 | C16: min: | D16: 3500000 | L16: Adós | M16: A1 | N16: A2 | O16: A3 | T16: el is hitt gyerekszám | U16: =Hiteladatok!F22+Hiteladatok!F23 -> 0
A17: kért üzleti hitel | B17: =Hiteladatok!B15 -> 0 | K17: melyik ügyfél számít? | L17: =Ügyféladatok!B7 -> 00:00:00 | M17: =Ügyféladatok!C7 -> 00:00:00 | N17: =Ügyféladatok!D7 -> 00:00:00 | O17: =Ügyféladatok!E7 -> 00:00:00 | P17: 1900-01-01 | T17: már 3 gyerek | U17: vállalt gyerek
A18: kért OTK | B18: =Hiteladatok!F15 -> 0 | K18: legnagyobb összes jövedelmű | L18: =IF(L47=MAX($L$47:$O$47),1,0) -> 1 | M18: =IF(M47=MAX($L$47:$O$47),1,0) -> 1 | N18: 1 | O18: 1 | T18: 3%-kal | U18: ÁKK130%+3%-kal
A19: maradó terhek | B19: =Hiteladatok!I3 -> 0 | L19: =IF(L18=1,L17,$P$17) -> 00:00:00 | M19: =IF(M18=1,M17,$P$17) -> 00:00:00 | N19: =IF(N18=1,N17,$P$17) -> 00:00:00 | O19: =IF(O18=1,O17,$P$17) -> 00:00:00 | T19: =OTK!D6 -> 0 | U19: =OTK!D7 -> 0
A20: terhek | B20: =SUM(B17:B19) -> 0 | D20: =IF(OR(B16<D16,B21>D21),"Hard KO","OK") ->  | K20: azonos összes jövedelemnél a fiatalabb kiválasztása | L20: =IF(L19=MAX($L$19:$O$19),1,0) -> 1 | M20: =IF(M19=MAX($L$19:$O$19),1,0) -> 1 | N20: 1 | O20: 1
A21: LTV | B21: =B20/B16 ->  | C21: min: | D21: 0.8 | L21: =SUMPRODUCT(L19:O19,L20:O20) -> 00:00:00 | M21: =YEAR(L21) -> 1900 | N21: =MONTH(L21) -> 1 | O21: =DAY(L21) -> 0
A22: LTV <= 35% | B22: 82 | C22: =IF($B$21<=35%,1,0) ->  | D22: =SUMPRODUCT(B22:B25,C22:C25) ->  | K22: 18 éves ekkor | L22: =DATE(M21+18,N21,O21) -> 1917-12-31 | M22: PPI-ra jó?
A23: LTV > 35% and LTV <= 50% | B23: 74 | C23: =IF(AND($B$21>35%,$B$21<=50%),1,0) ->  | K23: 61 éves 30 napon belül | L23: =DATE(M21+61,N21,O21)-30 -> 1960-12-01 | M23: kor alapján | N23: =IF(AND(L22<O23,L23>O23),"OK","nem OK") -> nem OK | O23: =TODAY() -> 2021-07-09
A24: LTV > 50% and LTV <= 65% | B24: 63 | C24: =IF(AND($B$21>50%,$B$21<=65%),1,0) ->  | M24: munka alapján | N24: =IF(OR(P25=Ügyféladatok!$E$59,P25=Ügyféladatok!$E$63,P25=Ügyféladatok!$E$69),"nem OK","OK") -> OK
A25: LTV > 65% | B25: 60 | C25: =IF($B$21>65%,1,0) ->  | L25: =Ügyféladatok!B47 -> 0 | M25: =Ügyféladatok!C47 -> 0 | N25: =Ügyféladatok!D47 -> 0 | O25: =Ügyféladatok!E47 -> 0 | P25: =HLOOKUP(1,L20:O25,6,FALSE) -> 0
M26: hitelcél alapján | N26: =IF(OR(Hiteladatok!B2=Hiteladatok!N5,Hiteladatok!B2=Hiteladatok!N6,Hiteladatok!B2=Hiteladatok!N7,Hiteladatok!B2=Hiteladatok!N10),"nem OK","OK") -> OK | O26: Van PPI? | P26: =IF(AND(N23="OK",N24="OK",N26="OK",Hiteladatok!B24="I"),"PPI","nincs PPI") -> nincs PPI
B27: scoringhoz | C27: törvényihez | T27: megélhetési költség
A28: Elsődleges | B28: =P44 -> 0 | C28: =P44 -> 0 | T28: főadós alapján | U28: =IF(Ügyféladatok!B15="",Ügyféladatok!B12,Ügyféladatok!B15) -> 0
A29: Kiegészítő szumma | B29: =P45+P46 -> 0 | C29: =P45 -> 0 | K29: Túl van a próbaidőn? | L29: =IF(Appl!A9>3,1,0) -> 1 | M29: =IF(Appl!A10>3,1,0) -> 1 | N29: =IF(Appl!A11>3,1,0) -> 1 | O29: =IF(Appl!A12>3,1,0) -> 1 | T29: családi állapot | V29: =Ügyféladatok!B8 -> 0
A30: Levonások | B30: =P48 -> 0 | C30: =P48 -> 0 | P30: Hány KATA-s van a jövedelemmel bevontak között? | T30: eltartott gyermekek | V30: =Ügyféladatok!B42 -> 0
A31: Jövedelem | B31: =B28+B29-B30 -> 0 | C31: =C28+C29-C30 -> 0 | L31: =IF(Ügyféladatok!B47=Ügyféladatok!$E$68,1,0) -> 0 | M31: =IF(Ügyféladatok!C47=Ügyféladatok!$E$68,1,0) -> 0 | N31: =IF(Ügyféladatok!D47=Ügyféladatok!$E$68,1,0) -> 0 | O31: =IF(Ügyféladatok!E47=Ügyféladatok!$E$68,1,0) -> 0 | P31: =SUMPRODUCT(L31:O31,L33:O33) -> 0 | T31: Háztartás súlya | V31: =IF(OR(V29=Ügyféladatok!B59,V29=Ügyféladatok!B61),1.5,1)+V30*0.3 -> 1
C32: Adós | D32: A1 | E32: A2 | F32: A3 | L32: Adós | M32: A1 | N32: A2 | O32: A3 | T32: Budapest | U32: 118000
A33: cc | B33: =SUM(C33:F33)*0.05 -> 0 | C33: =IF(OR(Ügyféladatok!B$2=Ügyféladatok!$E$83,Ügyféladatok!B$2=Ügyféladatok!$E$84),0,Ügyféladatok!B26) -> 0 | D33: =IF(OR(Ügyféladatok!C$2=Ügyféladatok!$E$83,Ügyféladatok!C$2=Ügyféladatok!$E$84),0,Ügyféladatok!C26) -> 0 | E33: =IF(OR(Ügyféladatok!D$2=Ügyféladatok!$E$83,Ügyféladatok!D$2=Ügyféladatok!$E$84),0,Ügyféladatok!D26) -> 0 | F33: =IF(OR(Ügyféladatok!E$2=Ügyféladatok!$E$83,Ügyféladatok!E$2=Ügyféladatok!$E$84),0,Ügyféladatok!E26) -> 0 | K33: jövedelemmel bevont? | L33: =IF(OR(Ügyféladatok!B$2=Ügyféladatok!$E$79,Ügyféladatok!B$2=Ügyféladatok!$E$80),1,0)*L29 -> 1 | M33: =IF(OR(Ügyféladatok!C$2=Ügyféladatok!$E$79,Ügyféladatok!C$2=Ügyféladatok!$E$80),1,0) -> 1 | N33: =IF(OR(Ügyféladatok!D$2=Ügyféladatok!$E$79,Ügyféladatok!D$2=Ügyféladatok!$E$80),1,0)*N29 -> 0 | O33: =IF(OR(Ügyféladatok!E$2=Ügyféladatok!$E$79,Ügyféladatok!E$2=Ügyféladatok!$E$80),1,0)*O29 -> 0 | T33: Vidék | U33: 106000
A34: od | B34: =SUM(C34:F34)*0.05 -> 0 | C34: =IF(OR(Ügyféladatok!B$2=Ügyféladatok!$E$83,Ügyféladatok!B$2=Ügyféladatok!$E$84),0,Ügyféladatok!B27) -> 0 | D34: =IF(OR(Ügyféladatok!C$2=Ügyféladatok!$E$83,Ügyféladatok!C$2=Ügyféladatok!$E$84),0,Ügyféladatok!C27) -> 0 | E34: =IF(OR(Ügyféladatok!D$2=Ügyféladatok!$E$83,Ügyféladatok!D$2=Ügyféladatok!$E$84),0,Ügyféladatok!D27) -> 0 | F34: =IF(OR(Ügyféladatok!E$2=Ügyféladatok!$E$83,Ügyféladatok!E$2=Ügyféladatok!$E$84),0,Ügyféladatok!E27) -> 0 | K34: Belf. bér - számlára | L34: =IF(OR(Ügyféladatok!B$2=Ügyféladatok!$E$79,Ügyféladatok!B$2=Ügyféladatok!$E$80),Ügyféladatok!B31,0)*L$29 -> 0 | M34: =IF(OR(Ügyféladatok!C$2=Ügyféladatok!$E$79,Ügyféladatok!C$2=Ügyféladatok!$E$80),Ügyféladatok!C31,0)*M$29 -> 0 | N34: =IF(OR(Ügyféladatok!D$2=Ügyféladatok!$E$79,Ügyféladatok!D$2=Ügyféladatok!$E$80),Ügyféladatok!D31,0)*N$29 -> 0 | O34: =IF(OR(Ügyféladatok!E$2=Ügyféladatok!$E$79,Ügyféladatok!E$2=Ügyféladatok!$E$80),Ügyféladatok!E31,0)*O$29 -> 0 | Q34: =MAX(L34:O34) -> 0 | T34: Bp/vidék | U34: =IF(U28>1999,T33,T32) -> Budapest | V34: =VLOOKUP(U34,T32:U33,2,FALSE) -> 118000
A35: törlesztés | B35: =SUM(C35:F35) -> 0 | C35: =IF(OR(Ügyféladatok!B$2=Ügyféladatok!$E$83,Ügyféladatok!B$2=Ügyféladatok!$E$84),0,Ügyféladatok!B28) -> 0 | D35: =IF(OR(Ügyféladatok!C$2=Ügyféladatok!$E$83,Ügyféladatok!C$2=Ügyféladatok!$E$84),0,Ügyféladatok!C28) -> 0 | E35: =IF(OR(Ügyféladatok!D$2=Ügyféladatok!$E$83,Ügyféladatok!D$2=Ügyféladatok!$E$84),0,Ügyféladatok!D28) -> 0 | F35: =IF(OR(Ügyféladatok!E$2=Ügyféladatok!$E$83,Ügyféladatok!E$2=Ügyféladatok!$E$84),0,Ügyféladatok!E28) -> 0 | K35: Belf. bér - készpénz | L35: =IF(OR(Ügyféladatok!B$2=Ügyféladatok!$E$79,Ügyféladatok!B$2=Ügyféladatok!$E$80),Ügyféladatok!B32,0)*L$29 -> 0 | M35: =IF(OR(Ügyféladatok!C$2=Ügyféladatok!$E$79,Ügyféladatok!C$2=Ügyféladatok!$E$80),Ügyféladatok!C32,0)*M$29 -> 0 | N35: =IF(OR(Ügyféladatok!D$2=Ügyféladatok!$E$79,Ügyféladatok!D$2=Ügyféladatok!$E$80),Ügyféladatok!D32,0)*N$29 -> 0 | O35: =IF(OR(Ügyféladatok!E$2=Ügyféladatok!$E$79,Ügyféladatok!E$2=Ügyféladatok!$E$80),Ügyféladatok!E32,0)*O$29 -> 0 | T35: Cost of living | V35: =V31*V34 -> 118000
B36: összes | C36: Üzleti | D36: OTK | E36: BB | K36: Külf. bér - számlára | L36: =IF(OR(Ügyféladatok!B$2=Ügyféladatok!$E$79,Ügyféladatok!B$2=Ügyféladatok!$E$80),Ügyféladatok!B33,0)*L$29 -> 0 | M36: =IF(OR(Ügyféladatok!C$2=Ügyféladatok!$E$79,Ügyféladatok!C$2=Ügyféladatok!$E$80),Ügyféladatok!C33,0)*M$29 -> 0 | N36: =IF(OR(Ügyféladatok!D$2=Ügyféladatok!$E$79,Ügyféladatok!D$2=Ügyféladatok!$E$80),Ügyféladatok!D33,0)*N$29 -> 0 | O36: =IF(OR(Ügyféladatok!E$2=Ügyféladatok!$E$79,Ügyféladatok!E$2=Ügyféladatok!$E$80),Ügyféladatok!E33,0)*O$29 -> 0 | T36: korrigált | V36: =V35*V45 -> 118000
A37: új hitel | B37: =SUM(C37:E37) -> 0 | C37: =IF(Hiteladatok!B15=0,0,PMT(D10/12,Hiteladatok!B16,-Hiteladatok!B15)) -> 0 | D37: =IF(U16<2,MAX(T19:U19),T19) -> 0 | E37: =IF(Hiteladatok!I15=0,0,'BB-model'!E11) -> 0 | K37: Külf. bér - készpénz | L37: =IF(OR(Ügyféladatok!B$2=Ügyféladatok!$E$79,Ügyféladatok!B$2=Ügyféladatok!$E$80),Ügyféladatok!B34,0)*L$29 -> 0 | M37: =IF(OR(Ügyféladatok!C$2=Ügyféladatok!$E$79,Ügyféladatok!C$2=Ügyféladatok!$E$80),Ügyféladatok!C34,0)*M$29 -> 0 | N37: =IF(OR(Ügyféladatok!D$2=Ügyféladatok!$E$79,Ügyféladatok!D$2=Ügyféladatok!$E$80),Ügyféladatok!D34,0)*N$29 -> 0 | O37: =IF(OR(Ügyféladatok!E$2=Ügyféladatok!$E$79,Ügyféladatok!E$2=Ügyféladatok!$E$80),Ügyféladatok!E34,0)*O$29 -> 0 | U37: terhek | V37: =B46 -> 0
A38: Terhek | B38: =SUM(B33:B37) -> 0 | K38: Nyugdíj | L38: =IF(OR(Ügyféladatok!B$2=Ügyféladatok!$E$79,Ügyféladatok!B$2=Ügyféladatok!$E$80),Ügyféladatok!B35,0)*L$29 -> 0 | M38: =IF(OR(Ügyféladatok!C$2=Ügyféladatok!$E$79,Ügyféladatok!C$2=Ügyféladatok!$E$80),Ügyféladatok!C35,0)*M$29 -> 0 | N38: =IF(OR(Ügyféladatok!D$2=Ügyféladatok!$E$79,Ügyféladatok!D$2=Ügyféladatok!$E$80),Ügyféladatok!D35,0)*N$29 -> 0 | O38: =IF(OR(Ügyféladatok!E$2=Ügyféladatok!$E$79,Ügyféladatok!E$2=Ügyféladatok!$E$80),Ügyféladatok!E35,0)*O$29 -> 0 | U38: jövedelem | V38: =B31 -> 0
A39: PTI az alappal scoringhoz | B39: =B38/B31 ->  | K39: Vállalkozói jövedelem | L39: =IF(OR(Ügyféladatok!B$2=Ügyféladatok!$E$79,Ügyféladatok!B$2=Ügyféladatok!$E$80),Ügyféladatok!B36,0)*L$29 -> 0 | M39: =IF(OR(Ügyféladatok!C$2=Ügyféladatok!$E$79,Ügyféladatok!C$2=Ügyféladatok!$E$80),Ügyféladatok!C36,0)*M$29 -> 0 | N39: =IF(OR(Ügyféladatok!D$2=Ügyféladatok!$E$79,Ügyféladatok!D$2=Ügyféladatok!$E$80),Ügyféladatok!D36,0)*N$29 -> 0 | O39: =IF(OR(Ügyféladatok!E$2=Ügyféladatok!$E$79,Ügyféladatok!E$2=Ügyféladatok!$E$80),Ügyféladatok!E36,0)*O$29 -> 0 | U39: marad | V39: =V38-V37-V36 -> -118000
A40: PTI <= 15% | B40: 79 | C40: =IF($B$39<=15%,1,0) ->  | D40: =SUMPRODUCT(B40:B43,C40:C43) ->  | K40: Anyasági tám | L40: =IF(OR(Ügyféladatok!B$2=Ügyféladatok!$E$79,Ügyféladatok!B$2=Ügyféladatok!$E$80),Ügyféladatok!B37,0)*L$29 -> 0 | M40: =IF(OR(Ügyféladatok!C$2=Ügyféladatok!$E$79,Ügyféladatok!C$2=Ügyféladatok!$E$80),Ügyféladatok!C37,0)*M$29 -> 0 | N40: =IF(OR(Ügyféladatok!D$2=Ügyféladatok!$E$79,Ügyféladatok!D$2=Ügyféladatok!$E$80),Ügyféladatok!D37,0)*N$29 -> 0 | O40: =IF(OR(Ügyféladatok!E$2=Ügyféladatok!$E$79,Ügyféladatok!E$2=Ügyféladatok!$E$80),Ügyféladatok!E37,0)*O$29 -> 0
A41: PTI > 15% and PTI <= 25% | B41: 73 | C41: =IF(AND($B$39>15%,$B$39<=25%),1,0) ->  | K41: Egyéb jövedelem | L41: =IF(OR(Ügyféladatok!B$2=Ügyféladatok!$E$79,Ügyféladatok!B$2=Ügyféladatok!$E$80),Ügyféladatok!B38,0)*L$29 -> 0 | M41: =IF(OR(Ügyféladatok!C$2=Ügyféladatok!$E$79,Ügyféladatok!C$2=Ügyféladatok!$E$80),Ügyféladatok!C38,0)*M$29 -> 0 | N41: =IF(OR(Ügyféladatok!D$2=Ügyféladatok!$E$79,Ügyféladatok!D$2=Ügyféladatok!$E$80),Ügyféladatok!D38,0)*N$29 -> 0 | O41: =IF(OR(Ügyféladatok!E$2=Ügyféladatok!$E$79,Ügyféladatok!E$2=Ügyféladatok!$E$80),Ügyféladatok!E38,0)*O$29 -> 0 | Q41: elvárt minimum | T41: Az adós házas/élettárs és nincs más szereplő jövedelemmel?
A42: PTI > 25% and PTI <= 35% | B42: 69 | C42: =IF(AND($B$39>25%,$B$39<=35%),1,0) ->  | K42: Van 150 eFt egy elsődlegesből? | L42: =IF(OR(L34>=$Q$42,L36*0.7>=$Q$42,L38>=$Q$42,L39>=$Q$42),1,0) -> 0 | M42: =IF(OR(M34>=$Q$42,M36*0.7>=$Q$42,M38>=$Q$42,M39>=$Q$42),1,0) -> 0 | N42: =IF(OR(N34>=$Q$42,N36*0.7>=$Q$42,N38>=$Q$42,N39>=$Q$42),1,0) -> 0 | O42: =IF(OR(O34>=$Q$42,O36*0.7>=$Q$42,O38>=$Q$42,O39>=$Q$42),1,0) -> 0 | P42: =MAX(L42:O42) -> 0 | Q42: 150000 | T42: =Ügyféladatok!A8 -> Családi állapot | U42: =Ügyféladatok!B8 -> 0 | W42: ADÓSTÁRS-1 | X42: ADÓSTÁRS-2 | Y42: ADÓSTÁRS-3
A43: PTI > 35% | B43: 55 | C43: =IF($B$39>35%,1,0) ->  | K43: figyelembe vehető | T43: van más szereplő? | W43: =Ügyféladatok!C2 -> Jövedelmével bevont adós(társ) és zálogkötelezett | X43: =Ügyféladatok!D2 -> Nincs | Y43: =Ügyféladatok!E2 -> Nincs
K44: Elsődleges | L44: =L34+L36*0.7+L38+L39 -> 0 | M44: =M34+M36*0.7+M38+M39 -> 0 | N44: =N34+N36*0.7+N38+N39 -> 0 | O44: =O34+O36*0.7+O38+O39 -> 0 | P44: =SUM(L44:O44) -> 0 | U44: =IF(V44=0,"Nincs","van") -> van | V44: =SUM(W44:Y44) -> 1 | W44: =M33 -> 1 | X44: =N33 -> 0 | Y44: =O33 -> 0
C45: Üzleti | D45: OTK | E45: BB | K45: Anyasági | L45: =IF($P$42=1,L40,0) -> 0 | M45: =IF($P$42=1,M40,0) -> 0 | N45: =IF($P$42=1,N40,0) -> 0 | O45: =IF($P$42=1,O40,0) -> 0 | P45: =SUM(L45:O45) -> 0 | V45: =IF(AND(V44=0,OR(U42=Ügyféladatok!$B$59,U42=Ügyféladatok!$B$61)),70%,100%) -> 1
A46: Terhek a tényleges kamattlábbal | B46: =SUM(B33:B35)+SUM(C46:E46) -> 0 | C46: =IF(B17=0,0,PMT(D13/12,Hiteladatok!B16,-Hiteladatok!B15)) -> 0 | D46: =D37 -> 0 | E46: =E37 -> 0 | K46: Egyéb jövedelem | L46: =L41 -> 0 | M46: =M41 -> 0 | N46: 0 | O46: 0 | P46: =SUM(L46:O46) -> 0
A47: PTI a ténylegessel törvényihez | B47: =B46/C31 ->  | D47: =IF(OR(B47>Y12,V39<0),"hard KO","OK") ->  | K47: Összes jövedelem | L47: =L44+L45+L46 -> 0 | M47: =M44+M45+M46 -> 0 | N47: 0 | O47: 0 | P47: =SUM(L47:O47) -> 0
K48: levonások | L48: =IF(OR(Ügyféladatok!B$2=Ügyféladatok!$E$79,Ügyféladatok!B$2=Ügyféladatok!$E$80),Ügyféladatok!B40,0) -> 0 | M48: =IF(OR(Ügyféladatok!C$2=Ügyféladatok!$E$79,Ügyféladatok!C$2=Ügyféladatok!$E$80),Ügyféladatok!C40,0) -> 0 | N48: =IF(OR(Ügyféladatok!D$2=Ügyféladatok!$E$79,Ügyféladatok!D$2=Ügyféladatok!$E$80),Ügyféladatok!D40,0) -> 0 | O48: =IF(OR(Ügyféladatok!E$2=Ügyféladatok!$E$79,Ügyféladatok!E$2=Ügyféladatok!$E$80),Ügyféladatok!E40,0) -> 0 | P48: =SUM(L48:O48) -> 0
A49: Tenor | B49: =IF(Hiteladatok!B16>240,44,IF(Hiteladatok!B16<=120,86,70)) -> 70
A50: Appl | B50: =Appl!A2 -> 
A51: KHR | B51: 61 | G51: önerő elég?
B52: =SUM(B49:B51)+D40+D22 ->  | D52: =IF(B52>C63,"OK","hard KO") ->  | G52: =IF(OR(AND(E53<7,Finanszírozás!F19>=0.2),AND(E53>=7,Finanszírozás!J19>=0.2)),"OK","hard KO") -> 
E53: =VLOOKUP(1,$D$55:$F$63,2,FALSE) ->  | F53: =VLOOKUP(1,$D$55:$F$63,3,FALSE) -> 
E54: pd Housing | F54: Housing | I54: Döntés | J54: LTV | K54: JTM | L54: pd
B55: 758 | C55: 780 | D55: =IF($B$52>=B55,1,0) ->  | E55: 1 | F55: K1 | I55: csak BB | K55: =$D$47 ->  | M55: =IF(K55="OK","OK","hard KO") -> 
B56: 736 | C56: =B55-1 -> 757 | D56: =IF(AND($B$52>=B56,$B$52<=C56),1,0) ->  | E56: 2 | F56: K1 | I56: egyéb | J56: =$D$20 ->  | K56: =$D$47 ->  | L56: =$D$52 ->  | M56: =IF(AND(J56="OK",K56="OK",L56="OK"),"OK","hard KO") -> 
B57: 726 | C57: 735 | E57: 3 | F57: K2
B58: 716 | C58: 725 | E58: 4 | F58: K2
B59: 696 | C59: 715 | E59: 5 | F59: K3
B60: 676 | C60: 695 | E60: 6 | F60: K4
B61: 656 | C61: 675 | E61: 7 | F61: K5 | H61: =SUM(H62:H75) -> 14 | J61: ADAT MÓDOSÍTÁS
B62: 635 | C62: 655 | E62: 8 | F62: K6 | H62: =IF(Finanszírozás!C1="",1,0) -> 1 | I62: vételár | J62: =Finanszírozás!C1 -> 0 | P62: 60000000 | U62: =IF(J62=P62,0,1) -> 1
B63: 0 | C63: 634 | E63: 9 | F63: K6 | H63: =IF(Finanszírozás!C3="",1,0) -> 1 | I63: kp, LTP | J63: =Finanszírozás!C3 -> 0 | P63: 7500000 | U63: =IF(J63=P63,0,1) -> 1
H64: =IF(Finanszírozás!C4="",1,0) -> 1 | I64: telek | J64: =Finanszírozás!C4 -> 0 | P64: 0 | U64: 0
H65: =IF(Finanszírozás!C6="",1,0) -> 1 | I65: CSOK1 | J65: =Finanszírozás!C6 -> 0 | P65: 10000000 | U65: 1
H66: =IF(Finanszírozás!C7="",1,0) -> 1 | I66: CSOK2 | J66: =Finanszírozás!C7 -> 0 | P66: 0 | U66: 0
A67: ADATKITÖLTÉS | H67: =IF(Finanszírozás!C8="",1,0) -> 1 | I67: ÁFA | J67: =Finanszírozás!C8 -> 0 | P67: 0 | U67: 0
A68: ügynök | B68: =SUM(B69:B75) -> 7 | H68: =IF(Finanszírozás!C9="",1,0) -> 1 | I68: M tám | J68: =Finanszírozás!C9 -> 0 | P68: 0 | U68: 0
A69: Hitelközvetítő neve (cégneve) | B69: =IF('Kezdő oldal'!B1="",1,0) -> 1 | H69: =IF(Finanszírozás!C10="",1,0) -> 1 | I69: M hitel | J69: =Finanszírozás!C10 -> 0 | P69: 0 | U69: 0
A70: Hitelközvetítő címe (székhelye) | B70: =IF('Kezdő oldal'!B2="",1,0) -> 1 | H70: =IF(Finanszírozás!C11="",1,0) -> 1 | I70: BB90 | J70: =Finanszírozás!C11 -> 0 | P70: 0 | U70: 0
A71: Közvetítő partner neve | B71: =IF('Kezdő oldal'!B3="",1,0) -> 1 | H71: =IF(Finanszírozás!C12="",1,0) -> 1 | I71: BB90H | J71: =Finanszírozás!C12 -> 0 | P71: 0 | U71: 0
A72: Telefonszám | B72: =IF('Kezdő oldal'!B4="",1,0) -> 1 | H72: =IF(Finanszírozás!C14="",1,0) -> 1 | I72: BB új | J72: =Finanszírozás!C14 -> 0 | P72: 0 | U72: 0
A73: e-mail | B73: =IF('Kezdő oldal'!D4="",1,0) -> 1 | H73: =IF(Finanszírozás!C15="",1,0) -> 1 | I73: BB új H | J73: =Finanszírozás!C15 -> 0 | P73: 0 | U73: 0
A74: Szerzési jutalék | B74: =IF(AND('Kezdő oldal'!B6='Kezdő oldal'!Q3,'Kezdő oldal'!F6=""),1,0) -> 1 | H74: =IF(Finanszírozás!C16="",1,0) -> 1 | I74: OTK | J74: =Finanszírozás!C16 -> 0 | P74: 15000000 | U74: 1
A75: Fenntartási jutalék | B75: =IF(AND('Kezdő oldal'!B6='Kezdő oldal'!Q3,'Kezdő oldal'!F7=""),1,0) -> 1 | H75: =IF(Finanszírozás!C17="",1,0) -> 1 | I75: MFL | J75: =Finanszírozás!C17 -> 0 | P75: 27500000 | U75: 1
A77: ügyfél | B77: Adós | C77: 1 | D77: 2 | E77: 3 | G77: cells(78, 7) | J77: Adós | K77: 1 | L77: 2 | M77: 3 | O77: cells(78, 15) | P77: Adós | Q77: 1 | R77: 2 | S77: 3
B78: =Ügyféladatok!B2 -> Jövedelmével bevont adós(társ) és zálogkötelezett | C78: =Ügyféladatok!C2 -> Jövedelmével bevont adós(társ) és zálogkötelezett | D78: =Ügyféladatok!D2 -> Nincs | E78: =Ügyféladatok!E2 -> Nincs | G78: =B68+F80+F88+F100+F108+F122+B129 -> 22 | J78: =Ügyféladatok!B2 -> Jövedelmével bevont adós(társ) és zálogkötelezett | K78: =Ügyféladatok!C2 -> Jövedelmével bevont adós(társ) és zálogkötelezett | L78: =Ügyféladatok!D2 -> Nincs | M78: =Ügyféladatok!E2 -> Nincs | O78: =SUM(U78:X113)+SUM(U114:U149)+SUM(U62:U75) -> 61 | P78: Jövedelmével bevont adós(társ) és zálogkötelezett | Q78: Jövedelmével bevont adós(társ) és zálogkötelezett | R78: Nincs | S78: Nincs | U78: =IF(J78=P78,0,1) -> 0 | V78: =IF(K78=Q78,0,1) -> 0 | W78: 0 | X78: 0
B79: =IF(B78=Ügyféladatok!$E$84,0,1) -> 1 | C79: =IF(C78=Ügyféladatok!$E$84,0,1) -> 1 | D79: =IF(D78=Ügyféladatok!$E$84,0,1) -> 0 | E79: =IF(E78=Ügyféladatok!$E$84,0,1) -> 0 | F79: =SUM(C79:E79) -> 1 | G79: Adóstársak száma | I79: Név | J79: =Ügyféladatok!B4 -> 0 | K79: =IF(K$78="Nincs","",Ügyféladatok!C4) -> 0 | L79: =IF(L$78="Nincs","",Ügyféladatok!D4) ->  | M79: =IF(M$78="Nincs","",Ügyféladatok!E4) ->  | P79: Adós Neve | Q79: adóstárs-1 neve | U79: =IF(J79=P79,0,1) -> 1 | V79: =IF(K79=Q79,0,1) -> 1 | W79: =IF(L79=R79,0,1) -> 0 | X79: =IF(M79=S79,0,1) -> 0
A80: SZEMÉLYI ADATOK | B80: =IF(OR(B79=0,SUM(B81:B86)=0),0,1) -> 1 | C80: =IF(OR(C79=0,SUM(C81:C86)=0),0,1) -> 1 | D80: 0 | E80: 0 | F80: =SUM(B80:E80) -> 2 | I80: Születési név | J80: =Ügyféladatok!B5 -> 0 | K80: =IF(K$78="Nincs","",Ügyféladatok!C5) -> 0 | L80: =IF(L$78="Nincs","",Ügyféladatok!D5) ->  | M80: =IF(M$78="Nincs","",Ügyféladatok!E5) ->  | P80: adós születési neve | Q80: adóstárs-1 szül neve | U80: 1 | V80: 1 | W80: 0 | X80: 0
A81: Név | B81: =IF(Ügyféladatok!B4="",1,0) -> 1 | C81: =IF(Ügyféladatok!C4="",1,0) -> 1 | D81: =IF(Ügyféladatok!D4="",1,0) -> 1 | E81: =IF(Ügyféladatok!E4="",1,0) -> 1 | I81: Anyja neve | J81: =Ügyféladatok!B6 -> 0 | K81: =IF(K$78="Nincs","",Ügyféladatok!C6) -> 0 | L81: =IF(L$78="Nincs","",Ügyféladatok!D6) ->  | M81: =IF(M$78="Nincs","",Ügyféladatok!E6) ->  | P81: adós anyja | Q81: adóstárs-1 anyja | U81: 1 | V81: 1 | W81: 0 | X81: 0
A82: Születési név | I82: Születési dátum | J82: =Ügyféladatok!B7 -> 00:00:00 | K82: =IF(K$78="Nincs","",Ügyféladatok!C7) -> 00:00:00 | L82: =IF(L$78="Nincs","",Ügyféladatok!D7) ->  | M82: =IF(M$78="Nincs","",Ügyféladatok!E7) ->  | P82: 1980-05-05 | Q82: 1982-03-03 | U82: 1 | V82: 1 | W82: 0 | X82: 0
A83: Anyja neve | B83: =IF(Ügyféladatok!B6="",1,0) -> 1 | C83: =IF(Ügyféladatok!C6="",1,0) -> 1 | D83: =IF(Ügyféladatok!D6="",1,0) -> 1 | E83: =IF(Ügyféladatok!E6="",1,0) -> 1 | I83: Családi állapot | J83: =Ügyféladatok!B8 -> 0 | K83: =IF(K$78="Nincs","",Ügyféladatok!C8) -> 0 | L83: =IF(L$78="Nincs","",Ügyféladatok!D8) ->  | M83: =IF(M$78="Nincs","",Ügyféladatok!E8) ->  | P83: Házas | Q83: Házas | U83: 1 | V83: 1 | W83: 0 | X83: 0
A84: Születési dátum | B84: =IF(Ügyféladatok!B7="",1,0) -> 1 | C84: =IF(Ügyféladatok!C7="",1,0) -> 1 | D84: =IF(Ügyféladatok!D7="",1,0) -> 1 | E84: =IF(Ügyféladatok!E7="",1,0) -> 1 | I84: Legmagasabb iskolai végzettség | J84: =Ügyféladatok!B9 -> 0 | K84: =IF(K$78="Nincs","",Ügyféladatok!C9) -> 0 | L84: =IF(L$78="Nincs","",Ügyféladatok!D9) ->  | M84: =IF(M$78="Nincs","",Ügyféladatok!E9) ->  | P84: Főiskola | Q84: egyetem | U84: 1 | V84: 1 | W84: 0 | X84: 0
A85: Családi állapot | B85: =IF(Ügyféladatok!B8="",1,0) -> 1 | C85: =IF(Ügyféladatok!C8="",1,0) -> 1 | D85: =IF(Ügyféladatok!D8="",1,0) -> 1 | E85: =IF(Ügyféladatok!E8="",1,0) -> 1 | I85: Állandó lakcím: irányító szám | J85: =Ügyféladatok!B12 -> 0 | K85: =IF(K$78="Nincs","",Ügyféladatok!C12) -> 0 | L85: =IF(L$78="Nincs","",Ügyféladatok!D12) ->  | M85: =IF(M$78="Nincs","",Ügyféladatok!E12) ->  | P85: 3333 | Q85: 2222 | U85: 1 | V85: 1 | W85: 0 | X85: 0
A86: Legmagasabb iskolai végzettség | B86: =IF(Ügyféladatok!B9="",1,0) -> 1 | C86: =IF(Ügyféladatok!C9="",1,0) -> 1 | D86: =IF(Ügyféladatok!D9="",1,0) -> 1 | E86: =IF(Ügyféladatok!E9="",1,0) -> 1 | I86: Állandó lakcím: város | J86: =Ügyféladatok!B13 -> 0 | K86: =IF(K$78="Nincs","",Ügyféladatok!C13) -> 0 | L86: =IF(L$78="Nincs","",Ügyféladatok!D13) ->  | M86: =IF(M$78="Nincs","",Ügyféladatok!E13) ->  | P86: oiuztrew | Q86: kjhgfds | U86: 1 | V86: 1 | W86: 0 | X86: 0
I87: Állandó lakcím: utca, házszám | J87: =Ügyféladatok!B14 -> 0 | K87: =IF(K$78="Nincs","",Ügyféladatok!C14) -> 0 | L87: =IF(L$78="Nincs","",Ügyféladatok!D14) ->  | M87: =IF(M$78="Nincs","",Ügyféladatok!E14) ->  | P87: i876ujzhtgewfd | Q87: élkuj5zht4egwq | U87: 1 | V87: 1 | W87: 0 | X87: 0
A88: CÍMEK, TELEFONSZÁMOK | B88: =IF(OR(B79=0,SUM(B89:B96)=0),0,1) -> 1 | C88: =IF(OR(C79=0,SUM(C89:C96)=0),0,1) -> 1 | D88: 0 | E88: 0 | F88: =SUM(B88:E88) -> 2 | I88: Értesítési cím: irányító szám | J88: =Ügyféladatok!B15 -> 0 | K88: =IF(K$78="Nincs","",Ügyféladatok!C15) -> 0 | L88: =IF(L$78="Nincs","",Ügyféladatok!D15) ->  | M88: =IF(M$78="Nincs","",Ügyféladatok!E15) ->  | P88: 0 | Q88: 0 | U88: 0 | V88: 0 | W88: 0 | X88: 0
A89: Állandó lakcím: irányító szám | B89: =IF(Ügyféladatok!B12="",1,0) -> 1 | C89: =IF(Ügyféladatok!C12="",1,0) -> 1 | D89: =IF(Ügyféladatok!D12="",1,0) -> 1 | E89: =IF(Ügyféladatok!E12="",1,0) -> 1 | I89: Értesítési cím: város | J89: =Ügyféladatok!B16 -> 0 | K89: =IF(K$78="Nincs","",Ügyféladatok!C16) -> 0 | L89: =IF(L$78="Nincs","",Ügyféladatok!D16) ->  | M89: =IF(M$78="Nincs","",Ügyféladatok!E16) ->  | P89: 0 | Q89: 0 | U89: 0 | V89: 0 | W89: 0 | X89: 0
A90: Állandó lakcím: város | B90: =IF(Ügyféladatok!B13="",1,0) -> 1 | C90: =IF(Ügyféladatok!C13="",1,0) -> 1 | D90: =IF(Ügyféladatok!D13="",1,0) -> 1 | E90: =IF(Ügyféladatok!E13="",1,0) -> 1 | I90: Értesítési cím: utca, házszám | J90: =Ügyféladatok!B17 -> 0 | K90: =IF(K$78="Nincs","",Ügyféladatok!C17) -> 0 | L90: =IF(L$78="Nincs","",Ügyféladatok!D17) ->  | M90: =IF(M$78="Nincs","",Ügyféladatok!E17) ->  | P90: 0 | Q90: 0 | U90: 0 | V90: 0 | W90: 0 | X90: 0
A91: Állandó lakcím: utca, házszám | B91: =IF(Ügyféladatok!B14="",1,0) -> 1 | C91: =IF(Ügyféladatok!C14="",1,0) -> 1 | D91: =IF(Ügyféladatok!D14="",1,0) -> 1 | E91: =IF(Ügyféladatok!E14="",1,0) -> 1 | I91: Jogviszony a jelenlegi tartózkodási helyen | J91: =Ügyféladatok!B18 -> 0 | K91: =IF(K$78="Nincs","",Ügyféladatok!C18) -> 0 | L91: =IF(L$78="Nincs","",Ügyféladatok!D18) ->  | M91: =IF(M$78="Nincs","",Ügyféladatok!E18) ->  | P91: Társtulajdonos | Q91: Társtulajdonos | U91: 1 | V91: 1 | W91: 0 | X91: 0
A92: Értesítési cím: irányító szám | I92: Mióta él jelenlegi lakcímén | J92: =Ügyféladatok!B19 -> 00:00:00 | K92: =IF(K$78="Nincs","",Ügyféladatok!C19) -> 00:00:00 | L92: =IF(L$78="Nincs","",Ügyféladatok!D19) ->  | M92: =IF(M$78="Nincs","",Ügyféladatok!E19) ->  | P92: 2011-04-05 | Q92: 2011-04-05 | U92: 1 | V92: 1 | W92: 0 | X92: 0
A93: Értesítési cím: város | I93: Van hitele a K&H-nál minimum 6 hónapja? | J93: =Ügyféladatok!B23 -> 0 | K93: =IF(K$78="Nincs","",Ügyféladatok!C23) -> 0 | L93: =IF(L$78="Nincs","",Ügyféladatok!D23) ->  | M93: =IF(M$78="Nincs","",Ügyféladatok!E23) ->  | P93: Nem | Q93: Nem | U93: 1 | V93: 1 | W93: 0 | X93: 0
A94: Értesítési cím: utca, házszám | I94: Van bankszámlája a K&H-nál minimum 6 hónapja? | J94: =Ügyféladatok!B24 -> 0 | K94: =IF(K$78="Nincs","",Ügyféladatok!C24) -> 0 | L94: =IF(L$78="Nincs","",Ügyféladatok!D24) ->  | M94: =IF(M$78="Nincs","",Ügyféladatok!E24) ->  | P94: Igen | Q94: Igen | U94: 1 | V94: 1 | W94: 0 | X94: 0
A95: Jogviszony a jelenlegi tartózkodási helyen | B95: =IF(Ügyféladatok!B18="",1,0) -> 1 | C95: =IF(Ügyféladatok!C18="",1,0) -> 1 | D95: =IF(Ügyféladatok!D18="",1,0) -> 1 | E95: =IF(Ügyféladatok!E18="",1,0) -> 1 | I95: K&H-hoz érkezik majd a bérátutalás? | J95: =Ügyféladatok!B25 -> 0 | K95: =IF(K$78="Nincs","",Ügyféladatok!C25) -> 0 | L95: =IF(L$78="Nincs","",Ügyféladatok!D25) ->  | M95: =IF(M$78="Nincs","",Ügyféladatok!E25) ->  | P95: Igen | Q95: Igen | U95: 1 | V95: 1 | W95: 0 | X95: 0
A96: Mióta él jelenlegi lakcímén | B96: =IF(Ügyféladatok!B19="",1,0) -> 1 | C96: =IF(Ügyféladatok!C19="",1,0) -> 1 | D96: =IF(Ügyféladatok!D19="",1,0) -> 1 | E96: =IF(Ügyféladatok!E19="",1,0) -> 1 | I96: Hitelkártya keretösszeg | J96: =Ügyféladatok!B26 -> 0 | K96: =IF(K$78="Nincs","",Ügyféladatok!C26) -> 0 | L96: =IF(L$78="Nincs","",Ügyféladatok!D26) ->  | M96: =IF(M$78="Nincs","",Ügyféladatok!E26) ->  | P96: 0 | Q96: 0 | U96: 0 | V96: 0 | W96: 0 | X96: 0
I97: Folyószámla hitelkeret összege | J97: =Ügyféladatok!B27 -> 0 | K97: =IF(K$78="Nincs","",Ügyféladatok!C27) -> 0 | L97: =IF(L$78="Nincs","",Ügyféladatok!D27) ->  | M97: =IF(M$78="Nincs","",Ügyféladatok!E27) ->  | P97: 100000 | Q97: 0 | U97: 1 | V97: 0 | W97: 0 | X97: 0
A98: NEVEK, CÍMEK | B98: =IF(OR(B79=0,SUM(B89:B91)+SUM(B81:B84)=0),0,1) -> 1 | C98: =IF(OR(C79=0,SUM(C89:C91)+SUM(C81:C84)=0),0,1) -> 1 | D98: 0 | E98: 0 | F98: =SUM(B98:E98) -> 2 | I98: Összes havi rendszeres törlesztés | J98: =Ügyféladatok!B28 -> 0 | K98: =IF(K$78="Nincs","",Ügyféladatok!C28) -> 0 | L98: =IF(L$78="Nincs","",Ügyféladatok!D28) ->  | M98: =IF(M$78="Nincs","",Ügyféladatok!E28) ->  | P98: 0 | Q98: 0 | U98: 0 | V98: 0 | W98: 0 | X98: 0
I99: Belföldi alkalmazotti munkabér - bankszámlára | J99: =Ügyféladatok!B31 -> 0 | K99: =IF(K$78="Nincs","",Ügyféladatok!C31) -> 0 | L99: =IF(L$78="Nincs","",Ügyféladatok!D31) ->  | M99: =IF(M$78="Nincs","",Ügyféladatok!E31) ->  | P99: 360000 | Q99: 150000 | U99: 1 | V99: 1 | W99: 0 | X99: 0
A100: BANKKAPCSOLATOK | B100: =IF(OR(B79=0,SUM(B101:B106)=0),0,1) -> 1 | C100: =IF(OR(C79=0,SUM(C101:C106)=0),0,1) -> 1 | D100: 0 | E100: 0 | F100: =SUM(B100:E100) -> 2 | I100: Belföldi alkalmazotti munkabér - készpénzben | J100: =Ügyféladatok!B32 -> 0 | K100: =IF(K$78="Nincs","",Ügyféladatok!C32) -> 0 | L100: =IF(L$78="Nincs","",Ügyféladatok!D32) ->  | M100: =IF(M$78="Nincs","",Ügyféladatok!E32) ->  | P100: 0 | Q100: 0 | U100: 0 | V100: 0 | W100: 0 | X100: 0
A101: Van hitele a K&H-nál minimum 6 hónapja? | B101: =IF(Ügyféladatok!B23="",1,0) -> 1 | C101: =IF(Ügyféladatok!C23="",1,0) -> 1 | D101: =IF(Ügyféladatok!D23="",1,0) -> 1 | E101: =IF(Ügyféladatok!E23="",1,0) -> 1 | I101: Külföldi alkalmazotti munkabér - bankszámlára | J101: =Ügyféladatok!B33 -> 0 | K101: =IF(K$78="Nincs","",Ügyféladatok!C33) -> 0 | L101: =IF(L$78="Nincs","",Ügyféladatok!D33) ->  | M101: =IF(M$78="Nincs","",Ügyféladatok!E33) ->  | P101: 0 | Q101: 0 | U101: 0 | V101: 0 | W101: 0 | X101: 0
A102: Van bankszámlája a K&H-nál minimum 6 hónapja? | B102: =IF(Ügyféladatok!B24="",1,0) -> 1 | C102: =IF(Ügyféladatok!C24="",1,0) -> 1 | D102: =IF(Ügyféladatok!D24="",1,0) -> 1 | E102: =IF(Ügyféladatok!E24="",1,0) -> 1 | I102: Külföldi alkalmazotti munkabér - készpénzben | J102: =Ügyféladatok!B34 -> 0 | K102: =IF(K$78="Nincs","",Ügyféladatok!C34) -> 0 | L102: =IF(L$78="Nincs","",Ügyféladatok!D34) ->  | M102: =IF(M$78="Nincs","",Ügyféladatok!E34) ->  | P102: 0 | Q102: 0 | U102: 0 | V102: 0 | W102: 0 | X102: 0
A103: K&H-hoz érkezik majd a bérátutalás? | B103: =IF(Ügyféladatok!B25="",1,0) -> 1 | C103: =IF(Ügyféladatok!C25="",1,0) -> 1 | D103: =IF(Ügyféladatok!D25="",1,0) -> 1 | E103: =IF(Ügyféladatok!E25="",1,0) -> 1 | I103: Nyugdíj | J103: =Ügyféladatok!B35 -> 0 | K103: =IF(K$78="Nincs","",Ügyféladatok!C35) -> 0 | L103: =IF(L$78="Nincs","",Ügyféladatok!D35) ->  | M103: =IF(M$78="Nincs","",Ügyféladatok!E35) ->  | P103: 0 | Q103: 0 | U103: 0 | V103: 0 | W103: 0 | X103: 0
A104: Hitelkártya keretösszeg | B104: =IF(Ügyféladatok!B26="",1,0) -> 1 | C104: =IF(Ügyféladatok!C26="",1,0) -> 1 | D104: =IF(Ügyféladatok!D26="",1,0) -> 1 | E104: =IF(Ügyféladatok!E26="",1,0) -> 1 | I104: Vállalkozói jövedelem | J104: =Ügyféladatok!B36 -> 0 | K104: =IF(K$78="Nincs","",Ügyféladatok!C36) -> 0 | L104: =IF(L$78="Nincs","",Ügyféladatok!D36) ->  | M104: =IF(M$78="Nincs","",Ügyféladatok!E36) ->  | P104: 0 | Q104: 0 | U104: 0 | V104: 0 | W104: 0 | X104: 0
A105: Folyószámla hitelkeret összege | B105: =IF(Ügyféladatok!B27="",1,0) -> 1 | C105: =IF(Ügyféladatok!C27="",1,0) -> 1 | D105: =IF(Ügyféladatok!D27="",1,0) -> 1 | E105: =IF(Ügyféladatok!E27="",1,0) -> 1 | I105: Anyasági támogatások (GYES, GYED, GYÁS) | J105: =Ügyféladatok!B37 -> 0 | K105: =IF(K$78="Nincs","",Ügyféladatok!C37) -> 0 | L105: =IF(L$78="Nincs","",Ügyféladatok!D37) ->  | M105: =IF(M$78="Nincs","",Ügyféladatok!E37) ->  | P105: 20000 | Q105: 0 | U105: 1 | V105: 0 | W105: 0 | X105: 0
A106: Összes havi rendszeres törlesztés | B106: =IF(Ügyféladatok!B28="",1,0) -> 1 | C106: =IF(Ügyféladatok!C28="",1,0) -> 1 | D106: =IF(Ügyféladatok!D28="",1,0) -> 1 | E106: =IF(Ügyféladatok!E28="",1,0) -> 1 | I106: Egyéb jövedelem | J106: =Ügyféladatok!B38 -> 0 | K106: =IF(K$78="Nincs","",Ügyféladatok!C38) -> 0 | L106: =IF(L$78="Nincs","",Ügyféladatok!D38) ->  | M106: =IF(M$78="Nincs","",Ügyféladatok!E38) ->  | P106: 0 | Q106: 0 | U106: 0 | V106: 0 | W106: 0 | X106: 0
I107: Levonás/letiltás a jövedelemből | J107: =Ügyféladatok!B40 -> 0 | K107: =IF(K$78="Nincs","",Ügyféladatok!C40) -> 0 | L107: =IF(L$78="Nincs","",Ügyféladatok!D40) ->  | M107: =IF(M$78="Nincs","",Ügyféladatok!E40) ->  | P107: 0 | Q107: 0 | U107: 0 | V107: 0 | W107: 0 | X107: 0
A108: VAGYONI - PÉNZÜGYI ADATOK | B108: =IF(OR(B79=0,SUM(B109:B120)=0),0,1) -> 1 | C108: =IF(OR(C79=0,SUM(C109:C120)=0),0,1) -> 1 | D108: 0 | E108: 0 | F108: =SUM(B108:E108) -> 2 | I108: Jövedelemmel rendelkezők száma | J108: =Ügyféladatok!B41 -> 0 | K108: =IF(K$78="Nincs","",Ügyféladatok!C41) -> 0 | L108: =IF(L$78="Nincs","",Ügyféladatok!D41) ->  | M108: =IF(M$78="Nincs","",Ügyféladatok!E41) ->  | P108: 2 | Q108: 2 | U108: 1 | V108: 1 | W108: 0 | X108: 0
A109: Belföldi alkalmazotti munkabér - bankszámlára | B109: =IF(Ügyféladatok!B31="",1,0) -> 1 | C109: =IF(Ügyféladatok!C31="",1,0) -> 1 | D109: =IF(Ügyféladatok!D31="",1,0) -> 1 | E109: =IF(Ügyféladatok!E31="",1,0) -> 1 | I109: Eltartott gyermekek száma a háztartásban | J109: =Ügyféladatok!B42 -> 0 | K109: =IF(K$78="Nincs","",Ügyféladatok!C42) -> 0 | L109: =IF(L$78="Nincs","",Ügyféladatok!D42) ->  | M109: =IF(M$78="Nincs","",Ügyféladatok!E42) ->  | P109: 2 | Q109: 0 | U109: 1 | V109: 0 | W109: 0 | X109: 0
A110: Belföldi alkalmazotti munkabér - készpénzben | B110: =IF(Ügyféladatok!B32="",1,0) -> 1 | C110: =IF(Ügyféladatok!C32="",1,0) -> 1 | D110: =IF(Ügyféladatok!D32="",1,0) -> 1 | E110: =IF(Ügyféladatok!E32="",1,0) -> 1 | I110: Munkáltatói cégforma | J110: =Ügyféladatok!B45 -> 0 | K110: =IF(K$78="Nincs","",Ügyféladatok!C45) -> 0 | L110: =IF(L$78="Nincs","",Ügyféladatok!D45) ->  | M110: =IF(M$78="Nincs","",Ügyféladatok!E45) ->  | P110: Egyéb | Q110: Egyéb | U110: 1 | V110: 1 | W110: 0 | X110: 0
A111: Külföldi alkalmazotti munkabér - bankszámlára | B111: =IF(Ügyféladatok!B33="",1,0) -> 1 | C111: =IF(Ügyféladatok!C33="",1,0) -> 1 | D111: =IF(Ügyféladatok!D33="",1,0) -> 1 | E111: =IF(Ügyféladatok!E33="",1,0) -> 1 | I111: Gazdasági szektor | J111: =Ügyféladatok!B46 -> 0 | K111: =IF(K$78="Nincs","",Ügyféladatok!C46) -> 0 | L111: =IF(L$78="Nincs","",Ügyféladatok!D46) ->  | M111: =IF(M$78="Nincs","",Ügyféladatok!E46) ->  | P111: Bányászat | Q111: Bányászat | U111: 1 | V111: 1 | W111: 0 | X111: 0
A112: Külföldi alkalmazotti munkabér - készpénzben | B112: =IF(Ügyféladatok!B34="",1,0) -> 1 | C112: =IF(Ügyféladatok!C34="",1,0) -> 1 | D112: =IF(Ügyféladatok!D34="",1,0) -> 1 | E112: =IF(Ügyféladatok!E34="",1,0) -> 1 | I112: Foglalkoztatás minősége | J112: =Ügyféladatok!B47 -> 0 | K112: =IF(K$78="Nincs","",Ügyféladatok!C47) -> 0 | L112: =IF(L$78="Nincs","",Ügyféladatok!D47) ->  | M112: =IF(M$78="Nincs","",Ügyféladatok!E47) ->  | P112: Alkalmazott | Q112: Közalkalmazott | U112: 1 | V112: 1 | W112: 0 | X112: 0
A113: Nyugdíj | B113: =IF(Ügyféladatok!B35="",1,0) -> 1 | C113: =IF(Ügyféladatok!C35="",1,0) -> 1 | D113: =IF(Ügyféladatok!D35="",1,0) -> 1 | E113: =IF(Ügyféladatok!E35="",1,0) -> 1 | I113: Munkaviszony kezdete | J113: =Ügyféladatok!B48 -> 00:00:00 | K113: =IF(K$78="Nincs","",Ügyféladatok!C48) -> 00:00:00 | L113: =IF(L$78="Nincs","",Ügyféladatok!D48) ->  | M113: =IF(M$78="Nincs","",Ügyféladatok!E48) ->  | P113: 2020-05-06 | Q113: 2020-04-03 | U113: 1 | V113: 1 | W113: 0 | X113: 0
A114: Vállalkozói jövedelem | B114: =IF(Ügyféladatok!B36="",1,0) -> 1 | C114: =IF(Ügyféladatok!C36="",1,0) -> 1 | D114: =IF(Ügyféladatok!D36="",1,0) -> 1 | E114: =IF(Ügyféladatok!E36="",1,0) -> 1 | I114: Hitelcél | J114: =Hiteladatok!B2 -> 0 | P114: Használt lakás/ház vásárlása | U114: 1
A115: Anyasági támogatások (GYES, GYED, GYÁS) | B115: =IF(Ügyféladatok!B37="",1,0) -> 1 | C115: =IF(Ügyféladatok!C37="",1,0) -> 1 | D115: =IF(Ügyféladatok!D37="",1,0) -> 1 | E115: =IF(Ügyféladatok!E37="",1,0) -> 1 | I115: Fedezet típusa | J115: =Hiteladatok!D3 -> 0 | P115: Társasházi lakás | U115: 1
A116: Egyéb jövedelem | B116: =IF(Ügyféladatok!B38="",1,0) -> 1 | C116: =IF(Ügyféladatok!C38="",1,0) -> 1 | D116: =IF(Ügyféladatok!D38="",1,0) -> 1 | E116: =IF(Ügyféladatok!E38="",1,0) -> 1 | I116: Törlesztési dátumok hónapon belül | J116: =Hiteladatok!D4 -> 15 | P116: 5 | U116: 1
I117: Hitelkérelem befogadásának dátuma | J117: =Hiteladatok!D5 -> 2021-07-31 | P117: 2021-07-01 | U117: 1
A118: Levonás/letiltás a jövedelemből | B118: =IF(Ügyféladatok!B40="",1,0) -> 1 | C118: =IF(Ügyféladatok!C40="",1,0) -> 1 | D118: =IF(Ügyféladatok!D40="",1,0) -> 1 | E118: =IF(Ügyféladatok!E40="",1,0) -> 1 | I118: K&H hiteltörlesztő számla? (ingyenes számla) I/N | J118: =Hiteladatok!D6 -> N | P118: N | U118: 0
A119: Jövedelemmel rendelkezők száma | B119: =IF(Ügyféladatok!B41="",1,0) -> 1 | C119: =IF(Ügyféladatok!C41="",1,0) -> 1 | D119: =IF(Ügyféladatok!D41="",1,0) -> 1 | E119: =IF(Ügyféladatok!E41="",1,0) -> 1 | I119: Fedezet becsült forgalmi értéke | J119: =Hiteladatok!I2 -> 0 | P119: 60000000 | U119: 1
A120: Eltartott gyermekek száma a háztartásban | B120: =IF(Ügyféladatok!B42="",1,0) -> 1 | C120: =IF(Ügyféladatok!C42="",1,0) -> 0 | D120: =IF(Ügyféladatok!D42="",1,0) -> 1 | E120: =IF(Ügyféladatok!E42="",1,0) -> 1 | I120: Fedezetre bejegyzett és fennmaradó terhek | J120: =Hiteladatok!I3 -> 0 | P120: 0 | U120: 0
I121: Fedezeti ingatlan irányítószáma | J121: =Hiteladatok!I4 -> 0 | P121: 1111 | U121: 1
A122: MUNKAHELYI ADATOK | B122: =IF(OR(B79=0,SUM(B123:B126)=0),0,1) -> 1 | C122: =IF(OR(C79=0,SUM(C123:C126)=0),0,1) -> 1 | D122: 0 | E122: 0 | F122: =SUM(B122:E122) -> 2 | I122: Fedezeti ingatlan helyrajzi száma | J122: =Hiteladatok!I5 -> 0 | P122: 1234 | U122: 1
A123: Munkáltatói cégforma | B123: =IF(Ügyféladatok!B45="",1,0) -> 1 | C123: =IF(Ügyféladatok!C45="",1,0) -> 1 | D123: =IF(Ügyféladatok!D45="",1,0) -> 1 | E123: =IF(Ügyféladatok!E45="",1,0) -> 1 | I123: Folyószámla havi számlavezetési díj | J123: =Hiteladatok!I6 -> 383 | P123: 557 | U123: 1
A124: Gazdasági szektor | B124: =IF(Ügyféladatok!B46="",1,0) -> 1 | C124: =IF(Ügyféladatok!C46="",1,0) -> 1 | D124: =IF(Ügyféladatok!D46="",1,0) -> 1 | E124: =IF(Ügyféladatok!E46="",1,0) -> 1 | I124: Csoportos beszedés díja | J124: =Hiteladatok!I7 -> 0 | P124: 0 | U124: 0
A125: Foglalkoztatás minősége | B125: =IF(Ügyféladatok!B47="",1,0) -> 1 | C125: =IF(Ügyféladatok!C47="",1,0) -> 1 | D125: =IF(Ügyféladatok!D47="",1,0) -> 1 | E125: =IF(Ügyféladatok!E47="",1,0) -> 1 | I125: Kockázati életbiztosítás gyakoriság szerinti díja | J125: =Hiteladatok!I8 -> 0 | P125: 0 | U125: 0
A126: Munkaviszony kezdete | B126: =IF(Ügyféladatok!B48="",1,0) -> 1 | C126: =IF(Ügyféladatok!C48="",1,0) -> 1 | D126: =IF(Ügyféladatok!D48="",1,0) -> 1 | E126: =IF(Ügyféladatok!E48="",1,0) -> 1 | I126: Kockázati életbiztosítás gyakorisága | J126: =Hiteladatok!I9 -> 0 | P126: 0 | U126: 0
I127: Kockázati életbiztosítás díjfizetési módja | J127: =Hiteladatok!I10 -> 0 | P127: 0 | U127: 0
I128: Kockázati életbiztosítás egyszeri díja | J128: =Hiteladatok!I11 -> 0 | P128: 0 | U128: 0
A129: Hiteladatok | B129: =SUM(B130:B165) -> 5 | I129: Ügyfél által a hitelközvetítőnek fizetett díj | J129: =Hiteladatok!I12 -> 0 | P129: 0 | U129: 0
A130: Hitelcél | B130: =IF(Hiteladatok!B2="",1,0) -> 1 | I130: Hitelösszeg | J130: =Hiteladatok!B15 -> 0 | P130: 27500000 | U130: 1
A131: Fedezet típusa | B131: =IF(Hiteladatok!D3="",1,0) -> 1 | I131: Futamidő (hónap) | J131: =Hiteladatok!B16 -> 240 | P131: 240 | U131: 0
A132: Törlesztési dátumok hónapon belül | B132: =IF(Hiteladatok!D4="",1,0) -> 0 | I132: Kamatperiódus | J132: =Hiteladatok!B17 -> 10 év | P132: 10 év | U132: 0
A133: Hitelkérelem befogadásának dátuma | B133: =IF(Hiteladatok!D5="",1,0) -> 0 | I133: Kampánykedvezmény | J133: =Hiteladatok!B20 -> Díjkedvezmény 100% | P133: Díjkedvezmény 100% | U133: 0
A134: K&H hiteltörlesztő számla? (ingyenes számla) I/N | B134: =IF(Hiteladatok!D6="",1,0) -> 0 | I134: Átutalási (havi 150 eFt) | J134: =Hiteladatok!B22 -> I | P134: I | U134: 0
A135: Fedezet becsült forgalmi értéke | B135: =IF(Hiteladatok!I2="",1,0) -> 1 | I135: Vagyonbiztosítási | J135: =Hiteladatok!B23 -> I | P135: I | U135: 0
A136: Fedezetre bejegyzett és fennmaradó terhek | B136: =IF(Hiteladatok!I3="",1,0) -> 0 | I136: Törlesztési biztosítás | J136: =Hiteladatok!B24 -> N | P136: N | U136: 0
A137: Fedezeti ingatlan irányítószáma | B137: =IF(Hiteladatok!I4="",1,0) -> 1 | I137: Életbiztosítás | J137: =Hiteladatok!B25 -> N | P137: N | U137: 0
A138: Fedezeti ingatlan helyrajzi száma | B138: =IF(Hiteladatok!I5="",1,0) -> 1 | I138: Prémium ügyfél | J138: =Hiteladatok!B26 -> N | P138: N | U138: 0
A139: Folyószámla havi számlavezetési díj | B139: =IF(Hiteladatok!I6="",1,0) -> 0 | I139: Kockázati besorolás (árkategória) | J139: =Hiteladatok!B28 -> Kalkulált: | P139: Kalkulált: | U139: 0
A140: Csoportos beszedés díja | B140: =IF(AND(Hiteladatok!B25="i",Hiteladatok!I7=""),1,0) -> 0 | I140: Induló kamatláb: | U140: 0
A141: Kockázati életbiztosítás gyakoriság szerinti díja | B141: =IF(AND(Hiteladatok!B25="i",Hiteladatok!I8=""),1,0) -> 0 | I141: A hitel kezdeti kamatlába egyedi kedvezménnyel | J141: =IF(Hiteladatok!B31="","",Hiteladatok!B31) ->  | U141: 0
A142: Kockázati életbiztosítás gyakorisága | B142: =IF(AND(Hiteladatok!$I$8>0,Hiteladatok!I9=""),1,0) -> 0 | I142: Hitelösszeg | J142: =Hiteladatok!F15 -> 0 | P142: 15000000 | U142: 1
A143: Kockázati életbiztosítás díjfizetési módja | B143: =IF(AND(Hiteladatok!$I$8>0,Hiteladatok!I10=""),1,0) -> 0 | I143: Futamidő (hónap) | J143: =Hiteladatok!F16 -> 240 | P143: 240 | U143: =IF(J143=P143,0,1) -> 0
A144: Kockázati életbiztosítás egyszeri díja | B144: =IF(Hiteladatok!I11="",1,0) -> 0 | I144: Kampánykedvezmény | J144: =Hiteladatok!F20 -> Díjkedvezmény 100% | P144: Díjkedvezmény 100% | U144: 0
A145: Ügyfél által a hitelközvetítőnek fizetett díj | B145: =IF(Hiteladatok!I12="",1,0) -> 0 | I145: - Meglévő | J145: =Hiteladatok!F22 -> 0 | P145: 1 | U145: 1
A146: Hitelösszeg | I146: - Magzat (min 12 hetes) | J146: =Hiteladatok!F23 -> 0 | P146: 1 | U146: 1
A147: Futamidő (hónap) | B147: =IF(AND(Hiteladatok!B15>0,Hiteladatok!B16=""),1,0) -> 0 | I147: - Vállalt | J147: =Hiteladatok!F24 -> 0 | P147: 1 | U147: 1
A148: Kamatperiódus | B148: =IF(AND(Hiteladatok!B15>0,Hiteladatok!B17=""),1,0) -> 0 | I148: Hitelösszeg | J148: =Hiteladatok!I15 -> 0 | P148: 0 | U148: 0
A149: Kampánykedvezmény | B149: =IF(AND(Hiteladatok!B15>0,Hiteladatok!B20=""),1,0) -> 0 | I149: Futamidő (hónap) | J149: =Hiteladatok!I16 -> 240 | P149: 240 | U149: 0
A150: Átutalási (havi 150 eFt) | B150: =IF(AND(Hiteladatok!B15>0,Hiteladatok!B22=""),1,0) -> 0
A151: Vagyonbiztosítási | B151: =IF(AND(Hiteladatok!B15>0,Hiteladatok!B23=""),1,0) -> 0
A152: Törlesztési biztosítás | B152: =IF(AND(Hiteladatok!B15>0,Hiteladatok!B24=""),1,0) -> 0
A153: Életbiztosítás | B153: =IF(AND(Hiteladatok!B15>0,Hiteladatok!B25=""),1,0) -> 0
A154: Prémium ügyfél | B154: =IF(AND(Hiteladatok!B15>0,Hiteladatok!B26=""),1,0) -> 0
A155: Kockázati besorolás (árkategória) | B155: =IF(AND(Hiteladatok!B15>0,Hiteladatok!B28=""),1,0) -> 0
A156: Induló kamatláb:
A157: A hitel kezdeti kamatlába egyedi kedvezménnyel
A158: Hitelösszeg
A159: Futamidő (hónap) | B159: =IF(AND(Hiteladatok!F15>0,Hiteladatok!F16=""),1,0) -> 0
A160: Kampánykedvezmény | B160: =IF(AND(Hiteladatok!F15>0,Hiteladatok!F20=""),1,0) -> 0
A161: - Meglévő | B161: =IF(AND(Hiteladatok!F15>0,Hiteladatok!F22=""),1,0) -> 0
A162: - Magzat (min 12 hetes) | B162: =IF(AND(Hiteladatok!F15>0,Hiteladatok!F23=""),1,0) -> 0
A163: - Vállalt | B163: =IF(AND(Hiteladatok!F15>0,Hiteladatok!F24=""),1,0) -> 0
A164: Hitelösszeg
A165: Futamidő (hónap) | B165: =IF(AND(Hiteladatok!I15>0,Hiteladatok!I16=""),1,0) -> 0

Sheet Ind-Ált (hidden)
K1: =Ügyféladatok!B4 -> 0 | L1: sormagasság | M1: 12.75
A2: I. Általános tájékoztatás a jelzáloghitelekről | K2: =TODAY() -> 2021-07-09 | L2: 3 | M2: =L2*$M$1 -> 38.25
A3: 1. A hitelezővel kapcsolatos adatok: | K3: =NOW() -> 2021-07-09T12:13:34.440 | L3: 1 | M3: =L3*$M$1 -> 12.75
A4: 1.1 a hitelező neve (cégneve) és címe (székhelye): K&H Bank Zrt., H-1095 Budapest, Lechner Ödön fasor 9. | K4: =TEXT(K3,"éééé.hh.nn ó-pp-mm") -> 2021.07.09 12-13-34 | L4: 1 | M4: 12.75
L5: 1 | M5: 12.75
A6: 1.2 a hitelközvetítő neve (cégneve) és címe (székhelye): | E6: =IF('Kezdő oldal'!B1="","",CONCATENATE('Kezdő oldal'!B1,", ",'Kezdő oldal'!B2)) ->  | L6: 1 | M6: 12.75
L7: 1 | M7: 12.75
L8: 0.7 | M8: 8.925
A9: 2. A jelzáloghitellel kapcsolatos adatok: | L9: 1 | M9: 12.75
A10: 2.1 felhasználási célok, amelyre a hitel fordítható: | L10: 1 | M10: 12.75
A11: Termék elnevezése | D11: Felhasználási célok | L11: 1 | M11: 12.75
A12: K&H Üzleti feltételű lakáshitel esetén: | D12: • lakó vagy üdülő ingatlan vásárlásra, | L12: 1 | M12: 12.75
D13: • építésre, | L13: 1 | M13: 12.75
D14: • bővítésre, korszerűsítésre, felújításra | L14: 1 | M14: 12.75
D15: • lakáscélú hitelek refinanszírozására | L15: 1 | M15: 12.75
A16: K&H Minősített Fogyasztóbarát Lakáshitel esetén: | D16: • új, használatbavételi engedéllyel rendelkező lakás/lakóház/üdülő vásárlása | L16: 1 | M16: 12.75
D17: • használat lakás/lakóház/üdülő vásárlása | L17: 1 | M17: 12.75
D18: • igazoltan lakáscélú jelzáloghitel kiváltása | L18: 1 | M18: 12.75
D19: • a kölcsönnel érintett ingatlanhoz tartozó gépkocsi tároló, tároló vásárlása | L19: 1 | M19: 12.75
A20: K&H lakáscélú hitelek állami támogatással extra esetén: | D20: • új lakás építése, | L20: 1 | M20: 12.75
D21: • új vagy használt lakás vásárlása | L21: 1 | M21: 12.75
L22: 0.7 | M22: 8.925
A23: 2.1 felhasználási célok, amelyre a hitel fordítható: | L23: 1 | M23: 12.75
A24: • ingatlanon alapított önálló zálogjog, és annak biztosítására jogszabályon vagy a kölcsönszerződésen alapuló elidegenítési és terhelési tilalom • amennyiben a hitel visszafizetésének biztosításához szükséges, óvadékba helyezett pénzösszeg | L24: 3 | M24: 38.25
L25: 0.7 | M25: 8.925
A26: 2.3 a hitel lehetséges futamideje: | L26: 1 | M26: 12.75
A27: Termék elnevezése | D27: Kamatperiódus hossza | E27: Minimum futamidő | F27: Maximum futamidő | G27: Törlesztőrészletek száma | L27: 2 | M27: 25.5
A28: - K&H Üzleti feltételű lakáshitel - K&H Minősített Fogyasztóbarát lakáshitel | D28: 12 hónap* | E28: 12 | F28: 360 | G28: 12 - 360 | L28: 1 | M28: 12.75
D29: 5 év | E29: 60 | G29: 60 - 360 | L29: 1 | M29: 12.75
D30: 10 év | E30: 180 | G30: 180 - 360 | L30: 1 | M30: 12.75
D31: fix 10 éves kamat - fix futamidővel | E31: 120 | F31: 120 | G31: 120 | L31: 2 | M31: 25.5
D32: fix 15 éves kamat - fix futamidővel | E32: 180 | F32: 180 | G32: 180 | L32: 2 | M32: 25.5
D33: fix 20 éves kamat - fix futamidővel | E33: 240 | F33: 240 | G33: 240 | L33: 2 | M33: 25.5
A34: - K&H lakáscélú hitelek állami támogatással extra | D34: 5 év | E34: 61 | F34: 300 | G34: 61 - 300 | L34: 1 | M34: 12.75
A35: - K&H felújítási hitel állami támogatással | D35: 5 év | E35: 61 | F35: 120 | G35: 61 - 120 | L35: 1 | M35: 12.75
A36: * K&H Minősített Fogyasztóbarát Lakáshitel esetén nem választható kamatperiódus | L36: 1 | M36: 12.75
L37: 0.7 | M37: 8.925
A38: 2.4 a K&H Bank Zrt. által kínált jelzáloghitelek típusai és kamatozása | L38: 1 | M38: 12.75
A39: Termék elnevezése | C39: Kamatozás | L39: 2 | M39: 25.5
A40: K&H Üzleti feltételű lakáshitel | C40: • Változó kamatozással (ügyfél választása szerint 12 havi BUBOR referenciakamathoz kötött, illetve 5, vagy akár 10 éves kamatperiódusokban rögzített, kamatperiódusonként változó kamatozással), induló díjas konstrukcióban • Rögzített (fix) kamatozással a futamidő végéig (ügyfél választása szerint fix 10-15-20 éves futamidővel) | L40: 5 | M40: 63.75
A41: K&H Minősített Fogyasztóbarát Lakáshitel | C41: • 5 vagy 10 éves kamatperiódusokban rögzített, kamatperiódusonként változó kamatozással, induló díjas konstrukcióban • Rögzített (fix) kamatozással a futamidő végéig (ügyfél választása szerint fix 10-15-20 éves futamidővel) | L41: 4 | M41: 51
A42: K&H lakáscélú hitelek állami támogatással extra | C42: • változó, a kamattámogatás időszaka alatt az ÁKK Zrt. által havi rendszerességgel közzétett, a közzétételt megelőző három naptári hónapban tartott öt éves névleges futamidejű államkötvény aukción kialakult átlaghozamok adott aukción elfogadott mennyiségekkel súlyozott számtani átlagától függő kamatozású, a támogatási időszak leteltét követően az adósnak az állami kamattámogatás nélküli bruttó kamatot kell a Bank felé visszafizetnie. | L42: 6 | M42: 76.5
L43: 1 | M43: 12.75
A44: Rögzített kamatozású hitel: A 2009. évi CLXII. törvény 3.§ 18. pontja alapján a hitelszerződésben annak megkötésekor meghatározott, a hitelszerződés teljes futamidejére vonatkozó egy, vagy a futamidő részeire vonatkozó több, százalékos mérték használatával meghatározott hitelkamat; a hitelkamat kizárólag arra az időszakra tekinthető rögzítettnek, amelyre vonatkozóan a hitelszerződésben a százalékos mértéke meghatározásra került. | L44: 5 | M44: 63.75
A45: Változó kamatozású hitel: A 2009. évi CLXII. törvény 3.§ 21. pontja alapján minden olyan kamat, ami nem minősül rögzített hitelkamatnak. | L45: 3 | M45: 38.25
A46: A rögzített és a változó kamatozású hitelek közötti különbség, hogy amíg a rögzített kamatozású hitel esetében a kölcsön devizanemében a teljes futamidő alatt az Ön törlesztőrészlete változatlan. A változó kamatozású hitelek esetében a hitelkamat az alapul szolgáló referenciakamat változásához igazodik, továbbá a Bank a hitelkamatot az előre meghatározott kamatváltoztatási mutatónak megfelelően módosíthatja a mindenkor hatályos jogszabályoknak megfelelően. | L46: 4 | M46: 51
L47: 0.7 | M47: 8.925
A48: 2.5 alkalmazott referenciamutatók és azok kezelői, valamint következményei a fogyasztóra nézve | L48: 1 | M48: 12.75
A49: • 12 havi kamatperiódus esetén az alkalmazott referenciamutató: - a 2009. évi CLXII törvény alapján: BUBOR, - kezelője: Magyar Nemzeti Bank - a referenciamutató változásának következményei: a referenciamutató változása a kamatperiódus forduló alkalmával, azonos mértékben kerül érvényesítésre, amely az ügyleti kamat és a havonta fizetendő törlesztőrészlet változását eredményezi. | L49: 5 | M49: 63.75
A50: • 5 éves- és 10 éves kamatperiódus esetén kamatváltoztatási mutató: - a 2009. évi CLXII törvény alapján: H3K, - kezelője: Magyar Nemzeti Bank - változás következményei: Az alkalmazott kamatváltoztatási mutató a kamatperiódusnak megfelelő ÁKK referenciahozam alapján számított mutató, mely a lehetséges kamatváltozás mértékét fejezi ki. A mutató értékét kamatperiódus forduló alkalmával kell alkalmazni és az ügyleti kamat és a havonta fizetendő törlesztőrészlet változását eredményezi. | L50: 6 | M50: 76.5
L51: 0.7 | M51: 8.925
A52: 2.6 reprezentatív példa lakossági jelzáloghitelhez K&H Minősített Fogyasztóbarát Lakáshitel esetén – 5 éves kamatperiódussal | L52: 2 | M52: 25.5
A53: 5 millió forint összegű kölcsön esetén, 240 hónapos futamidővel, átutalási és vagyonbiztosítási kamatkedvezménnyel számított, éves 3,79% kamatláb mellett a havi törlesztőrészlet 29 749 forint, a teljes visszafizetendő összeg 7 286 040 forint, a hiteldíj 2 286 040 forint, ebből a hiteldíjban foglalt díjak, költségek összege 146 280 forint, THM: 4,1%. Törlesztőrészletek száma: 240 db | L53: 3 | M53: 38.25
L54: 0.7 | M54: 8.925
A55: 2.7 a hitel teljes díjába bele nem számított költségek és díjak: | L55: 1 | M55: 12.75
A56: • adminisztratív költségek (például: behajtással kapcsolatos levelezés díja) • jogi és közvetítői költségek, | L56: 2 | M56: 25.5
L57: 0.7 | M57: 8.925
A58: 2.8 az előtörlesztés lehetősége és annak feltételei: | L58: 1 | M58: 12.75
A59: Az Adós a Tőketartozást a lejárat előtt részben, vagy teljes egészében előtörlesztheti, amennyiben erre irányuló szándékát a Bank felé írásban jelzi. A banki munkanapokon 15:00 óráig befogadott előtörlesztési kérelmet a Bank a benyújtás napján végrehajtja, amennyiben annak fedezete a törlesztő számlán rendelkezésre áll. A 15:00 óra után benyújtott előtörlesztési nyilatkozatot a Bank csak a következő banki munkanapra fogadja be. Az esedékesség előtt visszafizetett tőkerésszel csökkentett tartozás alapján a hátralévő Futamidőnek megfelelő átértékelt Törlesztőrészlet összegéről a Bank az Adóst írásban értesíti. A Végtörlesztés szándékának bejelentése önmagában nem minősül a Kölcsönszerződés Adós általi felmondásának. Elő- és végtörlesztés esetén az Adós köteles az Elő- és Végtörlesztés napjáig megszolgált kamatokat és díjakat maradéktalanul megfizetni. Amennyiben az Adóstárs kíván Előtörlesztést végrehajtani, akkor az Adóstárs az Adós törlesztő számlája felett kizárólag a befizetett összeg törlesztésre fordítása tárgyában rendelkezhet. Az Adós elismeri, hogy az Adóstárs, Kezes, zálogkötelezett, és a kölcsön biztosítékát nyújtó, vagy annak visszafizetéséért bármilyen személyes vagy dologi kötelezettséget vállaló harmadik fél olyan személynek minősül, akinek a kölcsön visszafizetéséhez törvényes érdeke fűződik, ezért az általuk felajánlott teljesítést a Bank az Adós hozzájárulása nélkül is jogosult elfogadni. A Bank jogosult az előtörlesztés miatt felmerült költségei megtérítésére, amelynek pontos mértékét a termékre vonatkozó Hirdetmény tartalmazza. | L59: 14 | M59: 178.5
L60: 0.7 | M60: 8.925
A61: 2.9 K&H Bank Zrt. által kínált törlesztési lehetőségek: | L61: 1 | M61: 12.75
A62: Törlesztési lehetőségek: K&H banknál vezetett folyószámláról, vagy Hiteltörlesztő számláról Törlesztő részletek száma: 12-360 db, de a Törlesztőrészletek száma kamatperiódusonként eltérő lehet. Az adott hiteltermékhez és kamatperiódushoz/fix kamatozáshoz kapcsolódó minimális és maximális kamatperiódust jelen tájékoztató 2.3. pontja részletesen tartalmazza. Törlesztőrészletek összege: A havi törlesztőrészlet tartalmazza a tőketörlesztésre, kamatfizetésre és minden egyéb havonta fizetendő díj, jutalék és költség megfizetésére szolgáló összeget. Törlesztés gyakorisága: havonta | L62: 7 | M62: 89.25
L63: 0.7 | M63: 8.925
A64: 2.10 a fedezetül szolgáló ingatlan értékelése: | L64: 1 | M64: 12.75
A65: Minden esetben kötelező, amelyet – minősített fogyasztóbarát lakáshitel esetén amennyiben a befogadást megelőzően nem áll rendelkezésre 25/1997.(VIII.1.). PM rendeletnek maradéktalanul megfelelő értékbecslés - a K&H Bank Zrt. által kijelölt értékbecslő cég végez el. Az értékbecslés díja a mindenkor érvényes lakossági hitelhirdetményben található. | L65: 3 | M65: 38.25
L66: 0.7 | M66: 8.925
A67: 2.11 hitelfelvételhez kapcsolódó szolgáltatások: | L67: 1 | M67: 12.75
A68: • Törlesztőrészletek megfizetésének biztosítására K&H Bank Zrt-nél vezetett bankszámla, vagy Hiteltörlesztő számla megléte. • Vagyonbiztosítás megléte a fedezetül felajánlott ingatlanra vonatkozóan. A vagyonbiztosítás megköthető a K&H Biztosító Zrt-nél, illetve bármely más biztosító társaságnál, amennyiben a biztosítás azzal egyenértékű. • Adott esetben előírható, hogy a hitelfelvevő rendelkezzen a hitelszerződéshez kapcsolódóan a K&H Bank Zrt. által közvetített életbiztosítással, vagy legalább ezzel egyenértékű életbiztosítással. • Amennyiben a hitelfelvevő(k) a hiteligényléskor K&H jelzáloghitel törlesztési és hitelfedezeti biztosítást igényelt(ek), vagy a K&H Bank Zrt. a hitelfelvétel feltételeként előírja az ilyen típusú biztosítást, akkor ennek vagy legalább ezzel egyenértékű biztosításnak a megléte illetve fenntartása. | L68: 8 | M68: 102
L69: 0.7 | M69: 8.925
A70: 2.12 hitelszerződés be nem tartásának lehetséges következményei: | L70: 1 | M70: 12.75
A71: A K&H Bank Zrt. a Kölcsönszerződést azonnali hatállyal jogosult felmondani, amennyiben a lakossági hitelekre vonatkozó ÁSZF-ben megtalálható Súlyos Szerződésszegési Események bekövetkeznek (pl. nemteljesítés, fizetési késedelem, fedezet elvonás, biztosítéki szerződésszegés). A felmondás hatályosulásával a teljes tartozás lejárttá és közvetlen végrehajtás, vagy egyéb törvényes úton egyösszegben követelhetővé válik, mely esetben az adott értéknapon nyilvántartott lejárt tartozásra a Bank jogosult késedelmi kamatot felszámítani. A központi hitelinformációs rendszerről szóló 2011. évi CXXII. törvényben meghatározott esetekben a fogyasztó felkerül a KHR-be. A biztosítékul felajánlott ingatlan/ok végrehajtás alá kerülhet. A Bank jogosult a követelést harmadik személy részére engedményezni. | L71: 7 | M71: 89.25
L72: 0.7 | M72: 8.925
A73: 2.13 A lakáshitelek törlesztéséhez kapcsolódó adókedvezmény és egyéb állami támogatás a jelenleg hatályos jogszabályok alapján vehető igénybe: | L73: 2 | M73: 25.5
A74: A K&H Bank a 134/2009. Korm. rendelet és 341/2011. Korm.rendelet alapján nyújtható Kamattámogatott hitelt nem értékesíti. A K&H Bank a 16/2016. és a 17/2016. Korm. rendeletek alapján nyújtható Kamattámogatott hitelt értékesíti. Bővebb információ az igényelhető állami támogatásokról elérhető a bank honlapján és fiókhálózatában. | L74: 4 | M74: 51
L75: 0.7 | M75: 8.925
A76: 2.14 hitelbírálat időtartama: | L76: 1 | M76: 12.75
A77: Az értékbecslés rendelkezésre állásától illetve előrehozott értékbecslés esetén a befogadás napjától számított 15 munkanap. Jelen tájékoztató a 3/2016 NGM Rendelet 1. számú melléklete alapján készült. A Bank a fogyasztóknak nyújtott hitelről szóló 2009. évi CLXII. törvény 5., 7., 12. §-a szerinti dokumentációt/ felvilágosítást, a részletes igényfelmérést követően, a jogszabályokban meghatározott időrendi sorrendben, részletezettségben és formában nyújtja/adja át. | L77: 11 | M77: 140.25
A78: =CONCATENATE("Kelt: …………………………………...……… , ",TEXT(TODAY(),"éééé.hhhh.nn")) -> Kelt: …………………………………...……… , 2021.július.09 | L78: 1 | M78: 12.75
B79: ………………………………. | F79: =IF(Ügyféladatok!$F$50>1,"……………………………….","") -> ………………………………. | L79: 3 | M79: 38.25
B80: =HLOOKUP(1,Ügyféladatok!$B$51:$E$57,4,FALSE) ->  | F80: =IF(Ügyféladatok!$F$50>1,HLOOKUP(2,Ügyféladatok!$B$51:$E$57,4,FALSE),"") ->  | L80: 1 | M80: 12.75
L81: 1 | M81: 12.75
B82: =IF(Ügyféladatok!$F$50>2,"……………………………….","") ->  | F82: =IF(Ügyféladatok!$F$50>3,"……………………………….","") ->  | L82: =IF(AND(Ügyféladatok!$D$2="nincs",Ügyféladatok!$E$2="nincs"),0,3) -> 0 | M82: 0
B83: =IF(Ügyféladatok!$F$50>2,HLOOKUP(3,Ügyféladatok!$B$51:$E$57,4,FALSE),"") ->  | F83: =IF(Ügyféladatok!$F$50>3,HLOOKUP(4,Ügyféladatok!$B$51:$E$57,4,FALSE),"") ->  | L83: =IF(AND(Ügyféladatok!$D$2="nincs",Ügyféladatok!$E$2="nincs"),0,1) -> 0 | M83: 0

Sheet Ind-Sz-MFL (hidden)
P1: sormagasság | Q1: 12.75 | V1: =V22 -> 
A2: II. Személyes tájékoztatás a jelzáloghitelről | P2: 3 | Q2: =P2*$Q$1 -> 38.25 | S2: =DAY(TODAY()) -> 9 | T2: 1 | U2: -én
A3: Bevezető szöveg | P3: 1 | Q3: =P3*$Q$1 -> 12.75 | T3: =T2+1 -> 2 | U3: -án
A4: =CONCATENATE("Ez a dokumentum ",TEXT(TODAY(),"éééé.hh.nn"),VLOOKUP(S2,T2:U32,2,FALSE)," ",Ügyféladatok!B4," részére készült.") -> Ez a dokumentum 2021.07.09-én részére készült. | P4: 1 | Q4: =P4*$Q$1 -> 12.75 | T4: =T3+1 -> 3 | U4: -án
A5: Ez a dokumentum az Ön által ezidáig megadott adatok és a jelenlegi pénzügyi piaci feltételek alapján készült. | P5: 1 | Q5: =P5*$Q$1 -> 12.75 | T5: 4 | U5: -én
A6: =CONCATENATE("Az alábbi tájékoztatás a kamat és egyéb költségek kivételével ",TEXT(TODAY()+30,"éééé.hh.nn"),"-ig érvényes. Ezt követően a piaci feltételek függvényében, a Bank mindenkor hatályos hirdetményében foglalt feltételekkel változhat.") -> Az alábbi tájékoztatás a kamat és egyéb költségek kivételével 2021.08.08-ig érvényes. Ezt követően a piaci feltételek függvényében, a Bank mindenkor hatályos hirdetményében foglalt feltételekkel változhat. | P6: 2 | Q6: =P6*$Q$1 -> 25.5 | T6: 5 | U6: -én
A7: Ez a dokumentum nem kötelezi a K&H Bank Zrt-t arra, hogy hitelt nyújtson Önnek. | P7: 2 | Q7: 25.5 | T7: =T6+1 -> 6 | U7: -án
A8: 1. Hitelező: A hitelező neve (cégneve): K&H Bank Zrt Telefonszám: (06 1/20/30/70) 335 3355 Levelezési címe: 1095 Budapest, Lechner Ödön fasor 9. Internet címe: www.kh.hu A hitelező hiteltanácsadási tevékenységet nem végez. | P8: 7 | Q8: 89.25 | T8: =T7+1 -> 7 | U8: -én
A9: 2. Hitelközvetítő: | P9: 1 | Q9: 12.75 | T9: =T8+1 -> 8 | U9: -án
A10: =CONCATENATE("Hitelközvetítő neve (cégneve): ",'Kezdő oldal'!B1) -> Hitelközvetítő neve (cégneve): | P10: 1 | Q10: 12.75 | T10: =T9+1 -> 9 | U10: -én
A11: =CONCATENATE("Telefonszám: ",'Kezdő oldal'!B4) -> Telefonszám: | P11: 1 | Q11: 12.75 | T11: =T10+1 -> 10 | U11: -én
A12: =CONCATENATE("Levelezési címe: ",'Kezdő oldal'!B2) -> Levelezési címe: | P12: 1 | Q12: 12.75 | T12: 11 | U12: -én
A13: =CONCATENATE("Díjazás: ",IF(AND('Kezdő oldal'!B6='Kezdő oldal'!Q3,OR('Kezdő oldal'!F6="",'Kezdő oldal'!F7="")),L30,IF('Kezdő oldal'!B6='Kezdő oldal'!Q3,'Kezdő oldal'!H7,IF('Kezdő oldal'!B6='Kezdő oldal'!Q4,'Kezdő oldal'!A11,L30)))) -> Díjazás: | P13: 6 | Q13: 76.5 | T13: 12 | U13: -én | V13: Nincs kiválasztva a díjazás megjelenítésének formája vagy nincs kitöltve a jutalékszint
A14: A Hitelközvetítő a Hitelező megbízásából hiteltanácsadási tevékenységet nem végez. | P14: 2 | Q14: 25.5 | T14: 13 | U14: -án | V14: Díjazás: Nincs kiválasztva a díjazás megjelenítésének formája vagy nincs kitöltve a jutalékszint
A15: 3. A hitel fő jellemzői | P15: 1 | Q15: 12.75 | T15: 14 | U15: -én
A16: =CONCATENATE("A hitel összege és pénzneme: ",TEXT(ROUND(Hiteladatok!B15,0),"# ##")," Ft") -> A hitel összege és pénzneme: Ft | P16: 1 | Q16: 12.75 | T16: 15 | U16: -én
A17: =CONCATENATE("A futamidő: ",Hiteladatok!B16," hónap") -> A futamidő: 240 hónap | P17: 1 | Q17: 12.75 | T17: 16 | U17: -án | V17: MFL | W17: 9 | X17: K&H Minősített Fogyasztóbarát lakáshitelt használt vagy új, már használatbavételi engedéllyel vagy hatósági bizonyítvánnyal rendelkező lakó- vagy üdülő, hétvégi ház, apartman típusú ingatlan vásárlásra, illetve igazoltan lakáscélú hitelek refinanszírozására nyújtjuk. K&H Minősített Fogyasztóbarát Lakáshitel esetén a fedezetül szolgáló ingatlan vonatkozásában az ingatlan-nyilvántartásba önálló zálogjog, valamint ennek biztosítására elidegenítési és terhelési tilalom kerül bejegyzésre a K&H Bank Zrt., mint Zálogjogosult javára. A hitel törlesztése során a tőketartozást a Bank havonta a K&H Banknál vezetett K&H forint lakossági bankszámláról/Hiteltörlesztő számláról szedi be a kamattal együtt. Annuitásos törlesztésű hitel, mely esetén az adós minden kamatperiódusban azonos összegű törlesztő részletet fizet, folyamatosan csökkenő kamat-, és növekvő tőketartalommal. A hitel felvétele nem függ harmadik fél által vállalt kezességtől.
A18: A hitel típusa: | P18: 1 | Q18: 12.75 | T18: 17 | U18: -én | V18: üzleti | W18: 8 | X18: K&H üzleti feltételű lakáshitelt lakó- vagy üdülő ingatlan vásárlásra, építésre, bővítésre, korszerűsítésre, felújításra, illetve lakáscélú hitelek refinanszírozására nyújtjuk. K&H üzleti feltételű lakáshitel esetén a fedezetül szolgáló ingatlan vonatkozásában az ingatlan-nyilvántartásba önálló zálogjog, valamint ennek biztosítására elidegenítési és terhelési tilalom kerül bejegyzésre a K&H Bank Zrt., mint Zálogjogosult javára. A hitel törlesztése során a tőketartozást a Bank havonta a K&H Banknál vezetett K&H forint lakossági bankszámláról/Hiteltörlesztő számláról szedi be a kamattal együtt. Annuitásos törlesztésű hitel, mely esetén az adós minden kamatperiódusban azonos összegű törlesztő részletet fizet, folyamatosan csökkenő kamat-, és növekvő tőketartalommal. A hitel felvétele nem függ harmadik fél által vállalt kezességtől. | Y18: A fogyasztóknak nyújtott hitelről szóló 2009. évi CLXII. törvény (továbbiakban Fhtv.) 21/C. § alapján Önnek lehetősége van az Ön számára idegen pénznemben fennálló tartozása átváltására egyoldalú jognyilatkozattal. A tartozás idegen pénznemre történő átváltása nem minősül szerződésmódosításnak. Az idegen pénznemre történő átváltás részletes szabályait, devizanemre vonatkozó Fhtv. 21/C.§ (4) bekezdésén alapuló korlátozását, az átváltás eredményeképp a kölcsön kamatának Fhtv. 21/D.§-a szerinti változására vonatkozó rendelkezéseket a mindenkor hatályos vonatkozó Hirdetmény 8. számú függeléke tartalmazza.
A19: =VLOOKUP(Hiteladatok!O16,'Ind-Sz-MFL'!V17:X18,3,FALSE) ->  | P19: =VLOOKUP(Hiteladatok!O16,V17:W18,2,FALSE) ->  | T19: 18 | U19: -án
A20: =VLOOKUP(Hiteladatok!O16,'Ind-Sz-MFL'!V17:Y18,4,FALSE) ->  | P20: =IF(Hiteladatok!O16='Ind-Sz-MFL'!V18,6,0) ->  | T20: 19 | U20: -én
A21: Az alkalmazandó kamatláb típusa: | P21: 1 | Q21: 12.75 | T21: 20 | U21: -án | V21: kamatperiódus típusa
A22: Kölcsön referencia kamatlába: a kamatperiódus kezdetét megelőző hónap utolsó munkanapja előtt 2 nappal érvényes 12 havi BUBOR | O22: rövid | P22: =IF($V$22=1,2,0) ->  | T22: 21 | U22: -én | V22: =IF(AND(Hiteladatok!$O$16=$V$18,Hiteladatok!$B$17=Hiteladatok!$R$23),1,IF(OR(Hiteladatok!$B$17=Hiteladatok!$R$24,Hiteladatok!$B$17=Hiteladatok!$R$25),2,3)) -> 
A23: =AA23 -> A Bank tájékoztatja az Adóst, hogy az irányadó referenciakamat mértéke 2021.7. hónapra vonatkozóan 1,34%. | O23: rövid | P23: =IF($V$22=1,1,0) ->  | T23: 22 | U23: -én | V23: A Bank tájékoztatja az Adóst, hogy az irányadó referenciakamat mértéke | W23: =CONCATENATE(YEAR(TODAY()),".",MONTH(TODAY())) -> 2021.7 | X23: . hónapra vonatkozóan | Y23: =kondíciók!B5*100 -> 1.34 | Z23: %. | AA23: =CONCATENATE(V23,W23,X23,Y23,Z23) -> A Bank tájékoztatja az Adóst, hogy az irányadó referenciakamat mértéke 2021.7. hónapra vonatkozóan 1,34%.
A24: Kölcsön referencia kamatlábának mindenkori aktuális mértéke megtekinthető a Bank honlapján (www.kh.hu). | O24: rövid | P24: =IF($V$22=1,1.5,0) ->  | T24: 23 | U24: -án
A25: Kölcsön ügyleti kamata: változó, mértéke évi: Kölcsön referencia kamatlába + fix kamatfelár, amely a futamidő alatt nem változik. | O25: rövid | P25: =IF($V$22=1,2,0) ->  | T25: 24 | U25: -én
A26: A Kölcsön ügyleti kamata a 12 havi BUBOR mértékét legfeljebb az aktuális Hirdetményben meghatározott eltéréssel haladja meg. | O26: rövid | P26: =IF($V$22=1,2,0) ->  | T26: 25 | U26: -én
A27: A kölcsön ügyleti kamata: kamatperióduson belül rögzített. Fix kamatozású hitelek esetén a hitelező a hitelkamatot legfeljebb az MNB honlapján közzétett kamatváltoztatási mutató alkalmazásával számított mértékig módosíthatja. | O27: hosszú | P27: =IF($V$22=2,2,0) ->  | T27: 26 | U27: -án
A28: Az alkalmazott kamatváltoztatási mutató: | O28: hosszú | P28: =IF($V$22=2,1,0) ->  | T28: 27 | U28: -én
A29: =CONCATENATE(Hiteladatok!B17,"es kamatperiódus esetén: ",VLOOKUP(Hiteladatok!B17,Hiteladatok!R23:V28,5,FALSE)) -> 10 éves kamatperiódus esetén: H3K10 | O29: hosszú | P29: =IF($V$22=2,1,0) ->  | T29: 28 | U29: -án
A30: A mutató a 3 havi átlagos ÁKK referenciahozam különbsége két egymást követő kamatperiódus között. A magyar állam kockázati felára, mely korrelál a Magyarországon tevékenykedő pénzintézetek forrásszerzési költségével. Képletben: H3K = ákkt+1 - ákkt, ahol t: a kamatperiódust jelöli, mely maximum 6 lehet (5 darab kamatváltoztatás). Egészen pontosan a kamatperiódus fordulónapja előtti 120. nap hónapját megelőző 3 hónapban az ÁKK referenciakamat 3-havi számtani átlaga. | O30: hosszú | P30: =IF($V$22=2,5.5,0) ->  | T30: 29 | U30: -én
A31: ákk: Az Államadósság Kezelő Központ Zrt. (ÁKK) által havi rendszerességgel közzétett, az elsődleges forgalmazók árjegyzési kötelezettsége alapján 5 éves névleges futamidejű államkötvényre vonatkozóan kereskedési naponként számított és közzétett referenciahozamok értéke. | O31: hosszú | P31: =IF(AND($V$22=2,Hiteladatok!B17=Hiteladatok!R24),3,0) ->  | T31: 30 | U31: -án
A32: ákk: Az Államadósság Kezelő Központ Zrt. (ÁKK) által havi rendszerességgel közzétett, az elsődleges forgalmazók árjegyzési kötelezettsége alapján 10 éves névleges futamidejű államkötvényre vonatkozóan kereskedési naponként számított és közzétett referenciahozamok értéke. | O32: hosszú | P32: =IF(AND($V$22=2,Hiteladatok!B17=Hiteladatok!R25),3,0) ->  | T32: 31 | U32: -én
A33: =CONCATENATE("További részletek az MNB honlapján: https://www.mnb.hu/penzugyi-stabilitas/fair-bank ",IF(Hiteladatok!O16='Ind-Sz-MFL'!V17,"és http://www.minositetthitel.hu","")) ->  | O33: hosszú | P33: =IF($V$22=2,2,0) -> 
A34: Az ügyleti kamat a következő kamatperiódus vonatkozásában a szerződésben rögzített kamatváltoztatási mutató alapján, az irányadó szerződési feltételeknek megfelelően, a mindenkori hatályos Hirdetmény szerint változhat, melyről a Bank írásban tájékoztatja Adóst. | O34: hosszú | P34: =IF($V$22=2,4,0) -> 
A35: A kölcsön ügyleti kamata: a Kölcsön teljes futamideje alatt rögzített, | H35: ='Új PD'!D14 ->  | O35: fix | P35: =IF($V$22=3,2,0) -> 
A36: =CONCATENATE("Alkalmazott kamatváltoztatási mutató: ",VLOOKUP(Hiteladatok!B17,Hiteladatok!R23:V28,5,FALSE)) -> Alkalmazott kamatváltoztatási mutató: H3K10 | O36: fix | P36: =IF(AND($V$22=3,Hiteladatok!$O$16='Ind-Sz-MFL'!$V$17),1,0) -> 
A37: A fix kamatozású (10 éves futamidővel) konstrukció esetén a kamatváltoztatási mutató és annak kalkulációjára vonatkozó képlete kizárólag arra tekintettel kerül feltüntetésre, mert a kölcsönhöz tartozó maximális kamatszint megállapításához kerül felhasználásra, viszont a kölcsön kamata fix, az a futamidő alatt állandó (kivéve a kamatkedvezmények hirdetményben meghatározott esetekben és módon történő megvonását). | O37: fix | P37: =IF(AND(Hiteladatok!$B$16=120,$V$22=3,Hiteladatok!$O$16='Ind-Sz-MFL'!$V$17,Hiteladatok!$V$29=Hiteladatok!$V$26),4,0) -> 
A38: A fix kamatozású (15 éves futamidővel) konstrukció esetén a kamatváltoztatási mutató és annak kalkulációjára vonatkozó képlete kizárólag arra tekintettel kerül feltüntetésre, mert a kölcsönhöz tartozó maximális kamatszint megállapításához kerül felhasználásra, viszont a kölcsön kamata fix, az a futamidő alatt állandó (kivéve a kamatkedvezmények hirdetményben meghatározott esetekben és módon történő megvonását). | O38: fix | P38: =IF(AND(Hiteladatok!$B$16=180,$V$22=3,Hiteladatok!$O$16='Ind-Sz-MFL'!$V$17,Hiteladatok!$V$29=Hiteladatok!$V$27),4,0) -> 
A39: A fix kamatozású (20 éves futamidővel) konstrukció esetén a kamatváltoztatási mutató és annak kalkulációjára vonatkozó képlete kizárólag arra tekintettel kerül feltüntetésre, mert a kölcsönhöz tartozó maximális kamatszint megállapításához kerül felhasználásra, viszont a kölcsön kamata fix, az a futamidő alatt állandó (kivéve a kamatkedvezmények hirdetményben meghatározott esetekben és módon történő megvonását). | O39: fix | P39: =IF(AND(Hiteladatok!$B$16=240,$V$22=3,Hiteladatok!$O$16='Ind-Sz-MFL'!$V$17,Hiteladatok!$V$29=Hiteladatok!$V$28),4,0) -> 
A40: A mutató a 3 havi átlagos ÁKK referenciahozam különbsége két egymást követő kamatperiódus között. A magyar állam kockázati felára, mely korrelál a Magyarországon tevékenykedő pénzintézetek forrásszerzési költségével. Képletben: H3K = ákkt+1 - ákkt, ahol t: a kamatperiódust jelöli, mely maximum 6 lehet (5 darab kamatváltoztatás). Egészen pontosan a kamatperiódus fordulónapja előtti 120. nap hónapját megelőző 3 hónapban az ÁKK referenciakamat 3-havi számtani átlaga. | O40: fix | P40: =IF(AND($V$22=3,Hiteladatok!$O$16='Ind-Sz-MFL'!$V$17),5.5,0) -> 
A41: ákk: Az Államadósság Kezelő Központ Zrt. (ÁKK) által havi rendszerességgel közzétett, az elsődleges forgalmazók árjegyzési kötelezettsége alapján 10 éves névleges futamidejű államkötvényre vonatkozóan kereskedési naponként számított és közzétett referenciahozamok értéke. | O41: fix | P41: =IF(AND(Hiteladatok!$B$16=120,$V$22=3,Hiteladatok!$O$16='Ind-Sz-MFL'!$V$17,Hiteladatok!$V$29=Hiteladatok!$V$26),3,0) -> 
A42: ákk: Az Államadósság Kezelő Központ Zrt. (ÁKK) által havi rendszerességgel közzétett, az elsődleges forgalmazók árjegyzési kötelezettsége alapján 15 éves névleges futamidejű államkötvényre vonatkozóan kereskedési naponként számított és közzétett referenciahozamok értéke. | O42: fix | P42: =IF(AND(Hiteladatok!$B$16=180,$V$22=3,Hiteladatok!$O$16='Ind-Sz-MFL'!$V$17,Hiteladatok!$V$29=Hiteladatok!$V$27),3,0) -> 
A43: ákk: Az Államadósság Kezelő Központ Zrt. (ÁKK) által havi rendszerességgel közzétett, az elsődleges forgalmazók árjegyzési kötelezettsége alapján 15 éves névleges futamidejű államkötvényre vonatkozóan kereskedési naponként számított és közzétett referenciahozamok értéke. | O43: fix | P43: =IF(AND(Hiteladatok!$B$16=240,$V$22=3,Hiteladatok!$O$16='Ind-Sz-MFL'!$V$17,Hiteladatok!$V$29=Hiteladatok!$V$28),3,0) -> 
A44: További részletek az MNB honlapján: https://www.mnb.hu/penzugyi-stabilitas/fair-bank és http://www.minositetthitel.hu | O44: fix | P44: =IF(AND($V$22=3,Hiteladatok!$O$16='Ind-Sz-MFL'!$V$17),2,0) ->  | T44: 1 év | U44: 12 | V44: Tizenkettő (12)
A45: Kamatperiódus: | O45: r v h | P45: =IF($V$22<>3,1,0) ->  | T45: 5 év | U45: 60 | V45: Hatvan (60)
A46: =IF($V$22<>3,W47,0) ->  | O46: r v h | P46: =IF($V$22<>3,7,0) ->  | T46: 10 év | U46: 120 | V46: Százhúsz (120)
A47: Fix kamatozás: | O47: fix | P47: =IF($V$22=3,1,0) ->  | R47: Kamatperiódus: | S47: =VLOOKUP(Hiteladatok!B17,'Ind-Sz-MFL'!T44:V46,3,FALSE) -> Százhúsz (120) | T47: hónap kivéve az első kamatperiódust, amely a Folyósítás Napjától a | U47: =VLOOKUP(Hiteladatok!B17,'Ind-Sz-MFL'!T44:V46,2,FALSE) -> 120 | V47: . esedékességig tart. A Kamatperiódus a Kölcsön ügyleti kamatára vonatkozó azon időszak, amely alatt az ügyleti kamat mértéke állandó. Kivételt képez ez alól, ha az Adós elveszíti vagy visszanyeri valamely kamatkedvezményre való jogosultságát, amely következtében az ügyleti kamat a jogosultság megszűnését, illetőleg visszanyerését követő esedékességtől módosulhat. A Kamatperiódus megváltoztatása a mindenkori hatályos Hirdetményben rögzített határidők és feltételek teljesülése mellett, az Adós által benyújtott módosítási igény alapján lehetséges. | W47: =CONCATENATE(S47,T47,U47,V47) -> Százhúsz (120) hónap kivéve az első kamatperiódust, amely a Folyósítás Napjától a 120. esedékességig tart. A Kamatperiódus a Kölcsön ügyleti kamatára vonatkozó azon időszak, amely alatt az ügyleti kamat mértéke állandó. Kivételt képez ez alól, ha az Adós elveszíti vagy visszanyeri valamely kamatkedvezményre való jogosultságát, amely következtében az ügyleti kamat a jogosultság megszűnését, illetőleg visszanyerését követő esedékességtől módosulhat. A Kamatperiódus megváltoztatása a mindenkori hatályos Hirdetményben rögzített határidők és feltételek teljesülése mellett, az Adós által benyújtott módosítási igény alapján lehetséges.
A48: A kölcsön ügyleti kamata a kölcsön futamideje alatt állandó, az a futamidő alatt nem változtatható. Kivételt képez ez alól, ha az Adós elveszíti vagy visszanyeri valamely kamatkedvezményre való jogosultságát, amely következtében az ügyleti kamat a jogosultság megszűnését, illetőleg visszanyerését követő esedékességtől módosulhat. | O48: fix | P48: =IF($V$22=3,4,0) -> 
A49: A Bank a Szerződésben meghatározott kamatot, díjat és költséget az ÁSZF-ben meghatározottak szerint jogosult módosítani. Ha az Adós a módosítás ellen, annak hatályba lépéséig írásban nem tiltakozik, azt általa elfogadottnak kell tekinteni. A kamat, díj vagy költség Adós számára kedvezőtlen módosítása esetén - referencia kamatlábhoz kötött kamat esetén a referencia-kamatláb változásából eredő kamatváltozás kivételével – az Adós a módosítás hatálybalépése előtt jogosult a Szerződés díjmentes felmondására. | P49: 7 | Q49: 89.25
A50: =CONCATENATE("Az Ön által fizetendő teljes összeg: ",TEXT(ROUND(MFL!I4,0),"# ##")," forint") ->  | P50: 1 | Q50: 12.75
A51: =CONCATENATE("Ez azt jelenti, hogy a ",TEXT(ROUND(Hiteladatok!B15,0),"# ##")," forintért, amelyet hitelként felvesz ",TEXT(ROUND(MFL!I4,0),"# ##")," forint összeget kell visszafizetnie.") ->  | P51: 1 | Q51: 12.75
A52: =CONCATENATE("Ennek a tájékoztatásnak az elkészítéséhez az ingatlan értékét ",TEXT(ROUND(Hiteladatok!I2,0),"# ##")," forintnak tekintettük.") -> Ennek a tájékoztatásnak az elkészítéséhez az ingatlan értékét forintnak tekintettük. | P52: 1 | Q52: 12.75
A53: =CONCATENATE("A maximálisan igénybe vehető hitelösszeg az ingatlan értékéhez viszonyítva ",TEXT(ROUND(Hiteladatok!I2*0.8,0),"# ##")," Ft.") -> A maximálisan igénybe vehető hitelösszeg az ingatlan értékéhez viszonyítva Ft. | P53: 1 | Q53: 12.75
A54: =CONCATENATE("Az Ön által megadott ingatlanfedezet címe: helyrajzi szám: ",Hiteladatok!I5, ", irányítószám: ",Hiteladatok!I4) -> Az Ön által megadott ingatlanfedezet címe: helyrajzi szám: , irányítószám: | P54: 2 | Q54: 25.5
A55: 4. Kamat és egyéb költségek: | P55: 1 | Q55: 12.75
A56: A teljes hiteldíj mutató (THM) a hitel teljes éves díját mutatja meg százalékban kifejezve. A THM a különböző ajánlatok összehasonlítását szolgálja. | P56: 2 | Q56: 25.5
A57: =IF(ROUND(MFL!O6,1)<>0,"A THM értékének megállapításához még le kell futtatni a kalkulációt!",CONCATENATE("Az ön hitelére érvényes THM: ",TEXT(ROUND(100*MFL!O1,1),"# ##,0"),"%")) ->  | P57: 1 | Q57: 12.75
A58: A THM az alábbiakat tartalmazza: | P58: 1 | Q58: 12.75
A59: =IF(V22=1,CONCATENATE("Kamatláb: ",TEXT(ROUND(100*kondíciók!B5,2),"# ##,00"),"% +",TEXT(ROUND(100*('Új PD'!D14-kondíciók!B5),2),"# ##,00"),"% = ",TEXT(ROUND(100*'Új PD'!D14,2),"# ##,00"),"%"),CONCATENATE("Kamatláb: ",TEXT(ROUND(100*'Új PD'!D14,2),"# ##,00"),"%")) ->  | P59: 1 | Q59: 12.75
A60: A feltűntetett kamatláb az Ön által igényelt, alábbi kamatkedvezményekkel csökkentett érték: | P60: =IF(AND('Új PD'!O8=0,'Új PD'!O9=0),0,1) -> 
A61: =CONCATENATE(" • Átutalási kamatkedvezmény miatt 0",TEXT(ROUND(-100*'Új PD'!O3,2),"# ##,00"),"%") -> • Átutalási kamatkedvezmény miatt 0,50% | P61: =IF('Új PD'!O3=0,0,1) -> 1 | Q61: 12.75
A62: =CONCATENATE(" • K&H lakásbiztosítási kamatkedvezmény miatt 0",TEXT(ROUND(-100*'Új PD'!O4,2),"# ##,00"),"%") -> • K&H lakásbiztosítási kamatkedvezmény miatt 0,10% | P62: =IF('Új PD'!O4=0,0,1) -> 1 | Q62: 12.75
A63: =CONCATENATE(" • K&H jelzáloghitel törlesztési és hitelfedezeti biztosítási kamatkedvezmény miatt 0",TEXT(ROUND(-100*'Új PD'!O5,2),"# ##,00"),"%") -> • K&H jelzáloghitel törlesztési és hitelfedezeti biztosítási kamatkedvezmény miatt 0,00% | P63: =IF('Új PD'!O5=0,0,1) -> 0 | Q63: 0
A64: =CONCATENATE(" • K&H életbiztosítási kamatkedvezmény miatt 0",TEXT(ROUND(-100*'Új PD'!O6,2),"# ##,00"),"%") -> • K&H életbiztosítási kamatkedvezmény miatt 0,00% | P64: =IF('Új PD'!O6=0,0,1) -> 0 | Q64: 0
A65: =CONCATENATE(" • Prémium banki kamatkedvezmény miatt 0",TEXT(ROUND(-100*'Új PD'!O7,2),"# ##,00"),"%") -> • Prémium banki kamatkedvezmény miatt 0,00% | P65: =IF('Új PD'!O7=0,0,1) -> 0 | Q65: 0 | S65: Amennyiben Adóst több jogcímen is kamatkedvezmény illeti meg, a kamatkedvezmények összeadódnak, azonban a kamatfelár nem lehet alacsonyabb, mint
A66: =CONCATENATE(" • Egyedi kamatkedvezmény miatt 0",TEXT(ROUND(-100*'Új PD'!O9,2),"# ##,00"),"% (a kedvezmény – ha nem történik szerződésmódosítás – a teljes futamidőre jár)") ->  | P66: =IF('Új PD'!O9=0,0,1) ->  | S66: Amennyiben Adóst több jogcímen is kamatkedvezmény illeti meg, a kamatkedvezmények összeadódnak, azonban a kamat nem lehet alacsonyabb, mint
A67: =CONCATENATE("A kamatkedvezményekkel csökkentett ügyleti kamat mértéke nem lehet alacsonyabb, mint 12 havi BUBOR + ",kondíciók!B23*100,"% a 12 hónapos kamatperiódus esetén, illetve 5 éves kamatperiódusnál ",kondíciók!D23*100,"%, 10 éves kamatperiódusnál ",kondíciók!E23*100,"%, 10 éves fix kamatozású hitel esetén: ",kondíciók!F23*100,"%, 15 éves fix kamatozású hitel esetén: ",kondíciók!G23*100,"%, 20 éves fix kamatozású hitel esetén: ",kondíciók!H23*100,"%.") -> A kamatkedvezményekkel csökkentett ügyleti kamat mértéke nem lehet alacsonyabb, mint 12 havi BUBOR + 2,2% a 12 hónapos kamatperiódus esetén, illetve 5 éves kamatperiódusnál 3,69%, 10 éves kamatperiódusnál 4,29%, 10 éves fix kamatozású hitel esetén: 4,29%, 15 éves fix kamatozású hitel esetén: 4,59%, 20 éves fix kamatozású hitel esetén: 4,99%. | P67: 3 | Q67: 38.25 | S67: az aktuális Hirdetményben meghatározott százalékos érték.
A68: =CONCATENATE(IF(V22=1,S65,S66),IF(P66=1,S68,S67)) ->  | P68: =P66+3 ->  | S68: az egyedi kamatkedvezmény által kialakult és jelen Ajánlatban megjelölt ügyleti kamat, amennyiben az alacsonyabb az aktuális Hirdetményben meghatározott százalékos értéknél.
A69: =CONCATENATE("Az Ön kérelme minősítése: ",'Új PD'!C13) ->  | P69: 1 | Q69: 12.75
A70: Jelen ajánlatban szereplő „K” kategória az Ön által megadott adatok alapján került meghatározásra, mely a végleges minősítés során változhat. A kérelem megfelelő "K" kategóriába sorolása a K&H Bank által végzett minősítésének eredménye, mely a kamatláb mértékét határozza meg. | P70: 2 | Q70: 25.5
A71: A THM egyéb összetevői: Egyszer fizetendő költségek: | P71: 2 | Q71: 25.5
A72: =IF(Hiteladatok!O16=S73,T73,T72) ->  | P72: 1 | Q72: 12.75 | S72: üzleti | T72: =IF(Hiteladatok!B33=0,"- szerződéskötési díj: 0 forint",CONCATENATE("- szerződéskötési díj: ",TEXT(ROUND(Hiteladatok!B33,0),"# ##")," forint")) -> - szerződéskötési díj: 0 forint
A73: =IF(Hiteladatok!Y24=0,"- ingatlan értékbecslési díj: 0 forint",CONCATENATE("- ingatlan értékbecslési díj: ",TEXT(ROUND(Hiteladatok!Y24,0),"# ##")," forint")) -> - ingatlan értékbecslési díj: 0 forint | P73: 1 | Q73: 12.75 | S73: MFL | T73: =IF(Hiteladatok!B33=0,"- folyósítási díj: 0 forint",CONCATENATE("- folyósítási díj: ",TEXT(ROUND(Hiteladatok!B33,0),"# ##")," forint")) -> - folyósítási díj: 0 forint
A74: =IF(Hiteladatok!Z24=0,"- ingatlan műszaki ellenőrzési díj: 0 forint",CONCATENATE("- ingatlan műszaki ellenőrzési díj: ",TEXT(ROUND(Hiteladatok!Z24,0),"# ##"),T74)) -> - ingatlan műszaki ellenőrzési díj: 0 forint | P74: =IF(Hiteladatok!Z24=0,1,3) -> 1 | Q74: 12.75 | T74: forint. Ezen díjtétel a kölcsön ügyfélnek történő kifizetési időszaka során többszöri alkalommal is felszámításra kerülhet részkifizetést megelőzően. Ennek mértéke a kifizetésre irányuló kérelem benyújtásakor érvényes vonatkozó Hirdetmény tartalmazza.
A75: - ügyintézési díj I. (TakarNet rendszerből lekért tulajdoni lapért): 1 000 forint / lekérdezés / fedezet (felajánlott fedezetek számától függően, egy hiteligénylés során 2 lekérdezés szükséges. Tehermentesítő hitel esetén 3 db lekérdezés.) - ügyintézési díj II. (TakarNet rendszerből lekért térképmásolatért): 3 000 forint / lekérdezés / fedezet - jelzálogjog bejegyzés díja ingatlanonként: 12 600 Ft | P75: 4 | Q75: =P75*$Q$1 -> 51
A76: THM számítás részét nem képző egyszeri díj: | P76: 1 | Q76: 12.75
A77: =CONCATENATE("- közjegyzői díj: ",TEXT(ROUND('Közjegyzői-normál'!D32,0),"# ##")," forint*") -> - közjegyzői díj: 16 960 forint* | P77: 1 | Q77: 12.75
A78: * bankunk érdekkörén kívül felmerülő költség. A közjegyzői díj pontos mértéke a közjegyzői díjszabásról szóló 22/2018. (VIII.23.) IM rendelet alapján kerül a közjegyző által meghatározásra. A díj előzetes kalkulációja során a Bank a vonatkozó IM rendelet 38/A § teljesülését feltételezte. | P78: 3 | Q78: 38.25
A79: Rendszeresen fizetendő költségek: | P79: 1 | Q79: 12.75 | T79: A K&H jelzáloghitel törlesztési és hitelfedezeti biztosítás rendszeres havi díja a hitel aktuális havi törlesztőrészletének
A80: =CONCATENATE("- a fizetési számlához kapcsolódóan havonta fizetendő számlavezetési vagy számlacsomag díj: ",kondíciók!G9," forint, amely egy alap számlacsomag szerinti havidíj",IF(Hiteladatok!B27<0,".",", vagy Hiteltörlesztő számla, mely ingyenes.")) ->  | P80: 2 | Q80: 25.5 | T80: =kondíciók!I2*100 -> 6.4
A81: A fizetési számla alapdíját kivéve az ajánlat nem függ attól, hogy a kölcsönhöz kapcsolódó szolgáltatásokat a fogyasztó a K&H Bankon keresztül veszi-e igénybe. | P81: 2 | Q81: 25.5 | T81: %-a, amely a havi törlesztőrészletekkel arányosan
A82: =CONCATENATE(T79,T80,T81,T82,T83) ->  | P82: =IF('Új PD'!P26="PPI",3,0) -> 0 | Q82: 0 | T82: =TEXT(MFL!K8,"# ##") -> 
A83: Ez a THM a kamatlábra vonatkozó feltételezések alapján került kiszámításra. | P83: 1 | Q83: 12.75 | T83: Ft. Az első törlesztőrészlettel arányosan a K&H jelzáloghitel törlesztési és hitelfedezeti biztosítás első havi díjának összege is eltérhet a biztosítás fent feltüntetett havi díjától.
A84: =IF(V22=3,T85,CONCATENATE(T86,T87,T88,T89,T90)) ->  | P84: 3 | Q84: 38.25
A85: Tájékoztatjuk, hogy a bemutatott THM azzal a feltételezéssel került kiszámításra, hogy a kamatláb a szerződés teljes időtartama alatt a kezdeti időszakra rögzített szinten marad. | P85: 2 | Q85: 25.5 | T85: Mivel az Ön hitele rögzített kamatlábú hitel, így az hiteléhez tartozó kamatláb a kölcsön futamideje alatt nem változik, amennyiben a kölcsönszerződés szerinti konstrukció az Ön kérésére nem kerül módosításra.
A86: Az alábbi költségek nem ismertek a hitelező számára, és így azokat a THM nem foglalja magában: - A fedezetként bevonásra kerülő ingatlan(ok) tekintetében kötelező az ingatlanra vagyonbiztosítás kötése és annak fenntartása, valamint a felmerülő biztosítási díj megfizetése. Ennek költsége jelen tájékoztatásnál nem ismert, így a THM nem tartalmazza! Kérjük, tájékozódjon az ehhez a hitelhez kapcsolódó minden egyéb illetékről és költségről. | P86: 7 | Q86: 89.25 | T86: Mivel az Ön hitele változó kamatlábú hitel, a mindenkori THM eltérhet az előbbiekben meghatározott THM mértékétől, ha a hitel kamatlába változik. Például amennyiben a kamatláb
A87: 5. A törlesztések száma és gyakorisága | P87: 1 | Q87: 12.75 | T87: =MFL!R4*100 -> 
A88: Kamat fizetés gyakorisága: havonta | P88: 1 | Q88: 12.75 | T88: %-ra emelkedne, a THM
A89: Tőketörlesztés gyakorisága: havonta | P89: 1 | Q89: 12.75 | T89: =MFL!W4*100 -> 9.9
A90: =CONCATENATE("A törlesztőrészletek száma: ",Hiteladatok!B16," db") -> A törlesztőrészletek száma: 240 db | P90: 2 | Q90: 25.5 | T90: %-ra nőhet.
A91: 6. Az egyes törlesztőrészletek összege: | P91: 1 | Q91: 12.75
A92: Állandó (annuitásos) törlesztés esetén az egyes törlesztőrészletek összege: | P92: 1 | Q92: 12.75
A93: =CONCATENATE("Első törlesztőrészlet összege: ",TEXT(ROUND(MFL!I7,0),"# ##")," forint") ->  | P93: 1 | Q93: 12.75
A94: Az első törlesztőrészlet összege a folyósítás időpontja és az első esedékesség között eltelt napok számától függően eltérhet a további törlesztőrészletek összegétől. | P94: 2 | Q94: 25.5
A95: =CONCATENATE("További törlesztőrészletek összege: ",TEXT(ROUND(MFL!I8,0),"# ##")," forint") ->  | P95: 1 | Q95: 12.75
A96: =IF(V22=3,T96,CONCATENATE(T96,T97)) ->  | P96: =IF(V22=3,2,4) ->  | T96: Az Ön jövedelme változhat. Kérjük, gondolja át, hogy a jövedelme csökkenése esetén is képes lesz-e törleszteni a havi részleteket.
A97: =IF(V22=3,"",CONCATENATE(T98,T99,T100,T101,T102)) ->  | P97: =IF(V22=3,0,3) ->  | T97: =CONCATENATE(" Kezdeti törlesztőrészletének mértéke az első kamatperiódusban, azaz az első ",Hiteladatok!B17," időtartama alatt változatlan, azt követően pedig kamatperiódusonként a kamatperiódus fordulónapján változhat.") -> Kezdeti törlesztőrészletének mértéke az első kamatperiódusban, azaz az első 10 év időtartama alatt változatlan, azt követően pedig kamatperiódusonként a kamatperiódus fordulónapján változhat.
A98: 7. Szemléltető törlesztési táblázat: | P98: 1 | Q98: 12.75 | T98: E hitelnek a kamata változhat. Ez azt jelenti, hogy az Ön által fizetendő törlesztőrészletek összege nőhet vagy csökkenhet. Például amennyiben a kamat
A99: Ebben a táblázatban a havonta fizetendő összeg látható. A törlesztőrészletek (2. oszlop) a fizetendő kamat (4. oszlop), a fizetendő tőke (3. oszlop) és adott esetben az egyéb költségek (5. oszlop) összegéből állnak. A fennmaradó tőke (6. oszlop) az egyes törlesztőrészletek után még törlesztendő hitelösszeg. | P99: 3 | Q99: 38.25 | T99: =T87 -> 
A100: =IF(V22=3,U102,U101) ->  | P100: =IF(V22=3,3,4) ->  | T100: %-ra emelkedne, az Ön által fizetendő részlet
A101: 1. | C101: 2. | E101: 3. | G101: 4. | I101: 5. | K101: 6. | P101: 1 | Q101: 12.75 | T101: =TEXT(ROUND(MFL!S4,0),"# ##") ->  | U101: A lenti táblázat szemléltetés céljából készült, továbbá felhívjuk a figyelmet arra, hogy az ajánlott hitel kamata kamatperiódusonként változhat. Kamatperiódus fordulónapját követően, valamint amennyiben előtörleszt, a szemléltető táblázatot a módosított feltételek szerint újraszámolva a rendelkezésére bocsátja a K&H Bank Zrt.
A102: Törlesztés ütemezése | C102: Törlesztőrészlet összege | E102: Törlesztőrészleten- ként fizetendő tőke | G102: Törlesztőrészleten- ként fizetendő kamat | I102: Törlesztőrészlet- ben foglalt egyéb költségek | K102: Az egyes törlesztőrészletek után fennmaradó tőke | P102: 4 | Q102: 51 | T102: Ft-ra nőne. | U102: A lenti táblázat szemléltetés céljából készült. Amennyiben előtörleszt, a szemléltető táblázatot a módosított feltételek szerint újraszámolva a rendelkezésére bocsátja a K&H Bank Zrt.
A103: =CONCATENATE(T103,". hó") -> 1. hó | C103: =MFL!I7 ->  | E103: =C103-G103 ->  | G103: =MFL!H7 ->  | I103: =C103-E103-G103 ->  | K103: =MFL!J7 ->  | P103: 1 | Q103: 12.75 | T103: 1
A104: =CONCATENATE(T104,". hó") -> 2. hó | C104: =MFL!I8 ->  | E104: =C104-G104 ->  | G104: =MFL!H8 ->  | I104: =C104-E104-G104 ->  | K104: =MFL!J8 ->  | P104: =IF(T104>Hiteladatok!$B$16,0,1) -> 1 | Q104: 12.75 | T104: =T103+1 -> 2
A105: 3. hó | C105: =MFL!I9 ->  | E105: =C105-G105 ->  | G105: =MFL!H9 ->  | K105: =MFL!J9 ->  | P105: =IF(T105>Hiteladatok!$B$16,0,1) -> 1 | Q105: =P105*$Q$1 -> 12.75 | T105: =T104+1 -> 3
A106: 4. hó | C106: =MFL!I10 ->  | G106: =MFL!H10 ->  | K106: =MFL!J10 ->  | P106: =IF(T106>Hiteladatok!$B$16,0,1) -> 1 | Q106: 12.75 | T106: 4
A107: 5. hó | C107: =MFL!I11 ->  | G107: =MFL!H11 ->  | K107: =MFL!J11 ->  | P107: =IF(T107>Hiteladatok!$B$16,0,1) -> 1 | Q107: 12.75 | T107: 5
A108: 6. hó | C108: =MFL!I12 ->  | G108: =MFL!H12 ->  | K108: =MFL!J12 ->  | P108: =IF(T108>Hiteladatok!$B$16,0,1) -> 1 | Q108: 12.75 | T108: 6
A109: 7. hó | C109: =MFL!I13 ->  | G109: =MFL!H13 ->  | K109: =MFL!J13 ->  | P109: =IF(T109>Hiteladatok!$B$16,0,1) -> 1 | Q109: 12.75 | T109: 7
A110: 8. hó | C110: =MFL!I14 ->  | G110: =MFL!H14 ->  | K110: =MFL!J14 ->  | P110: =IF(T110>Hiteladatok!$B$16,0,1) -> 1 | Q110: 12.75 | T110: 8
A111: 9. hó | C111: =MFL!I15 ->  | G111: =MFL!H15 ->  | K111: =MFL!J15 ->  | P111: =IF(T111>Hiteladatok!$B$16,0,1) -> 1 | Q111: 12.75 | T111: 9
A112: 10. hó | C112: =MFL!I16 ->  | G112: =MFL!H16 ->  | K112: =MFL!J16 ->  | P112: =IF(T112>Hiteladatok!$B$16,0,1) -> 1 | Q112: 12.75 | T112: 10
A113: 11. hó | C113: =MFL!I17 ->  | G113: =MFL!H17 ->  | K113: =MFL!J17 ->  | P113: =IF(T113>Hiteladatok!$B$16,0,1) -> 1 | Q113: 12.75 | T113: 11
A114: 12. hó | C114: =MFL!I18 ->  | G114: =MFL!H18 ->  | K114: =MFL!J18 ->  | P114: =IF(T114>Hiteladatok!$B$16,0,1) -> 1 | Q114: 12.75 | T114: 12
A115: =CONCATENATE(T115,". év összesen:") -> 1. év összesen: | C115: =SUMIF(MFL!$Y$7:$Y$366,T115,MFL!$I$7:$I$366) ->  | E115: =C115-G115 ->  | G115: =SUMIF(MFL!$Y$7:$Y$366,T115,MFL!$H$7:$H$366) ->  | I115: =C115-E115-G115 ->  | K115: =K114 ->  | P115: 1 | Q115: 12.75 | T115: 1
A116: =CONCATENATE(T116,". év összesen:") -> 2. év összesen: | C116: =SUMIF(MFL!$Y$7:$Y$366,T116,MFL!$I$7:$I$366) ->  | G116: =SUMIF(MFL!$Y$7:$Y$366,T116,MFL!$H$7:$H$366) ->  | K116: =K115-E116 ->  | P116: =IF((T116-1)*12>=Hiteladatok!$B$16,0,1) -> 1 | Q116: 12.75 | T116: 2
A117: 3. év összesen: | C117: =SUMIF(MFL!$Y$7:$Y$366,T117,MFL!$I$7:$I$366) ->  | G117: =SUMIF(MFL!$Y$7:$Y$366,T117,MFL!$H$7:$H$366) ->  | K117: =K116-E117 ->  | P117: =IF((T117-1)*12>=Hiteladatok!$B$16,0,1) -> 1 | Q117: =P117*$Q$1 -> 12.75 | T117: 3
A118: 4. év összesen: | C118: =SUMIF(MFL!$Y$7:$Y$366,T118,MFL!$I$7:$I$366) ->  | G118: =SUMIF(MFL!$Y$7:$Y$366,T118,MFL!$H$7:$H$366) ->  | P118: =IF((T118-1)*12>=Hiteladatok!$B$16,0,1) -> 1 | Q118: 12.75 | T118: 4
A119: =CONCATENATE(T119,". év összesen:") -> 5. év összesen: | C119: =SUMIF(MFL!$Y$7:$Y$366,T119,MFL!$I$7:$I$366) ->  | G119: =SUMIF(MFL!$Y$7:$Y$366,T119,MFL!$H$7:$H$366) ->  | P119: =IF((T119-1)*12>=Hiteladatok!$B$16,0,1) -> 1 | Q119: 12.75 | T119: 5
A120: 6. év összesen: | C120: =SUMIF(MFL!$Y$7:$Y$366,T120,MFL!$I$7:$I$366) ->  | G120: =SUMIF(MFL!$Y$7:$Y$366,T120,MFL!$H$7:$H$366) ->  | P120: =IF((T120-1)*12>=Hiteladatok!$B$16,0,1) -> 1 | Q120: 12.75 | T120: 6
A121: 7. év összesen: | C121: =SUMIF(MFL!$Y$7:$Y$366,T121,MFL!$I$7:$I$366) ->  | G121: =SUMIF(MFL!$Y$7:$Y$366,T121,MFL!$H$7:$H$366) ->  | P121: =IF((T121-1)*12>=Hiteladatok!$B$16,0,1) -> 1 | Q121: 12.75 | T121: 7
A122: 8. év összesen: | C122: =SUMIF(MFL!$Y$7:$Y$366,T122,MFL!$I$7:$I$366) ->  | G122: =SUMIF(MFL!$Y$7:$Y$366,T122,MFL!$H$7:$H$366) ->  | P122: =IF((T122-1)*12>=Hiteladatok!$B$16,0,1) -> 1 | Q122: 12.75 | T122: 8
A123: 9. év összesen: | C123: =SUMIF(MFL!$Y$7:$Y$366,T123,MFL!$I$7:$I$366) ->  | G123: =SUMIF(MFL!$Y$7:$Y$366,T123,MFL!$H$7:$H$366) ->  | P123: =IF((T123-1)*12>=Hiteladatok!$B$16,0,1) -> 1 | Q123: 12.75 | T123: 9
A124: 10. év összesen: | C124: =SUMIF(MFL!$Y$7:$Y$366,T124,MFL!$I$7:$I$366) ->  | G124: =SUMIF(MFL!$Y$7:$Y$366,T124,MFL!$H$7:$H$366) ->  | P124: =IF((T124-1)*12>=Hiteladatok!$B$16,0,1) -> 1 | Q124: 12.75 | T124: 10
A125: 11. év összesen: | C125: =SUMIF(MFL!$Y$7:$Y$366,T125,MFL!$I$7:$I$366) ->  | G125: =SUMIF(MFL!$Y$7:$Y$366,T125,MFL!$H$7:$H$366) ->  | P125: =IF((T125-1)*12>=Hiteladatok!$B$16,0,1) -> 1 | Q125: 12.75 | T125: 11
A126: 12. év összesen: | C126: =SUMIF(MFL!$Y$7:$Y$366,T126,MFL!$I$7:$I$366) ->  | G126: =SUMIF(MFL!$Y$7:$Y$366,T126,MFL!$H$7:$H$366) ->  | P126: =IF((T126-1)*12>=Hiteladatok!$B$16,0,1) -> 1 | Q126: 12.75 | T126: 12
A127: 13. év összesen: | C127: =SUMIF(MFL!$Y$7:$Y$366,T127,MFL!$I$7:$I$366) ->  | G127: =SUMIF(MFL!$Y$7:$Y$366,T127,MFL!$H$7:$H$366) ->  | P127: =IF((T127-1)*12>=Hiteladatok!$B$16,0,1) -> 1 | Q127: 12.75 | T127: 13
A128: 14. év összesen: | C128: =SUMIF(MFL!$Y$7:$Y$366,T128,MFL!$I$7:$I$366) ->  | G128: =SUMIF(MFL!$Y$7:$Y$366,T128,MFL!$H$7:$H$366) ->  | P128: =IF((T128-1)*12>=Hiteladatok!$B$16,0,1) -> 1 | Q128: 12.75 | T128: 14
A129: 15. év összesen: | C129: =SUMIF(MFL!$Y$7:$Y$366,T129,MFL!$I$7:$I$366) ->  | G129: =SUMIF(MFL!$Y$7:$Y$366,T129,MFL!$H$7:$H$366) ->  | P129: =IF((T129-1)*12>=Hiteladatok!$B$16,0,1) -> 1 | Q129: 12.75 | T129: 15
A130: 16. év összesen: | C130: =SUMIF(MFL!$Y$7:$Y$366,T130,MFL!$I$7:$I$366) ->  | G130: =SUMIF(MFL!$Y$7:$Y$366,T130,MFL!$H$7:$H$366) ->  | P130: =IF((T130-1)*12>=Hiteladatok!$B$16,0,1) -> 1 | Q130: 12.75 | T130: 16
A131: 17. év összesen: | C131: =SUMIF(MFL!$Y$7:$Y$366,T131,MFL!$I$7:$I$366) ->  | G131: =SUMIF(MFL!$Y$7:$Y$366,T131,MFL!$H$7:$H$366) ->  | P131: =IF((T131-1)*12>=Hiteladatok!$B$16,0,1) -> 1 | Q131: 12.75 | T131: 17
A132: 18. év összesen: | C132: =SUMIF(MFL!$Y$7:$Y$366,T132,MFL!$I$7:$I$366) ->  | G132: =SUMIF(MFL!$Y$7:$Y$366,T132,MFL!$H$7:$H$366) ->  | P132: =IF((T132-1)*12>=Hiteladatok!$B$16,0,1) -> 1 | Q132: 12.75 | T132: 18
A133: 19. év összesen: | C133: =SUMIF(MFL!$Y$7:$Y$366,T133,MFL!$I$7:$I$366) ->  | G133: =SUMIF(MFL!$Y$7:$Y$366,T133,MFL!$H$7:$H$366) ->  | P133: =IF((T133-1)*12>=Hiteladatok!$B$16,0,1) -> 1 | Q133: 12.75 | T133: 19
A134: 20. év összesen: | C134: =SUMIF(MFL!$Y$7:$Y$366,T134,MFL!$I$7:$I$366) ->  | G134: =SUMIF(MFL!$Y$7:$Y$366,T134,MFL!$H$7:$H$366) ->  | P134: =IF((T134-1)*12>=Hiteladatok!$B$16,0,1) -> 1 | Q134: 12.75 | T134: 20
A135: 21. év összesen: | C135: =SUMIF(MFL!$Y$7:$Y$366,T135,MFL!$I$7:$I$366) -> 0 | E135: 0 | G135: =SUMIF(MFL!$Y$7:$Y$366,T135,MFL!$H$7:$H$366) -> 0 | I135: 0 | P135: =IF((T135-1)*12>=Hiteladatok!$B$16,0,1) -> 0 | Q135: 0 | T135: 21
A136: 22. év összesen: | C136: =SUMIF(MFL!$Y$7:$Y$366,T136,MFL!$I$7:$I$366) -> 0 | E136: 0 | G136: =SUMIF(MFL!$Y$7:$Y$366,T136,MFL!$H$7:$H$366) -> 0 | I136: 0 | P136: =IF((T136-1)*12>=Hiteladatok!$B$16,0,1) -> 0 | Q136: 0 | T136: 22
A137: =CONCATENATE(T137,". év összesen:") -> 23. év összesen: | C137: =SUMIF(MFL!$Y$7:$Y$366,T137,MFL!$I$7:$I$366) -> 0 | E137: 0 | G137: =SUMIF(MFL!$Y$7:$Y$366,T137,MFL!$H$7:$H$366) -> 0 | I137: 0 | P137: =IF((T137-1)*12>=Hiteladatok!$B$16,0,1) -> 0 | Q137: 0 | T137: 23
A138: 24. év összesen: | C138: =SUMIF(MFL!$Y$7:$Y$366,T138,MFL!$I$7:$I$366) -> 0 | E138: 0 | G138: =SUMIF(MFL!$Y$7:$Y$366,T138,MFL!$H$7:$H$366) -> 0 | I138: 0 | P138: =IF((T138-1)*12>=Hiteladatok!$B$16,0,1) -> 0 | Q138: 0 | T138: 24
A139: 25. év összesen: | C139: =SUMIF(MFL!$Y$7:$Y$366,T139,MFL!$I$7:$I$366) -> 0 | E139: 0 | G139: =SUMIF(MFL!$Y$7:$Y$366,T139,MFL!$H$7:$H$366) -> 0 | I139: 0 | P139: =IF((T139-1)*12>=Hiteladatok!$B$16,0,1) -> 0 | Q139: 0 | T139: 25
A140: 26. év összesen: | C140: =SUMIF(MFL!$Y$7:$Y$366,T140,MFL!$I$7:$I$366) -> 0 | E140: 0 | G140: =SUMIF(MFL!$Y$7:$Y$366,T140,MFL!$H$7:$H$366) -> 0 | I140: 0 | P140: =IF((T140-1)*12>=Hiteladatok!$B$16,0,1) -> 0 | Q140: 0 | T140: 26
A141: 27. év összesen: | C141: =SUMIF(MFL!$Y$7:$Y$366,T141,MFL!$I$7:$I$366) -> 0 | E141: 0 | G141: =SUMIF(MFL!$Y$7:$Y$366,T141,MFL!$H$7:$H$366) -> 0 | I141: 0 | P141: =IF((T141-1)*12>=Hiteladatok!$B$16,0,1) -> 0 | Q141: 0 | T141: 27
A142: 28. év összesen: | C142: =SUMIF(MFL!$Y$7:$Y$366,T142,MFL!$I$7:$I$366) -> 0 | E142: 0 | G142: =SUMIF(MFL!$Y$7:$Y$366,T142,MFL!$H$7:$H$366) -> 0 | I142: 0 | P142: =IF((T142-1)*12>=Hiteladatok!$B$16,0,1) -> 0 | Q142: 0 | T142: 28
A143: 29. év összesen: | C143: =SUMIF(MFL!$Y$7:$Y$366,T143,MFL!$I$7:$I$366) -> 0 | E143: 0 | G143: =SUMIF(MFL!$Y$7:$Y$366,T143,MFL!$H$7:$H$366) -> 0 | I143: 0 | P143: =IF((T143-1)*12>=Hiteladatok!$B$16,0,1) -> 0 | Q143: 0 | T143: 29
A144: 30. év összesen: | C144: =SUMIF(MFL!$Y$7:$Y$366,T144,MFL!$I$7:$I$366) -> 0 | E144: 0 | G144: =SUMIF(MFL!$Y$7:$Y$366,T144,MFL!$H$7:$H$366) -> 0 | I144: 0 | P144: =IF((T144-1)*12>=Hiteladatok!$B$16,0,1) -> 0 | Q144: 0 | T144: 30
A145: Mindösszesen: | C145: =SUM(C115:D144) ->  | E145: =SUM(E115:F144) ->  | G145: =SUM(G115:H144) ->  | I145: =SUM(I115:J144) ->  | K145: =K144 ->  | P145: 1 | Q145: 12.75
A146: A fenti táblázatban szereplő összegek kerekítésre kerültek, így előfordulhat eltérés azok külön-külön történő összeadása során. A megjelenített összegek tájékoztatási célt szolgálnak. A pontos havi törlesztőrészlet összegéről a Bank a jogszabályi előírásoknak megfelelően előzetesen tájékoztatja Önt. | P146: 4 | Q146: 51
A147: 8. További kötelezettségek: | P147: 1 | Q147: 12.75
A148: Önnek a következő kötelezettségeket kell teljesítenie ahhoz, hogy az ebben a dokumentumban ismertetett feltételekkel juthasson hitelhez: A hitel folyósítási feltétele, hogy Ön vagy a hitelügylet más kötelezettje rendelkezzen élő, díjrendezett vagyonbiztosítással a fedezetül felajánlott ingatlanra vonatkozóan a hitel lejáratáig. A vagyonbiztosítás megköthető a K&H Biztosító Zrt-nél, illetve bármely más biztosító társaságnál. A vagyonbiztosítás díja a Bank számára nem ismert, így a THM nem tartalmazza, annak díját az Ön és a Biztosító között létrejött vagyonbiztosítási szerződés tartalmazza. Törlesztőrészletek megfizetésének biztosítására Önnek rendelkeznie kell a K&H Bank Zrt.-nál vezetett bankszámlával, vagy Hiteltörlesztő számlával a hitel lejáratáig. | P148: 8 | Q148: 102
A149: Felhívjuk figyelmét, hogy akció keretében a K&H Bank által a mindenkor hatályos Hirdetményben megjelölt elengedett, átvállalt illetve visszatérített díjak és költségek visszatérítendők, amennyiben lakástakarékpénztári megtakarítástól eltérő forrásból a szerződéskötéstől számított 2 éven belül (amennyiben a hitel futamideje kevesebb, mint 2 év, akkor ezen futamidőn belül) a hitel végtörlesztésre-, vagy a kölcsönösszeg legalább 50%-ig előtörlesztésre- illetve Bankon kívül álló okokból felmondásra kerül. | P149: 5 | Q149: 63.75
A150: Kamatkedvezményre való jogosultság feltételeinek nem teljesítése esetén, felhívjuk figyelmét, hogy a kamatkedvezményt a K&H Bank Zrt. visszavonja, így a kamatláb változhat, amennyiben Ön nem tesz eleget e kötelezettségeknek. Felhívjuk figyelmét, hogy ha később eláll a hitelhez kapcsolódó bármely kapcsolódó szolgáltatás igénybevételétől, az az alábbi következményekkel járhat: | P150: 4 | Q150: 51
A151: A hitelszerződés felmondásra kerülhet, amennyiben a hitel futamideje alatt: - Ha a Kölcsönszerződés alapján a K&H Bank Zrt. által megkövetelt vagyonbiztosítás díját az arra kötelezett nem, vagy csak részben fizeti meg, vagy e biztosítási szerződés valamely lényeges rendelkezését a szerződő a Bankra nézve hátrányosan megváltoztatja. - Ha az Adós K&H Banknál vezetett, és az Ügyfélszerződésben törlesztő számlaként megjelölt lakossági bankszámlája, vagy Hiteltörlesztő számlája bármely okból megszűnik. | P151: 7 | Q151: 89.25
A152: 9. Előtörlesztés: | P152: 1 | Q152: 12.75
A153: Ön jogosult a hitel részleges vagy teljes előtörlesztésére. - Az Adós a Tőketartozást a lejárat előtt részben, vagy teljes egészében előtörlesztheti, amennyiben erre irányuló szándékát a Bank felé írásban jelzi A banki munkanapokon 15:00 óráig befogadott előtörlesztési kérelmet a Bank a benyújtás napján végrehajtja, amennyiben annak fedezete a törlesztő számlán rendelkezésre áll. A 15:00 óra után benyújtott előtörlesztési nyilatkozatot a Bank csak a következő banki munkanapra fogadja be. Az esedékesség előtt visszafizetett tőkerésszel csökkentett tartozás alapján a hátralévő Futamidőnek megfelelő átértékelt Törlesztőrészlet összegéről a Bank az Adóst írásban értesíti. A Végtörlesztés szándékának bejelentése önmagában nem minősül a Kölcsönszerződés Adós általi felmondásának. Elő- és végtörlesztés esetén az Adós köteles az Elő- és Végtörlesztés napjáig megszolgált kamatokat és díjakat maradéktalanul megfizetni. | P153: 9 | Q153: 114.75
A154: - Amennyiben az Adóstárs kíván Előtörlesztést végrehajtani, akkor az Adóstárs az Adós törlesztő számlája felett kizárólag a befizetett összeg törlesztésre fordítása tárgyában rendelkezhet. Az Adós elismeri, hogy az Adóstárs, Kezes, zálogkötelezett, és a kölcsön biztosítékát nyújtó, vagy annak visszafizetéséért bármilyen személyes vagy dologi kötelezettséget vállaló harmadik fél olyan személynek minősül, akinek a kölcsön visszafizetéséhez törvényes érdeke fűződik, ezért az általuk felajánlott teljesítést a Bank az Adós hozzájárulása nélkül is jogosult elfogadni. | P154: 5 | Q154: 63.75
A155: A Bank jogosult az előtörlesztéssel kapcsolatban felmerült költségei megtérítésére, az előtörlesztés díjának mértékét a mindenkor hatályos lakossági hitelekre vonatkozó Hirdetmény tartalmazza, de jelzáloghitel előtörlesztése esetén legfeljebb az előtörlesztett összeg 1 százaléka. A bármely lakástakarék-pénztári, a lakástakarék-pénztári szerződésben rögzített összegű havi betét befizetésével a teljes vagy részleges előtörlesztés időpontjáig szerződés szerint elérhető megtakarításból, a hozzá kapcsolódó állami támogatásból és az azokra jóváírt kamatból finanszírozott teljes vagy részleges előtörlesztés annak lejáratakor díjmentes. A további díjmentességi feltételeket a vonatkozó, mindenkor hatályos Hirdetmény tartalmazza. | P155: 7 | Q155: 89.25
A156: 10. Rugalmas elemek: | P156: 1 | Q156: 12.75
A157: Az ügyfél írásos formában kérheti a szerződés módosítását (pl. ügyleti szereplőben, fedezetek körében történő változás). A K&H Bank Zrt. minden esetben fenntartja a szükséges dokumentumok bekérésének, és a kérelem elbírálásának jogát. A szerződésmódosítások díja a mindenkor hatályos lakossági hitelekre vonatkozó Hirdetményben megtalálható. Önnek lehetősége van ezt a hitelt más hitelezőhöz átvinni, melynek feltételei a végtörlesztés feltételeivel azonosak. Amennyiben fizetési nehézségei támadnak a havi törlesztőrészletek fizetésével kapcsolatban, kérjük, haladéktalanuk keressen meg minket,, hogy megoldást találjunk problémájára a törlesztéskönnyítő lehetőségek közül. | P157: 7 | Q157: 89.25
A158: 11. A fogyasztó egyéb jogai: | P158: 1 | Q158: 12.75
A159: 15 nap gondolkodási idő áll a rendelkezésére a hitel felvételéről szóló döntéshez. Miután kézhez kapta a hitelszerződés tervezetét a hitelezőtől, csak 3 nap eltelte után fogadhatja el az ajánlatot. Önnek az alábbi esetben van joga elállni a hitelügylettől: • szerződés aláírását megelőzően (kérelem visszavonás), • szerződés aláírását követően, a folyósítást megelőzően (szerződéstől elállás). Az elállásra vonatkozó igényét írásban nyújthatja be a bankfiókban. Szerződéskötést követően köteles a Bank részére visszatéríteni azokat a díjakat, melyek a konstrukció hirdetményi adottságainál fogva is az Ügyfelet terhelnék Folyósítást követően Ön nem jogosult elállni a hitelügylettől, a kölcsön csak végtörlesztéssel szüntethető meg. Amennyiben úgy dönt, hogy él az elállás jogával, kérjük, ellenőrizze, hogy továbbra is vonatkoznak-e Önre a 8. pontban említett, a hitelhez kapcsolódó egyéb kötelezettségek (vagyonbiztosítás, törlesztő számla). | P159: 12 | Q159: 153
A160: 12. Panaszok: | P160: 1 | Q160: 12.75
A161: Amennyiben panasza van, kérjük vegye fel a kapcsolatot a Lakossági Panaszkezelési Csoporttal. Felmerülő panaszát benyújthatja bármely bankfiókunkban, vagy a TeleCenteren a (06 1/20/30/70) 335 3355 telefonszámon keresztül illetve a bank@kh.hu email címen. A panasz kezelésére rendelkezésre álló idő legfeljebb 30 nap. Amennyiben a panaszára Ön nem kap számára kielégítő választ, a következő szervezetekhez is fordulhat: Pénzügyi Békéltető Testület, vagy amennyiben Ön más tagállamban lakóhellyel rendelkezik, kapcsolatba léphet a FIN-NET (http://ec.europa.eu/internal_market/fin-net/) hálózattal, amelytől elkérheti az Ön országában ezzel egyenértékű szerv adatait. | P161: 8 | Q161: 102
A162: 13. A hitelhez kapcsolódó kötelezettségeknek való nem megfelelés következményei a fogyasztóra nézve: | P162: 1 | Q162: 12.75
A163: A K&H Bank Zrt. a Kölcsönszerződést azonnali hatállyal jogosult felmondani, amennyiben a lakossági hitelekre vonatkozó ÁSZF-ben megtalálható Súlyos Szerződésszegési Események bekövetkeznek (pl. nemteljesítés, fizetési késedelem, fedezet elvonás, biztosítéki szerződésszegés). A felmondás hatályosulásával a teljes tartozás lejárttá és közvetlen végrehajtás, vagy egyéb törvényes úton egyösszegben követelhetővé válik, mely esetben az adott értéknapon nyilvántartott lejárt tartozásra a Bank jogosult késedelmi kamatot felszámítani. A központi hitelinformációs rendszerről szóló 2011. évi CXXII. törvényben meghatározott esetekben a fogyasztó felkerül a KHR-be. A biztosítékul felajánlott ingatlan/ok végrehajtás alá kerülhet. A Bank jogosult a követelést harmadik személy részére engedményezni. Amennyiben nehézségei támadnak a havi törlesztőrészletek fizetésével kapcsolatban, kérjük, mielőbb keressen meg minket, hogy megfelelő megoldást találjunk a problémára. A részletfizetések elmaradása esetén otthona végső esetben végrehajtás alá kerülhet. | P163: 11 | Q163: 140.25
A164: 14. Felügyelet: | P164: 1 | Q164: 12.75
A165: A K&H Bank Zrt, hitelező a Magyar Nemzeti Bank, http://www.mnb.hu/ felügyelete alá tartozik. A hitelközvetítő a Magyar Nemzeti Bank, http://www.mnb.hu/ felügyelete alá tartozik. | P165: 2 | Q165: 25.5
P166: 1 | Q166: 12.75
A167: Jelen tájékoztató a 3/2016 NGM Rendelet 2. számú melléklete alapján készült. Jelen tájékoztatóban szereplő díjak, költségek, hitel teljes díja mértéke és/vagy összegszerűsége az aktuális kondíciók változatlansága esetén érvényes! | P167: 3 | Q167: 38.25
A168: Aláírásommal igazolom, hogy a Személyes tájékoztatás a jelzáloghitelekről formanyomtatvány egy példányát átvettem és a 2009. évi CLXII. törvény 5., 7., 12., 13. §-a szerinti felvilágosítást a jogszabályokban meghatározott időrendi sorrendben, részletezettségben és formában megkaptam. | P168: 5 | Q168: 63.75
A169: =CONCATENATE("Kelt: …………………………………...……… , ",TEXT(TODAY(),"éééé.hh.nn")) -> Kelt: …………………………………...……… , 2021.07.09 | P169: 1 | Q169: 12.75
C170: ………………………………. | I170: =IF(Ügyféladatok!$F$50>1,"……………………………….","") -> ………………………………. | P170: 4 | Q170: 51
A171: Ügyfél neve: | C171: =HLOOKUP(1,Ügyféladatok!$B$51:$E$57,4,FALSE) ->  | I171: =IF(Ügyféladatok!$F$50>1,HLOOKUP(2,Ügyféladatok!$B$51:$E$57,4,FALSE),"") ->  | P171: 1 | Q171: 12.75
A172: Születési dátum: | C172: =HLOOKUP(1,Ügyféladatok!$B$51:$E$57,5,FALSE) ->  | I172: =IF(Ügyféladatok!$F$50>1,HLOOKUP(2,Ügyféladatok!$B$51:$E$57,5,FALSE),"") ->  | P172: 1 | Q172: 12.75
A173: Anyja neve: | C173: =HLOOKUP(1,Ügyféladatok!$B$51:$E$57,6,FALSE) ->  | I173: =IF(Ügyféladatok!$F$50>1,HLOOKUP(2,Ügyféladatok!$B$51:$E$57,6,FALSE),"") ->  | P173: 1 | Q173: 12.75
A174: Lakcím: | C174: =HLOOKUP(1,Ügyféladatok!$B$51:$E$57,7,FALSE) ->  | I174: =IF(Ügyféladatok!$F$50>1,HLOOKUP(2,Ügyféladatok!$B$51:$E$57,7,FALSE),"") ->  | P174: 2 | Q174: 25.5
C175: =IF(Ügyféladatok!$F$50>2,"……………………………….","") ->  | I175: =IF(Ügyféladatok!$F$50>3,"……………………………….","") ->  | P175: =IF(Ügyféladatok!$F$50>2,4,0) -> 0 | Q175: 0
A176: =IF(Ügyféladatok!$F$52>2,A171,"") ->  | C176: =IF(Ügyféladatok!$F$50>2,HLOOKUP(3,Ügyféladatok!$B$51:$E$57,4,FALSE),"") ->  | I176: =IF(Ügyféladatok!$F$50>3,HLOOKUP(4,Ügyféladatok!$B$51:$E$57,4,FALSE),"") ->  | P176: =IF(Ügyféladatok!$F$50>2,1,0) -> 0 | Q176: 0
A177: =IF(Ügyféladatok!$F$52>2,A172,"") ->  | C177: =IF(Ügyféladatok!$F$50>2,HLOOKUP(3,Ügyféladatok!$B$51:$E$57,5,FALSE),"") ->  | I177: =IF(Ügyféladatok!$F$50>3,HLOOKUP(4,Ügyféladatok!$B$51:$E$57,5,FALSE),"") ->  | P177: =IF(Ügyféladatok!$F$50>2,1,0) -> 0 | Q177: 0
A178: =IF(Ügyféladatok!$F$52>2,A173,"") ->  | C178: =IF(Ügyféladatok!$F$50>2,HLOOKUP(3,Ügyféladatok!$B$51:$E$57,6,FALSE),"") ->  | I178: =IF(Ügyféladatok!$F$50>3,HLOOKUP(4,Ügyféladatok!$B$51:$E$57,6,FALSE),"") ->  | P178: =IF(Ügyféladatok!$F$50>2,1,0) -> 0 | Q178: 0
A179: =IF(Ügyféladatok!$F$52>2,A174,"") ->  | C179: =IF(Ügyféladatok!$F$50>2,HLOOKUP(3,Ügyféladatok!$B$51:$E$57,7,FALSE),"") ->  | I179: =IF(Ügyféladatok!$F$50>3,HLOOKUP(4,Ügyféladatok!$B$51:$E$57,7,FALSE),"") ->  | P179: =IF(Ügyféladatok!$F$50>2,2,0) -> 0 | Q179: 0
A180: Összefoglaló | Q180: 15
A181: Hitelszerződést megelőző tájékoztató | Q181: 15
A182: =CONCATENATE("Kedves ",C171,"!") -> Kedves ! | L182: Tájékoztató száma: ……………. | Q182: 43
L183: =CONCATENATE("Tájékoztató dátuma: ",TEXT(TODAY(),"éééé.hh.nn")) -> Tájékoztató dátuma: 2021.07.09 | Q183: 15
Q184: 12
A185: Az ön által választott hitel jellemzői: | I185: Választott és választható kedvezmények a feltételek teljesítésével | P185: 3 | Q185: =P185*$Q$1 -> 38.25
A186: A hitel megnevezése: | E186: =CONCATENATE("K&H ",Hiteladatok!A14) ->  | I186:  Átutalási kamatkedvezménnyel | L186: =-kondíciók!D31 -> 0.005 | P186: =IF('Új PD'!O3=0,0,2) -> 2 | Q186: 25.5
A187: A hitel megnevezése: | E187: =E186 ->  | I187:  Átutalási kamatkedvezménnyel | L187: =-kondíciók!D31 -> 0.005 | P187: =IF(P186=0,2,0) -> 0 | Q187: 0
A188: THM: | E188: =ROUND(MFL!O1,3) -> 0.049 | I188:  K&H lakásbiztosítási kamatkedvezménnyel | L188: =-kondíciók!D32 -> 0.001 | P188: =IF('Új PD'!O4=0,0,2) -> 2 | Q188: 25.5
A189: THM: | E189: =ROUND(MFL!O1,3) -> 0.049 | I189:  K&H lakásbiztosítási kamatkedvezménnyel | L189: =-kondíciók!D32 -> 0.001 | P189: =IF(P188=0,2,0) -> 0 | Q189: 0
A190: Kölcsön összege | E190: =CONCATENATE(TEXT(ROUND(Hiteladatok!$B$15,0),"# ##")," forint") -> forint | I190:  K&H életbiztosítási kamatkedvezménnyel vagy | L190: =-kondíciók!D33 -> 0.002 | P190: =IF('Új PD'!O6=0,0,3) -> 0 | Q190: 0
A191: Kölcsön összege | E191: =CONCATENATE(TEXT(ROUND(Hiteladatok!$B$15,0),"# ##")," forint") -> forint | I191:  K&H életbiztosítási kamatkedvezménnyel vagy | L191: =-kondíciók!D33 -> 0.002 | P191: =IF(P190=0,3,0) -> 3 | Q191: 38.25
A192: Futamidő: | E192: =CONCATENATE(Hiteladatok!$B$16," hónap") -> 240 hónap | I192:  K&H jelzáloghitel törlesztési és hitelfedezeti biztosítási | P192: =IF('Új PD'!O5=0,0,2) -> 0 | Q192: 0
A193: Kölcsön éves ügyleti kamata: | E193: ='Új PD'!$D$14 ->  | I193: kamatkedvezménnyel | L193: =-kondíciók!D34 -> 0.002 | P193: =IF('Új PD'!O5=0,0,1) -> 0 | Q193: 0
A194: Futamidő: | E194: =CONCATENATE(Hiteladatok!$B$16," hónap") -> 240 hónap | I194:  K&H jelzáloghitel törlesztési és hitelfedezeti biztosítási | P194: =IF(P192=0,2,0) -> 2 | Q194: 25.5
A195: Kölcsön éves ügyleti kamata: | E195: ='Új PD'!$D$14 ->  | I195: kamatkedvezménnyel | L195: =kondíciók!D34 -> -0.002 | P195: =IF(P192=0,1,0) -> 1 | Q195: 12.75
A196: Induló kamatperiódus: | E196: =IF(V22=3,"Fix kamat a teljes futamidőre",CONCATENATE(VLOOKUP(Hiteladatok!B17,Hiteladatok!R23:U28,4,FALSE)," hónap")) ->  | I196:  Prémium banki kamatkedvezménnyel | P196: =IF('Új PD'!O7=0,0,1) -> 0 | Q196: 0
A197: Elő / végtörlesztési díj: | E197: 0.01 | L197: =-kondíciók!D35 -> 0.002 | P197: =P196 -> 0 | Q197: 0
A198: Induló kamatperiódus: | E198: =IF(V22=3,"Fix kamat a teljes futamidőre",CONCATENATE(VLOOKUP(Hiteladatok!B17,Hiteladatok!R23:U28,4,FALSE)," hónap")) ->  | I198:  Prémium banki kamatkedvezménnyel | P198: =IF(P196=0,1,0) -> 1 | Q198: 12.75
A199: Elő / végtörlesztési díj: | E199: 0.01 | L199: =-kondíciók!D35 -> 0.002 | P199: =P198 -> 1 | Q199: 12.75
A200: Teljes visszafizetendő összeg: | E200: =CONCATENATE(TEXT(ROUND(MFL!I4,0),"# ##")," forint") ->  | I200: =IF('Új PD'!O9=0,"",CONCATENATE("Egyedi kamatkedvezmény: ",-ROUND('Új PD'!O9*100,2),"% ")) ->  | P200: 1 | Q200: 12.75
... 18 more rows

Sheet Ind-Sz-OTK (hidden)
P1: sormagasság | Q1: 12.75
A2: II. Személyes tájékoztatás a jelzáloghitelről | P2: 4 | Q2: =P2*$Q$1 -> 51 | S2: =DAY(TODAY()) -> 9 | T2: 1 | U2: -én
A3: Bevezető szöveg | P3: 1 | Q3: =P3*$Q$1 -> 12.75 | T3: =T2+1 -> 2 | U3: -án
A4: =CONCATENATE("Ez a dokumentum ",TEXT(TODAY(),"éééé.hh.nn"),VLOOKUP(S2,T2:U32,2,FALSE)," ",Ügyféladatok!B4," részére készült.") -> Ez a dokumentum 2021.07.09-én részére készült. | P4: 1 | Q4: =P4*$Q$1 -> 12.75 | T4: =T3+1 -> 3 | U4: -án
A5: Ez a dokumentum az Ön által ezidáig megadott adatok és a jelenlegi pénzügyi piaci feltételek alapján készült. | P5: 1 | Q5: =P5*$Q$1 -> 12.75 | T5: 4 | U5: -én
A6: =CONCATENATE("Az alábbi tájékoztatás a kamat és egyéb költségek kivételével ",TEXT(TODAY()+30,"éééé.hh.nn"),"-ig érvényes. Ezt követően a piaci feltételek függvényében, a Bank mindenkor hatályos hirdetményében foglalt feltételekkel változhat.") -> Az alábbi tájékoztatás a kamat és egyéb költségek kivételével 2021.08.08-ig érvényes. Ezt követően a piaci feltételek függvényében, a Bank mindenkor hatályos hirdetményében foglalt feltételekkel változhat. | P6: 2 | Q6: =P6*$Q$1 -> 25.5 | T6: 5 | U6: -én
A7: Ez a dokumentum nem kötelezi a K&H Bank Zrt-t arra, hogy hitelt nyújtson Önnek. | P7: 2 | Q7: 25.5 | T7: =T6+1 -> 6 | U7: -án
A8: 1. Hitelező: A hitelező neve (cégneve): K&H Bank Zrt Telefonszám: (06 1/20/30/70) 335 3355 Levelezési címe: 1095 Budapest, Lechner Ödön fasor 9. Internet címe: www.kh.hu A hitelező hiteltanácsadási tevékenységet nem végez. | P8: 7 | Q8: 89.25 | T8: =T7+1 -> 7 | U8: -én
A9: 2. Hitelközvetítő: | P9: 1 | Q9: 12.75 | T9: =T8+1 -> 8 | U9: -án
A10: =CONCATENATE("Hitelközvetítő neve (cégneve): ",'Kezdő oldal'!B1) -> Hitelközvetítő neve (cégneve): | P10: 1 | Q10: 12.75 | T10: =T9+1 -> 9 | U10: -én
A11: =CONCATENATE("Telefonszám: ",'Kezdő oldal'!B4) -> Telefonszám: | P11: 1 | Q11: 12.75 | T11: =T10+1 -> 10 | U11: -én
A12: =CONCATENATE("Levelezési címe: ",'Kezdő oldal'!B2) -> Levelezési címe: | P12: 1 | Q12: 12.75 | T12: 11 | U12: -én
A13: =CONCATENATE("Díjazás: ",IF(AND('Kezdő oldal'!B6='Kezdő oldal'!Q3,OR('Kezdő oldal'!F6="",'Kezdő oldal'!F7="")),L30,IF('Kezdő oldal'!B6='Kezdő oldal'!Q3,'Kezdő oldal'!H7,IF('Kezdő oldal'!B6='Kezdő oldal'!Q4,'Kezdő oldal'!A11,L30)))) -> Díjazás: | P13: 6 | Q13: 76.5 | T13: 12 | U13: -én | V13: Nincs kiválasztva a díjazás megjelenítésének formája vagy nincs kitöltve a jutalékszint
A14: A Hitelközvetítő a Hitelező megbízásából hiteltanácsadási tevékenységet nem végez. | P14: 2 | Q14: 25.5 | T14: 13 | U14: -án | V14: Díjazás: Nincs kiválasztva a díjazás megjelenítésének formája vagy nincs kitöltve a jutalékszint
A15: 3. A hitel fő jellemzői | P15: 1 | Q15: 12.75 | T15: 14 | U15: -én
A16: =CONCATENATE("A hitel összege és pénzneme: ",TEXT(ROUND(Hiteladatok!F15,0),"# ##")," Ft") -> A hitel összege és pénzneme: Ft | P16: 1 | Q16: 12.75 | T16: 15 | U16: -én
A17: =CONCATENATE("A futamidő: ",Hiteladatok!F16," hónap") -> A futamidő: 240 hónap | P17: 1 | Q17: 12.75 | T17: 16 | U17: -án | V17: MFL | W17: 9 | X17: K&H Minősített Fogyasztóbarát lakáshitelt használt vagy új, már használatbavételi engedéllyel vagy hatósági bizonyítvánnyal rendelkező lakó- vagy üdülő, hétvégi ház, apartman típusú ingatlan vásárlásra, illetve igazoltan lakáscélú hitelek refinanszírozására nyújtjuk. K&H Minősített Fogyasztóbarát Lakáshitel esetén a fedezetül szolgáló ingatlan vonatkozásában az ingatlan-nyilvántartásba önálló zálogjog, valamint ennek biztosítására elidegenítési és terhelési tilalom kerül bejegyzésre a K&H Bank Zrt., mint Zálogjogosult javára. A hitel törlesztése során a tőketartozást a Bank havonta a K&H Banknál vezetett K&H forint lakossági bankszámláról/Hiteltörlesztő számláról szedi be a kamattal együtt. Annuitásos törlesztésű hitel, mely esetén az adós minden kamatperiódusban azonos összegű törlesztő részletet fizet, folyamatosan csökkenő kamat-, és növekvő tőketartalommal. A hitel felvétele nem függ harmadik fél által vállalt kezességtől.
A18: A hitel típusa: | P18: 1 | Q18: 12.75 | T18: 17 | U18: -én | V18: üzleti | W18: 8 | X18: K&H üzleti feltételű lakáshitelt lakó- vagy üdülő ingatlan vásárlásra, építésre, bővítésre, korszerűsítésre, felújításra, illetve lakáscélú hitelek refinanszírozására nyújtjuk. K&H üzleti feltételű lakáshitel esetén a fedezetül szolgáló ingatlan vonatkozásában az ingatlan-nyilvántartásba önálló zálogjog, valamint ennek biztosítására elidegenítési és terhelési tilalom kerül bejegyzésre a K&H Bank Zrt., mint Zálogjogosult javára. A hitel törlesztése során a tőketartozást a Bank havonta a K&H Banknál vezetett K&H forint lakossági bankszámláról/Hiteltörlesztő számláról szedi be a kamattal együtt. Annuitásos törlesztésű hitel, mely esetén az adós minden kamatperiódusban azonos összegű törlesztő részletet fizet, folyamatosan csökkenő kamat-, és növekvő tőketartalommal. A hitel felvétele nem függ harmadik fél által vállalt kezességtől. | Y18: A fogyasztóknak nyújtott hitelről szóló 2009. évi CLXII. törvény (továbbiakban Fhtv.) 21/C. § alapján Önnek lehetősége van az Ön számára idegen pénznemben fennálló tartozása átváltására egyoldalú jognyilatkozattal. A tartozás idegen pénznemre történő átváltása nem minősül szerződésmódosításnak. Az idegen pénznemre történő átváltás részletes szabályait, devizanemre vonatkozó Fhtv. 21/C.§ (4) bekezdésén alapuló korlátozását, az átváltás eredményeképp a kölcsön kamatának Fhtv. 21/D.§-a szerinti változására vonatkozó rendelkezéseket a mindenkor hatályos vonatkozó Hirdetmény 8. számú függeléke tartalmazza.
A19: K&H lakáscélú hitelek állami támogatással extra hitelünket új lakó ingatlan vásárlásra és új lakás építésére nyújtjuk. K&H lakáscélú hitelek állami támogatással extra esetén a vásárolt/építendő ingatlan – amennyiben a kölcsön fedezete másik lakás, akkor a kamattámogatott kölcsön fedezeteként szolgáló lakás - vonatkozásában az ingatlan-nyilvántartásba önálló zálogjog, valamint ennek biztosítására elidegenítési és terhelési tilalom kerül bejegyzésre a K&H Bank Zrt., mint zálogjogosult javára. A hitel törlesztése során a tőketartozást a Bank havonta a K&H Banknál vezetett K&H forint lakossági bankszámláról / Hiteltörlesztő számláról szedi be a kamattal együtt. Annuitásos törlesztésű hitel, mely esetén az adós minden kamatperiódusban azonos összegű törlesztő részletet fizet, folyamatosan csökkenő kamat-, és növekvő tőketartalommal. A hitel felvétele nem függ harmadik fél által vállalt kezességtől. | P19: 8 | Q19: 102 | T19: 18 | U19: -án
A20: A fogyasztóknak nyújtott hitelről szóló 2009. évi CLXII. törvény (továbbiakban Fhtv.) 21/C. § alapján Önnek lehetősége van az Ön számára idegen pénznemben fennálló tartozása átváltására egyoldalú jognyilatkozattal. A tartozás idegen pénznemre történő átváltása nem minősül szerződésmódosításnak. Az idegen pénznemre történő átváltás részletes szabályait, devizanemre vonatkozó Fhtv. 21/C.§ (4) bekezdésén alapuló korlátozását, az átváltás eredményeképp a kölcsön kamatának Fhtv. 21/D.§-a szerinti változására vonatkozó rendelkezéseket a mindenkor hatályos vonatkozó Hirdetmény 8. számú függeléke tartalmazza. | P20: 6 | Q20: 76.5 | T20: 19 | U20: -én
A21: Az alkalmazandó kamatláb típusa: | P21: 1 | Q21: 12.75 | T21: 20 | U21: -án
A22: Kölcsön referencia kamatlába: ÁKK Zrt. által havi rendszerességgel közzétett, a közzétételt megelőző három naptári hónapban tartott 5 (öt) éves névleges futamidejű államkötvény aukción kialakult átlaghozamok adott aukción elfogadott mennyiségekkel súlyozott számtani átlaga. | P22: 3 | Q22: 38.25 | T22: 21 | U22: -én
A23: =AA23 -> A Bank tájékoztatja az Adóst, hogy a Kölcsön referencia kamatlábának mértéke 2021.7. hónapra vonatkozóan 1,83%. | P23: 1 | Q23: 12.75 | T23: 22 | U23: -én | V23: A Bank tájékoztatja az Adóst, hogy a Kölcsön referencia kamatlábának mértéke | W23: =CONCATENATE(YEAR(TODAY()),".",MONTH(TODAY())) -> 2021.7 | X23: . hónapra vonatkozóan | Y23: =kondíciók!B10*100 -> 1.83 | Z23: %. | AA23: =CONCATENATE(V23,W23,X23,Y23,Z23) -> A Bank tájékoztatja az Adóst, hogy a Kölcsön referencia kamatlábának mértéke 2021.7. hónapra vonatkozóan 1,83%.
A24: Kölcsön referencia kamatlábának mindenkori aktuális mértéke megtekinthető az ÁKK Zrt. honlapján. | P24: 1 | Q24: 12.75 | T24: 23 | U24: -án
A25: Kölcsön ügyleti kamata: referencia kamatláb 130%-a + 3%. | P25: 2 | Q25: 25.5 | T25: 24 | U25: -én
A26: A Magyar Állam (a továbbiakban: Állam) által a Kölcsön futamidejének első 25 (huszonöt) évében nyújtandó otthonteremtési kamattámogatás (a továbbiakban: Támogatás) jelenlegi mértéke évi: a Kölcsön referencia kamatlábának 130%-a. | P26: 2 | Q26: 25.5 | T26: 25 | U26: -én
A27: Az Adós által Fizetendő ügyleti kamat jelenlegi mértéke évi: a Kölcsön ügyleti kamatának a Támogatással csökkentett mértéke, azaz 3%. | P27: 2 | Q27: 25.5 | T27: 26 | U27: -án
A28: Támogatás Időszakát követően (amennyiben a kamattámogatásra való jogosultság megszűnik): | P28: 1 | Q28: 12.75 | T28: 27 | U28: -én
A29: Kölcsön ügyleti kamata: referencia kamatláb 130%-a + 3% | P29: 2 | Q29: 25.5 | T29: 28 | U29: -án
A30: A Bank a Szerződésben meghatározott kamatot, díjat és költséget az ÁSZF-ben meghatározottak szerint jogosult módosítani. Ha az Adós a módosítás ellen, annak hatályba lépéséig írásban nem tiltakozik, azt általa elfogadottnak kell tekinteni. A kamat, díj vagy költség Adós számára kedvezőtlen módosítása esetén - referencia kamatlábhoz kötött kamat esetén a referencia-kamatláb változásából eredő kamatváltozás kivételével – az Adós a módosítás hatálybalépése előtt jogosult a Szerződés díjmentes felmondására. | P30: 6 | Q30: 76.5 | T30: 29 | U30: -én
A31: =CONCATENATE("Az Ön által fizetendő teljes összeg: ",TEXT(ROUND(OTK!P2,0),"# ##")," forint") ->  | P31: 1 | Q31: 12.75 | T31: 30 | U31: -án
A32: =CONCATENATE("Ez azt jelenti, hogy a ",TEXT(ROUND(Hiteladatok!F15,0),"# ##")," forintért, amelyet hitelként felvesz ",TEXT(ROUND(OTK!P2,0),"# ##")," forint összeget kell visszafizetnie.") ->  | P32: 1 | Q32: 12.75 | T32: 31 | U32: -én
A33: =CONCATENATE("Ennek a tájékoztatásnak az elkészítéséhez az ingatlan értékét ",TEXT(ROUND(Hiteladatok!I2,0),"# ##")," forintnak tekintettük.") -> Ennek a tájékoztatásnak az elkészítéséhez az ingatlan értékét forintnak tekintettük. | P33: 1 | Q33: 12.75
A34: =CONCATENATE("A maximálisan igénybe vehető hitelösszeg az ingatlan értékéhez viszonyítva ",TEXT(ROUND(Hiteladatok!I2*0.8,0),"# ##")," Ft.") -> A maximálisan igénybe vehető hitelösszeg az ingatlan értékéhez viszonyítva Ft. | P34: 1 | Q34: 12.75
A35: =CONCATENATE("Az Ön által megadott ingatlanfedezet címe: helyrajzi szám: ",Hiteladatok!I5, ", irányítószám: ",Hiteladatok!I4) -> Az Ön által megadott ingatlanfedezet címe: helyrajzi szám: , irányítószám: | P35: 1 | Q35: 12.75
A36: 4. Kamat és egyéb költségek: | P36: 1 | Q36: 12.75
A37: A teljes hiteldíj mutató (THM) a hitel teljes éves díját mutatja meg százalékban kifejezve. A THM a különböző ajánlatok összehasonlítását szolgálja. | P37: 2 | Q37: 25.5
A38: =IF(ROUND(OTK!T4,1)<>0,"A THM értékének megállapításához még le kell futtatni a kalkulációt!",CONCATENATE("Az ön hitelére érvényes THM: ",TEXT(ROUND(100*OTK!T1,1),"# ##,0"),"%")) ->  | P38: 1 | Q38: 12.75
A39: A THM az alábbiakat tartalmazza: | P39: 1 | Q39: 12.75
A40: Kamatláb: 3,00% | P40: 1 | Q40: 12.75
A41: A THM egyéb összetevői: Egyszer fizetendő költségek: | P41: 2 | Q41: 25.5
A42: =IF(Hiteladatok!F33=0,"- szerződéskötési díj: 0 forint",CONCATENATE("- szerződéskötési díj: ",TEXT(ROUND(Hiteladatok!F33,0),"# ##")," forint")) -> - szerződéskötési díj: 0 forint | P42: 1 | Q42: 12.75
A43: =IF(Hiteladatok!AA24=0,"- ingatlan értékbecslési díj: 0 forint",CONCATENATE("- ingatlan értékbecslési díj: ",TEXT(ROUND(Hiteladatok!AA24,0),"# ##")," forint")) -> - ingatlan értékbecslési díj: 0 forint | P43: 1 | Q43: 12.75
A44: =IF(Hiteladatok!AB24=0,"- ingatlan műszaki ellenőrzési díj: 0 forint",CONCATENATE("- ingatlan műszaki ellenőrzési díj: ",TEXT(ROUND(Hiteladatok!AB24,0),"# ##"),T44)) -> - ingatlan műszaki ellenőrzési díj: 0 forint | P44: =IF(Hiteladatok!AB24=0,1,3) -> 1 | Q44: 12.75 | T44: forint. Ezen díjtétel a kölcsön ügyfélnek történő kifizetési időszaka során többszöri alkalommal is felszámításra kerülhet részkifizetést megelőzően. Ennek mértéke a kifizetésre irányuló kérelem benyújtásakor érvényes vonatkozó Hirdetmény tartalmazza.
A45: - ügyintézési díj I. (TakarNet rendszerből lekért tulajdoni lapért): 3 000 forint / lekérdezés / fedezet (felajánlott fedezetek számától függően, egy hiteligénylés során 2 lekérdezés szükséges. Tehermentesítő hitel esetén 3 db lekérdezés.) - ügyintézési díj II. (TakarNet rendszerből lekért térképmásolatért): 4 000 forint / lekérdezés / fedezet - jelzálogjog bejegyzés díja ingatlanonként: 12 600 Ft | P45: 4 | Q45: =P45*$Q$1 -> 51
A46: =IF(Hiteladatok!F36=0,"- igazgatás szolgáltatási díj: 0 forint",CONCATENATE("- igazgatás szolgáltatási díj: ",TEXT(ROUND(Hiteladatok!F36,0),"# ##")," forint")) -> - igazgatás szolgáltatási díj: 0 forint | P46: 1 | Q46: =P46*$Q$1 -> 12.75
A47: THM számítás részét nem képző egyszeri díj: | P47: 1 | Q47: 12.75
A48: =CONCATENATE("- közjegyzői díj: ",TEXT(ROUND(19500,0),"# ##")," forint*") -> - közjegyzői díj: 19 500 forint* | P48: 1 | Q48: 12.75
A49: * bankunk érdekkörén kívül felmerülő költség. A közjegyzői díj pontos mértéke a közjegyzői díjszabásról szóló 22/2018. (VIII.23.) IM rendelet alapján kerül a közjegyző által meghatározásra. A díj előzetes kalkulációja során a Bank a vonatkozó IM rendelet 38/A § teljesülését feltételezte. | P49: 3 | Q49: 38.25
A50: Rendszeresen fizetendő költségek: | P50: 1 | Q50: 12.75
A51: =CONCATENATE("- a fizetési számlához kapcsolódóan havonta fizetendő számlavezetési vagy számlacsomag díj: ",kondíciók!G9," forint, amely egy alap számlacsomag szerinti havidíj vagy Hiteltörlesztő számla, mely ingyenes.") -> - a fizetési számlához kapcsolódóan havonta fizetendő számlavezetési vagy számlacsomag díj: 557 forint, amely egy alap számlacsomag szerinti havidíj vagy Hiteltörlesztő számla, mely ingyenes. | P51: 2 | Q51: 25.5
A52: A fizetési számla alapdíját kivéve az ajánlat nem függ attól, hogy a kölcsönhöz kapcsolódó szolgáltatásokat a fogyasztó a K&H Bankon keresztül veszi-e igénybe. | P52: 2 | Q52: 25.5
A53: Ez a THM a kamatlábra vonatkozó feltételezések alapján került kiszámításra. | P53: 1 | Q53: 12.75
A54: Tájékoztatjuk, hogy a bemutatott THM azzal a feltételezéssel került kiszámításra, hogy a kamatláb a szerződés teljes időtartama alatt a kezdeti időszakra rögzített szinten marad. | P54: 2 | Q54: 25.5
A55: Az alábbi költségek nem ismertek a hitelező számára, és így azokat a THM nem foglalja magában: - A fedezetként bevonásra kerülő ingatlan(ok) tekintetében kötelező az ingatlanra vagyonbiztosítás kötése és annak fenntartása, valamint a felmerülő biztosítási díj megfizetése. Ennek költsége jelen tájékoztatásnál nem ismert, így a THM nem tartalmazza! Kérjük, tájékozódjon az ehhez a hitelhez kapcsolódó minden egyéb illetékről és költségről. | P55: 7 | Q55: 89.25 | T55: Mivel az Ön hitele változó kamatlábú hitel, a mindenkori THM eltérhet az előbbiekben meghatározott THM mértékétől, ha a hitel kamatlába változik. Például amennyiben a kamatláb
A56: 5. A törlesztések száma és gyakorisága | P56: 1 | Q56: 12.75
A57: Kamat fizetés gyakorisága: havonta | P57: 1 | Q57: 12.75 | T57: %-ra emelkedne, a THM
A58: Tőketörlesztés gyakorisága: havonta | P58: 1 | Q58: 12.75
A59: =CONCATENATE("A törlesztőrészletek száma: ",Hiteladatok!F16," db") -> A törlesztőrészletek száma: 240 db | P59: 2 | Q59: 25.5 | T59: %-ra nőhet.
A60: 6. Az egyes törlesztőrészletek összege: | P60: 1 | Q60: 12.75
A61: Állandó (annuitásos) törlesztés esetén az egyes törlesztőrészletek összege: | P61: 1 | Q61: 12.75
A62: =CONCATENATE("Első törlesztőrészlet összege: ",TEXT(ROUND(OTK!P5,0),"# ##")," forint") ->  | P62: 1 | Q62: 12.75
A63: Az első törlesztőrészlet összege a folyósítás időpontja és az első esedékesség között eltelt napok számától függően eltérhet a további törlesztőrészletek összegétől. | P63: 2 | Q63: 25.5
A64: =CONCATENATE("További törlesztőrészletek összege: ",TEXT(ROUND(OTK!P6,0),"# ##")," forint") -> További törlesztőrészletek összege: forint | P64: 1 | Q64: 12.75
A65: Az Ön jövedelme változhat. Kérjük, gondolja át, hogy a jövedelme csökkenése esetén is képes lesz-e törleszteni a havi részleteket. | P65: 2 | Q65: 25.5
A66: 7. Szemléltető törlesztési táblázat: | P66: 1 | Q66: 12.75 | T66: E hitelnek a kamata változhat. Ez azt jelenti, hogy az Ön által fizetendő törlesztőrészletek összege nőhet vagy csökkenhet. Például amennyiben a kamat
A67: Ebben a táblázatban a havonta fizetendő összeg látható. A törlesztőrészletek (2. oszlop) a fizetendő kamat (4. oszlop), a fizetendő tőke (3. oszlop) és adott esetben az egyéb költségek (5. oszlop) összegéből állnak. A fennmaradó tőke (6. oszlop) az egyes törlesztőrészletek után még törlesztendő hitelösszeg. | P67: 3 | Q67: 38.25
A68: A lenti táblázat szemléltetés céljából készült. Amennyiben előtörleszt, a szemléltető táblázatot a módosított feltételek szerint újraszámolva a rendelkezésére bocsátja a K&H Bank Zrt. A lenti táblázat azzal a feltételezéssel készült, hogy Ön a kölcsön teljes futamideje alatt jogosult az állami kamattámogatás igénybevételére. | P68: 5 | Q68: 63.75 | T68: %-ra emelkedne, az Ön által fizetendő részlet
A69: 1. | C69: 2. | E69: 3. | G69: 4. | I69: 5. | K69: 6. | P69: 1 | Q69: 12.75 | U69: A lenti táblázat szemléltetés céljából készült, továbbá felhívjuk a figyelmet arra, hogy az ajánlott hitel kamata kamatperiódusonként változhat. Kamatperiódus fordulónapját követően, valamint amennyiben előtörleszt, a szemléltető táblázatot a módosított feltételek szerint újraszámolva a rendelkezésére bocsátja a K&H Bank Zrt.
A70: Törlesztés ütemezése | C70: Törlesztőrészlet összege | E70: Törlesztőrészleten- ként fizetendő tőke | G70: Törlesztőrészleten- ként fizetendő kamat | I70: Törlesztőrészlet- ben foglalt egyéb költségek | K70: Az egyes törlesztőrészletek után fennmaradó tőke | P70: 4 | Q70: 51 | T70: Ft-ra nőne. | U70: A lenti táblázat szemléltetés céljából készült. Amennyiben előtörleszt, a szemléltető táblázatot a módosított feltételek szerint újraszámolva a rendelkezésére bocsátja a K&H Bank Zrt.
A71: =CONCATENATE(T71,". hó") -> 1. hó | C71: =OTK!P5 ->  | E71: =C71-G71 ->  | G71: =OTK!O5 ->  | I71: =C71-E71-G71 ->  | K71: =OTK!Q5 ->  | P71: 1 | Q71: 12.75 | T71: 1
A72: =CONCATENATE(T72,". hó") -> 2. hó | C72: =OTK!P6 -> 0 | E72: =C72-G72 ->  | G72: =OTK!O6 ->  | I72: =C72-E72-G72 ->  | K72: =OTK!Q6 ->  | P72: =IF(T72>Hiteladatok!$F$16,0,1) -> 1 | Q72: 12.75 | T72: =T71+1 -> 2
A73: 3. hó | C73: =OTK!P7 -> 0 | G73: =OTK!O7 ->  | K73: =OTK!Q7 ->  | P73: =IF(T73>Hiteladatok!$F$16,0,1) -> 1 | Q73: 12.75 | T73: =T72+1 -> 3
A74: 4. hó | C74: =OTK!P8 -> 0 | G74: =OTK!O8 ->  | K74: =OTK!Q8 ->  | P74: =IF(T74>Hiteladatok!$F$16,0,1) -> 1 | Q74: 12.75 | T74: 4
A75: 5. hó | C75: =OTK!P9 -> 0 | G75: =OTK!O9 ->  | K75: =OTK!Q9 ->  | P75: =IF(T75>Hiteladatok!$F$16,0,1) -> 1 | Q75: 12.75 | T75: 5
A76: 6. hó | C76: =OTK!P10 -> 0 | G76: =OTK!O10 ->  | K76: =OTK!Q10 ->  | P76: =IF(T76>Hiteladatok!$F$16,0,1) -> 1 | Q76: 12.75 | T76: 6
A77: 7. hó | C77: =OTK!P11 -> 0 | G77: =OTK!O11 ->  | K77: =OTK!Q11 ->  | P77: =IF(T77>Hiteladatok!$F$16,0,1) -> 1 | Q77: 12.75 | T77: 7
A78: 8. hó | C78: =OTK!P12 -> 0 | G78: =OTK!O12 ->  | K78: =OTK!Q12 ->  | P78: =IF(T78>Hiteladatok!$F$16,0,1) -> 1 | Q78: 12.75 | T78: 8
A79: 9. hó | C79: =OTK!P13 -> 0 | G79: =OTK!O13 ->  | K79: =OTK!Q13 ->  | P79: =IF(T79>Hiteladatok!$F$16,0,1) -> 1 | Q79: 12.75 | T79: 9
A80: 10. hó | C80: =OTK!P14 -> 0 | G80: =OTK!O14 ->  | K80: =OTK!Q14 ->  | P80: =IF(T80>Hiteladatok!$F$16,0,1) -> 1 | Q80: 12.75 | T80: 10
A81: 11. hó | C81: =OTK!P15 -> 0 | G81: =OTK!O15 ->  | K81: =OTK!Q15 ->  | P81: =IF(T81>Hiteladatok!$F$16,0,1) -> 1 | Q81: 12.75 | T81: 11
A82: 12. hó | C82: =OTK!P16 -> 0 | G82: =OTK!O16 ->  | K82: =OTK!Q16 ->  | P82: =IF(T82>Hiteladatok!$F$16,0,1) -> 1 | Q82: 12.75 | T82: 12
A83: =CONCATENATE(T83,". év összesen:") -> 1. év összesen: | C83: =SUMIF(OTK!$V$5:$V$304,T83,OTK!$P$5:$P$304) ->  | G83: =SUMIF(OTK!$V$5:$V$304,T83,OTK!$O$5:$O$304) ->  | K83: =K82 ->  | P83: 1 | Q83: 12.75 | T83: 1
A84: =CONCATENATE(T84,". év összesen:") -> 2. év összesen: | C84: =SUMIF(OTK!$V$5:$V$304,T84,OTK!$P$5:$P$304) -> 0 | G84: =SUMIF(OTK!$V$5:$V$304,T84,OTK!$O$5:$O$304) ->  | K84: =K83-E84 ->  | P84: =IF((T84-1)*12>=Hiteladatok!$F$16,0,1) -> 1 | Q84: 12.75 | T84: 2
A85: 3. év összesen: | C85: =SUMIF(OTK!$V$5:$V$304,T85,OTK!$P$5:$P$304) -> 0 | G85: =SUMIF(OTK!$V$5:$V$304,T85,OTK!$O$5:$O$304) ->  | K85: =K84-E85 ->  | P85: =IF((T85-1)*12>=Hiteladatok!$F$16,0,1) -> 1 | Q85: 12.75 | T85: 3
A86: 4. év összesen: | C86: =SUMIF(OTK!$V$5:$V$304,T86,OTK!$P$5:$P$304) -> 0 | G86: =SUMIF(OTK!$V$5:$V$304,T86,OTK!$O$5:$O$304) ->  | P86: =IF((T86-1)*12>=Hiteladatok!$F$16,0,1) -> 1 | Q86: 12.75 | T86: 4
A87: 5. év összesen: | C87: =SUMIF(OTK!$V$5:$V$304,T87,OTK!$P$5:$P$304) -> 0 | G87: =SUMIF(OTK!$V$5:$V$304,T87,OTK!$O$5:$O$304) ->  | P87: =IF((T87-1)*12>=Hiteladatok!$F$16,0,1) -> 1 | Q87: 12.75 | T87: 5
A88: 6. év összesen: | C88: =SUMIF(OTK!$V$5:$V$304,T88,OTK!$P$5:$P$304) -> 0 | G88: =SUMIF(OTK!$V$5:$V$304,T88,OTK!$O$5:$O$304) ->  | P88: =IF((T88-1)*12>=Hiteladatok!$F$16,0,1) -> 1 | Q88: 12.75 | T88: 6
A89: 7. év összesen: | C89: =SUMIF(OTK!$V$5:$V$304,T89,OTK!$P$5:$P$304) -> 0 | G89: =SUMIF(OTK!$V$5:$V$304,T89,OTK!$O$5:$O$304) ->  | P89: =IF((T89-1)*12>=Hiteladatok!$F$16,0,1) -> 1 | Q89: 12.75 | T89: 7
A90: 8. év összesen: | C90: =SUMIF(OTK!$V$5:$V$304,T90,OTK!$P$5:$P$304) -> 0 | G90: =SUMIF(OTK!$V$5:$V$304,T90,OTK!$O$5:$O$304) ->  | P90: =IF((T90-1)*12>=Hiteladatok!$F$16,0,1) -> 1 | Q90: 12.75 | T90: 8
A91: 9. év összesen: | C91: =SUMIF(OTK!$V$5:$V$304,T91,OTK!$P$5:$P$304) -> 0 | G91: =SUMIF(OTK!$V$5:$V$304,T91,OTK!$O$5:$O$304) ->  | P91: =IF((T91-1)*12>=Hiteladatok!$F$16,0,1) -> 1 | Q91: 12.75 | T91: 9
A92: 10. év összesen: | C92: =SUMIF(OTK!$V$5:$V$304,T92,OTK!$P$5:$P$304) -> 0 | G92: =SUMIF(OTK!$V$5:$V$304,T92,OTK!$O$5:$O$304) ->  | P92: =IF((T92-1)*12>=Hiteladatok!$F$16,0,1) -> 1 | Q92: 12.75 | T92: 10
A93: 11. év összesen: | C93: =SUMIF(OTK!$V$5:$V$304,T93,OTK!$P$5:$P$304) -> 0 | G93: =SUMIF(OTK!$V$5:$V$304,T93,OTK!$O$5:$O$304) ->  | P93: =IF((T93-1)*12>=Hiteladatok!$F$16,0,1) -> 1 | Q93: 12.75 | T93: 11
A94: 12. év összesen: | C94: =SUMIF(OTK!$V$5:$V$304,T94,OTK!$P$5:$P$304) -> 0 | G94: =SUMIF(OTK!$V$5:$V$304,T94,OTK!$O$5:$O$304) ->  | P94: =IF((T94-1)*12>=Hiteladatok!$F$16,0,1) -> 1 | Q94: 12.75 | T94: 12
A95: 13. év összesen: | C95: =SUMIF(OTK!$V$5:$V$304,T95,OTK!$P$5:$P$304) -> 0 | G95: =SUMIF(OTK!$V$5:$V$304,T95,OTK!$O$5:$O$304) ->  | P95: =IF((T95-1)*12>=Hiteladatok!$F$16,0,1) -> 1 | Q95: 12.75 | T95: 13
A96: 14. év összesen: | C96: =SUMIF(OTK!$V$5:$V$304,T96,OTK!$P$5:$P$304) -> 0 | G96: =SUMIF(OTK!$V$5:$V$304,T96,OTK!$O$5:$O$304) ->  | P96: =IF((T96-1)*12>=Hiteladatok!$F$16,0,1) -> 1 | Q96: 12.75 | T96: 14
A97: 15. év összesen: | C97: =SUMIF(OTK!$V$5:$V$304,T97,OTK!$P$5:$P$304) -> 0 | G97: =SUMIF(OTK!$V$5:$V$304,T97,OTK!$O$5:$O$304) ->  | P97: =IF((T97-1)*12>=Hiteladatok!$F$16,0,1) -> 1 | Q97: 12.75 | T97: 15
A98: 16. év összesen: | C98: =SUMIF(OTK!$V$5:$V$304,T98,OTK!$P$5:$P$304) -> 0 | G98: =SUMIF(OTK!$V$5:$V$304,T98,OTK!$O$5:$O$304) ->  | P98: =IF((T98-1)*12>=Hiteladatok!$F$16,0,1) -> 1 | Q98: 12.75 | T98: 16
A99: 17. év összesen: | C99: =SUMIF(OTK!$V$5:$V$304,T99,OTK!$P$5:$P$304) -> 0 | G99: =SUMIF(OTK!$V$5:$V$304,T99,OTK!$O$5:$O$304) ->  | P99: =IF((T99-1)*12>=Hiteladatok!$F$16,0,1) -> 1 | Q99: 12.75 | T99: 17
A100: 18. év összesen: | C100: =SUMIF(OTK!$V$5:$V$304,T100,OTK!$P$5:$P$304) -> 0 | G100: =SUMIF(OTK!$V$5:$V$304,T100,OTK!$O$5:$O$304) ->  | P100: =IF((T100-1)*12>=Hiteladatok!$F$16,0,1) -> 1 | Q100: 12.75 | T100: 18
A101: 19. év összesen: | C101: =SUMIF(OTK!$V$5:$V$304,T101,OTK!$P$5:$P$304) -> 0 | G101: =SUMIF(OTK!$V$5:$V$304,T101,OTK!$O$5:$O$304) ->  | P101: =IF((T101-1)*12>=Hiteladatok!$F$16,0,1) -> 1 | Q101: 12.75 | T101: 19
A102: 20. év összesen: | C102: =SUMIF(OTK!$V$5:$V$304,T102,OTK!$P$5:$P$304) -> 0 | G102: =SUMIF(OTK!$V$5:$V$304,T102,OTK!$O$5:$O$304) ->  | P102: =IF((T102-1)*12>=Hiteladatok!$F$16,0,1) -> 1 | Q102: 12.75 | T102: 20
A103: 21. év összesen: | C103: =SUMIF(OTK!$V$5:$V$304,T103,OTK!$P$5:$P$304) -> 0 | G103: =SUMIF(OTK!$V$5:$V$304,T103,OTK!$O$5:$O$304) ->  | P103: =IF((T103-1)*12>=Hiteladatok!$F$16,0,1) -> 0 | Q103: 0 | T103: 21
A104: 22. év összesen: | C104: =SUMIF(OTK!$V$5:$V$304,T104,OTK!$P$5:$P$304) -> 0 | G104: =SUMIF(OTK!$V$5:$V$304,T104,OTK!$O$5:$O$304) ->  | P104: =IF((T104-1)*12>=Hiteladatok!$F$16,0,1) -> 0 | Q104: 0 | T104: 22
A105: 23. év összesen: | C105: =SUMIF(OTK!$V$5:$V$304,T105,OTK!$P$5:$P$304) -> 0 | G105: =SUMIF(OTK!$V$5:$V$304,T105,OTK!$O$5:$O$304) ->  | P105: =IF((T105-1)*12>=Hiteladatok!$F$16,0,1) -> 0 | Q105: 0 | T105: 23
A106: 24. év összesen: | C106: =SUMIF(OTK!$V$5:$V$304,T106,OTK!$P$5:$P$304) -> 0 | G106: =SUMIF(OTK!$V$5:$V$304,T106,OTK!$O$5:$O$304) ->  | P106: =IF((T106-1)*12>=Hiteladatok!$F$16,0,1) -> 0 | Q106: 0 | T106: 24
A107: 25. év összesen: | C107: =SUMIF(OTK!$V$5:$V$304,T107,OTK!$P$5:$P$304) -> 0 | G107: =SUMIF(OTK!$V$5:$V$304,T107,OTK!$O$5:$O$304) ->  | P107: =IF((T107-1)*12>=Hiteladatok!$F$16,0,1) -> 0 | Q107: =P107*$Q$1 -> 0 | T107: 25
A108: Mindösszesen: | C108: =SUM(C83:D107) ->  | E108: =SUM(E83:F107) ->  | G108: =SUM(G83:H107) ->  | I108: =SUM(I83:J107) ->  | K108: =K107 ->  | P108: 1 | Q108: 12.75
A109: A fenti táblázatban szereplő összegek kerekítésre kerültek, így előfordulhat eltérés azok külön-külön történő összeadása során. A megjelenített összegek tájékoztatási célt szolgálnak. A pontos havi törlesztőrészlet összegéről a Bank a jogszabályi előírásoknak megfelelően előzetesen tájékoztatja Önt. | P109: 4 | Q109: 51
A110: 8. További kötelezettségek: | P110: 1 | Q110: 12.75
A111: Önnek a következő kötelezettségeket kell teljesítenie ahhoz, hogy az ebben a dokumentumban ismertetett feltételekkel juthasson hitelhez: | P111: 2 | Q111: 25.5
A112: A hitel folyósítási feltétele, hogy Ön vagy a hitelügylet más kötelezettje rendelkezzen élő, díjrendezett vagyonbiztosítással a fedezetül felajánlott ingatlanra vonatkozóan a hitel lejáratáig. A vagyonbiztosítás megköthető a K&H Biztosító Zrt-nél, illetve bármely más biztosító társaságnál. A vagyonbiztosítás díja a Bank számára nem ismert, így a THM nem tartalmazza, annak díját az Ön és a Biztosító között létrejött vagyonbiztosítási szerződés tartalmazza. Törlesztőrészletek megfizetésének biztosítására Önnek rendelkeznie kell a K&H Bank Zrt.-nál vezetett bankszámlával, vagy Hiteltörlesztő számlával a hitel lejáratáig. | P112: 6 | Q112: 76.5
A113: Felhívjuk figyelmét, hogy akció keretében a K&H Bank által a mindenkor hatályos Hirdetményben megjelölt elengedett, átvállalt illetve visszatérített díjak és költségek visszatérítendők, amennyiben lakástakarékpénztári megtakarítástól eltérő forrásból a szerződéskötéstől számított 2 éven belül (amennyiben a hitel futamideje kevesebb, mint 2 év, akkor ezen futamidőn belül) a hitel végtörlesztésre-, vagy a kölcsönösszeg legalább 50%-ig előtörlesztésre- illetve Bankon kívül álló okokból felmondásra kerül. | P113: 5 | Q113: 63.75
A114: Kamatkedvezményre való jogosultság feltételeinek nem teljesítése esetén, felhívjuk figyelmét, hogy a kamatkedvezményt a K&H Bank Zrt. visszavonja, így a kamatláb változhat, amennyiben Ön nem tesz eleget e kötelezettségeknek. Felhívjuk figyelmét, hogy ha később eláll a hitelhez kapcsolódó bármely kapcsolódó szolgáltatás igénybevételétől, az az alábbi következményekkel járhat: | P114: 4 | Q114: 51
A115: A hitelszerződés felmondásra kerülhet, amennyiben a hitel futamideje alatt: - Ha a Kölcsönszerződés alapján a K&H Bank Zrt. által megkövetelt vagyonbiztosítás díját az arra kötelezett nem, vagy csak részben fizeti meg, vagy e biztosítási szerződés valamely lényeges rendelkezését a szerződő a Bankra nézve hátrányosan megváltoztatja. - Ha az Adós K&H Banknál vezetett, és az Ügyfélszerződésben törlesztő számlaként megjelölt lakossági bankszámlája, vagy Hiteltörlesztő számlája bármely okból megszűnik. | P115: 7 | Q115: 89.25
A116: 9. Előtörlesztés: | P116: 1 | Q116: 12.75
A117: Ön jogosult a hitel részleges vagy teljes előtörlesztésére. - Az Adós a Tőketartozást a lejárat előtt részben, vagy teljes egészében előtörlesztheti, amennyiben erre irányuló szándékát a Bank felé írásban jelzi A banki munkanapokon 15:00 óráig befogadott előtörlesztési kérelmet a Bank a benyújtás napján végrehajtja, amennyiben annak fedezete a törlesztő számlán rendelkezésre áll. A 15:00 óra után benyújtott előtörlesztési nyilatkozatot a Bank csak a következő banki munkanapra fogadja be. Az esedékesség előtt visszafizetett tőkerésszel csökkentett tartozás alapján a hátralévő Futamidőnek megfelelő átértékelt Törlesztőrészlet összegéről a Bank az Adóst írásban értesíti. A Végtörlesztés szándékának bejelentése önmagában nem minősül a Kölcsönszerződés Adós általi felmondásának. Elő- és végtörlesztés esetén az Adós köteles az Elő- és Végtörlesztés napjáig megszolgált kamatokat és díjakat maradéktalanul megfizetni. | P117: 9 | Q117: 114.75
A118: - Amennyiben az Adóstárs kíván Előtörlesztést végrehajtani, akkor az Adóstárs az Adós törlesztő számlája felett kizárólag a befizetett összeg törlesztésre fordítása tárgyában rendelkezhet. Az Adós elismeri, hogy az Adóstárs, Kezes, zálogkötelezett, és a kölcsön biztosítékát nyújtó, vagy annak visszafizetéséért bármilyen személyes vagy dologi kötelezettséget vállaló harmadik fél olyan személynek minősül, akinek a kölcsön visszafizetéséhez törvényes érdeke fűződik, ezért az általuk felajánlott teljesítést a Bank az Adós hozzájárulása nélkül is jogosult elfogadni. | P118: 5 | Q118: 63.75
A119: A Bank jogosult az előtörlesztéssel kapcsolatban felmerült költségei megtérítésére, az előtörlesztés díjának mértékét a mindenkor hatályos lakossági hitelekre vonatkozó Hirdetmény tartalmazza, de jelzáloghitel előtörlesztése esetén legfeljebb az előtörlesztett összeg 1 százaléka. | P119: 4 | Q119: 51
A120: 10. Rugalmas elemek: | P120: 1 | Q120: 12.75
A121: Az ügyfél írásos formában kérheti a szerződés módosítását (pl. ügyleti szereplőben, fedezetek körében történő változás). A K&H Bank Zrt. minden esetben fenntartja a szükséges dokumentumok bekérésének, és a kérelem elbírálásának jogát. A szerződésmódosítások díja a mindenkor hatályos lakossági hitelekre vonatkozó Hirdetményben megtalálható. Önnek lehetősége van ezt a hitelt más hitelezőhöz átvinni, melynek feltételei a végtörlesztés feltételeivel azonosak. Amennyiben fizetési nehézségei támadnak a havi törlesztőrészletek fizetésével kapcsolatban, kérjük, haladéktalanuk keressen meg minket,, hogy megoldást találjunk problémájára a törlesztéskönnyítő lehetőségek közül. | P121: 7 | Q121: 89.25
A122: 11. A fogyasztó egyéb jogai: | P122: 1 | Q122: 12.75
A123: 15 nap gondolkodási idő áll a rendelkezésére a hitel felvételéről szóló döntéshez. Miután kézhez kapta a hitelszerződés tervezetét a hitelezőtől, csak 3 nap eltelte után fogadhatja el az ajánlatot. Önnek az alábbi esetben van joga elállni a hitelügylettől: • szerződés aláírását megelőzően (kérelem visszavonás), • szerződés aláírását követően, a folyósítást megelőzően (szerződéstől elállás). Az elállásra vonatkozó igényét írásban nyújthatja be a bankfiókban. | P123: 6 | Q123: 76.5
A124: Szerződéskötést követően köteles a Bank részére visszatéríteni azokat a díjakat, melyek a konstrukció hirdetményi adottságainál fogva is az Ügyfelet terhelnék Folyósítást követően Ön nem jogosult elállni a hitelügylettől, a kölcsön csak végtörlesztéssel szüntethető meg. Amennyiben úgy dönt, hogy él az elállás jogával, kérjük, ellenőrizze, hogy továbbra is vonatkoznak-e Önre a 8. pontban említett, a hitelhez kapcsolódó egyéb kötelezettségek (vagyonbiztosítás, törlesztő számla). | P124: 6 | Q124: 76.5
A125: 12. Panaszok: | P125: 1 | Q125: 12.75
A126: Amennyiben panasza van, kérjük vegye fel a kapcsolatot a Lakossági Panaszkezelési Csoporttal. Felmerülő panaszát benyújthatja bármely bankfiókunkban, vagy a TeleCenteren a (06 1/20/30/70) 335 3355 telefonszámon keresztül illetve a bank@kh.hu email címen. A panasz kezelésére rendelkezésre álló idő legfeljebb 30 nap. Amennyiben a panaszára Ön nem kap számára kielégítő választ, a következő szervezetekhez is fordulhat: Pénzügyi Békéltető Testület, vagy amennyiben Ön más tagállamban lakóhellyel rendelkezik, kapcsolatba léphet a FIN-NET (http://ec.europa.eu/internal_market/fin-net/) hálózattal, amelytől elkérheti az Ön országában ezzel egyenértékű szerv adatait. | P126: 8 | Q126: 102
A127: 13. A hitelhez kapcsolódó kötelezettségeknek való nem megfelelés következményei a fogyasztóra nézve: | P127: 1 | Q127: 12.75
A128: A K&H Bank Zrt. a Kölcsönszerződést azonnali hatállyal jogosult felmondani, amennyiben a lakossági hitelekre vonatkozó ÁSZF-ben megtalálható Súlyos Szerződésszegési Események bekövetkeznek (pl. nemteljesítés, fizetési késedelem, fedezet elvonás, biztosítéki szerződésszegés). A felmondás hatályosulásával a teljes tartozás lejárttá és közvetlen végrehajtás, vagy egyéb törvényes úton egyösszegben követelhetővé válik, mely esetben az adott értéknapon nyilvántartott lejárt tartozásra a Bank jogosult késedelmi kamatot felszámítani. A központi hitelinformációs rendszerről szóló 2011. évi CXXII. törvényben meghatározott esetekben a fogyasztó felkerül a KHR-be. A biztosítékul felajánlott ingatlan/ok végrehajtás alá kerülhet. A Bank jogosult a követelést harmadik személy részére engedményezni. Amennyiben nehézségei támadnak a havi törlesztőrészletek fizetésével kapcsolatban, kérjük, mielőbb keressen meg minket, hogy megfelelő megoldást találjunk a problémára. A részletfizetések elmaradása esetén otthona végső esetben végrehajtás alá kerülhet. | P128: 11 | Q128: 140.25
A129: 14. Felügyelet: | P129: 1 | Q129: 12.75
A130: A K&H Bank Zrt, hitelező a Magyar Nemzeti Bank, http://www.mnb.hu/ felügyelete alá tartozik. A hitelközvetítő a Magyar Nemzeti Bank, http://www.mnb.hu/ felügyelete alá tartozik. | P130: 2 | Q130: 25.5
P131: 1 | Q131: 12.75
A132: Jelen tájékoztató a 3/2016 NGM Rendelet 2. számú melléklete alapján készült. Jelen tájékoztatóban szereplő díjak, költségek, hitel teljes díja mértéke és/vagy összegszerűsége az aktuális kondíciók változatlansága esetén érvényes! | P132: 3 | Q132: 38.25
A133: Aláírásommal igazolom, hogy a Személyes tájékoztatás a jelzáloghitelekről formanyomtatvány egy példányát átvettem és a 2009. évi CLXII. törvény 5., 7., 12., 13. §-a szerinti felvilágosítást a jogszabályokban meghatározott időrendi sorrendben, részletezettségben és formában megkaptam. | P133: 5 | Q133: 63.75
A134: =CONCATENATE("Kelt: …………………………………...……… , ",TEXT(TODAY(),"éééé.hh.nn")) -> Kelt: …………………………………...……… , 2021.07.09 | P134: 1 | Q134: 12.75
C135: ………………………………. | I135: =IF(Ügyféladatok!$F$50>1,"……………………………….","") -> ………………………………. | P135: 4 | Q135: 51
A136: Ügyfél neve: | C136: =HLOOKUP(1,Ügyféladatok!$B$51:$E$57,4,FALSE) ->  | I136: =IF(Ügyféladatok!$F$50>1,HLOOKUP(2,Ügyféladatok!$B$51:$E$57,4,FALSE),"") ->  | P136: 1 | Q136: 12.75
A137: Születési dátum: | C137: =HLOOKUP(1,Ügyféladatok!$B$51:$E$57,5,FALSE) ->  | I137: =IF(Ügyféladatok!$F$50>1,HLOOKUP(2,Ügyféladatok!$B$51:$E$57,5,FALSE),"") ->  | P137: 1 | Q137: 12.75
A138: Anyja neve: | C138: =HLOOKUP(1,Ügyféladatok!$B$51:$E$57,6,FALSE) ->  | I138: =IF(Ügyféladatok!$F$50>1,HLOOKUP(2,Ügyféladatok!$B$51:$E$57,6,FALSE),"") ->  | P138: 1 | Q138: 12.75
A139: Lakcím: | C139: =HLOOKUP(1,Ügyféladatok!$B$51:$E$57,7,FALSE) ->  | I139: =IF(Ügyféladatok!$F$50>1,HLOOKUP(2,Ügyféladatok!$B$51:$E$57,7,FALSE),"") ->  | P139: 2 | Q139: 25.5
C140: =IF(Ügyféladatok!$F$50>2,"……………………………….","") ->  | I140: =IF(Ügyféladatok!$F$50>3,"……………………………….","") ->  | P140: =IF(Ügyféladatok!$F$50>2,4,0) -> 0 | Q140: 0
A141: =IF(Ügyféladatok!$F$52>2,A136,"") ->  | C141: =IF(Ügyféladatok!$F$50>2,HLOOKUP(3,Ügyféladatok!$B$51:$E$57,4,FALSE),"") ->  | I141: =IF(Ügyféladatok!$F$50>3,HLOOKUP(4,Ügyféladatok!$B$51:$E$57,4,FALSE),"") ->  | P141: =IF(Ügyféladatok!$F$50>2,1,0) -> 0 | Q141: 0
A142: =IF(Ügyféladatok!$F$52>2,A137,"") ->  | C142: =IF(Ügyféladatok!$F$50>2,HLOOKUP(3,Ügyféladatok!$B$51:$E$57,5,FALSE),"") ->  | I142: =IF(Ügyféladatok!$F$50>3,HLOOKUP(4,Ügyféladatok!$B$51:$E$57,5,FALSE),"") ->  | P142: =IF(Ügyféladatok!$F$50>2,1,0) -> 0 | Q142: 0
A143: =IF(Ügyféladatok!$F$52>2,A138,"") ->  | C143: =IF(Ügyféladatok!$F$50>2,HLOOKUP(3,Ügyféladatok!$B$51:$E$57,6,FALSE),"") ->  | I143: =IF(Ügyféladatok!$F$50>3,HLOOKUP(4,Ügyféladatok!$B$51:$E$57,6,FALSE),"") ->  | P143: =IF(Ügyféladatok!$F$50>2,1,0) -> 0 | Q143: 0
A144: =IF(Ügyféladatok!$F$52>2,A139,"") ->  | C144: =IF(Ügyféladatok!$F$50>2,HLOOKUP(3,Ügyféladatok!$B$51:$E$57,7,FALSE),"") ->  | I144: =IF(Ügyféladatok!$F$50>3,HLOOKUP(4,Ügyféladatok!$B$51:$E$57,7,FALSE),"") ->  | P144: =IF(Ügyféladatok!$F$50>2,2,0) -> 0 | Q144: 0

Sheet Nyil-MFL (hidden)
U1: Végig fix kamat mellett a jelen kockázatfeltáró nyilatkozatra NINCS SZÜKSÉG!
A11: K&H Bank Zrt.
A13: 1095 Budapest, Lechner Ödön fasor 9.
A14: Telefon: (06 1) 328 9000, (06 30) 761 9000
A15: Fax: (06 1) 328 9696
A16: www.kh.hu • bank@kh.hu
A18: KOCKÁZATFELTÁRÓ NYILATKOZAT
A20: Kijelentem, hogy megismertem a K&H Bank Zrt. (továbbiakban: Bank) által a részemre bemutatott Üzletszabályzatot és Általános Szerződési Feltételeket. Kijelentem, hogy az alábbi kockázatfeltáró nyilatkozatot elolvastam, megértettem és jóváhagyólag aláírtam, továbbá 1 (egy) példányát átvettem.
A22: =CONCATENATE("K&H ",Hiteladatok!A14) -> 
A25: Tudomásom van arról, hogy a Konstrukció során felmerül a kamat változásából adódóan a veszteség kockázata. Ennek megfelelően a Bank részemre az alábbi tájékoztatást adta, amelyet figyelembe vettem a Konstrukcióra vonatkozó Hitelkérelem benyújtásakor: A havi törlesztőrészlet megállapítása során a Bank a következő képletet alkalmazza:
A30: Ahol: t = a havonta fizetendő törlesztőrészlet (Ft)
A31: H = a felvett hitel összege (Ft)
A32: p = évi ügyleti kamatláb/12
A33: n = a hitel Futamideje (hónap)
A34: kk = havi kezelési költség (Ft) | U34: =CONCATENATE("A Kölcsön ügyleti kamata változó, mértéke évi: 12 havi BUBOR + ",TEXT(ROUND(100*('Új PD'!D14-kondíciók!B5),2),"# ##,00"),"% (kamatfelár), amely kamatfelár fix, a futamidő alatt nem változik. A kamatláb jelenleg évi ",TEXT(ROUND(100*'Új PD'!D14,2),"# ##,00"),"%.") -> 
U35: Az ügyleti kamat a következő kamatperiódus vonatkozásában a szerződésben rögzített kamatváltoztatási mutató alapján, az irányadó szerződési feltételeknek megfelelően, a mindenkori hatályos Hirdetmény szerint változhat, melyről a Bank írásban tájékoztatja az Adóst.
A36: A kamatszámítás napi kamatszámítással történik, melynek képlete: | U36: Kölcsön referencia kamatlába: a kamatperiódus kezdetét megelőző hónap utolsó munkanapja előtt 2 nappal érvényes 12 havi BUBOR.
A40: Ahol: K = kamatösszeg (Ft)
A41: T = Tőke (Ft)
A42: k = évi ügyleti kamatláb
A43: n = kamatnapok száma
A45: =IF('Ind-Sz-MFL'!V22=1,U34,"") ->  | V45: =MAX(MFL!AD8:AD366) -> 
A46: =IF('Ind-Sz-MFL'!V22=2,U35,IF('Ind-Sz-MFL'!V22=1,U36,"végig fix, úgyse kell a nyilatkozat")) ->  | U46: =CONCATENATE(IF(Hiteladatok!B17=Hiteladatok!R23,"a 12 havi Bubor a jelenlegi ",""),kondíciók!B5*100,"%-ról ",100*kondíciók!B5+1,"%-ra emelkedik és ezáltal ") -> 1,34%-ról 2,34%-ra emelkedik és ezáltal
U47: =CONCATENATE(100*MFL!B3,"%-ról ",100*MFL!B3+1,"%-ra változik a 2. kamatperiódusra, ") -> 
A48: Amennyiben a forint kamatkörnyezet a második kamatperiódusra 100 bázisponttal csökken és ezt követően tartósan az így kialakult kamatszinten stabilizálódik, az általam igényelt Konstrukció mindenkori törlesztőrészlete, illetve a tőketartozás alakulása az 1. számú táblázat szerint várható a futamidő során. | U48: =CONCATENATE("a havi törlesztőrészlet ",TEXT(ROUND(MFL!B10,0),"# ##")," Ft helyett ",TEXT(ROUND(V45,0),"# ##")," Ft lesz a 2. kamatperiódustól.") -> 
A49: Amennyiben a forint kamatszintje 100 bázisponttal emelkedik a második kamatperiódusra és ezt követően tartósan az így kialakult kamatszinten stabilizálódik, akkor az általam igényelt Konstrukció mindenkori törlesztőrészlete illetve a tőketartozás alakulása a 2. számú táblázat szerint várható a futamidő során.
A50: =CONCATENATE("Amennyiben tehát ",IF(Hiteladatok!B17=Hiteladatok!R23,'Nyil-MFL'!U46,""),"az ügyleti kamatláb ",U47,U48) -> 
A53: Tisztában vagyok azzal a ténnyel, hogy a Konstrukció ki van téve a piaci kamatok mozgásának.
A54: Tudomásom van arról, hogy az általam igényelt hitel futamideje alatt a kamatláb emelkedése esetén a kamatperiódusokon belül állandó havi törlesztőrészletek akár jelentős mértékben is magasabbak lehetnek, mint a megelőző kamatperiódusban.
A55: Tudomásom van arról is, hogy a jelen Kockázatfeltáró Nyilatkozat csak figyelemfelkeltő és a Konstrukció jellegéből adódóan nem tartalmazhatja az ügyletkötés során jelentkező valamennyi kockázatot és veszélyforrást.
A56: Aláírásommal igazolom, hogy a Hitelszerződést megelőző tájékoztatót, az Általános tájékoztatást a jelzáloghitelekről valamint a Személyes tájékoztatás a jelzáloghitelről formanyomtatvány egy példányát átvettem és a 2009.évi CLXII. törvény 11.§-a szerinti felvilágosítást megkaptam.
A59: =CONCATENATE("Kelt: ",TEXT(TODAY(),"éééé.hh.nn")) -> Kelt: 2021.07.09
D61: ………………………………. | I61: =IF(Ügyféladatok!$F$50>1,"……………………………….","") -> ……………………………….
A63: Ügyfél neve: | D63: =HLOOKUP(1,Ügyféladatok!$B$51:$E$57,4,FALSE) ->  | I63: =IF(Ügyféladatok!$F$50>1,HLOOKUP(2,Ügyféladatok!$B$51:$E$57,4,FALSE),"") -> 
A64: Születési dátum: | D64: =HLOOKUP(1,Ügyféladatok!$B$51:$E$57,5,FALSE) ->  | I64: =IF(Ügyféladatok!$F$50>1,HLOOKUP(2,Ügyféladatok!$B$51:$E$57,5,FALSE),"") -> 
A65: Anyja neve: | D65: =HLOOKUP(1,Ügyféladatok!$B$51:$E$57,6,FALSE) ->  | I65: =IF(Ügyféladatok!$F$50>1,HLOOKUP(2,Ügyféladatok!$B$51:$E$57,6,FALSE),"") -> 
A66: Lakcím: | D66: =HLOOKUP(1,Ügyféladatok!$B$51:$E$57,7,FALSE) ->  | I66: =IF(Ügyféladatok!$F$50>1,HLOOKUP(2,Ügyféladatok!$B$51:$E$57,7,FALSE),"") -> 
D69: =IF(Ügyféladatok!$F$50>2,"……………………………….","") ->  | I69: =IF(Ügyféladatok!$F$50>3,"……………………………….","") -> 
A71: =IF(Ügyféladatok!$F$52>2,A63,"") ->  | D71: =IF(Ügyféladatok!$F$50>2,HLOOKUP(3,Ügyféladatok!$B$51:$E$57,4,FALSE),"") ->  | I71: =IF(Ügyféladatok!$F$50>3,HLOOKUP(4,Ügyféladatok!$B$51:$E$57,4,FALSE),"") -> 
A72: =IF(Ügyféladatok!$F$52>2,A64,"") ->  | D72: =IF(Ügyféladatok!$F$50>2,HLOOKUP(3,Ügyféladatok!$B$51:$E$57,5,FALSE),"") ->  | I72: =IF(Ügyféladatok!$F$50>3,HLOOKUP(4,Ügyféladatok!$B$51:$E$57,5,FALSE),"") -> 
A73: =IF(Ügyféladatok!$F$52>2,A65,"") ->  | D73: =IF(Ügyféladatok!$F$50>2,HLOOKUP(3,Ügyféladatok!$B$51:$E$57,6,FALSE),"") ->  | I73: =IF(Ügyféladatok!$F$50>3,HLOOKUP(4,Ügyféladatok!$B$51:$E$57,6,FALSE),"") -> 
A74: =IF(Ügyféladatok!$F$52>2,A66,"") ->  | D74: =IF(Ügyféladatok!$F$50>2,HLOOKUP(3,Ügyféladatok!$B$51:$E$57,7,FALSE),"") ->  | I74: =IF(Ügyféladatok!$F$50>3,HLOOKUP(4,Ügyféladatok!$B$51:$E$57,7,FALSE),"") -> 
A78: Tanú: …………………………………………… | I78: Tanú: ……………………………………………
A79: Szem.ig.szám: …………………………….. | I79: Szem.ig.szám: ……………………………..
A80: Lakcím: ……………………………………….. | I80: Lakcím: ………………………………………..
A82: táblázat - 1 | I82: táblázat - 2
A83: Év | B83: Kamat periódus | C83: Ügyleti kamat % | E83: Havi részlet Ft | G83: Fennmaradó tőke Ft | I83: Év | J83: Kamat periódus | K83: Ügyleti kamat % | M83: Havi részlet Ft | O83: Fennmaradó tőke Ft | U83: sormagasság
A84: 1 | B84: =VLOOKUP(A84*12,MFL!$E$7:$AK$366,22,FALSE) -> 1 | C84: =VLOOKUP(A84*12,MFL!$E$7:$AK$366,30,FALSE) ->  | E84: =VLOOKUP(A84*12,MFL!$E$7:$AK$366,32,FALSE) ->  | G84: =VLOOKUP(A84*12,MFL!$E$7:$AK$366,33,FALSE) ->  | I84: =A84 -> 1 | J84: =B84 -> 1 | K84: =VLOOKUP(A84*12,MFL!$E$7:$AK$366,24,FALSE) ->  | M84: =VLOOKUP(I84*12,MFL!$E$7:$AK$366,26,FALSE) ->  | O84: =VLOOKUP(I84*12,MFL!$E$7:$AK$366,27,FALSE) ->  | U84: 1 | V84: 12.75
A85: =A84+1 -> 2 | B85: =VLOOKUP(A85*12,MFL!$E$7:$AK$366,22,FALSE) -> 1 | C85: =VLOOKUP(A85*12,MFL!$E$7:$AK$366,30,FALSE) ->  | E85: =VLOOKUP(A85*12,MFL!$E$7:$AK$366,32,FALSE) ->  | G85: =VLOOKUP(A85*12,MFL!$E$7:$AK$366,33,FALSE) ->  | I85: =A85 -> 2 | J85: =B85 -> 1 | K85: =VLOOKUP(A85*12,MFL!$E$7:$AK$366,24,FALSE) ->  | M85: =VLOOKUP(I85*12,MFL!$E$7:$AK$366,26,FALSE) ->  | O85: =VLOOKUP(I85*12,MFL!$E$7:$AK$366,27,FALSE) ->  | U85: =IF(G84>0,1,0) ->  | V85: =U85*$V$84 -> 
A86: =A85+1 -> 3 | B86: =VLOOKUP(A86*12,MFL!$E$7:$AK$366,22,FALSE) -> 1 | C86: =VLOOKUP(A86*12,MFL!$E$7:$AK$366,30,FALSE) ->  | E86: =VLOOKUP(A86*12,MFL!$E$7:$AK$366,32,FALSE) ->  | G86: =VLOOKUP(A86*12,MFL!$E$7:$AK$366,33,FALSE) ->  | I86: 3 | J86: 1 | K86: =VLOOKUP(A86*12,MFL!$E$7:$AK$366,24,FALSE) ->  | M86: =VLOOKUP(I86*12,MFL!$E$7:$AK$366,26,FALSE) ->  | O86: =VLOOKUP(I86*12,MFL!$E$7:$AK$366,27,FALSE) ->  | U86: =IF(G85>0,1,0) ->  | V86: =U86*$V$84 -> 
A87: 4 | B87: =VLOOKUP(A87*12,MFL!$E$7:$AK$366,22,FALSE) -> 1 | C87: =VLOOKUP(A87*12,MFL!$E$7:$AK$366,30,FALSE) ->  | E87: =VLOOKUP(A87*12,MFL!$E$7:$AK$366,32,FALSE) ->  | G87: =VLOOKUP(A87*12,MFL!$E$7:$AK$366,33,FALSE) ->  | I87: 4 | J87: 1 | K87: =VLOOKUP(A87*12,MFL!$E$7:$AK$366,24,FALSE) ->  | M87: =VLOOKUP(I87*12,MFL!$E$7:$AK$366,26,FALSE) ->  | O87: =VLOOKUP(I87*12,MFL!$E$7:$AK$366,27,FALSE) -> 
A88: 5 | B88: =VLOOKUP(A88*12,MFL!$E$7:$AK$366,22,FALSE) -> 1 | C88: =VLOOKUP(A88*12,MFL!$E$7:$AK$366,30,FALSE) ->  | E88: =VLOOKUP(A88*12,MFL!$E$7:$AK$366,32,FALSE) ->  | G88: =VLOOKUP(A88*12,MFL!$E$7:$AK$366,33,FALSE) ->  | I88: 5 | J88: 1 | K88: =VLOOKUP(A88*12,MFL!$E$7:$AK$366,24,FALSE) ->  | M88: =VLOOKUP(I88*12,MFL!$E$7:$AK$366,26,FALSE) ->  | O88: =VLOOKUP(I88*12,MFL!$E$7:$AK$366,27,FALSE) -> 
A89: 6 | B89: =VLOOKUP(A89*12,MFL!$E$7:$AK$366,22,FALSE) -> 1 | C89: =VLOOKUP(A89*12,MFL!$E$7:$AK$366,30,FALSE) ->  | E89: =VLOOKUP(A89*12,MFL!$E$7:$AK$366,32,FALSE) ->  | G89: =VLOOKUP(A89*12,MFL!$E$7:$AK$366,33,FALSE) ->  | I89: 6 | J89: 1 | K89: =VLOOKUP(A89*12,MFL!$E$7:$AK$366,24,FALSE) ->  | M89: =VLOOKUP(I89*12,MFL!$E$7:$AK$366,26,FALSE) ->  | O89: =VLOOKUP(I89*12,MFL!$E$7:$AK$366,27,FALSE) -> 
A90: 7 | B90: =VLOOKUP(A90*12,MFL!$E$7:$AK$366,22,FALSE) -> 1 | C90: =VLOOKUP(A90*12,MFL!$E$7:$AK$366,30,FALSE) ->  | E90: =VLOOKUP(A90*12,MFL!$E$7:$AK$366,32,FALSE) ->  | G90: =VLOOKUP(A90*12,MFL!$E$7:$AK$366,33,FALSE) ->  | I90: 7 | J90: 1 | K90: =VLOOKUP(A90*12,MFL!$E$7:$AK$366,24,FALSE) ->  | M90: =VLOOKUP(I90*12,MFL!$E$7:$AK$366,26,FALSE) ->  | O90: =VLOOKUP(I90*12,MFL!$E$7:$AK$366,27,FALSE) -> 
A91: 8 | B91: =VLOOKUP(A91*12,MFL!$E$7:$AK$366,22,FALSE) -> 1 | C91: =VLOOKUP(A91*12,MFL!$E$7:$AK$366,30,FALSE) ->  | E91: =VLOOKUP(A91*12,MFL!$E$7:$AK$366,32,FALSE) ->  | G91: =VLOOKUP(A91*12,MFL!$E$7:$AK$366,33,FALSE) ->  | I91: 8 | J91: 1 | K91: =VLOOKUP(A91*12,MFL!$E$7:$AK$366,24,FALSE) ->  | M91: =VLOOKUP(I91*12,MFL!$E$7:$AK$366,26,FALSE) ->  | O91: =VLOOKUP(I91*12,MFL!$E$7:$AK$366,27,FALSE) -> 
A92: 9 | B92: =VLOOKUP(A92*12,MFL!$E$7:$AK$366,22,FALSE) -> 1 | C92: =VLOOKUP(A92*12,MFL!$E$7:$AK$366,30,FALSE) ->  | E92: =VLOOKUP(A92*12,MFL!$E$7:$AK$366,32,FALSE) ->  | G92: =VLOOKUP(A92*12,MFL!$E$7:$AK$366,33,FALSE) ->  | I92: 9 | J92: 1 | K92: =VLOOKUP(A92*12,MFL!$E$7:$AK$366,24,FALSE) ->  | M92: =VLOOKUP(I92*12,MFL!$E$7:$AK$366,26,FALSE) ->  | O92: =VLOOKUP(I92*12,MFL!$E$7:$AK$366,27,FALSE) -> 
A93: 10 | B93: =VLOOKUP(A93*12,MFL!$E$7:$AK$366,22,FALSE) -> 1 | C93: =VLOOKUP(A93*12,MFL!$E$7:$AK$366,30,FALSE) ->  | E93: =VLOOKUP(A93*12,MFL!$E$7:$AK$366,32,FALSE) ->  | G93: =VLOOKUP(A93*12,MFL!$E$7:$AK$366,33,FALSE) ->  | I93: 10 | J93: 1 | K93: =VLOOKUP(A93*12,MFL!$E$7:$AK$366,24,FALSE) ->  | M93: =VLOOKUP(I93*12,MFL!$E$7:$AK$366,26,FALSE) ->  | O93: =VLOOKUP(I93*12,MFL!$E$7:$AK$366,27,FALSE) -> 
A94: 11 | B94: =VLOOKUP(A94*12,MFL!$E$7:$AK$366,22,FALSE) -> 2 | C94: =VLOOKUP(A94*12,MFL!$E$7:$AK$366,30,FALSE) ->  | E94: =VLOOKUP(A94*12,MFL!$E$7:$AK$366,32,FALSE) ->  | G94: =VLOOKUP(A94*12,MFL!$E$7:$AK$366,33,FALSE) ->  | I94: 11 | J94: 2 | K94: =VLOOKUP(A94*12,MFL!$E$7:$AK$366,24,FALSE) ->  | M94: =VLOOKUP(I94*12,MFL!$E$7:$AK$366,26,FALSE) ->  | O94: =VLOOKUP(I94*12,MFL!$E$7:$AK$366,27,FALSE) -> 
A95: 12 | B95: =VLOOKUP(A95*12,MFL!$E$7:$AK$366,22,FALSE) -> 2 | C95: =VLOOKUP(A95*12,MFL!$E$7:$AK$366,30,FALSE) ->  | E95: =VLOOKUP(A95*12,MFL!$E$7:$AK$366,32,FALSE) ->  | G95: =VLOOKUP(A95*12,MFL!$E$7:$AK$366,33,FALSE) ->  | I95: 12 | J95: 2 | K95: =VLOOKUP(A95*12,MFL!$E$7:$AK$366,24,FALSE) ->  | M95: =VLOOKUP(I95*12,MFL!$E$7:$AK$366,26,FALSE) ->  | O95: =VLOOKUP(I95*12,MFL!$E$7:$AK$366,27,FALSE) -> 
A96: 13 | B96: =VLOOKUP(A96*12,MFL!$E$7:$AK$366,22,FALSE) -> 2 | C96: =VLOOKUP(A96*12,MFL!$E$7:$AK$366,30,FALSE) ->  | E96: =VLOOKUP(A96*12,MFL!$E$7:$AK$366,32,FALSE) ->  | G96: =VLOOKUP(A96*12,MFL!$E$7:$AK$366,33,FALSE) ->  | I96: 13 | J96: 2 | K96: =VLOOKUP(A96*12,MFL!$E$7:$AK$366,24,FALSE) ->  | M96: =VLOOKUP(I96*12,MFL!$E$7:$AK$366,26,FALSE) ->  | O96: =VLOOKUP(I96*12,MFL!$E$7:$AK$366,27,FALSE) -> 
A97: 14 | B97: =VLOOKUP(A97*12,MFL!$E$7:$AK$366,22,FALSE) -> 2 | C97: =VLOOKUP(A97*12,MFL!$E$7:$AK$366,30,FALSE) ->  | E97: =VLOOKUP(A97*12,MFL!$E$7:$AK$366,32,FALSE) ->  | G97: =VLOOKUP(A97*12,MFL!$E$7:$AK$366,33,FALSE) ->  | I97: 14 | J97: 2 | K97: =VLOOKUP(A97*12,MFL!$E$7:$AK$366,24,FALSE) ->  | M97: =VLOOKUP(I97*12,MFL!$E$7:$AK$366,26,FALSE) ->  | O97: =VLOOKUP(I97*12,MFL!$E$7:$AK$366,27,FALSE) -> 
A98: =A97+1 -> 15 | B98: =VLOOKUP(A98*12,MFL!$E$7:$AK$366,22,FALSE) -> 2 | C98: =VLOOKUP(A98*12,MFL!$E$7:$AK$366,30,FALSE) ->  | E98: =VLOOKUP(A98*12,MFL!$E$7:$AK$366,32,FALSE) ->  | G98: =VLOOKUP(A98*12,MFL!$E$7:$AK$366,33,FALSE) ->  | I98: 15 | J98: 2 | K98: =VLOOKUP(A98*12,MFL!$E$7:$AK$366,24,FALSE) ->  | M98: =VLOOKUP(I98*12,MFL!$E$7:$AK$366,26,FALSE) ->  | O98: =VLOOKUP(I98*12,MFL!$E$7:$AK$366,27,FALSE) -> 
A99: 16 | B99: =VLOOKUP(A99*12,MFL!$E$7:$AK$366,22,FALSE) -> 2 | C99: =VLOOKUP(A99*12,MFL!$E$7:$AK$366,30,FALSE) ->  | E99: =VLOOKUP(A99*12,MFL!$E$7:$AK$366,32,FALSE) ->  | G99: =VLOOKUP(A99*12,MFL!$E$7:$AK$366,33,FALSE) ->  | I99: 16 | J99: 2 | K99: =VLOOKUP(A99*12,MFL!$E$7:$AK$366,24,FALSE) ->  | M99: =VLOOKUP(I99*12,MFL!$E$7:$AK$366,26,FALSE) ->  | O99: =VLOOKUP(I99*12,MFL!$E$7:$AK$366,27,FALSE) -> 
A100: 17 | B100: =VLOOKUP(A100*12,MFL!$E$7:$AK$366,22,FALSE) -> 2 | C100: =VLOOKUP(A100*12,MFL!$E$7:$AK$366,30,FALSE) ->  | E100: =VLOOKUP(A100*12,MFL!$E$7:$AK$366,32,FALSE) ->  | G100: =VLOOKUP(A100*12,MFL!$E$7:$AK$366,33,FALSE) ->  | I100: 17 | J100: 2 | K100: =VLOOKUP(A100*12,MFL!$E$7:$AK$366,24,FALSE) ->  | M100: =VLOOKUP(I100*12,MFL!$E$7:$AK$366,26,FALSE) ->  | O100: =VLOOKUP(I100*12,MFL!$E$7:$AK$366,27,FALSE) -> 
A101: 18 | B101: =VLOOKUP(A101*12,MFL!$E$7:$AK$366,22,FALSE) -> 2 | C101: =VLOOKUP(A101*12,MFL!$E$7:$AK$366,30,FALSE) ->  | E101: =VLOOKUP(A101*12,MFL!$E$7:$AK$366,32,FALSE) ->  | G101: =VLOOKUP(A101*12,MFL!$E$7:$AK$366,33,FALSE) ->  | I101: 18 | J101: 2 | K101: =VLOOKUP(A101*12,MFL!$E$7:$AK$366,24,FALSE) ->  | M101: =VLOOKUP(I101*12,MFL!$E$7:$AK$366,26,FALSE) ->  | O101: =VLOOKUP(I101*12,MFL!$E$7:$AK$366,27,FALSE) -> 
A102: 19 | B102: =VLOOKUP(A102*12,MFL!$E$7:$AK$366,22,FALSE) -> 2 | C102: =VLOOKUP(A102*12,MFL!$E$7:$AK$366,30,FALSE) ->  | E102: =VLOOKUP(A102*12,MFL!$E$7:$AK$366,32,FALSE) ->  | G102: =VLOOKUP(A102*12,MFL!$E$7:$AK$366,33,FALSE) ->  | I102: 19 | J102: 2 | K102: =VLOOKUP(A102*12,MFL!$E$7:$AK$366,24,FALSE) ->  | M102: =VLOOKUP(I102*12,MFL!$E$7:$AK$366,26,FALSE) ->  | O102: =VLOOKUP(I102*12,MFL!$E$7:$AK$366,27,FALSE) -> 
A103: 20 | B103: =VLOOKUP(A103*12,MFL!$E$7:$AK$366,22,FALSE) -> 2 | C103: =VLOOKUP(A103*12,MFL!$E$7:$AK$366,30,FALSE) ->  | E103: =VLOOKUP(A103*12,MFL!$E$7:$AK$366,32,FALSE) ->  | G103: =VLOOKUP(A103*12,MFL!$E$7:$AK$366,33,FALSE) ->  | I103: 20 | J103: 2 | K103: =VLOOKUP(A103*12,MFL!$E$7:$AK$366,24,FALSE) ->  | M103: =VLOOKUP(I103*12,MFL!$E$7:$AK$366,26,FALSE) ->  | O103: =VLOOKUP(I103*12,MFL!$E$7:$AK$366,27,FALSE) -> 
A104: =A103+1 -> 21 | B104: =VLOOKUP(A104*12,MFL!$E$7:$AK$366,22,FALSE) -> 3 | C104: =VLOOKUP(A104*12,MFL!$E$7:$AK$366,30,FALSE) ->  | E104: =VLOOKUP(A104*12,MFL!$E$7:$AK$366,32,FALSE) -> 0 | G104: =VLOOKUP(A104*12,MFL!$E$7:$AK$366,33,FALSE) ->  | I104: 21 | J104: 3 | K104: =VLOOKUP(A104*12,MFL!$E$7:$AK$366,24,FALSE) ->  | M104: =VLOOKUP(I104*12,MFL!$E$7:$AK$366,26,FALSE) -> 0 | O104: =VLOOKUP(I104*12,MFL!$E$7:$AK$366,27,FALSE) -> 
A105: 22 | B105: =VLOOKUP(A105*12,MFL!$E$7:$AK$366,22,FALSE) -> 3 | C105: =VLOOKUP(A105*12,MFL!$E$7:$AK$366,30,FALSE) ->  | E105: =VLOOKUP(A105*12,MFL!$E$7:$AK$366,32,FALSE) -> 0 | G105: =VLOOKUP(A105*12,MFL!$E$7:$AK$366,33,FALSE) ->  | I105: 22 | J105: 3 | K105: =VLOOKUP(A105*12,MFL!$E$7:$AK$366,24,FALSE) ->  | M105: =VLOOKUP(I105*12,MFL!$E$7:$AK$366,26,FALSE) -> 0 | O105: =VLOOKUP(I105*12,MFL!$E$7:$AK$366,27,FALSE) -> 
A106: 23 | B106: =VLOOKUP(A106*12,MFL!$E$7:$AK$366,22,FALSE) -> 3 | C106: =VLOOKUP(A106*12,MFL!$E$7:$AK$366,30,FALSE) ->  | E106: =VLOOKUP(A106*12,MFL!$E$7:$AK$366,32,FALSE) -> 0 | G106: =VLOOKUP(A106*12,MFL!$E$7:$AK$366,33,FALSE) ->  | I106: 23 | J106: 3 | K106: =VLOOKUP(A106*12,MFL!$E$7:$AK$366,24,FALSE) ->  | M106: =VLOOKUP(I106*12,MFL!$E$7:$AK$366,26,FALSE) -> 0 | O106: =VLOOKUP(I106*12,MFL!$E$7:$AK$366,27,FALSE) -> 
A107: 24 | B107: =VLOOKUP(A107*12,MFL!$E$7:$AK$366,22,FALSE) -> 3 | C107: =VLOOKUP(A107*12,MFL!$E$7:$AK$366,30,FALSE) ->  | E107: =VLOOKUP(A107*12,MFL!$E$7:$AK$366,32,FALSE) -> 0 | G107: =VLOOKUP(A107*12,MFL!$E$7:$AK$366,33,FALSE) ->  | I107: 24 | J107: 3 | K107: =VLOOKUP(A107*12,MFL!$E$7:$AK$366,24,FALSE) ->  | M107: =VLOOKUP(I107*12,MFL!$E$7:$AK$366,26,FALSE) -> 0 | O107: =VLOOKUP(I107*12,MFL!$E$7:$AK$366,27,FALSE) -> 
A108: 25 | B108: =VLOOKUP(A108*12,MFL!$E$7:$AK$366,22,FALSE) -> 3 | C108: =VLOOKUP(A108*12,MFL!$E$7:$AK$366,30,FALSE) ->  | E108: =VLOOKUP(A108*12,MFL!$E$7:$AK$366,32,FALSE) -> 0 | G108: =VLOOKUP(A108*12,MFL!$E$7:$AK$366,33,FALSE) ->  | I108: 25 | J108: 3 | K108: =VLOOKUP(A108*12,MFL!$E$7:$AK$366,24,FALSE) ->  | M108: =VLOOKUP(I108*12,MFL!$E$7:$AK$366,26,FALSE) -> 0 | O108: =VLOOKUP(I108*12,MFL!$E$7:$AK$366,27,FALSE) -> 
A109: 26 | B109: =VLOOKUP(A109*12,MFL!$E$7:$AK$366,22,FALSE) -> 3 | C109: =VLOOKUP(A109*12,MFL!$E$7:$AK$366,30,FALSE) ->  | E109: =VLOOKUP(A109*12,MFL!$E$7:$AK$366,32,FALSE) -> 0 | G109: =VLOOKUP(A109*12,MFL!$E$7:$AK$366,33,FALSE) ->  | I109: 26 | J109: 3 | K109: =VLOOKUP(A109*12,MFL!$E$7:$AK$366,24,FALSE) ->  | M109: =VLOOKUP(I109*12,MFL!$E$7:$AK$366,26,FALSE) -> 0 | O109: =VLOOKUP(I109*12,MFL!$E$7:$AK$366,27,FALSE) -> 
A110: 27 | B110: =VLOOKUP(A110*12,MFL!$E$7:$AK$366,22,FALSE) -> 3 | C110: =VLOOKUP(A110*12,MFL!$E$7:$AK$366,30,FALSE) ->  | E110: =VLOOKUP(A110*12,MFL!$E$7:$AK$366,32,FALSE) -> 0 | G110: =VLOOKUP(A110*12,MFL!$E$7:$AK$366,33,FALSE) ->  | I110: 27 | J110: 3 | K110: =VLOOKUP(A110*12,MFL!$E$7:$AK$366,24,FALSE) ->  | M110: =VLOOKUP(I110*12,MFL!$E$7:$AK$366,26,FALSE) -> 0 | O110: =VLOOKUP(I110*12,MFL!$E$7:$AK$366,27,FALSE) -> 
A111: 28 | B111: =VLOOKUP(A111*12,MFL!$E$7:$AK$366,22,FALSE) -> 3 | C111: =VLOOKUP(A111*12,MFL!$E$7:$AK$366,30,FALSE) ->  | E111: =VLOOKUP(A111*12,MFL!$E$7:$AK$366,32,FALSE) -> 0 | G111: =VLOOKUP(A111*12,MFL!$E$7:$AK$366,33,FALSE) ->  | I111: 28 | J111: 3 | K111: =VLOOKUP(A111*12,MFL!$E$7:$AK$366,24,FALSE) ->  | M111: =VLOOKUP(I111*12,MFL!$E$7:$AK$366,26,FALSE) -> 0 | O111: =VLOOKUP(I111*12,MFL!$E$7:$AK$366,27,FALSE) -> 
A112: =A111+1 -> 29 | B112: =VLOOKUP(A112*12,MFL!$E$7:$AK$366,22,FALSE) -> 3 | C112: =VLOOKUP(A112*12,MFL!$E$7:$AK$366,30,FALSE) ->  | E112: =VLOOKUP(A112*12,MFL!$E$7:$AK$366,32,FALSE) -> 0 | G112: =VLOOKUP(A112*12,MFL!$E$7:$AK$366,33,FALSE) ->  | I112: 29 | J112: 3 | K112: =VLOOKUP(A112*12,MFL!$E$7:$AK$366,24,FALSE) ->  | M112: =VLOOKUP(I112*12,MFL!$E$7:$AK$366,26,FALSE) -> 0 | O112: =VLOOKUP(I112*12,MFL!$E$7:$AK$366,27,FALSE) -> 
A113: 30 | B113: =VLOOKUP(A113*12,MFL!$E$7:$AK$366,22,FALSE) -> 3 | C113: =VLOOKUP(A113*12,MFL!$E$7:$AK$366,30,FALSE) ->  | E113: =VLOOKUP(A113*12,MFL!$E$7:$AK$366,32,FALSE) -> 0 | G113: =VLOOKUP(A113*12,MFL!$E$7:$AK$366,33,FALSE) ->  | I113: 30 | J113: 3 | K113: =VLOOKUP(A113*12,MFL!$E$7:$AK$366,24,FALSE) ->  | M113: =VLOOKUP(I113*12,MFL!$E$7:$AK$366,26,FALSE) -> 0 | O113: =VLOOKUP(I113*12,MFL!$E$7:$AK$366,27,FALSE) -> 

Sheet Nyil-OTK (hidden)
A3: K&H Bank Zrt.
A5: 1095 Budapest, Lechner Ödön fasor 9.
A6: Telefon: (06 1) 328 9000, (06 30) 761 9000
A7: Fax: (06 1) 328 9696
A8: www.kh.hu • bank@kh.hu
A10: KOCKÁZATFELTÁRÓ NYILATKOZAT
A12: Kijelentem, hogy megismertem a K&H Bank Zrt. (továbbiakban: Bank) által a részemre bemutatott Üzletszabályzatot és Általános Szerződési Feltételeket. Kijelentem, hogy az alábbi kockázatfeltáró nyilatkozatot elolvastam, megértettem és jóváhagyólag aláírtam, továbbá 1 (egy) példányát átvettem.
A14: K&H lakáscélú hitelek állami támogatással extra
A16: Tudomásom van arról, hogy a kamattámogatás feltételeinek nem teljesítése esetén a Konstrukció során felmerül a kamat változásából adódóan a veszteség kockázata. Ennek megfelelően a Bank részemre az alábbi tájékoztatást adta, amelyet figyelembe vettem a Konstrukcióra vonatkozó Hitelkérelem benyújtásakor:
A17: A havi törlesztőrészlet megállapítása során a Bank a következő képletet alkalmazza:
A22: Ahol: t = a havonta fizetendő törlesztőrészlet (Ft)
A23: H = a felvett hitel összege (Ft)
A24: p = évi ügyleti kamatláb/12
A25: n = a hitel Futamideje (hónap)
A26: kk = havi kezelési költség (Ft)
A28: A kamatszámítás napi kamatszámítással történik, melynek képlete:
A33: Ahol: K = kamatösszeg (Ft)
A34: T = Tőke (Ft)
A35: k = évi ügyleti kamatláb
A36: n = kamatnapok száma
A38: Támogatás időszaka alatt: Kölcsön referencia kamatlába: ÁKK Zrt. által havi rendszerességgel közzétett, a közzétételt megelőző három naptári hónapban tartott 5 (öt) éves névleges futamidejű államkötvény aukción kialakult átlaghozamok adott aukción elfogadott mennyiségekkel súlyozott számtani átlaga.
A39: ='Ind-Sz-OTK'!A23 -> A Bank tájékoztatja az Adóst, hogy a Kölcsön referencia kamatlábának mértéke 2021.7. hónapra vonatkozóan 1,83%.
A40: ='Ind-Sz-OTK'!A24 -> Kölcsön referencia kamatlábának mindenkori aktuális mértéke megtekinthető az ÁKK Zrt. honlapján.
A41: Kölcsön ügyleti kamata: referencia kamatláb 130%-a + 3%. Az első kamatperiódusra irányadó ügyleti kamat a folyósításkori Kölcsön referencia kamatláb értékének megfelelően alakul, melyről a Bank írásban tájékoztatja az Adóst.
A43: A Magyar Állam (a továbbiakban: Állam) által a Kölcsön futamidejének első 25 (huszonöt) évében nyújtandó otthonteremtési kamattámogatás (a továbbiakban: Támogatás) jelenlegi mértéke évi: a Kölcsön referencia kamatlábának 130%-a. Az Adós által Fizetendő ügyleti kamat jelenlegi mértéke évi: a Kölcsön ügyleti kamatának a Támogatással csökkentett mértéke, azaz 3%.
A45: Az Állam az otthonteremtési kamattámogatásról szóló 341/2011. (XII. 29.) Korm. rendelet foglaltak alapján a folyósított Kölcsön kamatának megfizetéséhez, a tartozás rendezéséig, legfeljebb azonban a Rendeletben meghatározott időszakban – a Kölcsön futamidejének első 25 (huszonöt) évében – otthonteremtési kamattámogatást nyújt (a továbbiakban: Támogatás). A Támogatás mértéke a Rendelet 7.§ (2) bekezdésében, valamint a 10.§ (3)-(7) és (9)-(10) bekezdésében meghatározottak szerint kerül számításra. Az Adós a Támogatás időszakában a Rendeletben meghatározott mértékű Támogatással csökkentett mértékű ügyleti kamatot fizet. A Bank kötelezettséget vállal arra, hogy az alkalmazott ügyleti kamat mérték mindenkor megfelel a Támogatás igénybevételére a Rendeletben megállapított jogszabályi feltételeknek.
A46: A támogatás megszűnése esetén, amennyiben az ügyfélnek a referencia kamat 130%-át is meg kell fizetnie a referencia-kamatláb változása kétirányú lehet: a piaci hatásoknak megfelelően nőhet és csökkenhet. Amennyiben a referencia kamat nő, akkor nő az ahhoz igazított jelzáloghitel ügyleti kamata is. Ellenkező esetben pedig csökken. A referencia-kamatlábhoz kötött kamatozás - mint amilyen a BUBOR vagy az ÁKK – alkalmazása azt eredményezi, hogy a jelzáloghitel ügyleti kamata mindig a piaci kamatszinteknek megfelelően változik.
A47: =CONCATENATE(U47,TEXT(ROUND(OTK!D6,0),"# ##")," Ft helyett akár ",TEXT(ROUND(OTK!D8,0),"# ##")," Ft-ra is változhat a hátralévő futamidőre vonatkozólag aszerint, hogy mikor történik a Támogatás megvonása.") -> A kamattámogatás feltételeinek nem teljesítése esetén az Adós által fizetendő kamatláb 3%-ról az ÁKK 130% + 3%-ra emelkedik. Az így kialakult kamatszinten az igényelt Konstrukció mindenkori törlesztőrészlete még a referencia kamatláb változatlansága mellett is Ft helyett akár Ft-ra is változhat a hátralévő futamidőre vonatkozólag aszerint, hogy mikor történik a Támogatás megvonása. | U47: A kamattámogatás feltételeinek nem teljesítése esetén az Adós által fizetendő kamatláb 3%-ról az ÁKK 130% + 3%-ra emelkedik. Az így kialakult kamatszinten az igényelt Konstrukció mindenkori törlesztőrészlete még a referencia kamatláb változatlansága mellett is
A48: Tisztában vagyok azzal a ténnyel, hogy a Konstrukció ki van téve a piaci kamatok mozgásának.
A49: Tudomásom van arról, hogy az általam igényelt hitel futamideje alatt a kamatláb emelkedése esetén a kamatperiódusokon belül állandó havi törlesztőrészletek akár jelentős mértékben is magasabbak lehetnek, mint a megelőző kamatperiódusban.
A50: Tudomásom van arról is, hogy a jelen Kockázatfeltáró Nyilatkozat csak figyelemfelkeltő és a Konstrukció jellegéből adódóan nem tartalmazhatja az ügyletkötés során jelentkező valamennyi kockázatot és veszélyforrást.
A54: =CONCATENATE("Kelt: ",TEXT(TODAY(),"éééé.hh.nn")) -> Kelt: 2021.07.09
D56: ………………………………. | I56: =IF(Ügyféladatok!$F$50>1,"……………………………….","") -> ……………………………….
A58: Ügyfél neve: | D58: =HLOOKUP(1,Ügyféladatok!$B$51:$E$57,4,FALSE) ->  | I58: =IF(Ügyféladatok!$F$50>1,HLOOKUP(2,Ügyféladatok!$B$51:$E$57,4,FALSE),"") -> 
A59: Születési dátum: | D59: =HLOOKUP(1,Ügyféladatok!$B$51:$E$57,5,FALSE) ->  | I59: =IF(Ügyféladatok!$F$50>1,HLOOKUP(2,Ügyféladatok!$B$51:$E$57,5,FALSE),"") -> 
A60: Anyja neve: | D60: =HLOOKUP(1,Ügyféladatok!$B$51:$E$57,6,FALSE) ->  | I60: =IF(Ügyféladatok!$F$50>1,HLOOKUP(2,Ügyféladatok!$B$51:$E$57,6,FALSE),"") -> 
A61: Lakcím: | D61: =HLOOKUP(1,Ügyféladatok!$B$51:$E$57,7,FALSE) ->  | I61: =IF(Ügyféladatok!$F$50>1,HLOOKUP(2,Ügyféladatok!$B$51:$E$57,7,FALSE),"") -> 
D64: =IF(Ügyféladatok!$F$50>2,"……………………………….","") ->  | I64: =IF(Ügyféladatok!$F$50>3,"……………………………….","") -> 
A66: =IF(Ügyféladatok!$F$52>2,A58,"") ->  | D66: =IF(Ügyféladatok!$F$50>2,HLOOKUP(3,Ügyféladatok!$B$51:$E$57,4,FALSE),"") ->  | I66: =IF(Ügyféladatok!$F$50>3,HLOOKUP(4,Ügyféladatok!$B$51:$E$57,4,FALSE),"") -> 
A67: =IF(Ügyféladatok!$F$52>2,A59,"") ->  | D67: =IF(Ügyféladatok!$F$50>2,HLOOKUP(3,Ügyféladatok!$B$51:$E$57,5,FALSE),"") ->  | I67: =IF(Ügyféladatok!$F$50>3,HLOOKUP(4,Ügyféladatok!$B$51:$E$57,5,FALSE),"") -> 
A68: =IF(Ügyféladatok!$F$52>2,A60,"") ->  | D68: =IF(Ügyféladatok!$F$50>2,HLOOKUP(3,Ügyféladatok!$B$51:$E$57,6,FALSE),"") ->  | I68: =IF(Ügyféladatok!$F$50>3,HLOOKUP(4,Ügyféladatok!$B$51:$E$57,6,FALSE),"") -> 
A69: =IF(Ügyféladatok!$F$52>2,A61,"") ->  | D69: =IF(Ügyféladatok!$F$50>2,HLOOKUP(3,Ügyféladatok!$B$51:$E$57,7,FALSE),"") ->  | I69: =IF(Ügyféladatok!$F$50>3,HLOOKUP(4,Ügyféladatok!$B$51:$E$57,7,FALSE),"") -> 
A71: Tanú: …………………………………………… | I71: Tanú: ……………………………………………
A72: Szem.ig.szám: …………………………….. | I72: Szem.ig.szám: ……………………………..
A73: Lakcím: ……………………………………….. | I73: Lakcím: ………………………………………..

Sheet Zálogkötelezetti (hidden)
K1: sormagasság | L1: 12.75
A2: K&H Bank Zrt. 1095 Budapest, Lechner Ödön fasor 9. telefon: (06 1) 328 9000 fax: (06 1) 328 9696 Budapest 1851 www.kh.hu • bank@kh.hu | J2: 7 | K2: =J2*$L$1 -> 89.25
A3: ZÁLOGKÖTELEZETTI TÁJÉKOZTATÓ | J3: 4 | K3: 51 | L3: A K&H Bank Zrt. a(z)
A4: =CONCATENATE(L3,Ügyféladatok!B4,Zálogkötelezetti!L5) -> A K&H Bank Zrt. a(z) által a K&H Banktól igényelt jelzáloghitel biztosítására szolgáló zálogjog zálogkötelezettje részére a fogyasztónak nyújtott hitelről szóló 2009. évi CLXII. törvény 1.§ (5) bekezdése, valamint a fogyasztónak nyújtott hitellel kapcsolatos egyes tájékoztatási szabályokról szóló 56/2014 (XII.31.) NGM rendelet 8.§-a alapján az alábbi tájékoztatást nyújtja: | J4: 4 | K4: 51
A5: A hitel típusa: | B5: =CONCATENATE("K&H ",Hiteladatok!A14) ->  | J5: 1 | K5: 12.75 | L5: által a K&H Banktól igényelt jelzáloghitel biztosítására szolgáló zálogjog zálogkötelezettje részére a fogyasztónak nyújtott hitelről szóló 2009. évi CLXII. törvény 1.§ (5) bekezdése, valamint a fogyasztónak nyújtott hitellel kapcsolatos egyes tájékoztatási szabályokról szóló 56/2014 (XII.31.) NGM rendelet 8.§-a alapján az alábbi tájékoztatást nyújtja:
A6: A hitelező neve (cégneve) és levelezési címe: | B6: K&H Bank Zrt., 1095 Budapest, Lechner Ödön fasor 9. | J6: 3 | K6: 38.25
A7: A hitelközvetítő neve (cégneve) és levelezési címe: | B7: =IF('Kezdő oldal'!$B$1="","",CONCATENATE('Kezdő oldal'!$B$1,", ",'Kezdő oldal'!$B$2)) ->  | J7: 3 | K7: 38.25
A8: A hitel teljes összege és lehívásának feltételei: | B8: =CONCATENATE("A hitel összege: ",TEXT(ROUND(Hiteladatok!B15,0),"# ##")," forint") -> A hitel összege: forint | J8: 2 | K8: 25.5
B9: - A Bank a kölcsön összegét (beleértve a költségvetési támogatásokat) az egyedi Ügyfélszerződés – illetőleg a megfelelő Biztosítékra (önálló zálogjog) vonatkozó szerződések – az előírt alakiságoknak megfelelő formában történt aláírását követően, abban az esetben folyósítja, amennyiben a Kölcsönszerződés hatályba lépett, és a Kölcsönszerződésben előírt Előfeltételek a Bank által előírt formában és tartalommal maradéktalanul teljesültek. A kölcsön folyósítása az utolsó Előfeltétel teljesülésének a Bank részére történő igazolását követő öt banki munkanapon belül történik. - A kölcsön folyósításának valamennyi Lakossági Kölcsön esetében feltétele, hogy az Adós a Banknál lakossági bankszámlával vagy Hiteltörlesztési számlával rendelkezzen, továbbá a Kölcsönszerződés alapján a Folyósítás Napjáig esedékessé váló díjakat és költségeket a Bank részére maradéktalanul megfizesse. Amennyiben az Adós saját erő (önerő vagy önrész) megfizetésére is köteles, úgy az Adós azt a kölcsön folyósítását, illetőleg a kölcsönösszeg kifizetését megelőzően köteles maradéktalanul megfizetni és ennek megtörténtét a Bank felé igazolni. | J9: 12 | K9: 153
B10: - A folyósítás az egyedi Ügyfélszerződésben meghatározott időpontban vagy időszak alatt, egy összegben vagy részletekben történik. Amennyiben a Folyósítás Napja vagy a folyósításra rendelkezésre álló időtartam utolsó napja munkaszüneti- vagy bankszünnap, a folyósítási kötelezettség végső határideje az azt megelőző munkanap. - A Bank a kölcsönt az Adós személyes jelenlétében, vagy az Adós (a Bank saját, egyoldalú döntése szerint közokiratban vagy teljes bizonyító erejű magánokiratban rögzített) meghatalmazottja részére a bankfiók pénztárában, készpénz kifizetéssel, vagy az Adós, illetőleg az Adós által megjelölt személy Banknál vezetett lakossági bankszámlájára történő jóváírással, illetőleg – amennyiben a hitelcél a kölcsön összegének harmadik személy részére történő kifizetése révén valósul meg – a kölcsön összegének az Adós nevére megnyitott, elkülönített és zárolt számlán történő jóváírásával folyósítja. A kölcsönfolyósítás módja a Kölcsönszerződésben kerül meghatározásra. | J10: 11 | K10: 140.25
B11: Ha a kölcsön folyósításának valamennyi Előfeltétele legkésőbb a Kölcsönszerződésben meghatározott időpontig – amennyiben ezen időpont munkaszüneti- vagy bankszünnap, az ezt megelőző munkanapig – nem teljesül, e határnapot követően a Bankot a kölcsönösszeg rendelkezésre bocsátásának kötelezettsége nem terheli. Ha több részletben folyósítandó kölcsön esetén a kölcsön további részleteinek folyósításához a Kölcsönszerződésben az adott kölcsönrészhez meghatározott bármely Előfeltétel az ahhoz meghatározott időpontig nem teljesül, úgy e határnapot követően a Bankot a kölcsön mindazon részletének rendelkezésre tartási kötelezettsége nem terheli, amely részlethez rendelt Előfeltételek nem teljesültek. Amennyiben a kölcsön nem kerül folyósításra, úgy a fedezetül felajánlott ingatlanon bejegyzett zálogjog törlésre kerül. A zálogjog törlésének feltétele, hogy az Adós a Bank részére megtérítse a Kölcsönszerződés megkötésével kapcsolatosan esetlegesen felmerült költségeket. | J11: 11 | K11: 140.25
A12: A hitel futamideje: | B12: =CONCATENATE(Hiteladatok!B16," hónap") -> 240 hónap | J12: 1 | K12: 12.75
A13: A késedelmi kamat és egyéb olyan fizetési kötelezettség, amely a hitelszerződésben vállalt kötelezettség nem teljesítéséből származik | B13: A törlesztőrészletek megfizetésének elmulasztása miatt a következő fizetési kötelezettsége keletkezhet az adósnál, amelyek növelik a fennálló tartozás összegét: | J13: 2 | K13: 25.5
B14: =CONCATENATE("- késedelmi kamat: jelenlegi mértéke ",'Új PD'!M12*100,"%") ->  | J14: 1 | K14: 12.75
B15: - késedelem miatti felszólító levél, távirat díjaként: 400 forint / levél, távirat - késedelem miatti felszólító levél postázási díja: a mindenkori postai díjszabás szerint - késedelem miatti felszólító távirat kiküldési díjaként: a mindenkori Magyar Telekom Távközlési Nyrt. díjszabás szerint - késedelem miatti sms felszólító díjaként: 50 forint / SMS - behajtással kapcsolatos személyes megkeresés díjaként: 5 000 forint / kiszállás | J15: 6 | K15: 76.5
A16: Az előtörlesztéshez való jog és annak esetleges költségei | B16: Az Adós, a Kezes, a Zálogkötelezett és a kölcsön biztosítékát nyújtó, vagy annak visszafizetéséért bármilyen személyes vagy dologi kötelezettséget vállaló harmadik fél bármikor jogosult a hitel részleges vagy teljes előtörlesztésére. A fentiek szerinti jogosult a Tőketartozást a lejárat előtt részben, vagy teljes egészében előtörlesztheti, amennyiben erre irányuló szándékát a Bank felé írásban jelzi. A banki munkanapokon 15:00 óráig befogadott előtörlesztési kérelmet a Bank a benyújtás napján végrehajtja, amennyiben annak fedezete a törlesztő számlán rendelkezésre áll. A 15:00 óra után benyújtott előtörlesztési nyilatkozatot a Bank csak a következő banki munkanapra fogadja be. Az esedékesség előtt visszafizetett tőkerésszel csökkentett tartozás alapján a hátralévő Futamidőnek megfelelő átértékelt Törlesztőrészlet összegéről a Bank az Adóst írásban értesíti. A Végtörlesztés szándékának bejelentése önmagában nem minősül a Kölcsönszerződés Adós általi felmondásának. Elő- és végtörlesztés esetén az Adós köteles az Elő- és Végtörlesztés napjáig megszolgált kamatokat és díjakat maradéktalanul megfizetni. A Bank jogosult az előtörlesztéssel kapcsolatban felmerült költségei megtérítésére, az Előtörlesztés díjának mértékét a mindenkor hatályos vonatkozó Hirdetmény tartalmazza, és amelynek mértéke több tényezőtől függ, de legfeljebb az előtörlesztett összeg 1,5 %-a lehet. | J16: 15 | K16: =J16*$L$1 -> 191.25
A17: A fizetés elmulasztásának lehetséges következményei | B17: A fizetési kötelezettségek határidőben történő teljesítése elmulasztása elsősorban késedelmi kamatfizetési kötelezettséggel jár, valamint a fenti pontban említett behajtási költségek megtérítésének kötelezettségével, amelyek mind a fennálló tartozást növelik. A fizetés elmulasztása a hitelszerződés felmondásával járhat, amelynek folytán a hitelszerződés biztosítékai, így az Ön ingatlanán alapított zálogjog is érvényesítésre kerül. | J17: 5 | K17: 63.75
A18: A Zálogfedezet | B18: A kölcsön biztosítéka ingatlanon alapított önálló zálogjog. A önálló zálogjog más pénzügyi intézményre jogszabályban meghatározott módon átruházható, az átruházás azonban a zálogkötelezett kötelezettségeit semmilyen módon nem befolyásolja, az továbbra is a Kölcsönszerződéshez kapcsolódik. A zálogul felajánlott ingatlanra a teljes forgalmi értékre fedezetet nyújtó vagyonbiztosítást kell kötni és azt a kölcsön teljes futamideje alatt fenn kell tartani. A Zálogjog érvényesítése során a bejegyzett keretösszeg erejéig a Bankot kielégítési elsőbbség illeti meg. A közokiratba foglalt Zálogszerződés alapján közvetlen végrehajtás kezdeményezhető. A Kölcsönösszeg maradéktalan megfizetése esetén a fedezetül felajánlott ingatlanon bejegyzett zálogjog törlésre kerül. | J18: 8 | K18: 102
J19: 1 | K19: 12.75
A20: Alulírott kijelentem, hogy a fenti tájékoztatást megértettem és tudomásul vettem. Kijelentem, hogy személyes adataim kezelésére vonatkozóan a Bank egyértelmű és részletes tájékoztatást adott. A tájékoztatást – ideértve az Adatkezelési Tájékoztatóban (https://www.kh.hu/adatvedelem), valamint az Üzletszabályzat adatvédelemre és adatkezelésre vonatkozó rendelkezéseiben foglalt tájékoztatást is – megismertem, és azt kifejezetten elfogadom. Megerősítem, hogy lehetőségem volt kérdéseimet feltenni, melyekkel kapcsolatban megfelelő válaszokat kaptam. | J20: 5 | K20: 63.75
J21: 1 | K21: 12.75
A22: =CONCATENATE("Kelt: …………………………………...……… , ",TEXT(TODAY(),"éééé.hh.nn")) -> Kelt: …………………………………...……… , 2021.07.09 | J22: 1 | K22: 12.75
J23: 1 | K23: 12.75
B24: ………………………………. | E24: =IF(Ügyféladatok!$F$52>1,"……………………………….","") -> ………………………………. | J24: 1 | K24: 12.75
A25: Zálogkötelezett neve: | B25: =HLOOKUP(1,Ügyféladatok!$B$53:$E$57,2,FALSE) ->  | E25: =IF(Ügyféladatok!$F$52>1,HLOOKUP(2,Ügyféladatok!$B$53:$E$57,2,FALSE),"") ->  | J25: 1 | K25: 12.75
A26: Születési dátum: | B26: =HLOOKUP(1,Ügyféladatok!$B$53:$E$57,3,FALSE) ->  | E26: =IF(Ügyféladatok!$F$52>1,HLOOKUP(2,Ügyféladatok!$B$53:$E$57,3,FALSE),"") ->  | J26: 1 | K26: 12.75
A27: Anyja neve: | B27: =HLOOKUP(1,Ügyféladatok!$B$53:$E$57,4,FALSE) ->  | E27: =IF(Ügyféladatok!$F$52>1,HLOOKUP(2,Ügyféladatok!$B$53:$E$57,4,FALSE),"") ->  | J27: 1 | K27: 12.75
A28: Lakcím: | B28: =HLOOKUP(1,Ügyféladatok!$B$53:$E$57,5,FALSE) ->  | E28: =IF(Ügyféladatok!$F$52>1,HLOOKUP(2,Ügyféladatok!$B$53:$E$57,5,FALSE),"") ->  | J28: 1 | K28: 12.75
J29: 1 | K29: 12.75
J30: 1 | K30: 12.75
J31: 1 | K31: 12.75
B32: =IF(Ügyféladatok!$F$52>2,"……………………………….","") ->  | E32: =IF(Ügyféladatok!$F$52>3,"……………………………….","") ->  | J32: 1 | K32: 12.75
A33: =IF(Ügyféladatok!$F$52>2,Zálogkötelezetti!A25,"") ->  | B33: =IF(Ügyféladatok!$F$52>2,HLOOKUP(3,Ügyféladatok!$B$53:$E$57,2,FALSE),"") ->  | E33: =IF(Ügyféladatok!$F$52>3,HLOOKUP(4,Ügyféladatok!$B$53:$E$57,2,FALSE),"") ->  | J33: 1 | K33: 12.75
A34: =IF(Ügyféladatok!$F$52>2,Zálogkötelezetti!A26,"") ->  | B34: =IF(Ügyféladatok!$F$52>2,HLOOKUP(3,Ügyféladatok!$B$53:$E$57,3,FALSE),"") ->  | E34: =IF(Ügyféladatok!$F$52>3,HLOOKUP(4,Ügyféladatok!$B$53:$E$57,3,FALSE),"") ->  | J34: 1 | K34: 12.75
A35: =IF(Ügyféladatok!$F$52>2,Zálogkötelezetti!A27,"") ->  | B35: =IF(Ügyféladatok!$F$52>2,HLOOKUP(3,Ügyféladatok!$B$53:$E$57,4,FALSE),"") ->  | E35: =IF(Ügyféladatok!$F$52>3,HLOOKUP(4,Ügyféladatok!$B$53:$E$57,4,FALSE),"") ->  | J35: 1 | K35: 12.75
A36: =IF(Ügyféladatok!$F$52>2,Zálogkötelezetti!A28,"") ->  | B36: =IF(Ügyféladatok!$F$52>2,HLOOKUP(3,Ügyféladatok!$B$53:$E$57,5,FALSE),"") ->  | E36: =IF(Ügyféladatok!$F$52>3,HLOOKUP(4,Ügyféladatok!$B$53:$E$57,5,FALSE),"") ->  | J36: 1 | K36: 12.75
A37: K&H Bank Zrt. 1095 Budapest, Lechner Ödön fasor 9. telefon: (06 1) 328 9000 fax: (06 1) 328 9696 Budapest 1851 www.kh.hu • bank@kh.hu | J37: 7 | K37: =J37*$L$1 -> 89.25
A38: ZÁLOGKÖTELEZETTI TÁJÉKOZTATÓ | J38: 4 | K38: 51
A39: =CONCATENATE(L3,Ügyféladatok!B4,Zálogkötelezetti!L5) -> A K&H Bank Zrt. a(z) által a K&H Banktól igényelt jelzáloghitel biztosítására szolgáló zálogjog zálogkötelezettje részére a fogyasztónak nyújtott hitelről szóló 2009. évi CLXII. törvény 1.§ (5) bekezdése, valamint a fogyasztónak nyújtott hitellel kapcsolatos egyes tájékoztatási szabályokról szóló 56/2014 (XII.31.) NGM rendelet 8.§-a alapján az alábbi tájékoztatást nyújtja: | J39: 4 | K39: 51
A40: A hitel típusa: | B40: K&H lakáscélú hitelek állami támogatással extra - induló díjakkal | J40: 1 | K40: 12.75
A41: A hitelező neve (cégneve) és levelezési címe: | B41: K&H Bank Zrt., 1095 Budapest, Lechner Ödön fasor 9. | J41: 3 | K41: 38.25
A42: A hitelközvetítő neve (cégneve) és levelezési címe: | B42: =IF('Kezdő oldal'!$B$1="","",CONCATENATE('Kezdő oldal'!$B$1,", ",'Kezdő oldal'!$B$2)) ->  | J42: 3 | K42: 38.25
A43: A hitel teljes összege és lehívásának feltételei: | B43: =CONCATENATE("A hitel összege: ",TEXT(ROUND(Hiteladatok!F15,0),"# ##")," forint") -> A hitel összege: forint | J43: 2 | K43: 25.5
B44: - A Bank a kölcsön összegét (beleértve a költségvetési támogatásokat) az egyedi Ügyfélszerződés – illetőleg a megfelelő Biztosítékra (önálló zálogjog) vonatkozó szerződések – az előírt alakiságoknak megfelelő formában történt aláírását követően, abban az esetben folyósítja, amennyiben a Kölcsönszerződés hatályba lépett, és a Kölcsönszerződésben előírt Előfeltételek a Bank által előírt formában és tartalommal maradéktalanul teljesültek. A kölcsön folyósítása az utolsó Előfeltétel teljesülésének a Bank részére történő igazolását követő öt banki munkanapon belül történik. - A kölcsön folyósításának valamennyi Lakossági Kölcsön esetében feltétele, hogy az Adós a Banknál lakossági bankszámlával vagy Hiteltörlesztési számlával rendelkezzen, továbbá a Kölcsönszerződés alapján a Folyósítás Napjáig esedékessé váló díjakat és költségeket a Bank részére maradéktalanul megfizesse. Amennyiben az Adós saját erő (önerő vagy önrész) megfizetésére is köteles, úgy az Adós azt a kölcsön folyósítását, illetőleg a kölcsönösszeg kifizetését megelőzően köteles maradéktalanul megfizetni és ennek megtörténtét a Bank felé igazolni. | J44: 12 | K44: 153
B45: - A folyósítás az egyedi Ügyfélszerződésben meghatározott időpontban vagy időszak alatt, egy összegben vagy részletekben történik. Amennyiben a Folyósítás Napja vagy a folyósításra rendelkezésre álló időtartam utolsó napja munkaszüneti- vagy bankszünnap, a folyósítási kötelezettség végső határideje az azt megelőző munkanap. - A Bank a kölcsönt az Adós személyes jelenlétében, vagy az Adós (a Bank saját, egyoldalú döntése szerint közokiratban vagy teljes bizonyító erejű magánokiratban rögzített) meghatalmazottja részére a bankfiók pénztárában, készpénz kifizetéssel, vagy az Adós, illetőleg az Adós által megjelölt személy Banknál vezetett lakossági bankszámlájára történő jóváírással, illetőleg – amennyiben a hitelcél a kölcsön összegének harmadik személy részére történő kifizetése révén valósul meg – a kölcsön összegének az Adós nevére megnyitott, elkülönített és zárolt számlán történő jóváírásával folyósítja. A kölcsönfolyósítás módja a Kölcsönszerződésben kerül meghatározásra. | J45: 11 | K45: 140.25
B46: Ha a kölcsön folyósításának valamennyi Előfeltétele legkésőbb a Kölcsönszerződésben meghatározott időpontig – amennyiben ezen időpont munkaszüneti- vagy bankszünnap, az ezt megelőző munkanapig – nem teljesül, e határnapot követően a Bankot a kölcsönösszeg rendelkezésre bocsátásának kötelezettsége nem terheli. Ha több részletben folyósítandó kölcsön esetén a kölcsön további részleteinek folyósításához a Kölcsönszerződésben az adott kölcsönrészhez meghatározott bármely Előfeltétel az ahhoz meghatározott időpontig nem teljesül, úgy e határnapot követően a Bankot a kölcsön mindazon részletének rendelkezésre tartási kötelezettsége nem terheli, amely részlethez rendelt Előfeltételek nem teljesültek. Amennyiben a kölcsön nem kerül folyósításra, úgy a fedezetül felajánlott ingatlanon bejegyzett zálogjog törlésre kerül. A zálogjog törlésének feltétele, hogy az Adós a Bank részére megtérítse a Kölcsönszerződés megkötésével kapcsolatosan esetlegesen felmerült költségeket. | J46: 11 | K46: 140.25
A47: A hitel futamideje: | B47: =CONCATENATE(Hiteladatok!F16," hónap") -> 240 hónap | J47: 1 | K47: 12.75
A48: A késedelmi kamat és egyéb olyan fizetési kötelezettség, amely a hitelszerződésben vállalt kötelezettség nem teljesítéséből származik | B48: A törlesztőrészletek megfizetésének elmulasztása miatt a következő fizetési kötelezettsége keletkezhet az adósnál, amelyek növelik a fennálló tartozás összegét: | J48: 2 | K48: 25.5
B49: =CONCATENATE("- késedelmi kamat: jelenlegi mértéke ",'Új PD'!M13*100,"%") -> - késedelmi kamat: jelenlegi mértéke 7,5% | J49: 1 | K49: 12.75
B50: - késedelem miatti felszólító levél, távirat díjaként: 400 forint / levél, távirat - késedelem miatti felszólító levél postázási díja: a mindenkori postai díjszabás szerint - késedelem miatti felszólító távirat kiküldési díjaként: a mindenkori Magyar Telekom Távközlési Nyrt. díjszabás szerint - késedelem miatti sms felszólító díjaként: 50 forint / SMS - behajtással kapcsolatos személyes megkeresés díjaként: 5 000 forint / kiszállás | J50: 6 | K50: 76.5
A51: Az előtörlesztéshez való jog és annak esetleges költségei | B51: Az Adós, a Kezes, a Zálogkötelezett és a kölcsön biztosítékát nyújtó, vagy annak visszafizetéséért bármilyen személyes vagy dologi kötelezettséget vállaló harmadik fél bármikor jogosult a hitel részleges vagy teljes előtörlesztésére. A fentiek szerinti jogosult a Tőketartozást a lejárat előtt részben, vagy teljes egészében előtörlesztheti, amennyiben erre irányuló szándékát a Bank felé írásban jelzi. A banki munkanapokon 15:00 óráig befogadott előtörlesztési kérelmet a Bank a benyújtás napján végrehajtja, amennyiben annak fedezete a törlesztő számlán rendelkezésre áll. A 15:00 óra után benyújtott előtörlesztési nyilatkozatot a Bank csak a következő banki munkanapra fogadja be. Az esedékesség előtt visszafizetett tőkerésszel csökkentett tartozás alapján a hátralévő Futamidőnek megfelelő átértékelt Törlesztőrészlet összegéről a Bank az Adóst írásban értesíti. A Végtörlesztés szándékának bejelentése önmagában nem minősül a Kölcsönszerződés Adós általi felmondásának. Elő- és végtörlesztés esetén az Adós köteles az Elő- és Végtörlesztés napjáig megszolgált kamatokat és díjakat maradéktalanul megfizetni. A Bank jogosult az előtörlesztéssel kapcsolatban felmerült költségei megtérítésére, az Előtörlesztés díjának mértékét a mindenkor hatályos vonatkozó Hirdetmény tartalmazza, és amelynek mértéke több tényezőtől függ, de legfeljebb az előtörlesztett összeg 1,5 %-a lehet. | J51: 15 | K51: =J51*$L$1 -> 191.25
A52: A fizetés elmulasztásának lehetséges következményei | B52: A fizetési kötelezettségek határidőben történő teljesítése elmulasztása elsősorban késedelmi kamatfizetési kötelezettséggel jár, valamint a fenti pontban említett behajtási költségek megtérítésének kötelezettségével, amelyek mind a fennálló tartozást növelik. A fizetés elmulasztása a hitelszerződés felmondásával járhat, amelynek folytán a hitelszerződés biztosítékai, így az Ön ingatlanán alapított zálogjog is érvényesítésre kerül. | J52: 5 | K52: 63.75
A53: A Zálogfedezet | B53: A kölcsön biztosítéka ingatlanon alapított önálló zálogjog. A önálló zálogjog más pénzügyi intézményre jogszabályban meghatározott módon átruházható, az átruházás azonban a zálogkötelezett kötelezettségeit semmilyen módon nem befolyásolja, az továbbra is a Kölcsönszerződéshez kapcsolódik. A zálogul felajánlott ingatlanra a teljes forgalmi értékre fedezetet nyújtó vagyonbiztosítást kell kötni és azt a kölcsön teljes futamideje alatt fenn kell tartani. A Zálogjog érvényesítése során a bejegyzett keretösszeg erejéig a Bankot kielégítési elsőbbség illeti meg. A közokiratba foglalt Zálogszerződés alapján közvetlen végrehajtás kezdeményezhető. A Kölcsönösszeg maradéktalan megfizetése esetén a fedezetül felajánlott ingatlanon bejegyzett zálogjog törlésre kerül. | J53: 8 | K53: 102
J54: 1 | K54: 12.75
A55: Alulírott kijelentem, hogy a fenti tájékoztatást megértettem és tudomásul vettem. Kijelentem, hogy személyes adataim kezelésére vonatkozóan a Bank egyértelmű és részletes tájékoztatást adott. A tájékoztatást – ideértve az Adatkezelési Tájékoztatóban (https://www.kh.hu/adatvedelem), valamint az Üzletszabályzat adatvédelemre és adatkezelésre vonatkozó rendelkezéseiben foglalt tájékoztatást is – megismertem, és azt kifejezetten elfogadom. Megerősítem, hogy lehetőségem volt kérdéseimet feltenni, melyekkel kapcsolatban megfelelő válaszokat kaptam. | J55: 5 | K55: 63.75
J56: 1 | K56: 12.75
A57: =CONCATENATE("Kelt: …………………………………...……… , ",TEXT(TODAY(),"éééé.hh.nn")) -> Kelt: …………………………………...……… , 2021.07.09 | J57: 1 | K57: 12.75
J58: 1 | K58: 12.75
B59: ………………………………. | E59: =IF(Ügyféladatok!$F$52>1,"……………………………….","") -> ………………………………. | J59: 1 | K59: 12.75
A60: Zálogkötelezett neve: | B60: =HLOOKUP(1,Ügyféladatok!$B$53:$E$57,2,FALSE) ->  | E60: =IF(Ügyféladatok!$F$52>1,HLOOKUP(2,Ügyféladatok!$B$53:$E$57,2,FALSE),"") ->  | J60: 1 | K60: 12.75
A61: Születési dátum: | B61: =HLOOKUP(1,Ügyféladatok!$B$53:$E$57,3,FALSE) ->  | E61: =IF(Ügyféladatok!$F$52>1,HLOOKUP(2,Ügyféladatok!$B$53:$E$57,3,FALSE),"") ->  | J61: 1 | K61: 12.75
A62: Anyja neve: | B62: =HLOOKUP(1,Ügyféladatok!$B$53:$E$57,4,FALSE) ->  | E62: =IF(Ügyféladatok!$F$52>1,HLOOKUP(2,Ügyféladatok!$B$53:$E$57,4,FALSE),"") ->  | J62: 1 | K62: 12.75
A63: Lakcím: | B63: =HLOOKUP(1,Ügyféladatok!$B$53:$E$57,5,FALSE) ->  | E63: =IF(Ügyféladatok!$F$52>1,HLOOKUP(2,Ügyféladatok!$B$53:$E$57,5,FALSE),"") ->  | J63: 1 | K63: 12.75
J64: 1 | K64: 12.75
J65: 1 | K65: 12.75
J66: 1 | K66: 12.75
B67: =IF(Ügyféladatok!$F$52>2,"……………………………….","") ->  | E67: =IF(Ügyféladatok!$F$52>3,"……………………………….","") ->  | J67: 1 | K67: 12.75
A68: =IF(Ügyféladatok!$F$52>2,Zálogkötelezetti!A60,"") ->  | B68: =IF(Ügyféladatok!$F$52>2,HLOOKUP(3,Ügyféladatok!$B$53:$E$57,2,FALSE),"") ->  | E68: =IF(Ügyféladatok!$F$52>3,HLOOKUP(4,Ügyféladatok!$B$53:$E$57,2,FALSE),"") ->  | J68: 1 | K68: 12.75
A69: =IF(Ügyféladatok!$F$52>2,Zálogkötelezetti!A61,"") ->  | B69: =IF(Ügyféladatok!$F$52>2,HLOOKUP(3,Ügyféladatok!$B$53:$E$57,3,FALSE),"") ->  | E69: =IF(Ügyféladatok!$F$52>3,HLOOKUP(4,Ügyféladatok!$B$53:$E$57,3,FALSE),"") ->  | J69: 1 | K69: 12.75
A70: =IF(Ügyféladatok!$F$52>2,Zálogkötelezetti!A62,"") ->  | B70: =IF(Ügyféladatok!$F$52>2,HLOOKUP(3,Ügyféladatok!$B$53:$E$57,4,FALSE),"") ->  | E70: =IF(Ügyféladatok!$F$52>3,HLOOKUP(4,Ügyféladatok!$B$53:$E$57,4,FALSE),"") ->  | J70: 1 | K70: 12.75
A71: =IF(Ügyféladatok!$F$52>2,Zálogkötelezetti!A63,"") ->  | B71: =IF(Ügyféladatok!$F$52>2,HLOOKUP(3,Ügyféladatok!$B$53:$E$57,5,FALSE),"") ->  | E71: =IF(Ügyféladatok!$F$52>3,HLOOKUP(4,Ügyféladatok!$B$53:$E$57,5,FALSE),"") ->  | J71: 1 | K71: 12.75

Sheet MFL (hidden)
A1: MFL annuitás THM-hez | F1: 30.41666 | O1: 0.04918744697 | Q1: Rettenet THM | W1: 0.09871294607 | AA1: emelkedő | AG1: csökkenő
A2: tőke | B2: =Hiteladatok!B15 -> 0 | Q2: mikor vált | R2: =Hiteladatok!U29+1 -> 121 | AA2: mikor vált | AB2: =R2 -> 121 | AG2: mikor vált | AH2: =R2 -> 121
A3: kamat | B3: ='Új PD'!D14 ->  | Q3: normál kamat | R3: =Hiteladatok!B30 ->  | S3: =PMT(R3/12,B4,-B2) ->  | AA3: normál kamat | AB3: =B3 ->  | AC3: =PMT(AB3/12,B4,-B2) ->  | AG3: normál kamat | AH3: =B3 ->  | AI3: =PMT(AH3/12,B4,-B2) -> 
A4: futamidő | B4: =Hiteladatok!B16 -> 240 | I4: =SUM(I7:I366) ->  | Q4: rettenet kamat | R4: =IF(Hiteladatok!B17=Hiteladatok!R23,R3+kondíciók!G40,R3+kondíciók!G41) ->  | S4: =MAX(T7:T366) ->  | W4: =ROUND(W1,3) -> 0.099 | AA4: emelkedő kamat | AB4: =AB3+1% ->  | AG4: csökkenő kamat | AH4: =AH3-1% -> 
A5: =Hiteladatok!A18 -> Folyósítás várható dátuma | B5: =Hiteladatok!B18 -> 
A6: =Hiteladatok!A19 -> Törlesztés kezdete | B6: =Hiteladatok!B19 ->  | E6: sorszám | F6: eltelt nap | G6: nyitó | H6: kamat | I6: részlet | J6: záró | K6: PPI | L6: számla | M6: életbizt | N6: havi teher | O6: =B2-B17-O366 ->  | Q6: nyitó | R6: kamatláb | S6: kamat | T6: részlet | U6: záró | V6: havi teher | W6: =B2-B17-W366 ->  | Y6: év | Z6: kamper | AA6: nyitó | AB6: kamatláb | AC6: kamat | AD6: részlet | AE6: záró | AG6: nyitó | AH6: kamatláb | AI6: kamat | AJ6: részlet | AK6: záró
A7: napok száma | B7: =B6-B5 ->  | D7: 1 | E7: 1 | F7: =$F$1*E7+$B$9 ->  | G7: =B2 -> 0 | H7: =IF(E7>$B$4,0,G7*$B$3/12)+G7*B3*B9/360 ->  | I7: =IF(E7>$B$4,0,B11) ->  | J7: =G7+H7-I7 ->  | K7: =I7*$C$12 ->  | L7: =IF(E7>$B$4,0,$C$13) ->  | M7: =IF(OR(Hiteladatok!$I$8=0,E7>$B$4),0,IF(D7>Hiteladatok!$U$40,0,$B$14+IF(Hiteladatok!$I$10=Hiteladatok!$N$33,$B$15,0))) -> 0 | N7: =I7+K7+L7+M7 ->  | O7: =N7/(1+$O$1)^(F7/365) ->  | Q7: =B2 -> 0 | R7: =R3 ->  | S7: =Q7*R3*B8/360 ->  | T7: =S3+Q7*R3*B9/360 ->  | U7: =Q7+S7-T7 ->  | V7: =T7+K7+L7+M7 ->  | W7: =V7/(1+$W$1)^(F7/365) ->  | Y7: 1 | Z7: =INT((E7-1)/Hiteladatok!$U$29)+1 -> 1 | AA7: =B2 -> 0 | AB7: =AB3 ->  | AC7: =AA7*AB3*B8/360 ->  | AD7: =AC3+AA7*AB3*B9/360 ->  | AE7: =AA7+AC7-AD7 ->  | AG7: =B2 -> 0 | AH7: =AH3 ->  | AI7: =AG7*AH3*B8/360 ->  | AJ7: =AI3+AG7*AH3*B9/360 ->  | AK7: =AG7+AI7-AJ7 -> 
A8: kamatnapok száma | B8: =30-DAY(B5)+(MONTH(B6)-MONTH(B5))*30+DAY(B6)-30+(YEAR(B6)-YEAR(B5))*360 ->  | D8: 12 | E8: =E7+1 -> 2 | F8: =$F$1*E8+$B$9 ->  | G8: =J7 ->  | H8: =IF(E8>$B$4,0,G8*$B$3/12) ->  | I8: =IF(E8>$B$4,0,$B$10) ->  | J8: =G8+H8-I8 ->  | K8: =I8*$C$12 ->  | L8: =IF(E8>$B$4,0,$C$13) ->  | M8: =IF(OR(Hiteladatok!$I$8=0,E8>$B$4),0,IF(D8>Hiteladatok!$U$40,0,$B$14+IF(Hiteladatok!$I$10=Hiteladatok!$N$33,$B$15,0))) -> 0 | N8: =I8+K8+L8+M8 ->  | O8: =O7+N8/(1+$O$1)^(F8/365) ->  | Q8: =U7 ->  | R8: =IF(E8<$R$2,$R$3,$R$4) ->  | S8: =Q8*R8/12 ->  | T8: =IF(E8>$B$4,0,PMT(R8/12,$B$4-E8+1,-Q8)) ->  | V8: =T8+K8+L8+M8 ->  | W8: =W7+V8/(1+$W$1)^(F8/365) ->  | Y8: 1 | Z8: =INT((E8-1)/Hiteladatok!$U$29)+1 -> 1 | AA8: =AE7 ->  | AB8: =IF(E8<$AB$2,$AB$3,$AB$4) ->  | AC8: =AA8*AB8/12 ->  | AD8: =IF(E8>$B$4,0,PMT(AB8/12,$B$4-E8+1,-AA8)) ->  | AE8: =AA8+AC8-AD8 ->  | AG8: =AK7 ->  | AH8: =IF(E8<$AH$2,$AH$3,$AH$4) ->  | AI8: =AG8*AH8/12 ->  | AJ8: =IF(E8>$B$4,0,PMT(AH8/12,$B$4-E8+1,-AG8)) ->  | AK8: =AG8+AI8-AJ8 -> 
A9: extra napok száma | B9: =B8-30 ->  | C9: =B2*B3*B9/360 ->  | D9: 12 | E9: =E8+1 -> 3 | G9: =J8 ->  | H9: =IF(E9>$B$4,0,G9*$B$3/12) ->  | I9: =IF(E9>$B$4,0,$B$10) ->  | J9: =G9+H9-I9 ->  | K9: =I9*$C$12 ->  | M9: =IF(OR(Hiteladatok!$I$8=0,E9>$B$4),0,IF(D9>Hiteladatok!$U$40,0,$B$14+IF(Hiteladatok!$I$10=Hiteladatok!$N$33,$B$15,0))) -> 0 | N9: =I9+K9+L9+M9 ->  | O9: =O8+N9/(1+$O$1)^(F9/365) ->  | Q9: =U8 ->  | R9: =IF(E9<$R$2,$R$3,$R$4) ->  | S9: =Q9*R9/12 ->  | T9: =IF(E9>$B$4,0,PMT(R9/12,$B$4-E9+1,-Q9)) ->  | W9: =W8+V9/(1+$W$1)^(F9/365) ->  | Y9: 1 | Z9: =INT((E9-1)/Hiteladatok!$U$29)+1 -> 1 | AA9: =AE8 ->  | AB9: =IF(E9<$AB$2,$AB$3,$AB$4) ->  | AC9: =AA9*AB9/12 ->  | AD9: =IF(E9>$B$4,0,PMT(AB9/12,$B$4-E9+1,-AA9)) ->  | AE9: =AA9+AC9-AD9 ->  | AG9: =AK8 ->  | AH9: =IF(E9<$AH$2,$AH$3,$AH$4) ->  | AI9: =AG9*AH9/12 ->  | AJ9: =IF(E9>$B$4,0,PMT(AH9/12,$B$4-E9+1,-AG9)) ->  | AK9: =AG9+AI9-AJ9 -> 
A10: részlet | B10: =PMT(B3/12,B4,-B2) ->  | D10: 4 | E10: 4 | M10: =IF(OR(Hiteladatok!$I$8=0,E10>$B$4),0,IF(D10>Hiteladatok!$U$40,0,$B$14+IF(Hiteladatok!$I$10=Hiteladatok!$N$33,$B$15,0))) -> 0 | Y10: 1 | Z10: =INT((E10-1)/Hiteladatok!$U$29)+1 -> 1
A11: 1. részlet | B11: =B10+C9 ->  | D11: 12 | E11: 5 | M11: =IF(OR(Hiteladatok!$I$8=0,E11>$B$4),0,IF(D11>Hiteladatok!$U$40,0,$B$14+IF(Hiteladatok!$I$10=Hiteladatok!$N$33,$B$15,0))) -> 0 | Y11: 1 | Z11: =INT((E11-1)/Hiteladatok!$U$29)+1 -> 1
A12: PPI | B12: ='Új PD'!P26 -> nincs PPI | C12: =IF(A12=B12,kondíciók!I2,0) -> 0 | D12: 12 | E12: 6 | M12: =IF(OR(Hiteladatok!$I$8=0,E12>$B$4),0,IF(D12>Hiteladatok!$U$40,0,$B$14+IF(Hiteladatok!$I$10=Hiteladatok!$N$33,$B$15,0))) -> 0 | Y12: 1 | Z12: =INT((E12-1)/Hiteladatok!$U$29)+1 -> 1
A13: számla | B13: =Hiteladatok!$I$6/Finanszírozás!F18 ->  | C13: =IF(Hiteladatok!D6="N",MFL!B13,0) ->  | D13: 2 | E13: 7 | M13: =IF(OR(Hiteladatok!$I$8=0,E13>$B$4),0,IF(D13>Hiteladatok!$U$40,0,$B$14+IF(Hiteladatok!$I$10=Hiteladatok!$N$33,$B$15,0))) -> 0 | Y13: 1 | Z13: =INT((E13-1)/Hiteladatok!$U$29)+1 -> 1
A14: életbizt | B14: =Hiteladatok!I8 -> 0 | D14: 12 | E14: 8 | M14: =IF(OR(Hiteladatok!$I$8=0,E14>$B$4),0,IF(D14>Hiteladatok!$U$40,0,$B$14+IF(Hiteladatok!$I$10=Hiteladatok!$N$33,$B$15,0))) -> 0 | Y14: 1 | Z14: =INT((E14-1)/Hiteladatok!$U$29)+1 -> 1
A15: átutalás díja | B15: =Hiteladatok!I7 -> 0 | D15: 12 | E15: 9 | M15: =IF(OR(Hiteladatok!$I$8=0,E15>$B$4),0,IF(D15>Hiteladatok!$U$40,0,$B$14+IF(Hiteladatok!$I$10=Hiteladatok!$N$33,$B$15,0))) -> 0 | Y15: 1 | Z15: =INT((E15-1)/Hiteladatok!$U$29)+1 -> 1
D16: 4 | E16: 10 | M16: =IF(OR(Hiteladatok!$I$8=0,E16>$B$4),0,IF(D16>Hiteladatok!$U$40,0,$B$14+IF(Hiteladatok!$I$10=Hiteladatok!$N$33,$B$15,0))) -> 0 | Y16: 1 | Z16: =INT((E16-1)/Hiteladatok!$U$29)+1 -> 1
A17: Kezdeti díjak | B17: =SUM(B18:B23) -> 0 | D17: 12 | E17: 11 | M17: =IF(OR(Hiteladatok!$I$8=0,E17>$B$4),0,IF(D17>Hiteladatok!$U$40,0,$B$14+IF(Hiteladatok!$I$10=Hiteladatok!$N$33,$B$15,0))) -> 0 | Y17: 1 | Z17: =INT((E17-1)/Hiteladatok!$U$29)+1 -> 1
A18: földhivatal | B18: =IF(Hiteladatok!F15>0,Hiteladatok!D12/2,Hiteladatok!D12) -> 0 | D18: 12 | E18: 12 | M18: =IF(OR(Hiteladatok!$I$8=0,E18>$B$4),0,IF(D18>Hiteladatok!$U$40,0,$B$14+IF(Hiteladatok!$I$10=Hiteladatok!$N$33,$B$15,0))) -> 0 | Y18: 1 | Z18: =INT((E18-1)/Hiteladatok!$U$29)+1 -> 1
A19: egyszeri életbiztosítás | B19: =Hiteladatok!I11 -> 0 | D19: 1 | E19: 13 | M19: =IF(OR(Hiteladatok!$I$8=0,E19>$B$4),0,IF(D19>Hiteladatok!$U$40,0,$B$14+IF(Hiteladatok!$I$10=Hiteladatok!$N$33,$B$15,0))) -> 0 | Y19: =Y7+1 -> 2 | Z19: =INT((E19-1)/Hiteladatok!$U$29)+1 -> 1
A20: ügynöknek fizetett | B20: =IF(Finanszírozás!G18=0,0,Hiteladatok!I12/Finanszírozás!G18) -> 0 | D20: 12 | E20: 14 | M20: =IF(OR(Hiteladatok!$I$8=0,E20>$B$4),0,IF(D20>Hiteladatok!$U$40,0,$B$14+IF(Hiteladatok!$I$10=Hiteladatok!$N$33,$B$15,0))) -> 0 | Y20: =Y8+1 -> 2 | Z20: =INT((E20-1)/Hiteladatok!$U$29)+1 -> 1
A21: =Hiteladatok!A33 ->  | B21: =Hiteladatok!B33 -> 0 | D21: 12 | E21: 15 | M21: =IF(OR(Hiteladatok!$I$8=0,E21>$B$4),0,IF(D21>Hiteladatok!$U$40,0,$B$14+IF(Hiteladatok!$I$10=Hiteladatok!$N$33,$B$15,0))) -> 0 | Y21: 2 | Z21: =INT((E21-1)/Hiteladatok!$U$29)+1 -> 1
A22: Értékbecslési díjak | B22: =Hiteladatok!B34 -> 0 | D22: 4 | E22: 16 | M22: =IF(OR(Hiteladatok!$I$8=0,E22>$B$4),0,IF(D22>Hiteladatok!$U$40,0,$B$14+IF(Hiteladatok!$I$10=Hiteladatok!$N$33,$B$15,0))) -> 0 | Y22: 2 | Z22: =INT((E22-1)/Hiteladatok!$U$29)+1 -> 1
A23: Takarnet díjak | B23: =Hiteladatok!B35 -> 0 | D23: 12 | E23: 17 | L23: =IF(E23>$B$4,0,$C$13) ->  | M23: =IF(OR(Hiteladatok!$I$8=0,E23>$B$4),0,IF(D23>Hiteladatok!$U$40,0,$B$14+IF(Hiteladatok!$I$10=Hiteladatok!$N$33,$B$15,0))) -> 0 | Y23: 2 | Z23: =INT((E23-1)/Hiteladatok!$U$29)+1 -> 1
D24: 12 | E24: 18 | M24: =IF(OR(Hiteladatok!$I$8=0,E24>$B$4),0,IF(D24>Hiteladatok!$U$40,0,$B$14+IF(Hiteladatok!$I$10=Hiteladatok!$N$33,$B$15,0))) -> 0 | Y24: 2 | Z24: =INT((E24-1)/Hiteladatok!$U$29)+1 -> 1
D25: 2 | E25: 19 | M25: =IF(OR(Hiteladatok!$I$8=0,E25>$B$4),0,IF(D25>Hiteladatok!$U$40,0,$B$14+IF(Hiteladatok!$I$10=Hiteladatok!$N$33,$B$15,0))) -> 0 | Y25: 2 | Z25: =INT((E25-1)/Hiteladatok!$U$29)+1 -> 1
D26: 12 | E26: 20 | M26: =IF(OR(Hiteladatok!$I$8=0,E26>$B$4),0,IF(D26>Hiteladatok!$U$40,0,$B$14+IF(Hiteladatok!$I$10=Hiteladatok!$N$33,$B$15,0))) -> 0 | Y26: 2 | Z26: =INT((E26-1)/Hiteladatok!$U$29)+1 -> 1
D27: 12 | E27: 21 | M27: =IF(OR(Hiteladatok!$I$8=0,E27>$B$4),0,IF(D27>Hiteladatok!$U$40,0,$B$14+IF(Hiteladatok!$I$10=Hiteladatok!$N$33,$B$15,0))) -> 0 | Y27: 2 | Z27: =INT((E27-1)/Hiteladatok!$U$29)+1 -> 1
D28: 4 | E28: 22 | M28: =IF(OR(Hiteladatok!$I$8=0,E28>$B$4),0,IF(D28>Hiteladatok!$U$40,0,$B$14+IF(Hiteladatok!$I$10=Hiteladatok!$N$33,$B$15,0))) -> 0 | Y28: 2 | Z28: =INT((E28-1)/Hiteladatok!$U$29)+1 -> 1
D29: 12 | E29: 23 | M29: =IF(OR(Hiteladatok!$I$8=0,E29>$B$4),0,IF(D29>Hiteladatok!$U$40,0,$B$14+IF(Hiteladatok!$I$10=Hiteladatok!$N$33,$B$15,0))) -> 0 | Y29: 2 | Z29: =INT((E29-1)/Hiteladatok!$U$29)+1 -> 1
D30: 12 | E30: 24 | M30: =IF(OR(Hiteladatok!$I$8=0,E30>$B$4),0,IF(D30>Hiteladatok!$U$40,0,$B$14+IF(Hiteladatok!$I$10=Hiteladatok!$N$33,$B$15,0))) -> 0 | Y30: 2 | Z30: =INT((E30-1)/Hiteladatok!$U$29)+1 -> 1
D31: 1 | E31: 25 | M31: =IF(OR(Hiteladatok!$I$8=0,E31>$B$4),0,IF(D31>Hiteladatok!$U$40,0,$B$14+IF(Hiteladatok!$I$10=Hiteladatok!$N$33,$B$15,0))) -> 0 | Y31: 3 | Z31: =INT((E31-1)/Hiteladatok!$U$29)+1 -> 1
D32: 12 | E32: 26 | M32: =IF(OR(Hiteladatok!$I$8=0,E32>$B$4),0,IF(D32>Hiteladatok!$U$40,0,$B$14+IF(Hiteladatok!$I$10=Hiteladatok!$N$33,$B$15,0))) -> 0 | Y32: 3 | Z32: =INT((E32-1)/Hiteladatok!$U$29)+1 -> 1
D33: 12 | E33: 27 | M33: =IF(OR(Hiteladatok!$I$8=0,E33>$B$4),0,IF(D33>Hiteladatok!$U$40,0,$B$14+IF(Hiteladatok!$I$10=Hiteladatok!$N$33,$B$15,0))) -> 0 | Y33: 3 | Z33: =INT((E33-1)/Hiteladatok!$U$29)+1 -> 1
D34: 4 | E34: 28 | M34: =IF(OR(Hiteladatok!$I$8=0,E34>$B$4),0,IF(D34>Hiteladatok!$U$40,0,$B$14+IF(Hiteladatok!$I$10=Hiteladatok!$N$33,$B$15,0))) -> 0 | Y34: 3 | Z34: =INT((E34-1)/Hiteladatok!$U$29)+1 -> 1
D35: 12 | E35: 29 | M35: =IF(OR(Hiteladatok!$I$8=0,E35>$B$4),0,IF(D35>Hiteladatok!$U$40,0,$B$14+IF(Hiteladatok!$I$10=Hiteladatok!$N$33,$B$15,0))) -> 0 | Y35: 3 | Z35: =INT((E35-1)/Hiteladatok!$U$29)+1 -> 1
D36: 12 | E36: 30 | M36: =IF(OR(Hiteladatok!$I$8=0,E36>$B$4),0,IF(D36>Hiteladatok!$U$40,0,$B$14+IF(Hiteladatok!$I$10=Hiteladatok!$N$33,$B$15,0))) -> 0 | Y36: 3 | Z36: =INT((E36-1)/Hiteladatok!$U$29)+1 -> 1
D37: 2 | E37: 31 | M37: =IF(OR(Hiteladatok!$I$8=0,E37>$B$4),0,IF(D37>Hiteladatok!$U$40,0,$B$14+IF(Hiteladatok!$I$10=Hiteladatok!$N$33,$B$15,0))) -> 0 | Y37: 3 | Z37: =INT((E37-1)/Hiteladatok!$U$29)+1 -> 1
D38: 12 | E38: 32 | M38: =IF(OR(Hiteladatok!$I$8=0,E38>$B$4),0,IF(D38>Hiteladatok!$U$40,0,$B$14+IF(Hiteladatok!$I$10=Hiteladatok!$N$33,$B$15,0))) -> 0 | Y38: 3 | Z38: =INT((E38-1)/Hiteladatok!$U$29)+1 -> 1
D39: 12 | E39: 33 | M39: =IF(OR(Hiteladatok!$I$8=0,E39>$B$4),0,IF(D39>Hiteladatok!$U$40,0,$B$14+IF(Hiteladatok!$I$10=Hiteladatok!$N$33,$B$15,0))) -> 0 | Y39: 3 | Z39: =INT((E39-1)/Hiteladatok!$U$29)+1 -> 1
D40: 4 | E40: 34 | M40: =IF(OR(Hiteladatok!$I$8=0,E40>$B$4),0,IF(D40>Hiteladatok!$U$40,0,$B$14+IF(Hiteladatok!$I$10=Hiteladatok!$N$33,$B$15,0))) -> 0 | Y40: 3 | Z40: =INT((E40-1)/Hiteladatok!$U$29)+1 -> 1
D41: 12 | E41: 35 | M41: =IF(OR(Hiteladatok!$I$8=0,E41>$B$4),0,IF(D41>Hiteladatok!$U$40,0,$B$14+IF(Hiteladatok!$I$10=Hiteladatok!$N$33,$B$15,0))) -> 0 | Y41: 3 | Z41: =INT((E41-1)/Hiteladatok!$U$29)+1 -> 1
D42: 12 | E42: 36 | M42: =IF(OR(Hiteladatok!$I$8=0,E42>$B$4),0,IF(D42>Hiteladatok!$U$40,0,$B$14+IF(Hiteladatok!$I$10=Hiteladatok!$N$33,$B$15,0))) -> 0 | Y42: 3 | Z42: =INT((E42-1)/Hiteladatok!$U$29)+1 -> 1
D43: 1 | E43: 37 | M43: =IF(OR(Hiteladatok!$I$8=0,E43>$B$4),0,IF(D43>Hiteladatok!$U$40,0,$B$14+IF(Hiteladatok!$I$10=Hiteladatok!$N$33,$B$15,0))) -> 0 | Y43: 4 | Z43: =INT((E43-1)/Hiteladatok!$U$29)+1 -> 1
D44: 12 | E44: 38 | M44: =IF(OR(Hiteladatok!$I$8=0,E44>$B$4),0,IF(D44>Hiteladatok!$U$40,0,$B$14+IF(Hiteladatok!$I$10=Hiteladatok!$N$33,$B$15,0))) -> 0 | Y44: 4 | Z44: =INT((E44-1)/Hiteladatok!$U$29)+1 -> 1
D45: 12 | E45: 39 | M45: =IF(OR(Hiteladatok!$I$8=0,E45>$B$4),0,IF(D45>Hiteladatok!$U$40,0,$B$14+IF(Hiteladatok!$I$10=Hiteladatok!$N$33,$B$15,0))) -> 0 | Y45: 4 | Z45: =INT((E45-1)/Hiteladatok!$U$29)+1 -> 1
D46: 4 | E46: 40 | M46: =IF(OR(Hiteladatok!$I$8=0,E46>$B$4),0,IF(D46>Hiteladatok!$U$40,0,$B$14+IF(Hiteladatok!$I$10=Hiteladatok!$N$33,$B$15,0))) -> 0 | Y46: 4 | Z46: =INT((E46-1)/Hiteladatok!$U$29)+1 -> 1
D47: 12 | E47: 41 | M47: =IF(OR(Hiteladatok!$I$8=0,E47>$B$4),0,IF(D47>Hiteladatok!$U$40,0,$B$14+IF(Hiteladatok!$I$10=Hiteladatok!$N$33,$B$15,0))) -> 0 | Y47: 4 | Z47: =INT((E47-1)/Hiteladatok!$U$29)+1 -> 1
D48: 12 | E48: 42 | M48: =IF(OR(Hiteladatok!$I$8=0,E48>$B$4),0,IF(D48>Hiteladatok!$U$40,0,$B$14+IF(Hiteladatok!$I$10=Hiteladatok!$N$33,$B$15,0))) -> 0 | Y48: 4 | Z48: =INT((E48-1)/Hiteladatok!$U$29)+1 -> 1
D49: 2 | E49: 43 | M49: =IF(OR(Hiteladatok!$I$8=0,E49>$B$4),0,IF(D49>Hiteladatok!$U$40,0,$B$14+IF(Hiteladatok!$I$10=Hiteladatok!$N$33,$B$15,0))) -> 0 | Y49: 4 | Z49: =INT((E49-1)/Hiteladatok!$U$29)+1 -> 1
D50: 12 | E50: 44 | M50: =IF(OR(Hiteladatok!$I$8=0,E50>$B$4),0,IF(D50>Hiteladatok!$U$40,0,$B$14+IF(Hiteladatok!$I$10=Hiteladatok!$N$33,$B$15,0))) -> 0 | Y50: 4 | Z50: =INT((E50-1)/Hiteladatok!$U$29)+1 -> 1
D51: 12 | E51: 45 | M51: =IF(OR(Hiteladatok!$I$8=0,E51>$B$4),0,IF(D51>Hiteladatok!$U$40,0,$B$14+IF(Hiteladatok!$I$10=Hiteladatok!$N$33,$B$15,0))) -> 0 | Y51: 4 | Z51: =INT((E51-1)/Hiteladatok!$U$29)+1 -> 1
D52: 4 | E52: 46 | M52: =IF(OR(Hiteladatok!$I$8=0,E52>$B$4),0,IF(D52>Hiteladatok!$U$40,0,$B$14+IF(Hiteladatok!$I$10=Hiteladatok!$N$33,$B$15,0))) -> 0 | Y52: 4 | Z52: =INT((E52-1)/Hiteladatok!$U$29)+1 -> 1
D53: 12 | E53: 47 | M53: =IF(OR(Hiteladatok!$I$8=0,E53>$B$4),0,IF(D53>Hiteladatok!$U$40,0,$B$14+IF(Hiteladatok!$I$10=Hiteladatok!$N$33,$B$15,0))) -> 0 | Y53: 4 | Z53: =INT((E53-1)/Hiteladatok!$U$29)+1 -> 1
D54: 12 | E54: 48 | M54: =IF(OR(Hiteladatok!$I$8=0,E54>$B$4),0,IF(D54>Hiteladatok!$U$40,0,$B$14+IF(Hiteladatok!$I$10=Hiteladatok!$N$33,$B$15,0))) -> 0 | Y54: 4 | Z54: =INT((E54-1)/Hiteladatok!$U$29)+1 -> 1
D55: 1 | E55: 49 | M55: =IF(OR(Hiteladatok!$I$8=0,E55>$B$4),0,IF(D55>Hiteladatok!$U$40,0,$B$14+IF(Hiteladatok!$I$10=Hiteladatok!$N$33,$B$15,0))) -> 0 | Y55: 5 | Z55: =INT((E55-1)/Hiteladatok!$U$29)+1 -> 1
D56: 12 | E56: 50 | M56: =IF(OR(Hiteladatok!$I$8=0,E56>$B$4),0,IF(D56>Hiteladatok!$U$40,0,$B$14+IF(Hiteladatok!$I$10=Hiteladatok!$N$33,$B$15,0))) -> 0 | Y56: 5 | Z56: =INT((E56-1)/Hiteladatok!$U$29)+1 -> 1
D57: 12 | E57: 51 | M57: =IF(OR(Hiteladatok!$I$8=0,E57>$B$4),0,IF(D57>Hiteladatok!$U$40,0,$B$14+IF(Hiteladatok!$I$10=Hiteladatok!$N$33,$B$15,0))) -> 0 | Y57: 5 | Z57: =INT((E57-1)/Hiteladatok!$U$29)+1 -> 1
D58: 4 | E58: 52 | M58: =IF(OR(Hiteladatok!$I$8=0,E58>$B$4),0,IF(D58>Hiteladatok!$U$40,0,$B$14+IF(Hiteladatok!$I$10=Hiteladatok!$N$33,$B$15,0))) -> 0 | Y58: 5 | Z58: =INT((E58-1)/Hiteladatok!$U$29)+1 -> 1
D59: 12 | E59: 53 | M59: =IF(OR(Hiteladatok!$I$8=0,E59>$B$4),0,IF(D59>Hiteladatok!$U$40,0,$B$14+IF(Hiteladatok!$I$10=Hiteladatok!$N$33,$B$15,0))) -> 0 | Y59: 5 | Z59: =INT((E59-1)/Hiteladatok!$U$29)+1 -> 1
D60: 12 | E60: 54 | M60: =IF(OR(Hiteladatok!$I$8=0,E60>$B$4),0,IF(D60>Hiteladatok!$U$40,0,$B$14+IF(Hiteladatok!$I$10=Hiteladatok!$N$33,$B$15,0))) -> 0 | Y60: 5 | Z60: =INT((E60-1)/Hiteladatok!$U$29)+1 -> 1
D61: 2 | E61: 55 | M61: =IF(OR(Hiteladatok!$I$8=0,E61>$B$4),0,IF(D61>Hiteladatok!$U$40,0,$B$14+IF(Hiteladatok!$I$10=Hiteladatok!$N$33,$B$15,0))) -> 0 | Y61: 5 | Z61: =INT((E61-1)/Hiteladatok!$U$29)+1 -> 1
D62: 12 | E62: 56 | M62: =IF(OR(Hiteladatok!$I$8=0,E62>$B$4),0,IF(D62>Hiteladatok!$U$40,0,$B$14+IF(Hiteladatok!$I$10=Hiteladatok!$N$33,$B$15,0))) -> 0 | Y62: 5 | Z62: =INT((E62-1)/Hiteladatok!$U$29)+1 -> 1
D63: 12 | E63: 57 | M63: =IF(OR(Hiteladatok!$I$8=0,E63>$B$4),0,IF(D63>Hiteladatok!$U$40,0,$B$14+IF(Hiteladatok!$I$10=Hiteladatok!$N$33,$B$15,0))) -> 0 | Y63: 5 | Z63: =INT((E63-1)/Hiteladatok!$U$29)+1 -> 1
D64: 4 | E64: 58 | M64: =IF(OR(Hiteladatok!$I$8=0,E64>$B$4),0,IF(D64>Hiteladatok!$U$40,0,$B$14+IF(Hiteladatok!$I$10=Hiteladatok!$N$33,$B$15,0))) -> 0 | Y64: 5 | Z64: =INT((E64-1)/Hiteladatok!$U$29)+1 -> 1
D65: 12 | E65: 59 | M65: =IF(OR(Hiteladatok!$I$8=0,E65>$B$4),0,IF(D65>Hiteladatok!$U$40,0,$B$14+IF(Hiteladatok!$I$10=Hiteladatok!$N$33,$B$15,0))) -> 0 | Y65: 5 | Z65: =INT((E65-1)/Hiteladatok!$U$29)+1 -> 1
D66: 12 | E66: 60 | M66: =IF(OR(Hiteladatok!$I$8=0,E66>$B$4),0,IF(D66>Hiteladatok!$U$40,0,$B$14+IF(Hiteladatok!$I$10=Hiteladatok!$N$33,$B$15,0))) -> 0 | Y66: 5 | Z66: =INT((E66-1)/Hiteladatok!$U$29)+1 -> 1
D67: 1 | E67: 61 | M67: =IF(OR(Hiteladatok!$I$8=0,E67>$B$4),0,IF(D67>Hiteladatok!$U$40,0,$B$14+IF(Hiteladatok!$I$10=Hiteladatok!$N$33,$B$15,0))) -> 0 | Y67: 6 | Z67: =INT((E67-1)/Hiteladatok!$U$29)+1 -> 1
D68: 12 | E68: 62 | M68: =IF(OR(Hiteladatok!$I$8=0,E68>$B$4),0,IF(D68>Hiteladatok!$U$40,0,$B$14+IF(Hiteladatok!$I$10=Hiteladatok!$N$33,$B$15,0))) -> 0 | Y68: 6 | Z68: =INT((E68-1)/Hiteladatok!$U$29)+1 -> 1
D69: 12 | E69: 63 | M69: =IF(OR(Hiteladatok!$I$8=0,E69>$B$4),0,IF(D69>Hiteladatok!$U$40,0,$B$14+IF(Hiteladatok!$I$10=Hiteladatok!$N$33,$B$15,0))) -> 0 | Y69: 6 | Z69: =INT((E69-1)/Hiteladatok!$U$29)+1 -> 1
D70: 4 | E70: 64 | M70: =IF(OR(Hiteladatok!$I$8=0,E70>$B$4),0,IF(D70>Hiteladatok!$U$40,0,$B$14+IF(Hiteladatok!$I$10=Hiteladatok!$N$33,$B$15,0))) -> 0 | Y70: 6 | Z70: =INT((E70-1)/Hiteladatok!$U$29)+1 -> 1
D71: 12 | E71: 65 | M71: =IF(OR(Hiteladatok!$I$8=0,E71>$B$4),0,IF(D71>Hiteladatok!$U$40,0,$B$14+IF(Hiteladatok!$I$10=Hiteladatok!$N$33,$B$15,0))) -> 0 | U71: =Q71+S71-T71 ->  | Y71: 6 | Z71: =INT((E71-1)/Hiteladatok!$U$29)+1 -> 1
D72: 12 | E72: 66 | F72: =$F$1*E72+$B$9 ->  | M72: =IF(OR(Hiteladatok!$I$8=0,E72>$B$4),0,IF(D72>Hiteladatok!$U$40,0,$B$14+IF(Hiteladatok!$I$10=Hiteladatok!$N$33,$B$15,0))) -> 0 | N72: =I72+K72+L72+M72 ->  | V72: =T72+K72+L72+M72 ->  | Y72: 6 | Z72: =INT((E72-1)/Hiteladatok!$U$29)+1 -> 1
D73: 2 | E73: =E72+1 -> 67 | G73: =J72 ->  | H73: =IF(E73>$B$4,0,G73*$B$3/12) ->  | I73: =IF(E73>$B$4,0,$B$10) ->  | J73: =G73+H73-I73 ->  | K73: =I73*$C$12 ->  | M73: =IF(OR(Hiteladatok!$I$8=0,E73>$B$4),0,IF(D73>Hiteladatok!$U$40,0,$B$14+IF(Hiteladatok!$I$10=Hiteladatok!$N$33,$B$15,0))) -> 0 | O73: =O72+N73/(1+$O$1)^(F73/365) ->  | Q73: =U72 ->  | R73: =IF(E73<$R$2,$R$3,$R$4) ->  | S73: =Q73*R73/12 ->  | T73: =IF(E73>$B$4,0,PMT(R73/12,$B$4-E73+1,-Q73)) ->  | W73: =W72+V73/(1+$W$1)^(F73/365) ->  | Y73: 6 | Z73: =INT((E73-1)/Hiteladatok!$U$29)+1 -> 1 | AA73: =AE72 ->  | AB73: =IF(E73<$AB$2,$AB$3,$AB$4) ->  | AC73: =AA73*AB73/12 ->  | AD73: =IF(E73>$B$4,0,PMT(AB73/12,$B$4-E73+1,-AA73)) ->  | AE73: =AA73+AC73-AD73 ->  | AG73: =AK72 ->  | AH73: =IF(E73<$AH$2,$AH$3,$AH$4) ->  | AI73: =AG73*AH73/12 ->  | AJ73: =IF(E73>$B$4,0,PMT(AH73/12,$B$4-E73+1,-AG73)) ->  | AK73: =AG73+AI73-AJ73 -> 
D74: 12 | E74: 68 | M74: =IF(OR(Hiteladatok!$I$8=0,E74>$B$4),0,IF(D74>Hiteladatok!$U$40,0,$B$14+IF(Hiteladatok!$I$10=Hiteladatok!$N$33,$B$15,0))) -> 0 | Y74: 6 | Z74: =INT((E74-1)/Hiteladatok!$U$29)+1 -> 1
D75: 12 | E75: 69 | M75: =IF(OR(Hiteladatok!$I$8=0,E75>$B$4),0,IF(D75>Hiteladatok!$U$40,0,$B$14+IF(Hiteladatok!$I$10=Hiteladatok!$N$33,$B$15,0))) -> 0 | Y75: 6 | Z75: =INT((E75-1)/Hiteladatok!$U$29)+1 -> 1
D76: 4 | E76: 70 | M76: =IF(OR(Hiteladatok!$I$8=0,E76>$B$4),0,IF(D76>Hiteladatok!$U$40,0,$B$14+IF(Hiteladatok!$I$10=Hiteladatok!$N$33,$B$15,0))) -> 0 | Y76: 6 | Z76: =INT((E76-1)/Hiteladatok!$U$29)+1 -> 1
D77: 12 | E77: 71 | M77: =IF(OR(Hiteladatok!$I$8=0,E77>$B$4),0,IF(D77>Hiteladatok!$U$40,0,$B$14+IF(Hiteladatok!$I$10=Hiteladatok!$N$33,$B$15,0))) -> 0 | Y77: 6 | Z77: =INT((E77-1)/Hiteladatok!$U$29)+1 -> 1
D78: 12 | E78: 72 | M78: =IF(OR(Hiteladatok!$I$8=0,E78>$B$4),0,IF(D78>Hiteladatok!$U$40,0,$B$14+IF(Hiteladatok!$I$10=Hiteladatok!$N$33,$B$15,0))) -> 0 | Y78: 6 | Z78: =INT((E78-1)/Hiteladatok!$U$29)+1 -> 1
D79: 1 | E79: 73 | M79: =IF(OR(Hiteladatok!$I$8=0,E79>$B$4),0,IF(D79>Hiteladatok!$U$40,0,$B$14+IF(Hiteladatok!$I$10=Hiteladatok!$N$33,$B$15,0))) -> 0 | Y79: 7 | Z79: =INT((E79-1)/Hiteladatok!$U$29)+1 -> 1
D80: 12 | E80: 74 | M80: =IF(OR(Hiteladatok!$I$8=0,E80>$B$4),0,IF(D80>Hiteladatok!$U$40,0,$B$14+IF(Hiteladatok!$I$10=Hiteladatok!$N$33,$B$15,0))) -> 0 | Y80: 7 | Z80: =INT((E80-1)/Hiteladatok!$U$29)+1 -> 1
D81: 12 | E81: 75 | M81: =IF(OR(Hiteladatok!$I$8=0,E81>$B$4),0,IF(D81>Hiteladatok!$U$40,0,$B$14+IF(Hiteladatok!$I$10=Hiteladatok!$N$33,$B$15,0))) -> 0 | Y81: 7 | Z81: =INT((E81-1)/Hiteladatok!$U$29)+1 -> 1
D82: 4 | E82: 76 | M82: =IF(OR(Hiteladatok!$I$8=0,E82>$B$4),0,IF(D82>Hiteladatok!$U$40,0,$B$14+IF(Hiteladatok!$I$10=Hiteladatok!$N$33,$B$15,0))) -> 0 | Y82: 7 | Z82: =INT((E82-1)/Hiteladatok!$U$29)+1 -> 1
D83: 12 | E83: 77 | M83: =IF(OR(Hiteladatok!$I$8=0,E83>$B$4),0,IF(D83>Hiteladatok!$U$40,0,$B$14+IF(Hiteladatok!$I$10=Hiteladatok!$N$33,$B$15,0))) -> 0 | Y83: 7 | Z83: =INT((E83-1)/Hiteladatok!$U$29)+1 -> 1
D84: 12 | E84: 78 | M84: =IF(OR(Hiteladatok!$I$8=0,E84>$B$4),0,IF(D84>Hiteladatok!$U$40,0,$B$14+IF(Hiteladatok!$I$10=Hiteladatok!$N$33,$B$15,0))) -> 0 | Y84: =Y72+1 -> 7 | Z84: =INT((E84-1)/Hiteladatok!$U$29)+1 -> 1
D85: 2 | E85: 79 | M85: =IF(OR(Hiteladatok!$I$8=0,E85>$B$4),0,IF(D85>Hiteladatok!$U$40,0,$B$14+IF(Hiteladatok!$I$10=Hiteladatok!$N$33,$B$15,0))) -> 0 | Y85: 7 | Z85: =INT((E85-1)/Hiteladatok!$U$29)+1 -> 1
D86: 12 | E86: 80 | M86: =IF(OR(Hiteladatok!$I$8=0,E86>$B$4),0,IF(D86>Hiteladatok!$U$40,0,$B$14+IF(Hiteladatok!$I$10=Hiteladatok!$N$33,$B$15,0))) -> 0 | Y86: 7 | Z86: =INT((E86-1)/Hiteladatok!$U$29)+1 -> 1
D87: 12 | E87: 81 | L87: =IF(E87>$B$4,0,$C$13) ->  | M87: =IF(OR(Hiteladatok!$I$8=0,E87>$B$4),0,IF(D87>Hiteladatok!$U$40,0,$B$14+IF(Hiteladatok!$I$10=Hiteladatok!$N$33,$B$15,0))) -> 0 | Y87: 7 | Z87: =INT((E87-1)/Hiteladatok!$U$29)+1 -> 1
D88: 4 | E88: 82 | M88: =IF(OR(Hiteladatok!$I$8=0,E88>$B$4),0,IF(D88>Hiteladatok!$U$40,0,$B$14+IF(Hiteladatok!$I$10=Hiteladatok!$N$33,$B$15,0))) -> 0 | Y88: 7 | Z88: =INT((E88-1)/Hiteladatok!$U$29)+1 -> 1
D89: 12 | E89: 83 | M89: =IF(OR(Hiteladatok!$I$8=0,E89>$B$4),0,IF(D89>Hiteladatok!$U$40,0,$B$14+IF(Hiteladatok!$I$10=Hiteladatok!$N$33,$B$15,0))) -> 0 | Y89: 7 | Z89: =INT((E89-1)/Hiteladatok!$U$29)+1 -> 1
D90: 12 | E90: 84 | M90: =IF(OR(Hiteladatok!$I$8=0,E90>$B$4),0,IF(D90>Hiteladatok!$U$40,0,$B$14+IF(Hiteladatok!$I$10=Hiteladatok!$N$33,$B$15,0))) -> 0 | Y90: 7 | Z90: =INT((E90-1)/Hiteladatok!$U$29)+1 -> 1
D91: 1 | E91: 85 | M91: =IF(OR(Hiteladatok!$I$8=0,E91>$B$4),0,IF(D91>Hiteladatok!$U$40,0,$B$14+IF(Hiteladatok!$I$10=Hiteladatok!$N$33,$B$15,0))) -> 0 | Y91: 8 | Z91: =INT((E91-1)/Hiteladatok!$U$29)+1 -> 1
D92: 12 | E92: 86 | M92: =IF(OR(Hiteladatok!$I$8=0,E92>$B$4),0,IF(D92>Hiteladatok!$U$40,0,$B$14+IF(Hiteladatok!$I$10=Hiteladatok!$N$33,$B$15,0))) -> 0 | Y92: 8 | Z92: =INT((E92-1)/Hiteladatok!$U$29)+1 -> 1
D93: 12 | E93: 87 | M93: =IF(OR(Hiteladatok!$I$8=0,E93>$B$4),0,IF(D93>Hiteladatok!$U$40,0,$B$14+IF(Hiteladatok!$I$10=Hiteladatok!$N$33,$B$15,0))) -> 0 | Y93: 8 | Z93: =INT((E93-1)/Hiteladatok!$U$29)+1 -> 1
D94: 4 | E94: 88 | M94: =IF(OR(Hiteladatok!$I$8=0,E94>$B$4),0,IF(D94>Hiteladatok!$U$40,0,$B$14+IF(Hiteladatok!$I$10=Hiteladatok!$N$33,$B$15,0))) -> 0 | Y94: 8 | Z94: =INT((E94-1)/Hiteladatok!$U$29)+1 -> 1
D95: 12 | E95: 89 | M95: =IF(OR(Hiteladatok!$I$8=0,E95>$B$4),0,IF(D95>Hiteladatok!$U$40,0,$B$14+IF(Hiteladatok!$I$10=Hiteladatok!$N$33,$B$15,0))) -> 0 | Y95: 8 | Z95: =INT((E95-1)/Hiteladatok!$U$29)+1 -> 1
D96: 12 | E96: 90 | M96: =IF(OR(Hiteladatok!$I$8=0,E96>$B$4),0,IF(D96>Hiteladatok!$U$40,0,$B$14+IF(Hiteladatok!$I$10=Hiteladatok!$N$33,$B$15,0))) -> 0 | Y96: 8 | Z96: =INT((E96-1)/Hiteladatok!$U$29)+1 -> 1
D97: 2 | E97: 91 | M97: =IF(OR(Hiteladatok!$I$8=0,E97>$B$4),0,IF(D97>Hiteladatok!$U$40,0,$B$14+IF(Hiteladatok!$I$10=Hiteladatok!$N$33,$B$15,0))) -> 0 | Y97: 8 | Z97: =INT((E97-1)/Hiteladatok!$U$29)+1 -> 1
D98: 12 | E98: 92 | M98: =IF(OR(Hiteladatok!$I$8=0,E98>$B$4),0,IF(D98>Hiteladatok!$U$40,0,$B$14+IF(Hiteladatok!$I$10=Hiteladatok!$N$33,$B$15,0))) -> 0 | Y98: 8 | Z98: =INT((E98-1)/Hiteladatok!$U$29)+1 -> 1
D99: 12 | E99: 93 | M99: =IF(OR(Hiteladatok!$I$8=0,E99>$B$4),0,IF(D99>Hiteladatok!$U$40,0,$B$14+IF(Hiteladatok!$I$10=Hiteladatok!$N$33,$B$15,0))) -> 0 | Y99: 8 | Z99: =INT((E99-1)/Hiteladatok!$U$29)+1 -> 1
D100: 4 | E100: 94 | M100: =IF(OR(Hiteladatok!$I$8=0,E100>$B$4),0,IF(D100>Hiteladatok!$U$40,0,$B$14+IF(Hiteladatok!$I$10=Hiteladatok!$N$33,$B$15,0))) -> 0 | Y100: 8 | Z100: =INT((E100-1)/Hiteladatok!$U$29)+1 -> 1
D101: 12 | E101: 95 | M101: =IF(OR(Hiteladatok!$I$8=0,E101>$B$4),0,IF(D101>Hiteladatok!$U$40,0,$B$14+IF(Hiteladatok!$I$10=Hiteladatok!$N$33,$B$15,0))) -> 0 | Y101: 8 | Z101: =INT((E101-1)/Hiteladatok!$U$29)+1 -> 1
D102: 12 | E102: 96 | M102: =IF(OR(Hiteladatok!$I$8=0,E102>$B$4),0,IF(D102>Hiteladatok!$U$40,0,$B$14+IF(Hiteladatok!$I$10=Hiteladatok!$N$33,$B$15,0))) -> 0 | Y102: 8 | Z102: =INT((E102-1)/Hiteladatok!$U$29)+1 -> 1
D103: 1 | E103: 97 | M103: =IF(OR(Hiteladatok!$I$8=0,E103>$B$4),0,IF(D103>Hiteladatok!$U$40,0,$B$14+IF(Hiteladatok!$I$10=Hiteladatok!$N$33,$B$15,0))) -> 0 | Y103: 9 | Z103: =INT((E103-1)/Hiteladatok!$U$29)+1 -> 1
D104: 12 | E104: 98 | M104: =IF(OR(Hiteladatok!$I$8=0,E104>$B$4),0,IF(D104>Hiteladatok!$U$40,0,$B$14+IF(Hiteladatok!$I$10=Hiteladatok!$N$33,$B$15,0))) -> 0 | Y104: 9 | Z104: =INT((E104-1)/Hiteladatok!$U$29)+1 -> 1
D105: 12 | E105: 99 | M105: =IF(OR(Hiteladatok!$I$8=0,E105>$B$4),0,IF(D105>Hiteladatok!$U$40,0,$B$14+IF(Hiteladatok!$I$10=Hiteladatok!$N$33,$B$15,0))) -> 0 | Y105: 9 | Z105: =INT((E105-1)/Hiteladatok!$U$29)+1 -> 1
D106: 4 | E106: 100 | M106: =IF(OR(Hiteladatok!$I$8=0,E106>$B$4),0,IF(D106>Hiteladatok!$U$40,0,$B$14+IF(Hiteladatok!$I$10=Hiteladatok!$N$33,$B$15,0))) -> 0 | Y106: 9 | Z106: =INT((E106-1)/Hiteladatok!$U$29)+1 -> 1
D107: 12 | E107: 101 | M107: =IF(OR(Hiteladatok!$I$8=0,E107>$B$4),0,IF(D107>Hiteladatok!$U$40,0,$B$14+IF(Hiteladatok!$I$10=Hiteladatok!$N$33,$B$15,0))) -> 0 | Y107: 9 | Z107: =INT((E107-1)/Hiteladatok!$U$29)+1 -> 1
D108: 12 | E108: 102 | M108: =IF(OR(Hiteladatok!$I$8=0,E108>$B$4),0,IF(D108>Hiteladatok!$U$40,0,$B$14+IF(Hiteladatok!$I$10=Hiteladatok!$N$33,$B$15,0))) -> 0 | Y108: 9 | Z108: =INT((E108-1)/Hiteladatok!$U$29)+1 -> 1
D109: 2 | E109: 103 | M109: =IF(OR(Hiteladatok!$I$8=0,E109>$B$4),0,IF(D109>Hiteladatok!$U$40,0,$B$14+IF(Hiteladatok!$I$10=Hiteladatok!$N$33,$B$15,0))) -> 0 | Y109: 9 | Z109: =INT((E109-1)/Hiteladatok!$U$29)+1 -> 1
D110: 12 | E110: 104 | M110: =IF(OR(Hiteladatok!$I$8=0,E110>$B$4),0,IF(D110>Hiteladatok!$U$40,0,$B$14+IF(Hiteladatok!$I$10=Hiteladatok!$N$33,$B$15,0))) -> 0 | Y110: 9 | Z110: =INT((E110-1)/Hiteladatok!$U$29)+1 -> 1
D111: 12 | E111: 105 | M111: =IF(OR(Hiteladatok!$I$8=0,E111>$B$4),0,IF(D111>Hiteladatok!$U$40,0,$B$14+IF(Hiteladatok!$I$10=Hiteladatok!$N$33,$B$15,0))) -> 0 | Y111: 9 | Z111: =INT((E111-1)/Hiteladatok!$U$29)+1 -> 1
D112: 4 | E112: 106 | M112: =IF(OR(Hiteladatok!$I$8=0,E112>$B$4),0,IF(D112>Hiteladatok!$U$40,0,$B$14+IF(Hiteladatok!$I$10=Hiteladatok!$N$33,$B$15,0))) -> 0 | Y112: 9 | Z112: =INT((E112-1)/Hiteladatok!$U$29)+1 -> 1
D113: 12 | E113: 107 | M113: =IF(OR(Hiteladatok!$I$8=0,E113>$B$4),0,IF(D113>Hiteladatok!$U$40,0,$B$14+IF(Hiteladatok!$I$10=Hiteladatok!$N$33,$B$15,0))) -> 0 | Y113: 9 | Z113: =INT((E113-1)/Hiteladatok!$U$29)+1 -> 1
D114: 12 | E114: 108 | M114: =IF(OR(Hiteladatok!$I$8=0,E114>$B$4),0,IF(D114>Hiteladatok!$U$40,0,$B$14+IF(Hiteladatok!$I$10=Hiteladatok!$N$33,$B$15,0))) -> 0 | Y114: 9 | Z114: =INT((E114-1)/Hiteladatok!$U$29)+1 -> 1
D115: 1 | E115: 109 | M115: =IF(OR(Hiteladatok!$I$8=0,E115>$B$4),0,IF(D115>Hiteladatok!$U$40,0,$B$14+IF(Hiteladatok!$I$10=Hiteladatok!$N$33,$B$15,0))) -> 0 | Y115: 10 | Z115: =INT((E115-1)/Hiteladatok!$U$29)+1 -> 1
D116: 12 | E116: 110 | M116: =IF(OR(Hiteladatok!$I$8=0,E116>$B$4),0,IF(D116>Hiteladatok!$U$40,0,$B$14+IF(Hiteladatok!$I$10=Hiteladatok!$N$33,$B$15,0))) -> 0 | Y116: 10 | Z116: =INT((E116-1)/Hiteladatok!$U$29)+1 -> 1
D117: 12 | E117: 111 | M117: =IF(OR(Hiteladatok!$I$8=0,E117>$B$4),0,IF(D117>Hiteladatok!$U$40,0,$B$14+IF(Hiteladatok!$I$10=Hiteladatok!$N$33,$B$15,0))) -> 0 | Y117: 10 | Z117: =INT((E117-1)/Hiteladatok!$U$29)+1 -> 1
D118: 4 | E118: 112 | M118: =IF(OR(Hiteladatok!$I$8=0,E118>$B$4),0,IF(D118>Hiteladatok!$U$40,0,$B$14+IF(Hiteladatok!$I$10=Hiteladatok!$N$33,$B$15,0))) -> 0 | Y118: 10 | Z118: =INT((E118-1)/Hiteladatok!$U$29)+1 -> 1
D119: 12 | E119: 113 | M119: =IF(OR(Hiteladatok!$I$8=0,E119>$B$4),0,IF(D119>Hiteladatok!$U$40,0,$B$14+IF(Hiteladatok!$I$10=Hiteladatok!$N$33,$B$15,0))) -> 0 | Y119: 10 | Z119: =INT((E119-1)/Hiteladatok!$U$29)+1 -> 1
D120: 12 | E120: 114 | M120: =IF(OR(Hiteladatok!$I$8=0,E120>$B$4),0,IF(D120>Hiteladatok!$U$40,0,$B$14+IF(Hiteladatok!$I$10=Hiteladatok!$N$33,$B$15,0))) -> 0 | Y120: 10 | Z120: =INT((E120-1)/Hiteladatok!$U$29)+1 -> 1
D121: 2 | E121: 115 | M121: =IF(OR(Hiteladatok!$I$8=0,E121>$B$4),0,IF(D121>Hiteladatok!$U$40,0,$B$14+IF(Hiteladatok!$I$10=Hiteladatok!$N$33,$B$15,0))) -> 0 | Y121: 10 | Z121: =INT((E121-1)/Hiteladatok!$U$29)+1 -> 1
D122: 12 | E122: 116 | M122: =IF(OR(Hiteladatok!$I$8=0,E122>$B$4),0,IF(D122>Hiteladatok!$U$40,0,$B$14+IF(Hiteladatok!$I$10=Hiteladatok!$N$33,$B$15,0))) -> 0 | Y122: 10 | Z122: =INT((E122-1)/Hiteladatok!$U$29)+1 -> 1
D123: 12 | E123: 117 | M123: =IF(OR(Hiteladatok!$I$8=0,E123>$B$4),0,IF(D123>Hiteladatok!$U$40,0,$B$14+IF(Hiteladatok!$I$10=Hiteladatok!$N$33,$B$15,0))) -> 0 | Y123: 10 | Z123: =INT((E123-1)/Hiteladatok!$U$29)+1 -> 1
D124: 4 | E124: 118 | M124: =IF(OR(Hiteladatok!$I$8=0,E124>$B$4),0,IF(D124>Hiteladatok!$U$40,0,$B$14+IF(Hiteladatok!$I$10=Hiteladatok!$N$33,$B$15,0))) -> 0 | Y124: 10 | Z124: =INT((E124-1)/Hiteladatok!$U$29)+1 -> 1
D125: 12 | E125: 119 | M125: =IF(OR(Hiteladatok!$I$8=0,E125>$B$4),0,IF(D125>Hiteladatok!$U$40,0,$B$14+IF(Hiteladatok!$I$10=Hiteladatok!$N$33,$B$15,0))) -> 0 | Y125: 10 | Z125: =INT((E125-1)/Hiteladatok!$U$29)+1 -> 1
D126: 12 | E126: 120 | M126: =IF(OR(Hiteladatok!$I$8=0,E126>$B$4),0,IF(D126>Hiteladatok!$U$40,0,$B$14+IF(Hiteladatok!$I$10=Hiteladatok!$N$33,$B$15,0))) -> 0 | Y126: 10 | Z126: =INT((E126-1)/Hiteladatok!$U$29)+1 -> 1
D127: 1 | E127: 121 | M127: =IF(OR(Hiteladatok!$I$8=0,E127>$B$4),0,IF(D127>Hiteladatok!$U$40,0,$B$14+IF(Hiteladatok!$I$10=Hiteladatok!$N$33,$B$15,0))) -> 0 | Y127: 11 | Z127: =INT((E127-1)/Hiteladatok!$U$29)+1 -> 2
D128: 12 | E128: 122 | M128: =IF(OR(Hiteladatok!$I$8=0,E128>$B$4),0,IF(D128>Hiteladatok!$U$40,0,$B$14+IF(Hiteladatok!$I$10=Hiteladatok!$N$33,$B$15,0))) -> 0 | Y128: 11 | Z128: =INT((E128-1)/Hiteladatok!$U$29)+1 -> 2
D129: 12 | E129: 123 | M129: =IF(OR(Hiteladatok!$I$8=0,E129>$B$4),0,IF(D129>Hiteladatok!$U$40,0,$B$14+IF(Hiteladatok!$I$10=Hiteladatok!$N$33,$B$15,0))) -> 0 | Y129: 11 | Z129: =INT((E129-1)/Hiteladatok!$U$29)+1 -> 2
D130: 4 | E130: 124 | M130: =IF(OR(Hiteladatok!$I$8=0,E130>$B$4),0,IF(D130>Hiteladatok!$U$40,0,$B$14+IF(Hiteladatok!$I$10=Hiteladatok!$N$33,$B$15,0))) -> 0 | Y130: 11 | Z130: =INT((E130-1)/Hiteladatok!$U$29)+1 -> 2
D131: 12 | E131: 125 | M131: =IF(OR(Hiteladatok!$I$8=0,E131>$B$4),0,IF(D131>Hiteladatok!$U$40,0,$B$14+IF(Hiteladatok!$I$10=Hiteladatok!$N$33,$B$15,0))) -> 0 | Y131: 11 | Z131: =INT((E131-1)/Hiteladatok!$U$29)+1 -> 2
D132: 12 | E132: 126 | M132: =IF(OR(Hiteladatok!$I$8=0,E132>$B$4),0,IF(D132>Hiteladatok!$U$40,0,$B$14+IF(Hiteladatok!$I$10=Hiteladatok!$N$33,$B$15,0))) -> 0 | Y132: 11 | Z132: =INT((E132-1)/Hiteladatok!$U$29)+1 -> 2
D133: 2 | E133: 127 | M133: =IF(OR(Hiteladatok!$I$8=0,E133>$B$4),0,IF(D133>Hiteladatok!$U$40,0,$B$14+IF(Hiteladatok!$I$10=Hiteladatok!$N$33,$B$15,0))) -> 0 | Y133: 11 | Z133: =INT((E133-1)/Hiteladatok!$U$29)+1 -> 2
D134: 12 | E134: 128 | M134: =IF(OR(Hiteladatok!$I$8=0,E134>$B$4),0,IF(D134>Hiteladatok!$U$40,0,$B$14+IF(Hiteladatok!$I$10=Hiteladatok!$N$33,$B$15,0))) -> 0 | Y134: 11 | Z134: =INT((E134-1)/Hiteladatok!$U$29)+1 -> 2
D135: 12 | E135: 129 | M135: =IF(OR(Hiteladatok!$I$8=0,E135>$B$4),0,IF(D135>Hiteladatok!$U$40,0,$B$14+IF(Hiteladatok!$I$10=Hiteladatok!$N$33,$B$15,0))) -> 0 | U135: =Q135+S135-T135 ->  | Y135: 11 | Z135: =INT((E135-1)/Hiteladatok!$U$29)+1 -> 2
D136: 4 | E136: 130 | F136: =$F$1*E136+$B$9 ->  | M136: =IF(OR(Hiteladatok!$I$8=0,E136>$B$4),0,IF(D136>Hiteladatok!$U$40,0,$B$14+IF(Hiteladatok!$I$10=Hiteladatok!$N$33,$B$15,0))) -> 0 | N136: =I136+K136+L136+M136 ->  | V136: =T136+K136+L136+M136 ->  | Y136: 11 | Z136: =INT((E136-1)/Hiteladatok!$U$29)+1 -> 2
D137: 12 | E137: =E136+1 -> 131 | G137: =J136 ->  | H137: =IF(E137>$B$4,0,G137*$B$3/12) ->  | I137: =IF(E137>$B$4,0,$B$10) ->  | J137: =G137+H137-I137 ->  | K137: =I137*$C$12 ->  | M137: =IF(OR(Hiteladatok!$I$8=0,E137>$B$4),0,IF(D137>Hiteladatok!$U$40,0,$B$14+IF(Hiteladatok!$I$10=Hiteladatok!$N$33,$B$15,0))) -> 0 | O137: =O136+N137/(1+$O$1)^(F137/365) ->  | Q137: =U136 ->  | R137: =IF(E137<$R$2,$R$3,$R$4) ->  | S137: =Q137*R137/12 ->  | T137: =IF(E137>$B$4,0,PMT(R137/12,$B$4-E137+1,-Q137)) ->  | W137: =W136+V137/(1+$W$1)^(F137/365) ->  | Y137: 11 | Z137: =INT((E137-1)/Hiteladatok!$U$29)+1 -> 2 | AA137: =AE136 ->  | AB137: =IF(E137<$AB$2,$AB$3,$AB$4) ->  | AC137: =AA137*AB137/12 ->  | AD137: =IF(E137>$B$4,0,PMT(AB137/12,$B$4-E137+1,-AA137)) ->  | AE137: =AA137+AC137-AD137 ->  | AG137: =AK136 ->  | AH137: =IF(E137<$AH$2,$AH$3,$AH$4) ->  | AI137: =AG137*AH137/12 ->  | AJ137: =IF(E137>$B$4,0,PMT(AH137/12,$B$4-E137+1,-AG137)) ->  | AK137: =AG137+AI137-AJ137 -> 
D138: 12 | E138: 132 | M138: =IF(OR(Hiteladatok!$I$8=0,E138>$B$4),0,IF(D138>Hiteladatok!$U$40,0,$B$14+IF(Hiteladatok!$I$10=Hiteladatok!$N$33,$B$15,0))) -> 0 | Y138: 11 | Z138: =INT((E138-1)/Hiteladatok!$U$29)+1 -> 2
D139: 1 | E139: 133 | M139: =IF(OR(Hiteladatok!$I$8=0,E139>$B$4),0,IF(D139>Hiteladatok!$U$40,0,$B$14+IF(Hiteladatok!$I$10=Hiteladatok!$N$33,$B$15,0))) -> 0 | Y139: 12 | Z139: =INT((E139-1)/Hiteladatok!$U$29)+1 -> 2
D140: 12 | E140: 134 | M140: =IF(OR(Hiteladatok!$I$8=0,E140>$B$4),0,IF(D140>Hiteladatok!$U$40,0,$B$14+IF(Hiteladatok!$I$10=Hiteladatok!$N$33,$B$15,0))) -> 0 | Y140: 12 | Z140: =INT((E140-1)/Hiteladatok!$U$29)+1 -> 2
D141: 12 | E141: 135 | M141: =IF(OR(Hiteladatok!$I$8=0,E141>$B$4),0,IF(D141>Hiteladatok!$U$40,0,$B$14+IF(Hiteladatok!$I$10=Hiteladatok!$N$33,$B$15,0))) -> 0 | Y141: 12 | Z141: =INT((E141-1)/Hiteladatok!$U$29)+1 -> 2
D142: 4 | E142: 136 | M142: =IF(OR(Hiteladatok!$I$8=0,E142>$B$4),0,IF(D142>Hiteladatok!$U$40,0,$B$14+IF(Hiteladatok!$I$10=Hiteladatok!$N$33,$B$15,0))) -> 0 | Y142: 12 | Z142: =INT((E142-1)/Hiteladatok!$U$29)+1 -> 2
D143: 12 | E143: 137 | M143: =IF(OR(Hiteladatok!$I$8=0,E143>$B$4),0,IF(D143>Hiteladatok!$U$40,0,$B$14+IF(Hiteladatok!$I$10=Hiteladatok!$N$33,$B$15,0))) -> 0 | Y143: 12 | Z143: =INT((E143-1)/Hiteladatok!$U$29)+1 -> 2
D144: 12 | E144: 138 | M144: =IF(OR(Hiteladatok!$I$8=0,E144>$B$4),0,IF(D144>Hiteladatok!$U$40,0,$B$14+IF(Hiteladatok!$I$10=Hiteladatok!$N$33,$B$15,0))) -> 0 | Y144: 12 | Z144: =INT((E144-1)/Hiteladatok!$U$29)+1 -> 2
D145: 2 | E145: 139 | M145: =IF(OR(Hiteladatok!$I$8=0,E145>$B$4),0,IF(D145>Hiteladatok!$U$40,0,$B$14+IF(Hiteladatok!$I$10=Hiteladatok!$N$33,$B$15,0))) -> 0 | Y145: 12 | Z145: =INT((E145-1)/Hiteladatok!$U$29)+1 -> 2
D146: 12 | E146: 140 | M146: =IF(OR(Hiteladatok!$I$8=0,E146>$B$4),0,IF(D146>Hiteladatok!$U$40,0,$B$14+IF(Hiteladatok!$I$10=Hiteladatok!$N$33,$B$15,0))) -> 0 | Y146: 12 | Z146: =INT((E146-1)/Hiteladatok!$U$29)+1 -> 2
D147: 12 | E147: 141 | M147: =IF(OR(Hiteladatok!$I$8=0,E147>$B$4),0,IF(D147>Hiteladatok!$U$40,0,$B$14+IF(Hiteladatok!$I$10=Hiteladatok!$N$33,$B$15,0))) -> 0 | Y147: 12 | Z147: =INT((E147-1)/Hiteladatok!$U$29)+1 -> 2
D148: 4 | E148: 142 | M148: =IF(OR(Hiteladatok!$I$8=0,E148>$B$4),0,IF(D148>Hiteladatok!$U$40,0,$B$14+IF(Hiteladatok!$I$10=Hiteladatok!$N$33,$B$15,0))) -> 0 | Y148: =Y136+1 -> 12 | Z148: =INT((E148-1)/Hiteladatok!$U$29)+1 -> 2
D149: 12 | E149: 143 | M149: =IF(OR(Hiteladatok!$I$8=0,E149>$B$4),0,IF(D149>Hiteladatok!$U$40,0,$B$14+IF(Hiteladatok!$I$10=Hiteladatok!$N$33,$B$15,0))) -> 0 | Y149: 12 | Z149: =INT((E149-1)/Hiteladatok!$U$29)+1 -> 2
D150: 12 | E150: 144 | M150: =IF(OR(Hiteladatok!$I$8=0,E150>$B$4),0,IF(D150>Hiteladatok!$U$40,0,$B$14+IF(Hiteladatok!$I$10=Hiteladatok!$N$33,$B$15,0))) -> 0 | Y150: 12 | Z150: =INT((E150-1)/Hiteladatok!$U$29)+1 -> 2
D151: 1 | E151: 145 | L151: =IF(E151>$B$4,0,$C$13) ->  | M151: =IF(OR(Hiteladatok!$I$8=0,E151>$B$4),0,IF(D151>Hiteladatok!$U$40,0,$B$14+IF(Hiteladatok!$I$10=Hiteladatok!$N$33,$B$15,0))) -> 0 | Y151: 13 | Z151: =INT((E151-1)/Hiteladatok!$U$29)+1 -> 2
D152: 12 | E152: 146 | M152: =IF(OR(Hiteladatok!$I$8=0,E152>$B$4),0,IF(D152>Hiteladatok!$U$40,0,$B$14+IF(Hiteladatok!$I$10=Hiteladatok!$N$33,$B$15,0))) -> 0 | Y152: 13 | Z152: =INT((E152-1)/Hiteladatok!$U$29)+1 -> 2
D153: 12 | E153: 147 | M153: =IF(OR(Hiteladatok!$I$8=0,E153>$B$4),0,IF(D153>Hiteladatok!$U$40,0,$B$14+IF(Hiteladatok!$I$10=Hiteladatok!$N$33,$B$15,0))) -> 0 | Y153: 13 | Z153: =INT((E153-1)/Hiteladatok!$U$29)+1 -> 2
D154: 4 | E154: 148 | M154: =IF(OR(Hiteladatok!$I$8=0,E154>$B$4),0,IF(D154>Hiteladatok!$U$40,0,$B$14+IF(Hiteladatok!$I$10=Hiteladatok!$N$33,$B$15,0))) -> 0 | Y154: 13 | Z154: =INT((E154-1)/Hiteladatok!$U$29)+1 -> 2
D155: 12 | E155: 149 | M155: =IF(OR(Hiteladatok!$I$8=0,E155>$B$4),0,IF(D155>Hiteladatok!$U$40,0,$B$14+IF(Hiteladatok!$I$10=Hiteladatok!$N$33,$B$15,0))) -> 0 | Y155: 13 | Z155: =INT((E155-1)/Hiteladatok!$U$29)+1 -> 2
D156: 12 | E156: 150 | M156: =IF(OR(Hiteladatok!$I$8=0,E156>$B$4),0,IF(D156>Hiteladatok!$U$40,0,$B$14+IF(Hiteladatok!$I$10=Hiteladatok!$N$33,$B$15,0))) -> 0 | Y156: 13 | Z156: =INT((E156-1)/Hiteladatok!$U$29)+1 -> 2
D157: 2 | E157: 151 | M157: =IF(OR(Hiteladatok!$I$8=0,E157>$B$4),0,IF(D157>Hiteladatok!$U$40,0,$B$14+IF(Hiteladatok!$I$10=Hiteladatok!$N$33,$B$15,0))) -> 0 | Y157: 13 | Z157: =INT((E157-1)/Hiteladatok!$U$29)+1 -> 2
D158: 12 | E158: 152 | M158: =IF(OR(Hiteladatok!$I$8=0,E158>$B$4),0,IF(D158>Hiteladatok!$U$40,0,$B$14+IF(Hiteladatok!$I$10=Hiteladatok!$N$33,$B$15,0))) -> 0 | Y158: 13 | Z158: =INT((E158-1)/Hiteladatok!$U$29)+1 -> 2
D159: 12 | E159: 153 | M159: =IF(OR(Hiteladatok!$I$8=0,E159>$B$4),0,IF(D159>Hiteladatok!$U$40,0,$B$14+IF(Hiteladatok!$I$10=Hiteladatok!$N$33,$B$15,0))) -> 0 | Y159: 13 | Z159: =INT((E159-1)/Hiteladatok!$U$29)+1 -> 2
D160: 4 | E160: 154 | M160: =IF(OR(Hiteladatok!$I$8=0,E160>$B$4),0,IF(D160>Hiteladatok!$U$40,0,$B$14+IF(Hiteladatok!$I$10=Hiteladatok!$N$33,$B$15,0))) -> 0 | Y160: 13 | Z160: =INT((E160-1)/Hiteladatok!$U$29)+1 -> 2
D161: 12 | E161: 155 | M161: =IF(OR(Hiteladatok!$I$8=0,E161>$B$4),0,IF(D161>Hiteladatok!$U$40,0,$B$14+IF(Hiteladatok!$I$10=Hiteladatok!$N$33,$B$15,0))) -> 0 | Y161: 13 | Z161: =INT((E161-1)/Hiteladatok!$U$29)+1 -> 2
D162: 12 | E162: 156 | M162: =IF(OR(Hiteladatok!$I$8=0,E162>$B$4),0,IF(D162>Hiteladatok!$U$40,0,$B$14+IF(Hiteladatok!$I$10=Hiteladatok!$N$33,$B$15,0))) -> 0 | Y162: 13 | Z162: =INT((E162-1)/Hiteladatok!$U$29)+1 -> 2
D163: 1 | E163: 157 | M163: =IF(OR(Hiteladatok!$I$8=0,E163>$B$4),0,IF(D163>Hiteladatok!$U$40,0,$B$14+IF(Hiteladatok!$I$10=Hiteladatok!$N$33,$B$15,0))) -> 0 | Y163: 14 | Z163: =INT((E163-1)/Hiteladatok!$U$29)+1 -> 2
D164: 12 | E164: 158 | M164: =IF(OR(Hiteladatok!$I$8=0,E164>$B$4),0,IF(D164>Hiteladatok!$U$40,0,$B$14+IF(Hiteladatok!$I$10=Hiteladatok!$N$33,$B$15,0))) -> 0 | Y164: 14 | Z164: =INT((E164-1)/Hiteladatok!$U$29)+1 -> 2
D165: 12 | E165: 159 | M165: =IF(OR(Hiteladatok!$I$8=0,E165>$B$4),0,IF(D165>Hiteladatok!$U$40,0,$B$14+IF(Hiteladatok!$I$10=Hiteladatok!$N$33,$B$15,0))) -> 0 | Y165: 14 | Z165: =INT((E165-1)/Hiteladatok!$U$29)+1 -> 2
D166: 4 | E166: 160 | M166: =IF(OR(Hiteladatok!$I$8=0,E166>$B$4),0,IF(D166>Hiteladatok!$U$40,0,$B$14+IF(Hiteladatok!$I$10=Hiteladatok!$N$33,$B$15,0))) -> 0 | Y166: 14 | Z166: =INT((E166-1)/Hiteladatok!$U$29)+1 -> 2
D167: 12 | E167: 161 | M167: =IF(OR(Hiteladatok!$I$8=0,E167>$B$4),0,IF(D167>Hiteladatok!$U$40,0,$B$14+IF(Hiteladatok!$I$10=Hiteladatok!$N$33,$B$15,0))) -> 0 | Y167: 14 | Z167: =INT((E167-1)/Hiteladatok!$U$29)+1 -> 2
D168: 12 | E168: 162 | M168: =IF(OR(Hiteladatok!$I$8=0,E168>$B$4),0,IF(D168>Hiteladatok!$U$40,0,$B$14+IF(Hiteladatok!$I$10=Hiteladatok!$N$33,$B$15,0))) -> 0 | Y168: 14 | Z168: =INT((E168-1)/Hiteladatok!$U$29)+1 -> 2
D169: 2 | E169: 163 | M169: =IF(OR(Hiteladatok!$I$8=0,E169>$B$4),0,IF(D169>Hiteladatok!$U$40,0,$B$14+IF(Hiteladatok!$I$10=Hiteladatok!$N$33,$B$15,0))) -> 0 | Y169: 14 | Z169: =INT((E169-1)/Hiteladatok!$U$29)+1 -> 2
D170: 12 | E170: 164 | M170: =IF(OR(Hiteladatok!$I$8=0,E170>$B$4),0,IF(D170>Hiteladatok!$U$40,0,$B$14+IF(Hiteladatok!$I$10=Hiteladatok!$N$33,$B$15,0))) -> 0 | Y170: 14 | Z170: =INT((E170-1)/Hiteladatok!$U$29)+1 -> 2
D171: 12 | E171: 165 | M171: =IF(OR(Hiteladatok!$I$8=0,E171>$B$4),0,IF(D171>Hiteladatok!$U$40,0,$B$14+IF(Hiteladatok!$I$10=Hiteladatok!$N$33,$B$15,0))) -> 0 | Y171: 14 | Z171: =INT((E171-1)/Hiteladatok!$U$29)+1 -> 2
D172: 4 | E172: 166 | M172: =IF(OR(Hiteladatok!$I$8=0,E172>$B$4),0,IF(D172>Hiteladatok!$U$40,0,$B$14+IF(Hiteladatok!$I$10=Hiteladatok!$N$33,$B$15,0))) -> 0 | Y172: 14 | Z172: =INT((E172-1)/Hiteladatok!$U$29)+1 -> 2
D173: 12 | E173: 167 | M173: =IF(OR(Hiteladatok!$I$8=0,E173>$B$4),0,IF(D173>Hiteladatok!$U$40,0,$B$14+IF(Hiteladatok!$I$10=Hiteladatok!$N$33,$B$15,0))) -> 0 | Y173: 14 | Z173: =INT((E173-1)/Hiteladatok!$U$29)+1 -> 2
D174: 12 | E174: 168 | M174: =IF(OR(Hiteladatok!$I$8=0,E174>$B$4),0,IF(D174>Hiteladatok!$U$40,0,$B$14+IF(Hiteladatok!$I$10=Hiteladatok!$N$33,$B$15,0))) -> 0 | Y174: 14 | Z174: =INT((E174-1)/Hiteladatok!$U$29)+1 -> 2
D175: 1 | E175: 169 | M175: =IF(OR(Hiteladatok!$I$8=0,E175>$B$4),0,IF(D175>Hiteladatok!$U$40,0,$B$14+IF(Hiteladatok!$I$10=Hiteladatok!$N$33,$B$15,0))) -> 0 | Y175: 15 | Z175: =INT((E175-1)/Hiteladatok!$U$29)+1 -> 2
D176: 12 | E176: 170 | M176: =IF(OR(Hiteladatok!$I$8=0,E176>$B$4),0,IF(D176>Hiteladatok!$U$40,0,$B$14+IF(Hiteladatok!$I$10=Hiteladatok!$N$33,$B$15,0))) -> 0 | Y176: 15 | Z176: =INT((E176-1)/Hiteladatok!$U$29)+1 -> 2
D177: 12 | E177: 171 | M177: =IF(OR(Hiteladatok!$I$8=0,E177>$B$4),0,IF(D177>Hiteladatok!$U$40,0,$B$14+IF(Hiteladatok!$I$10=Hiteladatok!$N$33,$B$15,0))) -> 0 | Y177: 15 | Z177: =INT((E177-1)/Hiteladatok!$U$29)+1 -> 2
D178: 4 | E178: 172 | M178: =IF(OR(Hiteladatok!$I$8=0,E178>$B$4),0,IF(D178>Hiteladatok!$U$40,0,$B$14+IF(Hiteladatok!$I$10=Hiteladatok!$N$33,$B$15,0))) -> 0 | Y178: 15 | Z178: =INT((E178-1)/Hiteladatok!$U$29)+1 -> 2
D179: 12 | E179: 173 | M179: =IF(OR(Hiteladatok!$I$8=0,E179>$B$4),0,IF(D179>Hiteladatok!$U$40,0,$B$14+IF(Hiteladatok!$I$10=Hiteladatok!$N$33,$B$15,0))) -> 0 | Y179: 15 | Z179: =INT((E179-1)/Hiteladatok!$U$29)+1 -> 2
D180: 12 | E180: 174 | M180: =IF(OR(Hiteladatok!$I$8=0,E180>$B$4),0,IF(D180>Hiteladatok!$U$40,0,$B$14+IF(Hiteladatok!$I$10=Hiteladatok!$N$33,$B$15,0))) -> 0 | Y180: 15 | Z180: =INT((E180-1)/Hiteladatok!$U$29)+1 -> 2
D181: 2 | E181: 175 | M181: =IF(OR(Hiteladatok!$I$8=0,E181>$B$4),0,IF(D181>Hiteladatok!$U$40,0,$B$14+IF(Hiteladatok!$I$10=Hiteladatok!$N$33,$B$15,0))) -> 0 | Y181: 15 | Z181: =INT((E181-1)/Hiteladatok!$U$29)+1 -> 2
D182: 12 | E182: 176 | M182: =IF(OR(Hiteladatok!$I$8=0,E182>$B$4),0,IF(D182>Hiteladatok!$U$40,0,$B$14+IF(Hiteladatok!$I$10=Hiteladatok!$N$33,$B$15,0))) -> 0 | Y182: 15 | Z182: =INT((E182-1)/Hiteladatok!$U$29)+1 -> 2
D183: 12 | E183: 177 | M183: =IF(OR(Hiteladatok!$I$8=0,E183>$B$4),0,IF(D183>Hiteladatok!$U$40,0,$B$14+IF(Hiteladatok!$I$10=Hiteladatok!$N$33,$B$15,0))) -> 0 | Y183: 15 | Z183: =INT((E183-1)/Hiteladatok!$U$29)+1 -> 2
D184: 4 | E184: 178 | M184: =IF(OR(Hiteladatok!$I$8=0,E184>$B$4),0,IF(D184>Hiteladatok!$U$40,0,$B$14+IF(Hiteladatok!$I$10=Hiteladatok!$N$33,$B$15,0))) -> 0 | Y184: 15 | Z184: =INT((E184-1)/Hiteladatok!$U$29)+1 -> 2
D185: 12 | E185: 179 | M185: =IF(OR(Hiteladatok!$I$8=0,E185>$B$4),0,IF(D185>Hiteladatok!$U$40,0,$B$14+IF(Hiteladatok!$I$10=Hiteladatok!$N$33,$B$15,0))) -> 0 | Y185: 15 | Z185: =INT((E185-1)/Hiteladatok!$U$29)+1 -> 2
D186: 12 | E186: 180 | M186: =IF(OR(Hiteladatok!$I$8=0,E186>$B$4),0,IF(D186>Hiteladatok!$U$40,0,$B$14+IF(Hiteladatok!$I$10=Hiteladatok!$N$33,$B$15,0))) -> 0 | Y186: 15 | Z186: =INT((E186-1)/Hiteladatok!$U$29)+1 -> 2
D187: 1 | E187: 181 | M187: =IF(OR(Hiteladatok!$I$8=0,E187>$B$4),0,IF(D187>Hiteladatok!$U$40,0,$B$14+IF(Hiteladatok!$I$10=Hiteladatok!$N$33,$B$15,0))) -> 0 | Y187: 16 | Z187: =INT((E187-1)/Hiteladatok!$U$29)+1 -> 2
D188: 12 | E188: 182 | M188: =IF(OR(Hiteladatok!$I$8=0,E188>$B$4),0,IF(D188>Hiteladatok!$U$40,0,$B$14+IF(Hiteladatok!$I$10=Hiteladatok!$N$33,$B$15,0))) -> 0 | Y188: 16 | Z188: =INT((E188-1)/Hiteladatok!$U$29)+1 -> 2
D189: 12 | E189: 183 | M189: =IF(OR(Hiteladatok!$I$8=0,E189>$B$4),0,IF(D189>Hiteladatok!$U$40,0,$B$14+IF(Hiteladatok!$I$10=Hiteladatok!$N$33,$B$15,0))) -> 0 | Y189: 16 | Z189: =INT((E189-1)/Hiteladatok!$U$29)+1 -> 2
D190: 4 | E190: 184 | M190: =IF(OR(Hiteladatok!$I$8=0,E190>$B$4),0,IF(D190>Hiteladatok!$U$40,0,$B$14+IF(Hiteladatok!$I$10=Hiteladatok!$N$33,$B$15,0))) -> 0 | Y190: 16 | Z190: =INT((E190-1)/Hiteladatok!$U$29)+1 -> 2
D191: 12 | E191: 185 | M191: =IF(OR(Hiteladatok!$I$8=0,E191>$B$4),0,IF(D191>Hiteladatok!$U$40,0,$B$14+IF(Hiteladatok!$I$10=Hiteladatok!$N$33,$B$15,0))) -> 0 | Y191: 16 | Z191: =INT((E191-1)/Hiteladatok!$U$29)+1 -> 2
D192: 12 | E192: 186 | M192: =IF(OR(Hiteladatok!$I$8=0,E192>$B$4),0,IF(D192>Hiteladatok!$U$40,0,$B$14+IF(Hiteladatok!$I$10=Hiteladatok!$N$33,$B$15,0))) -> 0 | Y192: 16 | Z192: =INT((E192-1)/Hiteladatok!$U$29)+1 -> 2
D193: 2 | E193: 187 | M193: =IF(OR(Hiteladatok!$I$8=0,E193>$B$4),0,IF(D193>Hiteladatok!$U$40,0,$B$14+IF(Hiteladatok!$I$10=Hiteladatok!$N$33,$B$15,0))) -> 0 | Y193: 16 | Z193: =INT((E193-1)/Hiteladatok!$U$29)+1 -> 2
D194: 12 | E194: 188 | M194: =IF(OR(Hiteladatok!$I$8=0,E194>$B$4),0,IF(D194>Hiteladatok!$U$40,0,$B$14+IF(Hiteladatok!$I$10=Hiteladatok!$N$33,$B$15,0))) -> 0 | Y194: 16 | Z194: =INT((E194-1)/Hiteladatok!$U$29)+1 -> 2
D195: 12 | E195: 189 | M195: =IF(OR(Hiteladatok!$I$8=0,E195>$B$4),0,IF(D195>Hiteladatok!$U$40,0,$B$14+IF(Hiteladatok!$I$10=Hiteladatok!$N$33,$B$15,0))) -> 0 | Y195: 16 | Z195: =INT((E195-1)/Hiteladatok!$U$29)+1 -> 2
D196: 4 | E196: 190 | M196: =IF(OR(Hiteladatok!$I$8=0,E196>$B$4),0,IF(D196>Hiteladatok!$U$40,0,$B$14+IF(Hiteladatok!$I$10=Hiteladatok!$N$33,$B$15,0))) -> 0 | Y196: 16 | Z196: =INT((E196-1)/Hiteladatok!$U$29)+1 -> 2
D197: 12 | E197: 191 | M197: =IF(OR(Hiteladatok!$I$8=0,E197>$B$4),0,IF(D197>Hiteladatok!$U$40,0,$B$14+IF(Hiteladatok!$I$10=Hiteladatok!$N$33,$B$15,0))) -> 0 | Y197: 16 | Z197: =INT((E197-1)/Hiteladatok!$U$29)+1 -> 2
D198: 12 | E198: 192 | M198: =IF(OR(Hiteladatok!$I$8=0,E198>$B$4),0,IF(D198>Hiteladatok!$U$40,0,$B$14+IF(Hiteladatok!$I$10=Hiteladatok!$N$33,$B$15,0))) -> 0 | Y198: 16 | Z198: =INT((E198-1)/Hiteladatok!$U$29)+1 -> 2
D199: 1 | E199: 193 | M199: =IF(OR(Hiteladatok!$I$8=0,E199>$B$4),0,IF(D199>Hiteladatok!$U$40,0,$B$14+IF(Hiteladatok!$I$10=Hiteladatok!$N$33,$B$15,0))) -> 0 | U199: =Q199+S199-T199 ->  | Y199: 17 | Z199: =INT((E199-1)/Hiteladatok!$U$29)+1 -> 2
D200: 12 | E200: 194 | F200: =$F$1*E200+$B$9 ->  | M200: =IF(OR(Hiteladatok!$I$8=0,E200>$B$4),0,IF(D200>Hiteladatok!$U$40,0,$B$14+IF(Hiteladatok!$I$10=Hiteladatok!$N$33,$B$15,0))) -> 0 | N200: =I200+K200+L200+M200 ->  | V200: =T200+K200+L200+M200 ->  | Y200: 17 | Z200: =INT((E200-1)/Hiteladatok!$U$29)+1 -> 2
... 166 more rows

Sheet OTK (hidden)
M1: 30.41666 | T1: 0.03084479463
A2: tőke | B2: =Hiteladatok!F15 -> 0 | P2: =SUM(P5:P304) -> 
A3: kamat | B3: =kondíciók!G5 -> 0.03 | D3: =kondíciók!B10*1.3+kondíciók!G6 -> 0.05379 | G3: bírálathoz | M3: THM-hez, törlesztési tervhez
A4: futamidő | B4: =Hiteladatok!F16 -> 240 | E4: sorszám | G4: nyitó | H4: kamat | I4: törl. | J4: záró | K4: tőketörl | M4: eltelt nap | N4: nyitó | O4: kamat | P4: részlet | Q4: záró | R4: számla | S4: havi teher | T4: =B2-B17-T304 ->  | V4: év
A5: =Hiteladatok!A18 -> Folyósítás várható dátuma | B5: =Hiteladatok!F18 ->  | E5: 1 | F5: =$B$4-E5+1 -> 240 | G5: =B2 -> 0 | H5: =G5*$B$3/12 -> 0 | I5: =IF(F5<=0,0,PMT($B$3/12,F5,-G5)) -> 0 | J5: =G5+H5-I5 -> 0 | K5: =G5-J5 -> 0 | M5: =$M$1*E5+$B$9 ->  | N5: =B2 -> 0 | O5: =N5*$B$3/12+C9 ->  | P5: =B11 ->  | Q5: =N5+O5-P5 ->  | R5: =IF(E5>$B$4,0,$C$13) ->  | S5: =P5+R5 ->  | T5: =S5/(1+$T$1)^(M5/365) ->  | V5: 1
A6: =Hiteladatok!A19 -> Törlesztés kezdete | B6: =Hiteladatok!F19 ->  | D6: =I5 -> 0 | E6: =E5+1 -> 2 | F6: 239 | G6: =J5 -> 0 | H6: =G6*$B$3/12 -> 0 | I6: =IF(F6<=0,0,PMT($B$3/12,F6,-G6)) -> 0 | J6: =G6+H6-I6 -> 0 | K6: =G6-J6 -> 0 | M6: =$M$1*E6+$B$9 ->  | N6: =Q5 ->  | O6: =N6*$B$3/12 ->  | P6: =IF(E6>$B$4,0,$B$10) -> 0 | Q6: =N6+O6-P6 ->  | R6: =IF(E6>$B$4,0,$C$13) ->  | S6: =P6+R6 ->  | T6: =T5+S6/(1+$T$1)^(M6/365) ->  | V6: 1
A7: napok száma | B7: =B6-B5 ->  | D7: =I125 -> 0 | E7: =E6+1 -> 3 | F7: 238 | G7: =J6 -> 0 | H7: 0 | I7: 0 | J7: =G7+H7-I7 -> 0 | K7: 0 | M7: =$M$1*E7+$B$9 ->  | N7: =Q6 ->  | O7: =N7*$B$3/12 ->  | P7: =IF(E7>$B$4,0,$B$10) -> 0 | R7: =IF(E7>$B$4,0,$C$13) ->  | T7: =T6+S7/(1+$T$1)^(M7/365) ->  | V7: 1
A8: kamatnapok száma | B8: =30-DAY(B5)+(MONTH(B6)-MONTH(B5))*30+DAY(B6)-30+(YEAR(B6)-YEAR(B5))*360 ->  | D8: =PMT(D3/12,B4,-B2) -> 0 | E8: 4 | F8: 237 | G8: 0 | H8: 0 | I8: 0 | J8: 0 | K8: 0 | P8: 0 | V8: 1
A9: extra napok száma | B9: =B8-30 ->  | C9: =B2*B3*B9/360 ->  | E9: 5 | F9: 236 | G9: 0 | H9: 0 | I9: 0 | J9: 0 | K9: 0 | P9: 0 | V9: 1
A10: részlet | B10: =PMT(B3/12,B4,-B2) -> 0 | E10: 6 | F10: 235 | G10: 0 | H10: 0 | I10: 0 | J10: 0 | K10: 0 | P10: 0 | V10: 1
A11: 1. részlet | B11: =B10+C9 ->  | E11: 7 | F11: 234 | G11: 0 | H11: 0 | I11: 0 | J11: 0 | K11: 0 | P11: 0 | V11: 1
E12: 8 | F12: 233 | G12: 0 | H12: 0 | I12: 0 | J12: 0 | K12: 0 | P12: 0 | V12: 1
A13: számla | B13: =MFL!B13 ->  | C13: =IF(Hiteladatok!D6="N",B13,0) ->  | E13: 9 | F13: 232 | G13: 0 | H13: 0 | I13: 0 | J13: 0 | K13: 0 | P13: 0 | V13: 1
E14: 10 | F14: 231 | G14: 0 | H14: 0 | I14: 0 | J14: 0 | K14: 0 | P14: 0 | V14: 1
E15: 11 | F15: 230 | G15: 0 | H15: 0 | I15: 0 | J15: 0 | K15: 0 | P15: 0 | V15: 1
E16: 12 | F16: 229 | G16: 0 | H16: 0 | I16: 0 | J16: 0 | K16: 0 | P16: 0 | V16: 1
A17: Kezdeti díjak | B17: =SUM(B18:B24) -> 0 | E17: 13 | F17: 228 | G17: 0 | H17: 0 | I17: 0 | J17: 0 | K17: 0 | P17: 0 | V17: =V5+1 -> 2
A18: földhivatal | B18: =IF(Hiteladatok!B15>0,Hiteladatok!D12/2,Hiteladatok!D12) -> 0 | E18: 14 | F18: 227 | G18: 0 | H18: 0 | I18: 0 | J18: 0 | K18: 0 | P18: 0 | V18: =V6+1 -> 2
A19: egyszeri életbiztosítás | E19: 15 | F19: 226 | G19: 0 | H19: 0 | I19: 0 | J19: 0 | K19: 0 | P19: 0 | V19: 2
A20: ügynöknek fizetett | B20: =IF(Finanszírozás!G18=0,0,Hiteladatok!I12/Finanszírozás!G18) -> 0 | E20: 16 | F20: 225 | G20: 0 | H20: 0 | I20: 0 | J20: 0 | K20: 0 | P20: 0 | V20: 2
A21: =Hiteladatok!D33 -> Szerződéskötési díj | B21: =Hiteladatok!F33 -> 0 | E21: 17 | F21: 224 | G21: 0 | H21: 0 | I21: 0 | J21: 0 | K21: 0 | P21: 0 | V21: 2
A22: =Hiteladatok!D34 -> Értékbecslési díjak | B22: =Hiteladatok!F34 -> 0 | E22: 18 | F22: 223 | G22: 0 | H22: 0 | I22: 0 | J22: 0 | K22: 0 | P22: 0 | V22: 2
A23: =Hiteladatok!D35 -> Takarnet díjak | B23: =Hiteladatok!F35 -> 0 | E23: 19 | F23: 222 | G23: 0 | H23: 0 | I23: 0 | J23: 0 | K23: 0 | P23: 0 | V23: 2
A24: =Hiteladatok!D36 -> Tulajdoni hányad ellenőrzés | B24: =Hiteladatok!F36 -> 0 | E24: 20 | F24: 221 | G24: 0 | H24: 0 | I24: 0 | J24: 0 | K24: 0 | P24: 0 | V24: 2
E25: 21 | F25: 220 | G25: 0 | H25: 0 | I25: 0 | J25: 0 | K25: 0 | P25: 0 | V25: 2
E26: 22 | F26: 219 | G26: 0 | H26: 0 | I26: 0 | J26: 0 | K26: 0 | P26: 0 | V26: 2
E27: 23 | F27: 218 | G27: 0 | H27: 0 | I27: 0 | J27: 0 | K27: 0 | P27: 0 | V27: 2
E28: 24 | F28: 217 | G28: 0 | H28: 0 | I28: 0 | J28: 0 | K28: 0 | P28: 0 | V28: 2
E29: 25 | F29: 216 | G29: 0 | H29: 0 | I29: 0 | J29: 0 | K29: 0 | P29: 0 | V29: 3
E30: 26 | F30: 215 | G30: 0 | H30: 0 | I30: 0 | J30: 0 | K30: 0 | P30: 0 | V30: 3
E31: 27 | F31: 214 | G31: 0 | H31: 0 | I31: 0 | J31: 0 | K31: 0 | P31: 0 | V31: 3
E32: 28 | F32: 213 | G32: 0 | H32: 0 | I32: 0 | J32: 0 | K32: 0 | P32: 0 | V32: 3
E33: 29 | F33: 212 | G33: 0 | H33: 0 | I33: 0 | J33: 0 | K33: 0 | P33: 0 | V33: 3
E34: 30 | F34: 211 | G34: 0 | H34: 0 | I34: 0 | J34: 0 | K34: 0 | P34: 0 | V34: 3
E35: 31 | F35: 210 | G35: 0 | H35: 0 | I35: 0 | J35: 0 | K35: 0 | P35: 0 | V35: 3
E36: 32 | F36: 209 | G36: 0 | H36: 0 | I36: 0 | J36: 0 | K36: 0 | P36: 0 | V36: 3
E37: 33 | F37: 208 | G37: 0 | H37: =G37*$B$3/12 -> 0 | I37: =IF(F37<=0,0,PMT($B$3/12,F37,-G37)) -> 0 | J37: 0 | K37: 0 | P37: 0 | V37: 3
E38: 34 | F38: 207 | G38: 0 | H38: 0 | I38: 0 | J38: 0 | K38: 0 | P38: 0 | V38: 3
E39: 35 | F39: 206 | G39: 0 | H39: 0 | I39: 0 | J39: 0 | K39: 0 | P39: 0 | V39: 3
E40: 36 | F40: 205 | G40: 0 | H40: 0 | I40: 0 | J40: 0 | K40: 0 | P40: 0 | V40: 3
E41: 37 | F41: 204 | G41: 0 | H41: 0 | I41: 0 | J41: 0 | K41: 0 | P41: 0 | V41: 4
E42: 38 | F42: 203 | G42: 0 | H42: 0 | I42: 0 | J42: 0 | K42: 0 | P42: 0 | V42: 4
E43: 39 | F43: 202 | G43: 0 | H43: 0 | I43: 0 | J43: 0 | K43: 0 | P43: 0 | V43: 4
E44: 40 | F44: 201 | G44: 0 | H44: 0 | I44: 0 | J44: 0 | K44: 0 | P44: 0 | V44: 4
E45: 41 | F45: 200 | G45: 0 | H45: 0 | I45: 0 | J45: 0 | K45: 0 | P45: 0 | V45: 4
E46: 42 | F46: 199 | G46: 0 | H46: 0 | I46: 0 | J46: 0 | K46: 0 | P46: 0 | V46: 4
E47: 43 | F47: 198 | G47: 0 | H47: 0 | I47: 0 | J47: 0 | K47: 0 | P47: 0 | V47: 4
E48: 44 | F48: 197 | G48: 0 | H48: 0 | I48: 0 | J48: 0 | K48: 0 | P48: 0 | V48: 4
E49: 45 | F49: 196 | G49: 0 | H49: 0 | I49: 0 | J49: 0 | K49: 0 | P49: 0 | V49: 4
E50: 46 | F50: 195 | G50: 0 | H50: 0 | I50: 0 | J50: 0 | K50: 0 | P50: 0 | V50: 4
E51: 47 | F51: 194 | G51: 0 | H51: 0 | I51: 0 | J51: 0 | K51: 0 | P51: 0 | V51: 4
E52: 48 | F52: 193 | G52: 0 | H52: 0 | I52: 0 | J52: 0 | K52: 0 | P52: 0 | V52: 4
E53: 49 | F53: 192 | G53: 0 | H53: 0 | I53: 0 | J53: 0 | K53: 0 | P53: 0 | V53: 5
E54: 50 | F54: 191 | G54: 0 | H54: 0 | I54: 0 | J54: 0 | K54: 0 | P54: 0 | V54: 5
E55: 51 | F55: 190 | G55: 0 | H55: 0 | I55: 0 | J55: 0 | K55: 0 | P55: 0 | V55: 5
E56: 52 | F56: 189 | G56: 0 | H56: 0 | I56: 0 | J56: 0 | K56: 0 | P56: 0 | V56: 5
E57: 53 | F57: 188 | G57: 0 | H57: 0 | I57: 0 | J57: 0 | K57: 0 | P57: 0 | V57: 5
E58: 54 | F58: 187 | G58: 0 | H58: 0 | I58: 0 | J58: 0 | K58: 0 | P58: 0 | V58: 5
E59: 55 | F59: 186 | G59: 0 | H59: 0 | I59: 0 | J59: 0 | K59: 0 | P59: 0 | V59: 5
E60: 56 | F60: 185 | G60: 0 | H60: 0 | I60: 0 | J60: 0 | K60: 0 | P60: 0 | V60: 5
E61: 57 | F61: 184 | G61: 0 | H61: 0 | I61: 0 | J61: 0 | K61: 0 | P61: 0 | V61: 5
E62: 58 | F62: 183 | G62: 0 | H62: 0 | I62: 0 | J62: 0 | K62: 0 | P62: 0 | V62: 5
E63: 59 | F63: 182 | G63: 0 | H63: 0 | I63: 0 | J63: 0 | K63: 0 | P63: 0 | V63: 5
E64: 60 | F64: 181 | G64: 0 | H64: 0 | I64: 0 | J64: 0 | K64: 0 | P64: 0 | V64: 5
E65: 61 | F65: 180 | G65: 0 | H65: 0 | I65: 0 | J65: 0 | K65: 0 | P65: 0 | V65: 6
E66: 62 | F66: 179 | G66: 0 | H66: 0 | I66: 0 | J66: 0 | K66: 0 | P66: 0 | V66: 6
E67: 63 | F67: 178 | G67: 0 | H67: 0 | I67: 0 | J67: 0 | K67: 0 | P67: 0 | V67: 6
E68: 64 | F68: 177 | G68: 0 | H68: 0 | I68: 0 | J68: 0 | K68: 0 | P68: 0 | V68: 6
E69: 65 | F69: =$B$4-E69+1 -> 176 | G69: 0 | H69: =G69*$B$3/12 -> 0 | I69: =IF(F69<=0,0,PMT($B$3/12,F69,-G69)) -> 0 | J69: 0 | K69: 0 | P69: 0 | V69: 6
E70: 66 | F70: 175 | G70: 0 | H70: 0 | I70: 0 | J70: 0 | K70: =G70-J70 -> 0 | P70: 0 | Q70: =N70+O70-P70 ->  | S70: =P70+R70 ->  | V70: 6
E71: =E70+1 -> 67 | F71: 174 | G71: =J70 -> 0 | H71: 0 | I71: 0 | J71: =G71+H71-I71 -> 0 | K71: 0 | M71: =$M$1*E71+$B$9 ->  | N71: =Q70 ->  | O71: =N71*$B$3/12 ->  | P71: =IF(E71>$B$4,0,$B$10) -> 0 | R71: =IF(E71>$B$4,0,$C$13) ->  | T71: =T70+S71/(1+$T$1)^(M71/365) ->  | V71: 6
E72: 68 | F72: 173 | G72: 0 | H72: 0 | I72: 0 | J72: 0 | K72: 0 | P72: 0 | V72: 6
E73: 69 | F73: 172 | G73: 0 | H73: 0 | I73: 0 | J73: 0 | K73: 0 | P73: 0 | V73: 6
E74: 70 | F74: 171 | G74: 0 | H74: 0 | I74: 0 | J74: 0 | K74: 0 | P74: 0 | V74: 6
E75: 71 | F75: 170 | G75: 0 | H75: 0 | I75: 0 | J75: 0 | K75: 0 | P75: 0 | V75: 6
E76: 72 | F76: 169 | G76: 0 | H76: 0 | I76: 0 | J76: 0 | K76: 0 | P76: 0 | V76: 6
E77: 73 | F77: 168 | G77: 0 | H77: 0 | I77: 0 | J77: 0 | K77: 0 | P77: 0 | V77: 7
E78: 74 | F78: 167 | G78: 0 | H78: 0 | I78: 0 | J78: 0 | K78: 0 | P78: 0 | V78: 7
E79: 75 | F79: 166 | G79: 0 | H79: 0 | I79: 0 | J79: 0 | K79: 0 | P79: 0 | V79: 7
E80: 76 | F80: 165 | G80: 0 | H80: 0 | I80: 0 | J80: 0 | K80: 0 | P80: 0 | V80: 7
E81: 77 | F81: 164 | G81: 0 | H81: 0 | I81: 0 | J81: 0 | K81: 0 | P81: 0 | V81: 7
E82: 78 | F82: 163 | G82: 0 | H82: 0 | I82: 0 | J82: 0 | K82: 0 | P82: 0 | V82: =V70+1 -> 7
E83: 79 | F83: 162 | G83: 0 | H83: 0 | I83: 0 | J83: 0 | K83: 0 | P83: 0 | V83: 7
E84: 80 | F84: 161 | G84: 0 | H84: 0 | I84: 0 | J84: 0 | K84: 0 | P84: 0 | V84: 7
E85: 81 | F85: 160 | G85: 0 | H85: 0 | I85: 0 | J85: 0 | K85: 0 | P85: 0 | V85: 7
E86: 82 | F86: 159 | G86: 0 | H86: 0 | I86: 0 | J86: 0 | K86: 0 | P86: 0 | V86: 7
E87: 83 | F87: 158 | G87: 0 | H87: 0 | I87: 0 | J87: 0 | K87: 0 | P87: 0 | V87: 7
E88: 84 | F88: 157 | G88: 0 | H88: 0 | I88: 0 | J88: 0 | K88: 0 | P88: 0 | V88: 7
E89: 85 | F89: 156 | G89: 0 | H89: 0 | I89: 0 | J89: 0 | K89: 0 | P89: 0 | V89: 8
E90: 86 | F90: 155 | G90: 0 | H90: 0 | I90: 0 | J90: 0 | K90: 0 | P90: 0 | V90: 8
E91: 87 | F91: 154 | G91: 0 | H91: 0 | I91: 0 | J91: 0 | K91: 0 | P91: 0 | V91: 8
E92: 88 | F92: 153 | G92: 0 | H92: 0 | I92: 0 | J92: 0 | K92: 0 | P92: 0 | V92: 8
E93: 89 | F93: 152 | G93: 0 | H93: 0 | I93: 0 | J93: 0 | K93: 0 | P93: 0 | V93: 8
E94: 90 | F94: 151 | G94: 0 | H94: 0 | I94: 0 | J94: 0 | K94: 0 | P94: 0 | V94: 8
E95: 91 | F95: 150 | G95: 0 | H95: 0 | I95: 0 | J95: 0 | K95: 0 | P95: 0 | V95: 8
E96: 92 | F96: 149 | G96: 0 | H96: 0 | I96: 0 | J96: 0 | K96: 0 | P96: 0 | V96: 8
E97: 93 | F97: 148 | G97: 0 | H97: 0 | I97: 0 | J97: 0 | K97: 0 | P97: 0 | V97: 8
E98: 94 | F98: 147 | G98: 0 | H98: 0 | I98: 0 | J98: 0 | K98: 0 | P98: 0 | V98: 8
E99: 95 | F99: 146 | G99: 0 | H99: 0 | I99: 0 | J99: 0 | K99: 0 | P99: 0 | V99: 8
E100: 96 | F100: 145 | G100: 0 | H100: 0 | I100: 0 | J100: 0 | K100: 0 | P100: 0 | V100: 8
E101: 97 | F101: 144 | G101: 0 | H101: =G101*$B$3/12 -> 0 | I101: =IF(F101<=0,0,PMT($B$3/12,F101,-G101)) -> 0 | J101: 0 | K101: 0 | P101: 0 | V101: 9
E102: 98 | F102: 143 | G102: 0 | H102: 0 | I102: 0 | J102: 0 | K102: 0 | P102: 0 | V102: 9
E103: 99 | F103: 142 | G103: 0 | H103: 0 | I103: 0 | J103: 0 | K103: 0 | P103: 0 | V103: 9
E104: 100 | F104: 141 | G104: 0 | H104: 0 | I104: 0 | J104: 0 | K104: 0 | P104: 0 | V104: 9
E105: 101 | F105: 140 | G105: 0 | H105: 0 | I105: 0 | J105: 0 | K105: 0 | P105: 0 | V105: 9
E106: 102 | F106: 139 | G106: 0 | H106: 0 | I106: 0 | J106: 0 | K106: 0 | P106: 0 | V106: 9
E107: 103 | F107: 138 | G107: 0 | H107: 0 | I107: 0 | J107: 0 | K107: 0 | P107: 0 | V107: 9
E108: 104 | F108: 137 | G108: 0 | H108: 0 | I108: 0 | J108: 0 | K108: 0 | P108: 0 | V108: 9
E109: 105 | F109: 136 | G109: 0 | H109: 0 | I109: 0 | J109: 0 | K109: 0 | P109: 0 | V109: 9
E110: 106 | F110: 135 | G110: 0 | H110: 0 | I110: 0 | J110: 0 | K110: 0 | P110: 0 | V110: 9
E111: 107 | F111: 134 | G111: 0 | H111: 0 | I111: 0 | J111: 0 | K111: 0 | P111: 0 | V111: 9
E112: 108 | F112: 133 | G112: 0 | H112: 0 | I112: 0 | J112: 0 | K112: 0 | P112: 0 | V112: 9
E113: 109 | F113: 132 | G113: 0 | H113: 0 | I113: 0 | J113: 0 | K113: 0 | P113: 0 | V113: 10
E114: 110 | F114: 131 | G114: 0 | H114: 0 | I114: 0 | J114: 0 | K114: 0 | P114: 0 | V114: 10
E115: 111 | F115: 130 | G115: 0 | H115: 0 | I115: 0 | J115: 0 | K115: 0 | P115: 0 | V115: 10
E116: 112 | F116: 129 | G116: 0 | H116: 0 | I116: 0 | J116: 0 | K116: 0 | P116: 0 | V116: 10
E117: 113 | F117: 128 | G117: 0 | H117: 0 | I117: 0 | J117: 0 | K117: 0 | P117: 0 | V117: 10
E118: 114 | F118: 127 | G118: 0 | H118: 0 | I118: 0 | J118: 0 | K118: 0 | P118: 0 | V118: 10
E119: 115 | F119: 126 | G119: 0 | H119: 0 | I119: 0 | J119: 0 | K119: 0 | P119: 0 | V119: 10
E120: 116 | F120: 125 | G120: 0 | H120: 0 | I120: 0 | J120: 0 | K120: 0 | P120: 0 | V120: 10
E121: 117 | F121: 124 | G121: 0 | H121: 0 | I121: 0 | J121: 0 | K121: 0 | P121: 0 | V121: 10
E122: 118 | F122: 123 | G122: 0 | H122: 0 | I122: 0 | J122: 0 | K122: 0 | P122: 0 | V122: 10
E123: 119 | F123: 122 | G123: 0 | H123: 0 | I123: 0 | J123: 0 | K123: 0 | P123: 0 | V123: 10
